Workbook

Sheet A Factor
A1: Evaluation of A-Factor, based on SDG&E EUE estimates | BN1: Customized for SDG&E 9/9/2014
A2: Dispatch Availability | Z2: Single Program Design Valuation | AX2: Batch Runs
Z4: Calls per month | AA4: 5 | AH4: Month | AI4: 12 | AX4: Max calls per month | BB4: 15 | BC4: BatchCalls
Z5: Hours per Call | AA5: 15 | AH5: Next Hour | AI5: =IF(SUM(IF($AA$11:$AA$8770=$AI$4,IF($AF$11:$AF$8770=0,1,0)))>0,MATCH(MAX(IF(AF$11:AF$8770=0,IF($AA$11:$AA$8770=$AI$4,$AE$11:$AE$8770,0),0)),IF($AA$11:$AA$8770=$AI$4,$AE$11:$AE$8770,0),0),0) -> 0 | AK5: Monthly Capture (Copy this to the DR Template) | AX5: Max hours per call | BB5: 15 | BC5: BatchIterations
AF6: Total | AH6: HashSingle | AI6: 1505.694144 | AK6: 1 | AL6: 2 | AM6: 3 | AN6: 4 | AO6: 5 | AP6: 6 | AQ6: 7 | AR6: 8 | AS6: 9 | AT6: 10 | AU6: 11 | AV6: 12
A7: Season Definition | D7: Hours available for dispatch of DR | K7: Calculation of Availability w/ Daylight Saving Time Adjustment for clock time | T7: Summary of Dispatchable Hrs by Month | AE7: % of Capacity Value Captured | AF7: =SUM(AJ11:AJ8770) -> 0.5584843027 | AH7: HashBatch | AI7: 0.6941435927 | AK7: =SUMIF($AA$11:$AA$8770,AK6,$AJ$11:$AJ$8770) -> 0 | AL7: =SUMIF($AA$11:$AA$8770,AL6,$AJ$11:$AJ$8770) -> 0 | AM7: 0 | AN7: 0 | AO7: 0.0004843017894 | AP7: 3.88362107e-05 | AQ7: 0.03951659015 | AR7: 0.3017551646 | AS7: 0.21668941 | AT7: 0 | AU7: 0 | AV7: 0
B8: 1 = Summer | N8: Daylight | O8: Hour | P8: Hour | Q8: Day can be | R8: Hour can be | AH8: Hash Single Active | AI8: =MaxCapVal+Calls+Hours*100 -> 1505.694144
A9: Month | B9: 2 = Winter | G9: Summer | H9: Winter | K9: Date | L9: Month | M9: Season | N9: Savings | O9: PST | P9: PST/PDT | Q9: dispatched? | R9: dispatched? | T9: Month | U9: Total Hrs | V9: Available Hrs | W9: Percent | AA9: Month | AB9: Hour | AC9: Allocators | AD9: Avail Alloc | AE9: Disp Value | AF9: Dispatch | AH9: Hash Single Match | AI9: =HashSingle=AI8 -> TRUE | AJ9: Captured Value | AX9: =IF(AI10,"","DR Availability has been changed. Re-run Batch Dispatch to update captured value") -> 
AH10: Hash Batch Mash | AI10: =HashBatch=MaxCapVal -> TRUE | AZ10: Number of Hours Per Call
A11: January | B11: 2 | D11: 0 | E11: to | F11: 1 | G11: FALSE | H11: FALSE | K11: 2014-01-01 | L11: =MONTH(K11) -> 1 | M11: =INDEX($B$11:$B$22,L11) -> 2 | O11: =HOUR(K11) -> 0 | P11: =IF((HOUR(K11)+N11)=24,0,HOUR(K11)+N11) -> 0 | Q11: =IF($A$27=TRUE, TRUE, IF(WEEKDAY(K11+N11/24,2)<6,TRUE, FALSE)) -> TRUE | R11: =IF(Q11=FALSE, FALSE,INDEX($G$11:$H$34,P11+1,M11)) -> FALSE | T11: 1 | U11: =SUM(IF($L$11:$L$8770=T11,1,0)) -> 744 | V11: =SUM(IF($L$11:$L$8770=T11,1,0)*IF($R$11:$R$8770=TRUE,1,0)) -> 0 | W11: =V11/U11 -> 0 | Z11: 2006-01-01 | AA11: 1 | AB11: 1 | AC11: =OFFSET(EUE!$AB$2,$Z11-$Z$11,$AB11-1) -> 0 | AD11: =AC11*R11 -> 0 | AE11: =IF(AF11>-1,SUM(OFFSET($AD11,0,0,AA$5,1)),0) -> 0 | AF11: -1 | AJ11: =IF(AF11=1,AE11,0) -> 0 | AZ11: 1 | BA11: 2 | BB11: 3 | BC11: 4 | BD11: 5 | BE11: 6 | BF11: 7 | BG11: 8 | BH11: 9 | BI11: 10 | BJ11: 11 | BK11: 12 | BL11: 13 | BM11: 14 | BN11: 15
A12: February | B12: 2 | D12: 1 | E12: to | F12: 2 | G12: FALSE | H12: FALSE | K12: =K11+1/24 -> 2014-01-01T01:00:00 | L12: =MONTH(K12) -> 1 | M12: =INDEX($B$11:$B$22,L12) -> 2 | O12: =HOUR(K12) -> 1 | P12: =IF((HOUR(K12)+N12)=24,0,HOUR(K12)+N12) -> 1 | Q12: =IF($A$27=TRUE, TRUE, IF(WEEKDAY(K12+N12/24,2)<6,TRUE, FALSE)) -> TRUE | R12: =IF(Q12=FALSE, FALSE,INDEX($G$11:$H$34,P12+1,M12)) -> FALSE | T12: 2 | U12: =SUM(IF($L$11:$L$8770=T12,1,0)) -> 672 | V12: =SUM(IF($L$11:$L$8770=T12,1,0)*IF($R$11:$R$8770=TRUE,1,0)) -> 0 | W12: =V12/U12 -> 0 | Z12: 2006-01-01 | AA12: 1 | AB12: 2 | AC12: =OFFSET(EUE!$AB$2,$Z12-$Z$11,$AB12-1) -> 0 | AD12: =AC12*R12 -> 0 | AE12: 0 | AF12: -1 | AJ12: =IF(AF12=1,AE12,0) -> 0 | AX12: Number of Calls Per Month | AY12: 1 | AZ12: 0.0311186609 | BA12: 0.06030484918 | BB12: 0.08878237846 | BC12: 0.1127324174 | BD12: 0.1362506801 | BE12: 0.1586269361 | BF12: 0.1775245221 | BG12: 0.1955683625 | BH12: 0.2077853437 | BI12: 0.2142010104 | BJ12: 0.2165263209 | BK12: 0.2170577382 | BL12: 0.2171367989 | BM12: 0.2171367989 | BN12: 0.2171367989
A13: March | B13: 2 | D13: 2 | E13: to | F13: 3 | G13: FALSE | H13: FALSE | K13: =K12+1/24 -> 2014-01-01T02:00:00 | L13: 1 | M13: 2 | O13: 2 | P13: 2 | Q13: TRUE | R13: FALSE | T13: 3 | U13: =SUM(IF($L$11:$L$8770=T13,1,0)) -> 744 | V13: =SUM(IF($L$11:$L$8770=T13,1,0)*IF($R$11:$R$8770=TRUE,1,0)) -> 0 | W13: 0 | Z13: 2006-01-01 | AA13: 1 | AB13: 3 | AC13: =OFFSET(EUE!$AB$2,$Z13-$Z$11,$AB13-1) -> 0 | AD13: 0 | AE13: 0 | AF13: -1 | AJ13: 0 | AY13: 2 | AZ13: 0.06031840163 | BA13: 0.112537093 | BB13: 0.155404703 | BC13: 0.1889078462 | BD13: 0.2280072445 | BE13: 0.2653547906 | BF13: 0.2971517591 | BG13: 0.3245126095 | BH13: 0.3422097701 | BI13: 0.3508870255 | BJ13: 0.3538590478 | BK13: 0.3544926576 | BL13: 0.3545759002 | BM13: 0.3545759002 | BN13: 0.3545759002
A14: April | B14: 2 | D14: 3 | E14: to | F14: 4 | G14: FALSE | H14: FALSE | K14: 2014-01-01T03:00:00 | L14: 1 | M14: 2 | O14: 3 | P14: 3 | Q14: TRUE | R14: FALSE | T14: 4 | U14: =SUM(IF($L$11:$L$8770=T14,1,0)) -> 720 | V14: =SUM(IF($L$11:$L$8770=T14,1,0)*IF($R$11:$R$8770=TRUE,1,0)) -> 0 | W14: 0 | Z14: 2006-01-01 | AA14: 1 | AB14: 4 | AC14: =OFFSET(EUE!$AB$2,$Z14-$Z$11,$AB14-1) -> 0 | AD14: 0 | AE14: 0 | AF14: -1 | AJ14: 0 | AY14: 3 | AZ14: 0.08885533956 | BA14: 0.1600376578 | BB14: 0.2155555015 | BC14: 0.2491980994 | BD14: 0.2886003828 | BE14: 0.3355109271 | BF14: 0.3753558219 | BG14: 0.4081180232 | BH14: 0.4288254817 | BI14: 0.4388211161 | BJ14: 0.4422955519 | BK14: 0.4430258628 | BL14: 0.4431128012 | BM14: 0.4431128012 | BN14: 0.4431128012
A15: May | B15: 1 | D15: 4 | E15: to | F15: 5 | G15: FALSE | H15: FALSE | K15: 2014-01-01T04:00:00 | L15: 1 | M15: 2 | O15: 4 | P15: 4 | Q15: TRUE | R15: FALSE | T15: 5 | U15: =SUM(IF($L$11:$L$8770=T15,1,0)) -> 744 | V15: =SUM(IF($L$11:$L$8770=T15,1,0)*IF($R$11:$R$8770=TRUE,1,0)) -> 308 | W15: 0.4139784946 | Z15: 2006-01-01 | AA15: 1 | AB15: 5 | AC15: =OFFSET(EUE!$AB$2,$Z15-$Z$11,$AB15-1) -> 0 | AD15: 0 | AE15: 0 | AF15: -1 | AJ15: 0 | AY15: 4 | AZ15: 0.1133710275 | BA15: 0.1992537992 | BB15: 0.2676677662 | BC15: 0.2999373249 | BD15: 0.3420325598 | BE15: 0.3967903181 | BF15: 0.4436029681 | BG15: 0.4812993762 | BH15: 0.5047834096 | BI15: 0.5159422987 | BJ15: 0.5197831616 | BK15: 0.5205734359 | BL15: 0.5206603743 | BM15: 0.5206603743 | BN15: 0.5206603743
A16: June | B16: 1 | D16: 5 | E16: to | F16: 6 | G16: FALSE | H16: FALSE | K16: 2014-01-01T05:00:00 | L16: 1 | M16: 2 | O16: 5 | P16: 5 | Q16: TRUE | R16: FALSE | T16: 6 | U16: =SUM(IF($L$11:$L$8770=T16,1,0)) -> 720 | V16: =SUM(IF($L$11:$L$8770=T16,1,0)*IF($R$11:$R$8770=TRUE,1,0)) -> 294 | W16: 0.4083333333 | Z16: 2006-01-01 | AA16: 1 | AB16: 6 | AC16: =OFFSET(EUE!$AB$2,$Z16-$Z$11,$AB16-1) -> 0 | AD16: 0 | AE16: 0 | AF16: -1 | AJ16: 0 | AY16: 5 | AZ16: 0.1373499089 | BA16: 0.235661344 | BB16: 0.3096397905 | BC16: 0.3460897117 | BD16: 0.3852478698 | BE16: 0.4430630555 | BF16: 0.49139929 | BG16: 0.5202681133 | BH16: 0.5421092749 | BI16: 0.5535955412 | BJ16: 0.5575565422 | BK16: 0.5583929455 | BL16: 0.5584843027 | BM16: 0.5584843027 | BN16: 0.5584843027
A17: July | B17: 1 | D17: 6 | E17: to | F17: 7 | G17: FALSE | H17: FALSE | K17: 2014-01-01T06:00:00 | L17: 1 | M17: 2 | O17: 6 | P17: 6 | Q17: TRUE | R17: FALSE | T17: 7 | U17: =SUM(IF($L$11:$L$8770=T17,1,0)) -> 744 | V17: =SUM(IF($L$11:$L$8770=T17,1,0)*IF($R$11:$R$8770=TRUE,1,0)) -> 322 | W17: 0.4327956989 | Z17: 2006-01-01 | AA17: 1 | AB17: 7 | AC17: =OFFSET(EUE!$AB$2,$Z17-$Z$11,$AB17-1) -> 0 | AD17: 0 | AE17: 0 | AF17: -1 | AJ17: 0 | AY17: 6 | AZ17: 0.1601183225 | BA17: 0.266149514 | BB17: 0.3486199537 | BC17: 0.3868304417 | BD17: 0.4259885998 | BE17: 0.4750299926 | BF17: 0.5181223404 | BG17: 0.5469996022 | BH17: 0.5680562105 | BI17: 0.5796093372 | BJ17: 0.5835853636 | BK17: 0.5844217669 | BL17: 0.5845131241 | BM17: 0.5845131241 | BN17: 0.5845131241
A18: August | B18: 1 | D18: 7 | E18: to | F18: 8 | G18: TRUE | H18: FALSE | K18: 2014-01-01T07:00:00 | L18: 1 | M18: 2 | O18: 7 | P18: 7 | Q18: TRUE | R18: FALSE | T18: 8 | U18: =SUM(IF($L$11:$L$8770=T18,1,0)) -> 744 | V18: =SUM(IF($L$11:$L$8770=T18,1,0)*IF($R$11:$R$8770=TRUE,1,0)) -> 294 | W18: 0.3951612903 | Z18: 2006-01-01 | AA18: 1 | AB18: 8 | AC18: =OFFSET(EUE!$AB$2,$Z18-$Z$11,$AB18-1) -> 0 | AD18: 0 | AE18: 0 | AF18: -1 | AJ18: 0 | AY18: 7 | AZ18: 0.1810771491 | BA18: 0.2950037031 | BB18: 0.3841749811 | BC18: 0.4209093123 | BD18: 0.4601877154 | BE18: 0.5016799415 | BF18: 0.5437195726 | BG18: 0.571859977 | BH18: 0.5907717584 | BI18: 0.6024685416 | BJ18: 0.6064973037 | BK18: 0.6073390266 | BL18: 0.6074303838 | BM18: 0.6074303838 | BN18: 0.6074303838
A19: September | B19: 1 | D19: 8 | E19: to | F19: 9 | G19: TRUE | H19: FALSE | K19: 2014-01-01T08:00:00 | L19: 1 | M19: 2 | O19: 8 | P19: 8 | Q19: TRUE | R19: FALSE | T19: 9 | U19: =SUM(IF($L$11:$L$8770=T19,1,0)) -> 720 | V19: =SUM(IF($L$11:$L$8770=T19,1,0)*IF($R$11:$R$8770=TRUE,1,0)) -> 308 | W19: 0.4277777778 | Z19: 2006-01-01 | AA19: 1 | AB19: 9 | AC19: =OFFSET(EUE!$AB$2,$Z19-$Z$11,$AB19-1) -> 0 | AD19: 0 | AE19: 0 | AF19: -1 | AJ19: 0 | AY19: 8 | AZ19: 0.2012871863 | BA19: 0.3204838195 | BB19: 0.4170715579 | BC19: 0.4513728717 | BD19: 0.4878873922 | BE19: 0.5255095822 | BF19: 0.5677765234 | BG19: 0.5893301966 | BH19: 0.6079721419 | BI19: 0.619694838 | BJ19: 0.6237253133 | BK19: 0.6245670361 | BL19: 0.6246583933 | BM19: 0.6246583933 | BN19: 0.6246583933
A20: October | B20: 2 | D20: 9 | E20: to | F20: 10 | G20: TRUE | H20: FALSE | K20: 2014-01-01T09:00:00 | L20: 1 | M20: 2 | O20: 9 | P20: 9 | Q20: TRUE | R20: FALSE | T20: 10 | U20: =SUM(IF($L$11:$L$8770=T20,1,0)) -> 744 | V20: =SUM(IF($L$11:$L$8770=T20,1,0)*IF($R$11:$R$8770=TRUE,1,0)) -> 0 | W20: 0 | Z20: 2006-01-01 | AA20: 1 | AB20: 10 | AC20: =OFFSET(EUE!$AB$2,$Z20-$Z$11,$AB20-1) -> 0 | AD20: 0 | AE20: 0 | AF20: -1 | AJ20: 0 | AY20: 9 | AZ20: 0.2207673908 | BA20: 0.3443372479 | BB20: 0.4465740699 | BC20: 0.4769863224 | BD20: 0.5120013792 | BE20: 0.5483761235 | BF20: 0.586777409 | BG20: 0.6055535951 | BH20: 0.6234363533 | BI20: 0.6343692765 | BJ20: 0.6384106218 | BK20: 0.6392523447 | BL20: 0.6393437019 | BM20: 0.6393437019 | BN20: 0.6393437019
A21: November | B21: 2 | D21: 10 | E21: to | F21: 11 | G21: TRUE | H21: FALSE | K21: 2014-01-01T10:00:00 | L21: 1 | M21: 2 | O21: 10 | P21: 10 | Q21: TRUE | R21: FALSE | T21: 11 | U21: =SUM(IF($L$11:$L$8770=T21,1,0)) -> 720 | V21: =SUM(IF($L$11:$L$8770=T21,1,0)*IF($R$11:$R$8770=TRUE,1,0)) -> 0 | W21: 0 | Z21: 2006-01-01 | AA21: 1 | AB21: 11 | AC21: =OFFSET(EUE!$AB$2,$Z21-$Z$11,$AB21-1) -> 0 | AD21: 0 | AE21: 0 | AF21: -1 | AJ21: 0 | AY21: 10 | AZ21: 0.2392998799 | BA21: 0.367215438 | BB21: 0.4724375632 | BC21: 0.499450421 | BD21: 0.5321719859 | BE21: 0.5673171861 | BF21: 0.602833982 | BG21: 0.619223116 | BH21: 0.6358914704 | BI21: 0.6458908481 | BJ21: 0.6499321935 | BK21: 0.6507739163 | BL21: 0.6508652735 | BM21: 0.6508652735 | BN21: 0.6508652735
A22: December | B22: 2 | D22: 11 | E22: to | F22: 12 | G22: TRUE | H22: FALSE | K22: 2014-01-01T11:00:00 | L22: 1 | M22: 2 | O22: 11 | P22: 11 | Q22: TRUE | R22: FALSE | T22: 12 | U22: =SUM(IF($L$11:$L$8770=T22,1,0)) -> 744 | V22: =SUM(IF($L$11:$L$8770=T22,1,0)*IF($R$11:$R$8770=TRUE,1,0)) -> 0 | W22: 0 | Z22: 2006-01-01 | AA22: 1 | AB22: 12 | AC22: =OFFSET(EUE!$AB$2,$Z22-$Z$11,$AB22-1) -> 0 | AD22: 0 | AE22: 0 | AF22: -1 | AJ22: 0 | AY22: 11 | AZ22: 0.2563675246 | BA22: 0.3890231432 | BB22: 0.4956229911 | BC22: 0.5194259819 | BD22: 0.5489585413 | BE22: 0.5851502543 | BF22: 0.6170858023 | BG22: 0.6315412147 | BH22: 0.645268813 | BI22: 0.6548505427 | BJ22: 0.6589040987 | BK22: 0.6597458215 | BL22: 0.6598371787 | BM22: 0.6598371787 | BN22: 0.6598371787
D23: 12 | E23: to | F23: 13 | G23: TRUE | H23: FALSE | K23: 2014-01-01T12:00:00 | L23: 1 | M23: 2 | O23: 12 | P23: 12 | Q23: TRUE | R23: FALSE | U23: =SUM(U11:U22) -> 8760 | V23: =SUM(V11:V22) -> 1526 | W23: 0.1742009132 | Z23: 2006-01-01 | AA23: 1 | AB23: 13 | AC23: =OFFSET(EUE!$AB$2,$Z23-$Z$11,$AB23-1) -> 0 | AD23: 0 | AE23: 0 | AF23: -1 | AJ23: 0 | AY23: 12 | AZ23: 0.2729010567 | BA23: 0.4089802477 | BB23: 0.5153260671 | BC23: 0.5382699581 | BD23: 0.563253085 | BE23: 0.5994349042 | BF23: 0.6306721537 | BG23: 0.6413147658 | BH23: 0.6537839252 | BI23: 0.6633429839 | BJ23: 0.6674004353 | BK23: 0.6682421581 | BL23: 0.6683335153 | BM23: 0.6683335153 | BN23: 0.6683335153
D24: 13 | E24: to | F24: 14 | G24: TRUE | H24: FALSE | K24: 2014-01-01T13:00:00 | L24: 1 | M24: 2 | O24: 13 | P24: 13 | Q24: TRUE | R24: FALSE | Z24: 2006-01-01 | AA24: 1 | AB24: 14 | AC24: =OFFSET(EUE!$AB$2,$Z24-$Z$11,$AB24-1) -> 0 | AD24: 0 | AE24: 0 | AF24: -1 | AJ24: 0 | AY24: 13 | AZ24: 0.2887246357 | BA24: 0.4279206453 | BB24: 0.5296224076 | BC24: 0.5532505305 | BD24: 0.576687749 | BE24: 0.612750297 | BF24: 0.6406707804 | BG24: 0.6502515595 | BH24: 0.6619687585 | BI24: 0.6705987103 | BJ24: 0.6746561616 | BK24: 0.6754978845 | BL24: 0.6755892417 | BM24: 0.6755892417 | BN24: 0.6755892417
A25: Dispatch on | D25: 14 | E25: to | F25: 15 | G25: TRUE | H25: FALSE | K25: 2014-01-01T14:00:00 | L25: 1 | M25: 2 | O25: 14 | P25: 14 | Q25: TRUE | R25: FALSE | T25: Percent of capacity value | W25: =SUM(AD11:AD8770) -> 0.6941435927 | X25: MaxCapVal | Z25: 2006-01-01 | AA25: 1 | AB25: 15 | AC25: =OFFSET(EUE!$AB$2,$Z25-$Z$11,$AB25-1) -> 0 | AD25: 0 | AE25: 0 | AF25: -1 | AJ25: 0 | AY25: 14 | AZ25: 0.3041427448 | BA25: 0.4456433194 | BB25: 0.5427969354 | BC25: 0.5670215543 | BD25: 0.5894109101 | BE25: 0.6241675103 | BF25: 0.6495397968 | BG25: 0.6585519972 | BH25: 0.6689262716 | BI25: 0.6767758545 | BJ25: 0.680788217 | BK25: 0.6816299398 | BL25: 0.681721297 | BM25: 0.681721297 | BN25: 0.681721297
A26: Weekends? | D26: 15 | E26: to | F26: 16 | G26: TRUE | H26: FALSE | K26: 2014-01-01T15:00:00 | L26: 1 | M26: 2 | O26: 15 | P26: 15 | Q26: TRUE | R26: FALSE | T26: (Total based on available hours, but not limited by | Z26: 2006-01-01 | AA26: 1 | AB26: 16 | AC26: =OFFSET(EUE!$AB$2,$Z26-$Z$11,$AB26-1) -> 0 | AD26: 0 | AE26: 0 | AF26: -1 | AJ26: 0 | AY26: 15 | AZ26: 0.3177424258 | BA26: 0.4613488518 | BB26: 0.5538245505 | BC26: 0.5785120724 | BD26: 0.6011742717 | BE26: 0.6336668307 | BF26: 0.6575583641 | BG26: 0.6665034545 | BH26: 0.6744119284 | BI26: 0.6809551364 | BJ26: 0.6845832004 | BK26: 0.6854249232 | BL26: 0.6855162804 | BM26: 0.6855162804 | BN26: 0.6855162804
A27: FALSE | D27: 16 | E27: to | F27: 17 | G27: TRUE | H27: FALSE | K27: 2014-01-01T16:00:00 | L27: 1 | M27: 2 | O27: 16 | P27: 16 | Q27: TRUE | R27: FALSE | T27: actual dispatch operations) | Z27: 2006-01-01 | AA27: 1 | AB27: 17 | AC27: =OFFSET(EUE!$AB$2,$Z27-$Z$11,$AB27-1) -> 9.819610345e-06 | AD27: 0 | AE27: 0 | AF27: -1 | AJ27: 0
D28: 17 | E28: to | F28: 18 | G28: TRUE | H28: FALSE | K28: 2014-01-01T17:00:00 | L28: 1 | M28: 2 | O28: 17 | P28: 17 | Q28: TRUE | R28: FALSE | Z28: 2006-01-01 | AA28: 1 | AB28: 18 | AC28: =OFFSET(EUE!$AB$2,$Z28-$Z$11,$AB28-1) -> 0.002255969584 | AD28: 0 | AE28: 0 | AF28: -1 | AJ28: 0
D29: 18 | E29: to | F29: 19 | G29: TRUE | H29: FALSE | K29: 2014-01-01T18:00:00 | L29: 1 | M29: 2 | O29: 18 | P29: 18 | Q29: TRUE | R29: FALSE | Z29: 2006-01-01 | AA29: 1 | AB29: 19 | AC29: =OFFSET(EUE!$AB$2,$Z29-$Z$11,$AB29-1) -> 0.002621975247 | AD29: 0 | AE29: 0 | AF29: -1 | AJ29: 0
D30: 19 | E30: to | F30: 20 | G30: TRUE | H30: FALSE | K30: 2014-01-01T19:00:00 | L30: 1 | M30: 2 | O30: 19 | P30: 19 | Q30: TRUE | R30: FALSE | Z30: 2006-01-01 | AA30: 1 | AB30: 20 | AC30: =OFFSET(EUE!$AB$2,$Z30-$Z$11,$AB30-1) -> 0.001411363541 | AD30: 0 | AE30: 0 | AF30: -1 | AJ30: 0
D31: 20 | E31: to | F31: 21 | G31: TRUE | H31: FALSE | K31: 2014-01-01T20:00:00 | L31: 1 | M31: 2 | O31: 20 | P31: 20 | Q31: TRUE | R31: FALSE | Z31: 2006-01-01 | AA31: 1 | AB31: 21 | AC31: =OFFSET(EUE!$AB$2,$Z31-$Z$11,$AB31-1) -> 0.0002976293717 | AD31: 0 | AE31: 0 | AF31: -1 | AJ31: 0
D32: 21 | E32: to | F32: 22 | G32: FALSE | H32: FALSE | K32: 2014-01-01T21:00:00 | L32: 1 | M32: 2 | O32: 21 | P32: 21 | Q32: TRUE | R32: FALSE | Z32: 2006-01-01 | AA32: 1 | AB32: 22 | AC32: =OFFSET(EUE!$AB$2,$Z32-$Z$11,$AB32-1) -> 0 | AD32: 0 | AE32: 0 | AF32: -1 | AJ32: 0
D33: 22 | E33: to | F33: 23 | G33: FALSE | H33: FALSE | K33: 2014-01-01T22:00:00 | L33: 1 | M33: 2 | O33: 22 | P33: 22 | Q33: TRUE | R33: FALSE | Z33: 2006-01-01 | AA33: 1 | AB33: 23 | AC33: =OFFSET(EUE!$AB$2,$Z33-$Z$11,$AB33-1) -> 0 | AD33: 0 | AE33: 0 | AF33: -1 | AJ33: 0
D34: 23 | E34: to | F34: 24 | G34: FALSE | H34: FALSE | K34: 2014-01-01T23:00:00 | L34: 1 | M34: 2 | O34: 23 | P34: 23 | Q34: TRUE | R34: FALSE | Z34: 2006-01-01 | AA34: 1 | AB34: 24 | AC34: =OFFSET(EUE!$AB$2,$Z34-$Z$11,$AB34-1) -> 0 | AD34: 0 | AE34: 0 | AF34: -1 | AJ34: 0
K35: 2014-01-02 | L35: 1 | M35: 2 | O35: 0 | P35: 0 | Q35: TRUE | R35: FALSE | Z35: 2006-01-02 | AA35: 1 | AB35: 1 | AC35: =OFFSET(EUE!$AB$2,$Z35-$Z$11,$AB35-1) -> 0 | AD35: 0 | AE35: 0 | AF35: -1 | AJ35: 0
D36: Definition acording to prevailing "clock" time | K36: 2014-01-02T01:00:00 | L36: 1 | M36: 2 | O36: 1 | P36: 1 | Q36: TRUE | R36: FALSE | Z36: 2006-01-02 | AA36: 1 | AB36: 2 | AC36: =OFFSET(EUE!$AB$2,$Z36-$Z$11,$AB36-1) -> 0 | AD36: 0 | AE36: 0 | AF36: -1 | AJ36: 0
K37: 2014-01-02T02:00:00 | L37: 1 | M37: 2 | O37: 2 | P37: 2 | Q37: TRUE | R37: FALSE | Z37: 2006-01-02 | AA37: 1 | AB37: 3 | AC37: =OFFSET(EUE!$AB$2,$Z37-$Z$11,$AB37-1) -> 0 | AD37: 0 | AE37: 0 | AF37: -1 | AJ37: 0
K38: 2014-01-02T03:00:00 | L38: 1 | M38: 2 | O38: 3 | P38: 3 | Q38: TRUE | R38: FALSE | Z38: 2006-01-02 | AA38: 1 | AB38: 4 | AC38: =OFFSET(EUE!$AB$2,$Z38-$Z$11,$AB38-1) -> 0 | AD38: 0 | AE38: 0 | AF38: -1 | AJ38: 0
K39: 2014-01-02T04:00:00 | L39: 1 | M39: 2 | O39: 4 | P39: 4 | Q39: TRUE | R39: FALSE | Z39: 2006-01-02 | AA39: 1 | AB39: 5 | AC39: =OFFSET(EUE!$AB$2,$Z39-$Z$11,$AB39-1) -> 0 | AD39: 0 | AE39: 0 | AF39: -1 | AJ39: 0
K40: 2014-01-02T05:00:00 | L40: 1 | M40: 2 | O40: 5 | P40: 5 | Q40: TRUE | R40: FALSE | Z40: 2006-01-02 | AA40: 1 | AB40: 6 | AC40: =OFFSET(EUE!$AB$2,$Z40-$Z$11,$AB40-1) -> 0 | AD40: 0 | AE40: 0 | AF40: -1 | AJ40: 0
K41: 2014-01-02T06:00:00 | L41: 1 | M41: 2 | O41: 6 | P41: 6 | Q41: TRUE | R41: FALSE | Z41: 2006-01-02 | AA41: 1 | AB41: 7 | AC41: =OFFSET(EUE!$AB$2,$Z41-$Z$11,$AB41-1) -> 0 | AD41: 0 | AE41: 0 | AF41: -1 | AJ41: 0
K42: 2014-01-02T07:00:00 | L42: 1 | M42: 2 | O42: 7 | P42: 7 | Q42: TRUE | R42: FALSE | Z42: 2006-01-02 | AA42: 1 | AB42: 8 | AC42: =OFFSET(EUE!$AB$2,$Z42-$Z$11,$AB42-1) -> 0 | AD42: 0 | AE42: 0 | AF42: -1 | AJ42: 0
K43: 2014-01-02T08:00:00 | L43: 1 | M43: 2 | O43: 8 | P43: 8 | Q43: TRUE | R43: FALSE | Z43: 2006-01-02 | AA43: 1 | AB43: 9 | AC43: =OFFSET(EUE!$AB$2,$Z43-$Z$11,$AB43-1) -> 0 | AD43: 0 | AE43: 0 | AF43: -1 | AJ43: 0
K44: 2014-01-02T09:00:00 | L44: 1 | M44: 2 | O44: 9 | P44: 9 | Q44: TRUE | R44: FALSE | Z44: 2006-01-02 | AA44: 1 | AB44: 10 | AC44: =OFFSET(EUE!$AB$2,$Z44-$Z$11,$AB44-1) -> 0 | AD44: 0 | AE44: 0 | AF44: -1 | AJ44: 0
K45: 2014-01-02T10:00:00 | L45: 1 | M45: 2 | O45: 10 | P45: 10 | Q45: TRUE | R45: FALSE | Z45: 2006-01-02 | AA45: 1 | AB45: 11 | AC45: =OFFSET(EUE!$AB$2,$Z45-$Z$11,$AB45-1) -> 0 | AD45: 0 | AE45: 0 | AF45: -1 | AJ45: 0
K46: 2014-01-02T11:00:00 | L46: 1 | M46: 2 | O46: 11 | P46: 11 | Q46: TRUE | R46: FALSE | Z46: 2006-01-02 | AA46: 1 | AB46: 12 | AC46: =OFFSET(EUE!$AB$2,$Z46-$Z$11,$AB46-1) -> 0 | AD46: 0 | AE46: 0 | AF46: -1 | AJ46: 0
K47: 2014-01-02T12:00:00 | L47: 1 | M47: 2 | O47: 12 | P47: 12 | Q47: TRUE | R47: FALSE | Z47: 2006-01-02 | AA47: 1 | AB47: 13 | AC47: =OFFSET(EUE!$AB$2,$Z47-$Z$11,$AB47-1) -> 0 | AD47: 0 | AE47: 0 | AF47: -1 | AJ47: 0
K48: 2014-01-02T13:00:00 | L48: 1 | M48: 2 | O48: 13 | P48: 13 | Q48: TRUE | R48: FALSE | Z48: 2006-01-02 | AA48: 1 | AB48: 14 | AC48: =OFFSET(EUE!$AB$2,$Z48-$Z$11,$AB48-1) -> 0 | AD48: 0 | AE48: 0 | AF48: -1 | AJ48: 0
K49: 2014-01-02T14:00:00 | L49: 1 | M49: 2 | O49: 14 | P49: 14 | Q49: TRUE | R49: FALSE | Z49: 2006-01-02 | AA49: 1 | AB49: 15 | AC49: =OFFSET(EUE!$AB$2,$Z49-$Z$11,$AB49-1) -> 0 | AD49: 0 | AE49: 0 | AF49: -1 | AJ49: 0
K50: 2014-01-02T15:00:00 | L50: 1 | M50: 2 | O50: 15 | P50: 15 | Q50: TRUE | R50: FALSE | Z50: 2006-01-02 | AA50: 1 | AB50: 16 | AC50: =OFFSET(EUE!$AB$2,$Z50-$Z$11,$AB50-1) -> 0 | AD50: 0 | AE50: 0 | AF50: -1 | AJ50: 0
K51: 2014-01-02T16:00:00 | L51: 1 | M51: 2 | O51: 16 | P51: 16 | Q51: TRUE | R51: FALSE | Z51: 2006-01-02 | AA51: 1 | AB51: 17 | AC51: =OFFSET(EUE!$AB$2,$Z51-$Z$11,$AB51-1) -> 8.418632841e-06 | AD51: 0 | AE51: 0 | AF51: -1 | AJ51: 0
K52: 2014-01-02T17:00:00 | L52: 1 | M52: 2 | O52: 17 | P52: 17 | Q52: TRUE | R52: FALSE | Z52: 2006-01-02 | AA52: 1 | AB52: 18 | AC52: =OFFSET(EUE!$AB$2,$Z52-$Z$11,$AB52-1) -> 0.002243234269 | AD52: 0 | AE52: 0 | AF52: -1 | AJ52: 0
K53: 2014-01-02T18:00:00 | L53: 1 | M53: 2 | O53: 18 | P53: 18 | Q53: TRUE | R53: FALSE | Z53: 2006-01-02 | AA53: 1 | AB53: 19 | AC53: =OFFSET(EUE!$AB$2,$Z53-$Z$11,$AB53-1) -> 0.002672411598 | AD53: 0 | AE53: 0 | AF53: -1 | AJ53: 0
K54: 2014-01-02T19:00:00 | L54: 1 | M54: 2 | O54: 19 | P54: 19 | Q54: TRUE | R54: FALSE | Z54: 2006-01-02 | AA54: 1 | AB54: 20 | AC54: =OFFSET(EUE!$AB$2,$Z54-$Z$11,$AB54-1) -> 0.001552212272 | AD54: 0 | AE54: 0 | AF54: -1 | AJ54: 0
K55: 2014-01-02T20:00:00 | L55: 1 | M55: 2 | O55: 20 | P55: 20 | Q55: TRUE | R55: FALSE | Z55: 2006-01-02 | AA55: 1 | AB55: 21 | AC55: =OFFSET(EUE!$AB$2,$Z55-$Z$11,$AB55-1) -> 0.0003701691316 | AD55: 0 | AE55: 0 | AF55: -1 | AJ55: 0
K56: 2014-01-02T21:00:00 | L56: 1 | M56: 2 | O56: 21 | P56: 21 | Q56: TRUE | R56: FALSE | Z56: 2006-01-02 | AA56: 1 | AB56: 22 | AC56: =OFFSET(EUE!$AB$2,$Z56-$Z$11,$AB56-1) -> 4.77051992e-07 | AD56: 0 | AE56: 0 | AF56: -1 | AJ56: 0
K57: 2014-01-02T22:00:00 | L57: 1 | M57: 2 | O57: 22 | P57: 22 | Q57: TRUE | R57: FALSE | Z57: 2006-01-02 | AA57: 1 | AB57: 23 | AC57: =OFFSET(EUE!$AB$2,$Z57-$Z$11,$AB57-1) -> 0 | AD57: 0 | AE57: 0 | AF57: -1 | AJ57: 0
K58: 2014-01-02T23:00:00 | L58: 1 | M58: 2 | O58: 23 | P58: 23 | Q58: TRUE | R58: FALSE | Z58: 2006-01-02 | AA58: 1 | AB58: 24 | AC58: =OFFSET(EUE!$AB$2,$Z58-$Z$11,$AB58-1) -> 0 | AD58: 0 | AE58: 0 | AF58: -1 | AJ58: 0
K59: 2014-01-03 | L59: 1 | M59: 2 | O59: 0 | P59: 0 | Q59: TRUE | R59: FALSE | Z59: 2006-01-03 | AA59: 1 | AB59: 1 | AC59: =OFFSET(EUE!$AB$2,$Z59-$Z$11,$AB59-1) -> 0 | AD59: 0 | AE59: 0 | AF59: -1 | AJ59: 0
K60: 2014-01-03T01:00:00 | L60: 1 | M60: 2 | O60: 1 | P60: 1 | Q60: TRUE | R60: FALSE | Z60: 2006-01-03 | AA60: 1 | AB60: 2 | AC60: =OFFSET(EUE!$AB$2,$Z60-$Z$11,$AB60-1) -> 0 | AD60: 0 | AE60: 0 | AF60: -1 | AJ60: 0
K61: 2014-01-03T02:00:00 | L61: 1 | M61: 2 | O61: 2 | P61: 2 | Q61: TRUE | R61: FALSE | Z61: 2006-01-03 | AA61: 1 | AB61: 3 | AC61: =OFFSET(EUE!$AB$2,$Z61-$Z$11,$AB61-1) -> 0 | AD61: 0 | AE61: 0 | AF61: -1 | AJ61: 0
K62: 2014-01-03T03:00:00 | L62: 1 | M62: 2 | O62: 3 | P62: 3 | Q62: TRUE | R62: FALSE | Z62: 2006-01-03 | AA62: 1 | AB62: 4 | AC62: =OFFSET(EUE!$AB$2,$Z62-$Z$11,$AB62-1) -> 0 | AD62: 0 | AE62: 0 | AF62: -1 | AJ62: 0
K63: 2014-01-03T04:00:00 | L63: 1 | M63: 2 | O63: 4 | P63: 4 | Q63: TRUE | R63: FALSE | Z63: 2006-01-03 | AA63: 1 | AB63: 5 | AC63: =OFFSET(EUE!$AB$2,$Z63-$Z$11,$AB63-1) -> 0 | AD63: 0 | AE63: 0 | AF63: -1 | AJ63: 0
K64: 2014-01-03T05:00:00 | L64: 1 | M64: 2 | O64: 5 | P64: 5 | Q64: TRUE | R64: FALSE | Z64: 2006-01-03 | AA64: 1 | AB64: 6 | AC64: =OFFSET(EUE!$AB$2,$Z64-$Z$11,$AB64-1) -> 0 | AD64: 0 | AE64: 0 | AF64: -1 | AJ64: 0
K65: 2014-01-03T06:00:00 | L65: 1 | M65: 2 | O65: 6 | P65: 6 | Q65: TRUE | R65: FALSE | Z65: 2006-01-03 | AA65: 1 | AB65: 7 | AC65: =OFFSET(EUE!$AB$2,$Z65-$Z$11,$AB65-1) -> 0 | AD65: 0 | AE65: 0 | AF65: -1 | AJ65: 0
K66: 2014-01-03T07:00:00 | L66: 1 | M66: 2 | O66: 7 | P66: 7 | Q66: TRUE | R66: FALSE | Z66: 2006-01-03 | AA66: 1 | AB66: 8 | AC66: =OFFSET(EUE!$AB$2,$Z66-$Z$11,$AB66-1) -> 0 | AD66: 0 | AE66: 0 | AF66: -1 | AJ66: 0
K67: 2014-01-03T08:00:00 | L67: 1 | M67: 2 | O67: 8 | P67: 8 | Q67: TRUE | R67: FALSE | Z67: 2006-01-03 | AA67: 1 | AB67: 9 | AC67: =OFFSET(EUE!$AB$2,$Z67-$Z$11,$AB67-1) -> 0 | AD67: 0 | AE67: 0 | AF67: -1 | AJ67: 0
K68: 2014-01-03T09:00:00 | L68: 1 | M68: 2 | O68: 9 | P68: 9 | Q68: TRUE | R68: FALSE | Z68: 2006-01-03 | AA68: 1 | AB68: 10 | AC68: =OFFSET(EUE!$AB$2,$Z68-$Z$11,$AB68-1) -> 0 | AD68: 0 | AE68: 0 | AF68: -1 | AJ68: 0
K69: 2014-01-03T10:00:00 | L69: 1 | M69: 2 | O69: 10 | P69: 10 | Q69: TRUE | R69: FALSE | Z69: 2006-01-03 | AA69: 1 | AB69: 11 | AC69: =OFFSET(EUE!$AB$2,$Z69-$Z$11,$AB69-1) -> 0 | AD69: 0 | AE69: 0 | AF69: -1 | AJ69: 0
K70: 2014-01-03T11:00:00 | L70: 1 | M70: 2 | O70: 11 | P70: 11 | Q70: TRUE | R70: FALSE | Z70: 2006-01-03 | AA70: 1 | AB70: 12 | AC70: =OFFSET(EUE!$AB$2,$Z70-$Z$11,$AB70-1) -> 0 | AD70: 0 | AE70: 0 | AF70: -1 | AJ70: 0
K71: 2014-01-03T12:00:00 | L71: 1 | M71: 2 | O71: 12 | P71: 12 | Q71: TRUE | R71: FALSE | Z71: 2006-01-03 | AA71: 1 | AB71: 13 | AC71: =OFFSET(EUE!$AB$2,$Z71-$Z$11,$AB71-1) -> 0 | AD71: 0 | AE71: 0 | AF71: -1 | AJ71: 0
K72: 2014-01-03T13:00:00 | L72: 1 | M72: 2 | O72: 13 | P72: 13 | Q72: TRUE | R72: FALSE | Z72: 2006-01-03 | AA72: 1 | AB72: 14 | AC72: =OFFSET(EUE!$AB$2,$Z72-$Z$11,$AB72-1) -> 0 | AD72: 0 | AE72: 0 | AF72: -1 | AJ72: 0
K73: 2014-01-03T14:00:00 | L73: 1 | M73: 2 | O73: 14 | P73: 14 | Q73: TRUE | R73: FALSE | Z73: 2006-01-03 | AA73: 1 | AB73: 15 | AC73: =OFFSET(EUE!$AB$2,$Z73-$Z$11,$AB73-1) -> 0 | AD73: 0 | AE73: 0 | AF73: -1 | AJ73: 0
K74: 2014-01-03T15:00:00 | L74: 1 | M74: 2 | O74: 15 | P74: 15 | Q74: TRUE | R74: FALSE | Z74: 2006-01-03 | AA74: 1 | AB74: 16 | AC74: =OFFSET(EUE!$AB$2,$Z74-$Z$11,$AB74-1) -> 0 | AD74: 0 | AE74: 0 | AF74: -1 | AJ74: 0
K75: 2014-01-03T16:00:00 | L75: 1 | M75: 2 | O75: 16 | P75: 16 | Q75: TRUE | R75: FALSE | Z75: 2006-01-03 | AA75: 1 | AB75: 17 | AC75: =OFFSET(EUE!$AB$2,$Z75-$Z$11,$AB75-1) -> 8.116848126e-06 | AD75: 0 | AE75: =IF(AF75>-1,SUM(OFFSET($AD75,0,0,AA$5,1)),0) -> 0 | AF75: -1 | AJ75: 0
K76: 2014-01-03T17:00:00 | L76: =MONTH(K76) -> 1 | M76: =INDEX($B$11:$B$22,L76) -> 2 | O76: =HOUR(K76) -> 17 | P76: =IF((HOUR(K76)+N76)=24,0,HOUR(K76)+N76) -> 17 | Q76: =IF($A$27=TRUE, TRUE, IF(WEEKDAY(K76+N76/24,2)<6,TRUE, FALSE)) -> TRUE | R76: =IF(Q76=FALSE, FALSE,INDEX($G$11:$H$34,P76+1,M76)) -> FALSE | Z76: 2006-01-03 | AA76: 1 | AB76: 18 | AC76: =OFFSET(EUE!$AB$2,$Z76-$Z$11,$AB76-1) -> 0.002235488849 | AD76: =AC76*R76 -> 0 | AE76: 0 | AF76: -1 | AJ76: =IF(AF76=1,AE76,0) -> 0
K77: =K76+1/24 -> 2014-01-03T18:00:00 | L77: 1 | M77: 2 | O77: 18 | P77: 18 | Q77: TRUE | R77: FALSE | Z77: 2006-01-03 | AA77: 1 | AB77: 19 | AC77: =OFFSET(EUE!$AB$2,$Z77-$Z$11,$AB77-1) -> 0.002877631008 | AD77: 0 | AE77: 0 | AF77: -1 | AJ77: 0
K78: 2014-01-03T19:00:00 | L78: 1 | M78: 2 | O78: 19 | P78: 19 | Q78: TRUE | R78: FALSE | Z78: 2006-01-03 | AA78: 1 | AB78: 20 | AC78: =OFFSET(EUE!$AB$2,$Z78-$Z$11,$AB78-1) -> 0.001649204718 | AD78: 0 | AE78: 0 | AF78: -1 | AJ78: 0
K79: 2014-01-03T20:00:00 | L79: 1 | M79: 2 | O79: 20 | P79: 20 | Q79: TRUE | R79: FALSE | Z79: 2006-01-03 | AA79: 1 | AB79: 21 | AC79: =OFFSET(EUE!$AB$2,$Z79-$Z$11,$AB79-1) -> 0.0003722618925 | AD79: 0 | AE79: 0 | AF79: -1 | AJ79: 0
K80: 2014-01-03T21:00:00 | L80: 1 | M80: 2 | O80: 21 | P80: 21 | Q80: TRUE | R80: FALSE | Z80: 2006-01-03 | AA80: 1 | AB80: 22 | AC80: =OFFSET(EUE!$AB$2,$Z80-$Z$11,$AB80-1) -> 4.068290102e-06 | AD80: 0 | AE80: 0 | AF80: -1 | AJ80: 0
K81: 2014-01-03T22:00:00 | L81: 1 | M81: 2 | O81: 22 | P81: 22 | Q81: TRUE | R81: FALSE | Z81: 2006-01-03 | AA81: 1 | AB81: 23 | AC81: =OFFSET(EUE!$AB$2,$Z81-$Z$11,$AB81-1) -> 0 | AD81: 0 | AE81: 0 | AF81: -1 | AJ81: 0
K82: 2014-01-03T23:00:00 | L82: 1 | M82: 2 | O82: 23 | P82: 23 | Q82: TRUE | R82: FALSE | Z82: 2006-01-03 | AA82: 1 | AB82: 24 | AC82: =OFFSET(EUE!$AB$2,$Z82-$Z$11,$AB82-1) -> 0 | AD82: 0 | AE82: 0 | AF82: -1 | AJ82: 0
K83: 2014-01-04 | L83: 1 | M83: 2 | O83: 0 | P83: 0 | Q83: FALSE | R83: FALSE | Z83: 2006-01-04 | AA83: 1 | AB83: 1 | AC83: =OFFSET(EUE!$AB$2,$Z83-$Z$11,$AB83-1) -> 0 | AD83: 0 | AE83: 0 | AF83: -1 | AJ83: 0
K84: 2014-01-04T01:00:00 | L84: 1 | M84: 2 | O84: 1 | P84: 1 | Q84: FALSE | R84: FALSE | Z84: 2006-01-04 | AA84: 1 | AB84: 2 | AC84: =OFFSET(EUE!$AB$2,$Z84-$Z$11,$AB84-1) -> 0 | AD84: 0 | AE84: 0 | AF84: -1 | AJ84: 0
K85: 2014-01-04T02:00:00 | L85: 1 | M85: 2 | O85: 2 | P85: 2 | Q85: FALSE | R85: FALSE | Z85: 2006-01-04 | AA85: 1 | AB85: 3 | AC85: =OFFSET(EUE!$AB$2,$Z85-$Z$11,$AB85-1) -> 0 | AD85: 0 | AE85: 0 | AF85: -1 | AJ85: 0
K86: 2014-01-04T03:00:00 | L86: 1 | M86: 2 | O86: 3 | P86: 3 | Q86: FALSE | R86: FALSE | Z86: 2006-01-04 | AA86: 1 | AB86: 4 | AC86: =OFFSET(EUE!$AB$2,$Z86-$Z$11,$AB86-1) -> 0 | AD86: 0 | AE86: 0 | AF86: -1 | AJ86: 0
K87: 2014-01-04T04:00:00 | L87: 1 | M87: 2 | O87: 4 | P87: 4 | Q87: FALSE | R87: FALSE | Z87: 2006-01-04 | AA87: 1 | AB87: 5 | AC87: =OFFSET(EUE!$AB$2,$Z87-$Z$11,$AB87-1) -> 0 | AD87: 0 | AE87: 0 | AF87: -1 | AJ87: 0
K88: 2014-01-04T05:00:00 | L88: 1 | M88: 2 | O88: 5 | P88: 5 | Q88: FALSE | R88: FALSE | Z88: 2006-01-04 | AA88: 1 | AB88: 6 | AC88: =OFFSET(EUE!$AB$2,$Z88-$Z$11,$AB88-1) -> 0 | AD88: 0 | AE88: 0 | AF88: -1 | AJ88: 0
K89: 2014-01-04T06:00:00 | L89: 1 | M89: 2 | O89: 6 | P89: 6 | Q89: FALSE | R89: FALSE | Z89: 2006-01-04 | AA89: 1 | AB89: 7 | AC89: =OFFSET(EUE!$AB$2,$Z89-$Z$11,$AB89-1) -> 0 | AD89: 0 | AE89: 0 | AF89: -1 | AJ89: 0
K90: 2014-01-04T07:00:00 | L90: 1 | M90: 2 | O90: 7 | P90: 7 | Q90: FALSE | R90: FALSE | Z90: 2006-01-04 | AA90: 1 | AB90: 8 | AC90: =OFFSET(EUE!$AB$2,$Z90-$Z$11,$AB90-1) -> 0 | AD90: 0 | AE90: 0 | AF90: -1 | AJ90: 0
K91: 2014-01-04T08:00:00 | L91: 1 | M91: 2 | O91: 8 | P91: 8 | Q91: FALSE | R91: FALSE | Z91: 2006-01-04 | AA91: 1 | AB91: 9 | AC91: =OFFSET(EUE!$AB$2,$Z91-$Z$11,$AB91-1) -> 0 | AD91: 0 | AE91: 0 | AF91: -1 | AJ91: 0
K92: 2014-01-04T09:00:00 | L92: 1 | M92: 2 | O92: 9 | P92: 9 | Q92: FALSE | R92: FALSE | Z92: 2006-01-04 | AA92: 1 | AB92: 10 | AC92: =OFFSET(EUE!$AB$2,$Z92-$Z$11,$AB92-1) -> 0 | AD92: 0 | AE92: 0 | AF92: -1 | AJ92: 0
K93: 2014-01-04T10:00:00 | L93: 1 | M93: 2 | O93: 10 | P93: 10 | Q93: FALSE | R93: FALSE | Z93: 2006-01-04 | AA93: 1 | AB93: 11 | AC93: =OFFSET(EUE!$AB$2,$Z93-$Z$11,$AB93-1) -> 0 | AD93: 0 | AE93: 0 | AF93: -1 | AJ93: 0
K94: 2014-01-04T11:00:00 | L94: 1 | M94: 2 | O94: 11 | P94: 11 | Q94: FALSE | R94: FALSE | Z94: 2006-01-04 | AA94: 1 | AB94: 12 | AC94: =OFFSET(EUE!$AB$2,$Z94-$Z$11,$AB94-1) -> 0 | AD94: 0 | AE94: 0 | AF94: -1 | AJ94: 0
K95: 2014-01-04T12:00:00 | L95: 1 | M95: 2 | O95: 12 | P95: 12 | Q95: FALSE | R95: FALSE | Z95: 2006-01-04 | AA95: 1 | AB95: 13 | AC95: =OFFSET(EUE!$AB$2,$Z95-$Z$11,$AB95-1) -> 0 | AD95: 0 | AE95: 0 | AF95: -1 | AJ95: 0
K96: 2014-01-04T13:00:00 | L96: 1 | M96: 2 | O96: 13 | P96: 13 | Q96: FALSE | R96: FALSE | Z96: 2006-01-04 | AA96: 1 | AB96: 14 | AC96: =OFFSET(EUE!$AB$2,$Z96-$Z$11,$AB96-1) -> 0 | AD96: 0 | AE96: 0 | AF96: -1 | AJ96: 0
K97: 2014-01-04T14:00:00 | L97: 1 | M97: 2 | O97: 14 | P97: 14 | Q97: FALSE | R97: FALSE | Z97: 2006-01-04 | AA97: 1 | AB97: 15 | AC97: =OFFSET(EUE!$AB$2,$Z97-$Z$11,$AB97-1) -> 0 | AD97: 0 | AE97: 0 | AF97: -1 | AJ97: 0
K98: 2014-01-04T15:00:00 | L98: 1 | M98: 2 | O98: 15 | P98: 15 | Q98: FALSE | R98: FALSE | Z98: 2006-01-04 | AA98: 1 | AB98: 16 | AC98: =OFFSET(EUE!$AB$2,$Z98-$Z$11,$AB98-1) -> 0 | AD98: 0 | AE98: 0 | AF98: -1 | AJ98: 0
K99: 2014-01-04T16:00:00 | L99: 1 | M99: 2 | O99: 16 | P99: 16 | Q99: FALSE | R99: FALSE | Z99: 2006-01-04 | AA99: 1 | AB99: 17 | AC99: =OFFSET(EUE!$AB$2,$Z99-$Z$11,$AB99-1) -> 0 | AD99: 0 | AE99: 0 | AF99: -1 | AJ99: 0
K100: 2014-01-04T17:00:00 | L100: 1 | M100: 2 | O100: 17 | P100: 17 | Q100: FALSE | R100: FALSE | Z100: 2006-01-04 | AA100: 1 | AB100: 18 | AC100: =OFFSET(EUE!$AB$2,$Z100-$Z$11,$AB100-1) -> 0.001218579983 | AD100: 0 | AE100: 0 | AF100: -1 | AJ100: 0
K101: 2014-01-04T18:00:00 | L101: 1 | M101: 2 | O101: 18 | P101: 18 | Q101: FALSE | R101: FALSE | Z101: 2006-01-04 | AA101: 1 | AB101: 19 | AC101: =OFFSET(EUE!$AB$2,$Z101-$Z$11,$AB101-1) -> 0.001397005553 | AD101: 0 | AE101: 0 | AF101: -1 | AJ101: 0
K102: 2014-01-04T19:00:00 | L102: 1 | M102: 2 | O102: 19 | P102: 19 | Q102: FALSE | R102: FALSE | Z102: 2006-01-04 | AA102: 1 | AB102: 20 | AC102: =OFFSET(EUE!$AB$2,$Z102-$Z$11,$AB102-1) -> 0.0005857235072 | AD102: 0 | AE102: 0 | AF102: -1 | AJ102: 0
K103: 2014-01-04T20:00:00 | L103: 1 | M103: 2 | O103: 20 | P103: 20 | Q103: FALSE | R103: FALSE | Z103: 2006-01-04 | AA103: 1 | AB103: 21 | AC103: =OFFSET(EUE!$AB$2,$Z103-$Z$11,$AB103-1) -> 0.0001163438112 | AD103: 0 | AE103: 0 | AF103: -1 | AJ103: 0
K104: 2014-01-04T21:00:00 | L104: 1 | M104: 2 | O104: 21 | P104: 21 | Q104: FALSE | R104: FALSE | Z104: 2006-01-04 | AA104: 1 | AB104: 22 | AC104: =OFFSET(EUE!$AB$2,$Z104-$Z$11,$AB104-1) -> 0 | AD104: 0 | AE104: 0 | AF104: -1 | AJ104: 0
K105: 2014-01-04T22:00:00 | L105: 1 | M105: 2 | O105: 22 | P105: 22 | Q105: FALSE | R105: FALSE | Z105: 2006-01-04 | AA105: 1 | AB105: 23 | AC105: =OFFSET(EUE!$AB$2,$Z105-$Z$11,$AB105-1) -> 0 | AD105: 0 | AE105: 0 | AF105: -1 | AJ105: 0
K106: 2014-01-04T23:00:00 | L106: 1 | M106: 2 | O106: 23 | P106: 23 | Q106: FALSE | R106: FALSE | Z106: 2006-01-04 | AA106: 1 | AB106: 24 | AC106: =OFFSET(EUE!$AB$2,$Z106-$Z$11,$AB106-1) -> 0 | AD106: 0 | AE106: 0 | AF106: -1 | AJ106: 0
K107: 2014-01-05 | L107: 1 | M107: 2 | O107: 0 | P107: 0 | Q107: FALSE | R107: FALSE | Z107: 2006-01-05 | AA107: 1 | AB107: 1 | AC107: =OFFSET(EUE!$AB$2,$Z107-$Z$11,$AB107-1) -> 0 | AD107: 0 | AE107: 0 | AF107: -1 | AJ107: 0
K108: 2014-01-05T01:00:00 | L108: 1 | M108: 2 | O108: 1 | P108: 1 | Q108: FALSE | R108: FALSE | Z108: 2006-01-05 | AA108: 1 | AB108: 2 | AC108: =OFFSET(EUE!$AB$2,$Z108-$Z$11,$AB108-1) -> 0 | AD108: 0 | AE108: 0 | AF108: -1 | AJ108: 0
K109: 2014-01-05T02:00:00 | L109: 1 | M109: 2 | O109: 2 | P109: 2 | Q109: FALSE | R109: FALSE | Z109: 2006-01-05 | AA109: 1 | AB109: 3 | AC109: =OFFSET(EUE!$AB$2,$Z109-$Z$11,$AB109-1) -> 0 | AD109: 0 | AE109: 0 | AF109: -1 | AJ109: 0
K110: 2014-01-05T03:00:00 | L110: 1 | M110: 2 | O110: 3 | P110: 3 | Q110: FALSE | R110: FALSE | Z110: 2006-01-05 | AA110: 1 | AB110: 4 | AC110: =OFFSET(EUE!$AB$2,$Z110-$Z$11,$AB110-1) -> 0 | AD110: 0 | AE110: 0 | AF110: -1 | AJ110: 0
K111: 2014-01-05T04:00:00 | L111: 1 | M111: 2 | O111: 4 | P111: 4 | Q111: FALSE | R111: FALSE | Z111: 2006-01-05 | AA111: 1 | AB111: 5 | AC111: =OFFSET(EUE!$AB$2,$Z111-$Z$11,$AB111-1) -> 0 | AD111: 0 | AE111: 0 | AF111: -1 | AJ111: 0
K112: 2014-01-05T05:00:00 | L112: 1 | M112: 2 | O112: 5 | P112: 5 | Q112: FALSE | R112: FALSE | Z112: 2006-01-05 | AA112: 1 | AB112: 6 | AC112: =OFFSET(EUE!$AB$2,$Z112-$Z$11,$AB112-1) -> 0 | AD112: 0 | AE112: 0 | AF112: -1 | AJ112: 0
K113: 2014-01-05T06:00:00 | L113: 1 | M113: 2 | O113: 6 | P113: 6 | Q113: FALSE | R113: FALSE | Z113: 2006-01-05 | AA113: 1 | AB113: 7 | AC113: =OFFSET(EUE!$AB$2,$Z113-$Z$11,$AB113-1) -> 0 | AD113: 0 | AE113: 0 | AF113: -1 | AJ113: 0
K114: 2014-01-05T07:00:00 | L114: 1 | M114: 2 | O114: 7 | P114: 7 | Q114: FALSE | R114: FALSE | Z114: 2006-01-05 | AA114: 1 | AB114: 8 | AC114: =OFFSET(EUE!$AB$2,$Z114-$Z$11,$AB114-1) -> 0 | AD114: 0 | AE114: 0 | AF114: -1 | AJ114: 0
K115: 2014-01-05T08:00:00 | L115: 1 | M115: 2 | O115: 8 | P115: 8 | Q115: FALSE | R115: FALSE | Z115: 2006-01-05 | AA115: 1 | AB115: 9 | AC115: =OFFSET(EUE!$AB$2,$Z115-$Z$11,$AB115-1) -> 0 | AD115: 0 | AE115: 0 | AF115: -1 | AJ115: 0
K116: 2014-01-05T09:00:00 | L116: 1 | M116: 2 | O116: 9 | P116: 9 | Q116: FALSE | R116: FALSE | Z116: 2006-01-05 | AA116: 1 | AB116: 10 | AC116: =OFFSET(EUE!$AB$2,$Z116-$Z$11,$AB116-1) -> 0 | AD116: 0 | AE116: 0 | AF116: -1 | AJ116: 0
K117: 2014-01-05T10:00:00 | L117: 1 | M117: 2 | O117: 10 | P117: 10 | Q117: FALSE | R117: FALSE | Z117: 2006-01-05 | AA117: 1 | AB117: 11 | AC117: =OFFSET(EUE!$AB$2,$Z117-$Z$11,$AB117-1) -> 0 | AD117: 0 | AE117: 0 | AF117: -1 | AJ117: 0
K118: 2014-01-05T11:00:00 | L118: 1 | M118: 2 | O118: 11 | P118: 11 | Q118: FALSE | R118: FALSE | Z118: 2006-01-05 | AA118: 1 | AB118: 12 | AC118: =OFFSET(EUE!$AB$2,$Z118-$Z$11,$AB118-1) -> 0 | AD118: 0 | AE118: 0 | AF118: -1 | AJ118: 0
K119: 2014-01-05T12:00:00 | L119: 1 | M119: 2 | O119: 12 | P119: 12 | Q119: FALSE | R119: FALSE | Z119: 2006-01-05 | AA119: 1 | AB119: 13 | AC119: =OFFSET(EUE!$AB$2,$Z119-$Z$11,$AB119-1) -> 0 | AD119: 0 | AE119: 0 | AF119: -1 | AJ119: 0
K120: 2014-01-05T13:00:00 | L120: 1 | M120: 2 | O120: 13 | P120: 13 | Q120: FALSE | R120: FALSE | Z120: 2006-01-05 | AA120: 1 | AB120: 14 | AC120: =OFFSET(EUE!$AB$2,$Z120-$Z$11,$AB120-1) -> 0 | AD120: 0 | AE120: 0 | AF120: -1 | AJ120: 0
K121: 2014-01-05T14:00:00 | L121: 1 | M121: 2 | O121: 14 | P121: 14 | Q121: FALSE | R121: FALSE | Z121: 2006-01-05 | AA121: 1 | AB121: 15 | AC121: =OFFSET(EUE!$AB$2,$Z121-$Z$11,$AB121-1) -> 0 | AD121: 0 | AE121: 0 | AF121: -1 | AJ121: 0
K122: 2014-01-05T15:00:00 | L122: 1 | M122: 2 | O122: 15 | P122: 15 | Q122: FALSE | R122: FALSE | Z122: 2006-01-05 | AA122: 1 | AB122: 16 | AC122: =OFFSET(EUE!$AB$2,$Z122-$Z$11,$AB122-1) -> 0 | AD122: 0 | AE122: 0 | AF122: -1 | AJ122: 0
K123: 2014-01-05T16:00:00 | L123: 1 | M123: 2 | O123: 16 | P123: 16 | Q123: FALSE | R123: FALSE | Z123: 2006-01-05 | AA123: 1 | AB123: 17 | AC123: =OFFSET(EUE!$AB$2,$Z123-$Z$11,$AB123-1) -> 0 | AD123: 0 | AE123: 0 | AF123: -1 | AJ123: 0
K124: 2014-01-05T17:00:00 | L124: 1 | M124: 2 | O124: 17 | P124: 17 | Q124: FALSE | R124: FALSE | Z124: 2006-01-05 | AA124: 1 | AB124: 18 | AC124: =OFFSET(EUE!$AB$2,$Z124-$Z$11,$AB124-1) -> 0.0002613490454 | AD124: 0 | AE124: 0 | AF124: -1 | AJ124: 0
K125: 2014-01-05T18:00:00 | L125: 1 | M125: 2 | O125: 18 | P125: 18 | Q125: FALSE | R125: FALSE | Z125: 2006-01-05 | AA125: 1 | AB125: 19 | AC125: =OFFSET(EUE!$AB$2,$Z125-$Z$11,$AB125-1) -> 0.0003297589975 | AD125: 0 | AE125: 0 | AF125: -1 | AJ125: 0
K126: 2014-01-05T19:00:00 | L126: 1 | M126: 2 | O126: 19 | P126: 19 | Q126: FALSE | R126: FALSE | Z126: 2006-01-05 | AA126: 1 | AB126: 20 | AC126: =OFFSET(EUE!$AB$2,$Z126-$Z$11,$AB126-1) -> 0.000110664455 | AD126: 0 | AE126: 0 | AF126: -1 | AJ126: 0
K127: 2014-01-05T20:00:00 | L127: 1 | M127: 2 | O127: 20 | P127: 20 | Q127: FALSE | R127: FALSE | Z127: 2006-01-05 | AA127: 1 | AB127: 21 | AC127: =OFFSET(EUE!$AB$2,$Z127-$Z$11,$AB127-1) -> 1.234299485e-05 | AD127: 0 | AE127: 0 | AF127: -1 | AJ127: 0
K128: 2014-01-05T21:00:00 | L128: 1 | M128: 2 | O128: 21 | P128: 21 | Q128: FALSE | R128: FALSE | Z128: 2006-01-05 | AA128: 1 | AB128: 22 | AC128: =OFFSET(EUE!$AB$2,$Z128-$Z$11,$AB128-1) -> 0 | AD128: 0 | AE128: 0 | AF128: -1 | AJ128: 0
K129: 2014-01-05T22:00:00 | L129: 1 | M129: 2 | O129: 22 | P129: 22 | Q129: FALSE | R129: FALSE | Z129: 2006-01-05 | AA129: 1 | AB129: 23 | AC129: =OFFSET(EUE!$AB$2,$Z129-$Z$11,$AB129-1) -> 0 | AD129: 0 | AE129: 0 | AF129: -1 | AJ129: 0
K130: 2014-01-05T23:00:00 | L130: 1 | M130: 2 | O130: 23 | P130: 23 | Q130: FALSE | R130: FALSE | Z130: 2006-01-05 | AA130: 1 | AB130: 24 | AC130: =OFFSET(EUE!$AB$2,$Z130-$Z$11,$AB130-1) -> 0 | AD130: 0 | AE130: 0 | AF130: -1 | AJ130: 0
K131: 2014-01-06 | L131: 1 | M131: 2 | O131: 0 | P131: 0 | Q131: TRUE | R131: FALSE | Z131: 2006-01-06 | AA131: 1 | AB131: 1 | AC131: =OFFSET(EUE!$AB$2,$Z131-$Z$11,$AB131-1) -> 0 | AD131: 0 | AE131: 0 | AF131: -1 | AJ131: 0
K132: 2014-01-06T01:00:00 | L132: 1 | M132: 2 | O132: 1 | P132: 1 | Q132: TRUE | R132: FALSE | Z132: 2006-01-06 | AA132: 1 | AB132: 2 | AC132: =OFFSET(EUE!$AB$2,$Z132-$Z$11,$AB132-1) -> 0 | AD132: 0 | AE132: 0 | AF132: -1 | AJ132: 0
K133: 2014-01-06T02:00:00 | L133: 1 | M133: 2 | O133: 2 | P133: 2 | Q133: TRUE | R133: FALSE | Z133: 2006-01-06 | AA133: 1 | AB133: 3 | AC133: =OFFSET(EUE!$AB$2,$Z133-$Z$11,$AB133-1) -> 0 | AD133: 0 | AE133: 0 | AF133: -1 | AJ133: 0
K134: 2014-01-06T03:00:00 | L134: 1 | M134: 2 | O134: 3 | P134: 3 | Q134: TRUE | R134: FALSE | Z134: 2006-01-06 | AA134: 1 | AB134: 4 | AC134: =OFFSET(EUE!$AB$2,$Z134-$Z$11,$AB134-1) -> 0 | AD134: 0 | AE134: 0 | AF134: -1 | AJ134: 0
K135: 2014-01-06T04:00:00 | L135: 1 | M135: 2 | O135: 4 | P135: 4 | Q135: TRUE | R135: FALSE | Z135: 2006-01-06 | AA135: 1 | AB135: 5 | AC135: =OFFSET(EUE!$AB$2,$Z135-$Z$11,$AB135-1) -> 0 | AD135: 0 | AE135: 0 | AF135: -1 | AJ135: 0
K136: 2014-01-06T05:00:00 | L136: 1 | M136: 2 | O136: 5 | P136: 5 | Q136: TRUE | R136: FALSE | Z136: 2006-01-06 | AA136: 1 | AB136: 6 | AC136: =OFFSET(EUE!$AB$2,$Z136-$Z$11,$AB136-1) -> 0 | AD136: 0 | AE136: 0 | AF136: -1 | AJ136: 0
K137: 2014-01-06T06:00:00 | L137: 1 | M137: 2 | O137: 6 | P137: 6 | Q137: TRUE | R137: FALSE | Z137: 2006-01-06 | AA137: 1 | AB137: 7 | AC137: =OFFSET(EUE!$AB$2,$Z137-$Z$11,$AB137-1) -> 0 | AD137: 0 | AE137: 0 | AF137: -1 | AJ137: 0
K138: 2014-01-06T07:00:00 | L138: 1 | M138: 2 | O138: 7 | P138: 7 | Q138: TRUE | R138: FALSE | Z138: 2006-01-06 | AA138: 1 | AB138: 8 | AC138: =OFFSET(EUE!$AB$2,$Z138-$Z$11,$AB138-1) -> 0 | AD138: 0 | AE138: 0 | AF138: -1 | AJ138: 0
K139: 2014-01-06T08:00:00 | L139: 1 | M139: 2 | O139: 8 | P139: 8 | Q139: TRUE | R139: FALSE | Z139: 2006-01-06 | AA139: 1 | AB139: 9 | AC139: =OFFSET(EUE!$AB$2,$Z139-$Z$11,$AB139-1) -> 0 | AD139: 0 | AE139: =IF(AF139>-1,SUM(OFFSET($AD139,0,0,AA$5,1)),0) -> 0 | AF139: -1 | AJ139: 0
K140: 2014-01-06T09:00:00 | L140: =MONTH(K140) -> 1 | M140: =INDEX($B$11:$B$22,L140) -> 2 | O140: =HOUR(K140) -> 9 | P140: =IF((HOUR(K140)+N140)=24,0,HOUR(K140)+N140) -> 9 | Q140: =IF($A$27=TRUE, TRUE, IF(WEEKDAY(K140+N140/24,2)<6,TRUE, FALSE)) -> TRUE | R140: =IF(Q140=FALSE, FALSE,INDEX($G$11:$H$34,P140+1,M140)) -> FALSE | Z140: 2006-01-06 | AA140: 1 | AB140: 10 | AC140: =OFFSET(EUE!$AB$2,$Z140-$Z$11,$AB140-1) -> 0 | AD140: =AC140*R140 -> 0 | AE140: 0 | AF140: -1 | AJ140: =IF(AF140=1,AE140,0) -> 0
K141: =K140+1/24 -> 2014-01-06T10:00:00 | L141: 1 | M141: 2 | O141: 10 | P141: 10 | Q141: TRUE | R141: FALSE | Z141: 2006-01-06 | AA141: 1 | AB141: 11 | AC141: =OFFSET(EUE!$AB$2,$Z141-$Z$11,$AB141-1) -> 0 | AD141: 0 | AE141: 0 | AF141: -1 | AJ141: 0
K142: 2014-01-06T11:00:00 | L142: 1 | M142: 2 | O142: 11 | P142: 11 | Q142: TRUE | R142: FALSE | Z142: 2006-01-06 | AA142: 1 | AB142: 12 | AC142: =OFFSET(EUE!$AB$2,$Z142-$Z$11,$AB142-1) -> 0 | AD142: 0 | AE142: 0 | AF142: -1 | AJ142: 0
K143: 2014-01-06T12:00:00 | L143: 1 | M143: 2 | O143: 12 | P143: 12 | Q143: TRUE | R143: FALSE | Z143: 2006-01-06 | AA143: 1 | AB143: 13 | AC143: =OFFSET(EUE!$AB$2,$Z143-$Z$11,$AB143-1) -> 0 | AD143: 0 | AE143: 0 | AF143: -1 | AJ143: 0
K144: 2014-01-06T13:00:00 | L144: 1 | M144: 2 | O144: 13 | P144: 13 | Q144: TRUE | R144: FALSE | Z144: 2006-01-06 | AA144: 1 | AB144: 14 | AC144: =OFFSET(EUE!$AB$2,$Z144-$Z$11,$AB144-1) -> 0 | AD144: 0 | AE144: 0 | AF144: -1 | AJ144: 0
K145: 2014-01-06T14:00:00 | L145: 1 | M145: 2 | O145: 14 | P145: 14 | Q145: TRUE | R145: FALSE | Z145: 2006-01-06 | AA145: 1 | AB145: 15 | AC145: =OFFSET(EUE!$AB$2,$Z145-$Z$11,$AB145-1) -> 0 | AD145: 0 | AE145: 0 | AF145: -1 | AJ145: 0
K146: 2014-01-06T15:00:00 | L146: 1 | M146: 2 | O146: 15 | P146: 15 | Q146: TRUE | R146: FALSE | Z146: 2006-01-06 | AA146: 1 | AB146: 16 | AC146: =OFFSET(EUE!$AB$2,$Z146-$Z$11,$AB146-1) -> 0 | AD146: 0 | AE146: 0 | AF146: -1 | AJ146: 0
K147: 2014-01-06T16:00:00 | L147: 1 | M147: 2 | O147: 16 | P147: 16 | Q147: TRUE | R147: FALSE | Z147: 2006-01-06 | AA147: 1 | AB147: 17 | AC147: =OFFSET(EUE!$AB$2,$Z147-$Z$11,$AB147-1) -> 0 | AD147: 0 | AE147: 0 | AF147: -1 | AJ147: 0
K148: 2014-01-06T17:00:00 | L148: 1 | M148: 2 | O148: 17 | P148: 17 | Q148: TRUE | R148: FALSE | Z148: 2006-01-06 | AA148: 1 | AB148: 18 | AC148: =OFFSET(EUE!$AB$2,$Z148-$Z$11,$AB148-1) -> 0.000256159509 | AD148: 0 | AE148: 0 | AF148: -1 | AJ148: 0
K149: 2014-01-06T18:00:00 | L149: 1 | M149: 2 | O149: 18 | P149: 18 | Q149: TRUE | R149: FALSE | Z149: 2006-01-06 | AA149: 1 | AB149: 19 | AC149: =OFFSET(EUE!$AB$2,$Z149-$Z$11,$AB149-1) -> 0.000439515777 | AD149: 0 | AE149: 0 | AF149: -1 | AJ149: 0
K150: 2014-01-06T19:00:00 | L150: 1 | M150: 2 | O150: 19 | P150: 19 | Q150: TRUE | R150: FALSE | Z150: 2006-01-06 | AA150: 1 | AB150: 20 | AC150: =OFFSET(EUE!$AB$2,$Z150-$Z$11,$AB150-1) -> 0.0001354746407 | AD150: 0 | AE150: 0 | AF150: -1 | AJ150: 0
K151: 2014-01-06T20:00:00 | L151: 1 | M151: 2 | O151: 20 | P151: 20 | Q151: TRUE | R151: FALSE | Z151: 2006-01-06 | AA151: 1 | AB151: 21 | AC151: =OFFSET(EUE!$AB$2,$Z151-$Z$11,$AB151-1) -> 1.005059172e-05 | AD151: 0 | AE151: 0 | AF151: -1 | AJ151: 0
K152: 2014-01-06T21:00:00 | L152: 1 | M152: 2 | O152: 21 | P152: 21 | Q152: TRUE | R152: FALSE | Z152: 2006-01-06 | AA152: 1 | AB152: 22 | AC152: =OFFSET(EUE!$AB$2,$Z152-$Z$11,$AB152-1) -> 0 | AD152: 0 | AE152: 0 | AF152: -1 | AJ152: 0
K153: 2014-01-06T22:00:00 | L153: 1 | M153: 2 | O153: 22 | P153: 22 | Q153: TRUE | R153: FALSE | Z153: 2006-01-06 | AA153: 1 | AB153: 23 | AC153: =OFFSET(EUE!$AB$2,$Z153-$Z$11,$AB153-1) -> 0 | AD153: 0 | AE153: 0 | AF153: -1 | AJ153: 0
K154: 2014-01-06T23:00:00 | L154: 1 | M154: 2 | O154: 23 | P154: 23 | Q154: TRUE | R154: FALSE | Z154: 2006-01-06 | AA154: 1 | AB154: 24 | AC154: =OFFSET(EUE!$AB$2,$Z154-$Z$11,$AB154-1) -> 0 | AD154: 0 | AE154: 0 | AF154: -1 | AJ154: 0
K155: 2014-01-07 | L155: 1 | M155: 2 | O155: 0 | P155: 0 | Q155: TRUE | R155: FALSE | Z155: 2006-01-07 | AA155: 1 | AB155: 1 | AC155: =OFFSET(EUE!$AB$2,$Z155-$Z$11,$AB155-1) -> 0 | AD155: 0 | AE155: 0 | AF155: -1 | AJ155: 0
K156: 2014-01-07T01:00:00 | L156: 1 | M156: 2 | O156: 1 | P156: 1 | Q156: TRUE | R156: FALSE | Z156: 2006-01-07 | AA156: 1 | AB156: 2 | AC156: =OFFSET(EUE!$AB$2,$Z156-$Z$11,$AB156-1) -> 0 | AD156: 0 | AE156: 0 | AF156: -1 | AJ156: 0
K157: 2014-01-07T02:00:00 | L157: 1 | M157: 2 | O157: 2 | P157: 2 | Q157: TRUE | R157: FALSE | Z157: 2006-01-07 | AA157: 1 | AB157: 3 | AC157: =OFFSET(EUE!$AB$2,$Z157-$Z$11,$AB157-1) -> 0 | AD157: 0 | AE157: 0 | AF157: -1 | AJ157: 0
K158: 2014-01-07T03:00:00 | L158: 1 | M158: 2 | O158: 3 | P158: 3 | Q158: TRUE | R158: FALSE | Z158: 2006-01-07 | AA158: 1 | AB158: 4 | AC158: =OFFSET(EUE!$AB$2,$Z158-$Z$11,$AB158-1) -> 0 | AD158: 0 | AE158: 0 | AF158: -1 | AJ158: 0
K159: 2014-01-07T04:00:00 | L159: 1 | M159: 2 | O159: 4 | P159: 4 | Q159: TRUE | R159: FALSE | Z159: 2006-01-07 | AA159: 1 | AB159: 5 | AC159: =OFFSET(EUE!$AB$2,$Z159-$Z$11,$AB159-1) -> 0 | AD159: 0 | AE159: 0 | AF159: -1 | AJ159: 0
K160: 2014-01-07T05:00:00 | L160: 1 | M160: 2 | O160: 5 | P160: 5 | Q160: TRUE | R160: FALSE | Z160: 2006-01-07 | AA160: 1 | AB160: 6 | AC160: =OFFSET(EUE!$AB$2,$Z160-$Z$11,$AB160-1) -> 0 | AD160: 0 | AE160: 0 | AF160: -1 | AJ160: 0
K161: 2014-01-07T06:00:00 | L161: 1 | M161: 2 | O161: 6 | P161: 6 | Q161: TRUE | R161: FALSE | Z161: 2006-01-07 | AA161: 1 | AB161: 7 | AC161: =OFFSET(EUE!$AB$2,$Z161-$Z$11,$AB161-1) -> 0 | AD161: 0 | AE161: 0 | AF161: -1 | AJ161: 0
K162: 2014-01-07T07:00:00 | L162: 1 | M162: 2 | O162: 7 | P162: 7 | Q162: TRUE | R162: FALSE | Z162: 2006-01-07 | AA162: 1 | AB162: 8 | AC162: =OFFSET(EUE!$AB$2,$Z162-$Z$11,$AB162-1) -> 0 | AD162: 0 | AE162: 0 | AF162: -1 | AJ162: 0
K163: 2014-01-07T08:00:00 | L163: 1 | M163: 2 | O163: 8 | P163: 8 | Q163: TRUE | R163: FALSE | Z163: 2006-01-07 | AA163: 1 | AB163: 9 | AC163: =OFFSET(EUE!$AB$2,$Z163-$Z$11,$AB163-1) -> 0 | AD163: 0 | AE163: 0 | AF163: -1 | AJ163: 0
K164: 2014-01-07T09:00:00 | L164: 1 | M164: 2 | O164: 9 | P164: 9 | Q164: TRUE | R164: FALSE | Z164: 2006-01-07 | AA164: 1 | AB164: 10 | AC164: =OFFSET(EUE!$AB$2,$Z164-$Z$11,$AB164-1) -> 0 | AD164: 0 | AE164: 0 | AF164: -1 | AJ164: 0
K165: 2014-01-07T10:00:00 | L165: 1 | M165: 2 | O165: 10 | P165: 10 | Q165: TRUE | R165: FALSE | Z165: 2006-01-07 | AA165: 1 | AB165: 11 | AC165: =OFFSET(EUE!$AB$2,$Z165-$Z$11,$AB165-1) -> 0 | AD165: 0 | AE165: 0 | AF165: -1 | AJ165: 0
K166: 2014-01-07T11:00:00 | L166: 1 | M166: 2 | O166: 11 | P166: 11 | Q166: TRUE | R166: FALSE | Z166: 2006-01-07 | AA166: 1 | AB166: 12 | AC166: =OFFSET(EUE!$AB$2,$Z166-$Z$11,$AB166-1) -> 0 | AD166: 0 | AE166: 0 | AF166: -1 | AJ166: 0
K167: 2014-01-07T12:00:00 | L167: 1 | M167: 2 | O167: 12 | P167: 12 | Q167: TRUE | R167: FALSE | Z167: 2006-01-07 | AA167: 1 | AB167: 13 | AC167: =OFFSET(EUE!$AB$2,$Z167-$Z$11,$AB167-1) -> 0 | AD167: 0 | AE167: 0 | AF167: -1 | AJ167: 0
K168: 2014-01-07T13:00:00 | L168: 1 | M168: 2 | O168: 13 | P168: 13 | Q168: TRUE | R168: FALSE | Z168: 2006-01-07 | AA168: 1 | AB168: 14 | AC168: =OFFSET(EUE!$AB$2,$Z168-$Z$11,$AB168-1) -> 0 | AD168: 0 | AE168: 0 | AF168: -1 | AJ168: 0
K169: 2014-01-07T14:00:00 | L169: 1 | M169: 2 | O169: 14 | P169: 14 | Q169: TRUE | R169: FALSE | Z169: 2006-01-07 | AA169: 1 | AB169: 15 | AC169: =OFFSET(EUE!$AB$2,$Z169-$Z$11,$AB169-1) -> 0 | AD169: 0 | AE169: 0 | AF169: -1 | AJ169: 0
K170: 2014-01-07T15:00:00 | L170: 1 | M170: 2 | O170: 15 | P170: 15 | Q170: TRUE | R170: FALSE | Z170: 2006-01-07 | AA170: 1 | AB170: 16 | AC170: =OFFSET(EUE!$AB$2,$Z170-$Z$11,$AB170-1) -> 0 | AD170: 0 | AE170: 0 | AF170: -1 | AJ170: 0
K171: 2014-01-07T16:00:00 | L171: 1 | M171: 2 | O171: 16 | P171: 16 | Q171: TRUE | R171: FALSE | Z171: 2006-01-07 | AA171: 1 | AB171: 17 | AC171: =OFFSET(EUE!$AB$2,$Z171-$Z$11,$AB171-1) -> 2.642937678e-06 | AD171: 0 | AE171: 0 | AF171: -1 | AJ171: 0
K172: 2014-01-07T17:00:00 | L172: 1 | M172: 2 | O172: 17 | P172: 17 | Q172: TRUE | R172: FALSE | Z172: 2006-01-07 | AA172: 1 | AB172: 18 | AC172: =OFFSET(EUE!$AB$2,$Z172-$Z$11,$AB172-1) -> 0.001602381659 | AD172: 0 | AE172: 0 | AF172: -1 | AJ172: 0
K173: 2014-01-07T18:00:00 | L173: 1 | M173: 2 | O173: 18 | P173: 18 | Q173: TRUE | R173: FALSE | Z173: 2006-01-07 | AA173: 1 | AB173: 19 | AC173: =OFFSET(EUE!$AB$2,$Z173-$Z$11,$AB173-1) -> 0.002191600065 | AD173: 0 | AE173: 0 | AF173: -1 | AJ173: 0
K174: 2014-01-07T19:00:00 | L174: 1 | M174: 2 | O174: 19 | P174: 19 | Q174: TRUE | R174: FALSE | Z174: 2006-01-07 | AA174: 1 | AB174: 20 | AC174: =OFFSET(EUE!$AB$2,$Z174-$Z$11,$AB174-1) -> 0.001072591627 | AD174: 0 | AE174: 0 | AF174: -1 | AJ174: 0
K175: 2014-01-07T20:00:00 | L175: 1 | M175: 2 | O175: 20 | P175: 20 | Q175: TRUE | R175: FALSE | Z175: 2006-01-07 | AA175: 1 | AB175: 21 | AC175: =OFFSET(EUE!$AB$2,$Z175-$Z$11,$AB175-1) -> 0.0001740926379 | AD175: 0 | AE175: 0 | AF175: -1 | AJ175: 0
K176: 2014-01-07T21:00:00 | L176: 1 | M176: 2 | O176: 21 | P176: 21 | Q176: TRUE | R176: FALSE | Z176: 2006-01-07 | AA176: 1 | AB176: 22 | AC176: =OFFSET(EUE!$AB$2,$Z176-$Z$11,$AB176-1) -> 0 | AD176: 0 | AE176: 0 | AF176: -1 | AJ176: 0
K177: 2014-01-07T22:00:00 | L177: 1 | M177: 2 | O177: 22 | P177: 22 | Q177: TRUE | R177: FALSE | Z177: 2006-01-07 | AA177: 1 | AB177: 23 | AC177: =OFFSET(EUE!$AB$2,$Z177-$Z$11,$AB177-1) -> 0 | AD177: 0 | AE177: 0 | AF177: -1 | AJ177: 0
K178: 2014-01-07T23:00:00 | L178: 1 | M178: 2 | O178: 23 | P178: 23 | Q178: TRUE | R178: FALSE | Z178: 2006-01-07 | AA178: 1 | AB178: 24 | AC178: =OFFSET(EUE!$AB$2,$Z178-$Z$11,$AB178-1) -> 0 | AD178: 0 | AE178: 0 | AF178: -1 | AJ178: 0
K179: 2014-01-08 | L179: 1 | M179: 2 | O179: 0 | P179: 0 | Q179: TRUE | R179: FALSE | Z179: 2006-01-08 | AA179: 1 | AB179: 1 | AC179: =OFFSET(EUE!$AB$2,$Z179-$Z$11,$AB179-1) -> 0 | AD179: 0 | AE179: 0 | AF179: -1 | AJ179: 0
K180: 2014-01-08T01:00:00 | L180: 1 | M180: 2 | O180: 1 | P180: 1 | Q180: TRUE | R180: FALSE | Z180: 2006-01-08 | AA180: 1 | AB180: 2 | AC180: =OFFSET(EUE!$AB$2,$Z180-$Z$11,$AB180-1) -> 0 | AD180: 0 | AE180: 0 | AF180: -1 | AJ180: 0
K181: 2014-01-08T02:00:00 | L181: 1 | M181: 2 | O181: 2 | P181: 2 | Q181: TRUE | R181: FALSE | Z181: 2006-01-08 | AA181: 1 | AB181: 3 | AC181: =OFFSET(EUE!$AB$2,$Z181-$Z$11,$AB181-1) -> 0 | AD181: 0 | AE181: 0 | AF181: -1 | AJ181: 0
K182: 2014-01-08T03:00:00 | L182: 1 | M182: 2 | O182: 3 | P182: 3 | Q182: TRUE | R182: FALSE | Z182: 2006-01-08 | AA182: 1 | AB182: 4 | AC182: =OFFSET(EUE!$AB$2,$Z182-$Z$11,$AB182-1) -> 0 | AD182: 0 | AE182: 0 | AF182: -1 | AJ182: 0
K183: 2014-01-08T04:00:00 | L183: 1 | M183: 2 | O183: 4 | P183: 4 | Q183: TRUE | R183: FALSE | Z183: 2006-01-08 | AA183: 1 | AB183: 5 | AC183: =OFFSET(EUE!$AB$2,$Z183-$Z$11,$AB183-1) -> 0 | AD183: 0 | AE183: 0 | AF183: -1 | AJ183: 0
K184: 2014-01-08T05:00:00 | L184: 1 | M184: 2 | O184: 5 | P184: 5 | Q184: TRUE | R184: FALSE | Z184: 2006-01-08 | AA184: 1 | AB184: 6 | AC184: =OFFSET(EUE!$AB$2,$Z184-$Z$11,$AB184-1) -> 0 | AD184: 0 | AE184: 0 | AF184: -1 | AJ184: 0
K185: 2014-01-08T06:00:00 | L185: 1 | M185: 2 | O185: 6 | P185: 6 | Q185: TRUE | R185: FALSE | Z185: 2006-01-08 | AA185: 1 | AB185: 7 | AC185: =OFFSET(EUE!$AB$2,$Z185-$Z$11,$AB185-1) -> 0 | AD185: 0 | AE185: 0 | AF185: -1 | AJ185: 0
K186: 2014-01-08T07:00:00 | L186: 1 | M186: 2 | O186: 7 | P186: 7 | Q186: TRUE | R186: FALSE | Z186: 2006-01-08 | AA186: 1 | AB186: 8 | AC186: =OFFSET(EUE!$AB$2,$Z186-$Z$11,$AB186-1) -> 0 | AD186: 0 | AE186: 0 | AF186: -1 | AJ186: 0
K187: 2014-01-08T08:00:00 | L187: 1 | M187: 2 | O187: 8 | P187: 8 | Q187: TRUE | R187: FALSE | Z187: 2006-01-08 | AA187: 1 | AB187: 9 | AC187: =OFFSET(EUE!$AB$2,$Z187-$Z$11,$AB187-1) -> 0 | AD187: 0 | AE187: 0 | AF187: -1 | AJ187: 0
K188: 2014-01-08T09:00:00 | L188: 1 | M188: 2 | O188: 9 | P188: 9 | Q188: TRUE | R188: FALSE | Z188: 2006-01-08 | AA188: 1 | AB188: 10 | AC188: =OFFSET(EUE!$AB$2,$Z188-$Z$11,$AB188-1) -> 0 | AD188: 0 | AE188: 0 | AF188: -1 | AJ188: 0
K189: 2014-01-08T10:00:00 | L189: 1 | M189: 2 | O189: 10 | P189: 10 | Q189: TRUE | R189: FALSE | Z189: 2006-01-08 | AA189: 1 | AB189: 11 | AC189: =OFFSET(EUE!$AB$2,$Z189-$Z$11,$AB189-1) -> 0 | AD189: 0 | AE189: 0 | AF189: -1 | AJ189: 0
K190: 2014-01-08T11:00:00 | L190: 1 | M190: 2 | O190: 11 | P190: 11 | Q190: TRUE | R190: FALSE | Z190: 2006-01-08 | AA190: 1 | AB190: 12 | AC190: =OFFSET(EUE!$AB$2,$Z190-$Z$11,$AB190-1) -> 0 | AD190: 0 | AE190: 0 | AF190: -1 | AJ190: 0
K191: 2014-01-08T12:00:00 | L191: 1 | M191: 2 | O191: 12 | P191: 12 | Q191: TRUE | R191: FALSE | Z191: 2006-01-08 | AA191: 1 | AB191: 13 | AC191: =OFFSET(EUE!$AB$2,$Z191-$Z$11,$AB191-1) -> 0 | AD191: 0 | AE191: 0 | AF191: -1 | AJ191: 0
K192: 2014-01-08T13:00:00 | L192: 1 | M192: 2 | O192: 13 | P192: 13 | Q192: TRUE | R192: FALSE | Z192: 2006-01-08 | AA192: 1 | AB192: 14 | AC192: =OFFSET(EUE!$AB$2,$Z192-$Z$11,$AB192-1) -> 0 | AD192: 0 | AE192: 0 | AF192: -1 | AJ192: 0
K193: 2014-01-08T14:00:00 | L193: 1 | M193: 2 | O193: 14 | P193: 14 | Q193: TRUE | R193: FALSE | Z193: 2006-01-08 | AA193: 1 | AB193: 15 | AC193: =OFFSET(EUE!$AB$2,$Z193-$Z$11,$AB193-1) -> 0 | AD193: 0 | AE193: 0 | AF193: -1 | AJ193: 0
K194: 2014-01-08T15:00:00 | L194: 1 | M194: 2 | O194: 15 | P194: 15 | Q194: TRUE | R194: FALSE | Z194: 2006-01-08 | AA194: 1 | AB194: 16 | AC194: =OFFSET(EUE!$AB$2,$Z194-$Z$11,$AB194-1) -> 0 | AD194: 0 | AE194: 0 | AF194: -1 | AJ194: 0
K195: 2014-01-08T16:00:00 | L195: 1 | M195: 2 | O195: 16 | P195: 16 | Q195: TRUE | R195: FALSE | Z195: 2006-01-08 | AA195: 1 | AB195: 17 | AC195: =OFFSET(EUE!$AB$2,$Z195-$Z$11,$AB195-1) -> 7.948545112e-06 | AD195: 0 | AE195: 0 | AF195: -1 | AJ195: 0
K196: 2014-01-08T17:00:00 | L196: 1 | M196: 2 | O196: 17 | P196: 17 | Q196: TRUE | R196: FALSE | Z196: 2006-01-08 | AA196: 1 | AB196: 18 | AC196: =OFFSET(EUE!$AB$2,$Z196-$Z$11,$AB196-1) -> 0.001582436011 | AD196: 0 | AE196: 0 | AF196: -1 | AJ196: 0
K197: 2014-01-08T18:00:00 | L197: 1 | M197: 2 | O197: 18 | P197: 18 | Q197: TRUE | R197: FALSE | Z197: 2006-01-08 | AA197: 1 | AB197: 19 | AC197: =OFFSET(EUE!$AB$2,$Z197-$Z$11,$AB197-1) -> 0.002155149115 | AD197: 0 | AE197: 0 | AF197: -1 | AJ197: 0
K198: 2014-01-08T19:00:00 | L198: 1 | M198: 2 | O198: 19 | P198: 19 | Q198: TRUE | R198: FALSE | Z198: 2006-01-08 | AA198: 1 | AB198: 20 | AC198: =OFFSET(EUE!$AB$2,$Z198-$Z$11,$AB198-1) -> 0.001137692394 | AD198: 0 | AE198: 0 | AF198: -1 | AJ198: 0
K199: 2014-01-08T20:00:00 | L199: 1 | M199: 2 | O199: 20 | P199: 20 | Q199: TRUE | R199: FALSE | Z199: 2006-01-08 | AA199: 1 | AB199: 21 | AC199: =OFFSET(EUE!$AB$2,$Z199-$Z$11,$AB199-1) -> 0.0002201438247 | AD199: 0 | AE199: 0 | AF199: -1 | AJ199: 0
K200: 2014-01-08T21:00:00 | L200: 1 | M200: 2 | O200: 21 | P200: 21 | Q200: TRUE | R200: FALSE | Z200: 2006-01-08 | AA200: 1 | AB200: 22 | AC200: =OFFSET(EUE!$AB$2,$Z200-$Z$11,$AB200-1) -> 0 | AD200: 0 | AE200: 0 | AF200: -1 | AJ200: 0
K201: 2014-01-08T22:00:00 | L201: 1 | M201: 2 | O201: 22 | P201: 22 | Q201: TRUE | R201: FALSE | Z201: 2006-01-08 | AA201: 1 | AB201: 23 | AC201: =OFFSET(EUE!$AB$2,$Z201-$Z$11,$AB201-1) -> 0 | AD201: 0 | AE201: 0 | AF201: -1 | AJ201: 0
... 361 more rows

Sheet B Factor
A1: Evaluation of B-Factor
B3: Parameters for Allocator Calculation for B-Factors
B4: Reserve Margin | F4: 0.07
B5: Cutoff Hour | F5: 250
B6: Normalization for EUE | F6: =1/SUM(EUE!$C$2:$Z$1462) -> 1.160710443e-07
B7: Intermediate Steps in Allocator Calculation
C8: Actual | F8: DA | I8: 2DA
C9: Peak Load | D9: Load in cutoff hour | E9: Normalization Factor | F9: Peak Load | G9: Load in Cutoff Hour | H9: Normalization Factor | I9: Peak Load | J9: Load in Cutoff Hour | K9: Normalization Factor
B10: 2006 | C10: =MAX(IF(YEAR(Actual!$B$2:$B$1462)=$B10,Actual!$C$2:$Z$1462)) -> 50198 | D10: =LARGE(IF(YEAR(Actual!$B$2:$B$1462)=$B10,Actual!$C$2:$Z$1462),$F$5) -> 40416 | E10: =SUM(IF(YEAR(Actual!$B$2:$B$1462)=$B10,IF(Actual!$C$2:$Z$1462>=$D10,1/((1+$F$4)*$C10-Actual!$C$2:$Z$1462)))) -> 0.02616019005 | F10: =MAX(IF(YEAR(DA!$B$2:$B$1462)=$B10,DA!$C$2:$Z$1462)) -> 52336 | G10: =LARGE(IF(YEAR(DA!$B$2:$B$1462)=$B10,DA!$C$2:$Z$1462),$F$5) -> 40492 | H10: =SUM(IF(YEAR(DA!$B$2:$B$1462)=$B10,IF(DA!$C$2:$Z$1462>=$G10,1/((1+$F$4)*$F10-DA!$C$2:$Z$1462)))) -> 0.02159325297 | I10: =MAX(IF(YEAR('2DA'!$B$2:$B$1462)=$B10,'2DA'!$C$2:$Z$1462)) -> 48893 | J10: =LARGE(IF(YEAR('2DA'!$B$2:$B$1462)=$B10,'2DA'!$C$2:$Z$1462),$F$5) -> 40159 | K10: =SUM(IF(YEAR('2DA'!$B$2:$B$1462)=$B10,IF('2DA'!$C$2:$Z$1462>=$J10,1/((1+$F$4)*$I10-'2DA'!$C$2:$Z$1462)))) -> 0.0289331393 | O10: (blank)
B11: 2007 | C11: =MAX(IF(YEAR(Actual!$B$2:$B$1462)=$B11,Actual!$C$2:$Z$1462)) -> 48535 | D11: =LARGE(IF(YEAR(Actual!$B$2:$B$1462)=$B11,Actual!$C$2:$Z$1462),$F$5) -> 39505 | E11: =SUM(IF(YEAR(Actual!$B$2:$B$1462)=$B11,IF(Actual!$C$2:$Z$1462>=$D11,1/((1+$F$4)*$C11-Actual!$C$2:$Z$1462)))) -> 0.02742987423 | F11: =MAX(IF(YEAR(DA!$B$2:$B$1462)=$B11,DA!$C$2:$Z$1462)) -> 49572 | G11: =LARGE(IF(YEAR(DA!$B$2:$B$1462)=$B11,DA!$C$2:$Z$1462),$F$5) -> 39764 | H11: =SUM(IF(YEAR(DA!$B$2:$B$1462)=$B11,IF(DA!$C$2:$Z$1462>=$G11,1/((1+$F$4)*$F11-DA!$C$2:$Z$1462)))) -> 0.02472396136 | I11: =MAX(IF(YEAR('2DA'!$B$2:$B$1462)=$B11,'2DA'!$C$2:$Z$1462)) -> 48538 | J11: =LARGE(IF(YEAR('2DA'!$B$2:$B$1462)=$B11,'2DA'!$C$2:$Z$1462),$F$5) -> 39822 | K11: =SUM(IF(YEAR('2DA'!$B$2:$B$1462)=$B11,IF('2DA'!$C$2:$Z$1462>=$J11,1/((1+$F$4)*$I11-'2DA'!$C$2:$Z$1462)))) -> 0.02658033342 | O11: Average | P11: Day Of | Q11: 1 | X11: Four Year Average | Y11: 0
B12: 2008 | C12: =MAX(IF(YEAR(Actual!$B$2:$B$1462)=$B12,Actual!$C$2:$Z$1462)) -> 46789 | D12: =LARGE(IF(YEAR(Actual!$B$2:$B$1462)=$B12,Actual!$C$2:$Z$1462),$F$5) -> 39190 | E12: =SUM(IF(YEAR(Actual!$B$2:$B$1462)=$B12,IF(Actual!$C$2:$Z$1462>=$D12,1/((1+$F$4)*$C12-Actual!$C$2:$Z$1462)))) -> 0.02990398871 | F12: =MAX(IF(YEAR(DA!$B$2:$B$1462)=$B12,DA!$C$2:$Z$1462)) -> 48810 | G12: =LARGE(IF(YEAR(DA!$B$2:$B$1462)=$B12,DA!$C$2:$Z$1462),$F$5) -> 39531 | H12: =SUM(IF(YEAR(DA!$B$2:$B$1462)=$B12,IF(DA!$C$2:$Z$1462>=$G12,1/((1+$F$4)*$F12-DA!$C$2:$Z$1462)))) -> 0.02556441446 | I12: =MAX(IF(YEAR('2DA'!$B$2:$B$1462)=$B12,'2DA'!$C$2:$Z$1462)) -> 47952 | J12: =LARGE(IF(YEAR('2DA'!$B$2:$B$1462)=$B12,'2DA'!$C$2:$Z$1462),$F$5) -> 38710 | K12: =SUM(IF(YEAR('2DA'!$B$2:$B$1462)=$B12,IF('2DA'!$C$2:$Z$1462>=$J12,1/((1+$F$4)*$I12-'2DA'!$C$2:$Z$1462)))) -> 0.02540300008 | P12: Day Ahead | R12: =C21 -> 0.8829906618 | X12: 2006 | Y12: 0
B13: 2009 | C13: =MAX(IF(YEAR(Actual!$B$2:$B$1462)=$B13,Actual!$C$2:$Z$1462)) -> 45994 | D13: =LARGE(IF(YEAR(Actual!$B$2:$B$1462)=$B13,Actual!$C$2:$Z$1462),$F$5) -> 38289 | E13: =SUM(IF(YEAR(Actual!$B$2:$B$1462)=$B13,IF(Actual!$C$2:$Z$1462>=$D13,1/((1+$F$4)*$C13-Actual!$C$2:$Z$1462)))) -> 0.03013116042 | F13: =MAX(IF(YEAR(DA!$B$2:$B$1462)=$B13,DA!$C$2:$Z$1462)) -> 45158 | G13: =LARGE(IF(YEAR(DA!$B$2:$B$1462)=$B13,DA!$C$2:$Z$1462),$F$5) -> 38769.5 | H13: =SUM(IF(YEAR(DA!$B$2:$B$1462)=$B13,IF(DA!$C$2:$Z$1462>=$G13,1/((1+$F$4)*$F13-DA!$C$2:$Z$1462)))) -> 0.03556528303 | I13: =MAX(IF(YEAR('2DA'!$B$2:$B$1462)=$B13,'2DA'!$C$2:$Z$1462)) -> 43579.5 | J13: =LARGE(IF(YEAR('2DA'!$B$2:$B$1462)=$B13,'2DA'!$C$2:$Z$1462),$F$5) -> 38200 | K13: =SUM(IF(YEAR('2DA'!$B$2:$B$1462)=$B13,IF('2DA'!$C$2:$Z$1462>=$J13,1/((1+$F$4)*$I13-'2DA'!$C$2:$Z$1462)))) -> 0.04101635831 | P13: Two Day Ahead | S13: =D21 -> 0.8277443765 | X13: 2007 | Y13: 0
O14: (blank) | X14: 2008 | Y14: 0
B15: B-Factor Analaysis: Coincidence of Load Forecasts with Actual Peak Periods | O15: 2006 | P15: Day Of | T15: 1 | X15: 2009 | Y15: 0
C16: Day-Ahead | D16: 2 Day-Ahead | P16: Day Ahead | U16: =C17 -> 0.9014584137
B17: 2006 | C17: =SUM(IF(YEAR(Actual!$B$2:$B$1462)=$B17,Actual!$AB$2:$AY$1462*IF(DA!$AB$2:$AY$1462>0,1,0))) -> 0.9014584137 | D17: =SUM(IF(YEAR(Actual!$B$2:$B$1462)=$B17,Actual!$AB$2:$AY$1462*IF('2DA'!$AB$2:$AY$1462>0,1,0))) -> 0.8648970835 | P17: Two Day Ahead | V17: =D17 -> 0.8648970835
B18: 2007 | C18: =SUM(IF(YEAR(Actual!$B$2:$B$1462)=$B18,Actual!$AB$2:$AY$1462*IF(DA!$AB$2:$AY$1462>0,1,0))) -> 0.9327164116 | D18: =SUM(IF(YEAR(Actual!$B$2:$B$1462)=$B18,Actual!$AB$2:$AY$1462*IF('2DA'!$AB$2:$AY$1462>0,1,0))) -> 0.8542886817 | O18: (blank)
B19: 2008 | C19: =SUM(IF(YEAR(Actual!$B$2:$B$1462)=$B19,Actual!$AB$2:$AY$1462*IF(DA!$AB$2:$AY$1462>0,1,0))) -> 0.8493389851 | D19: =SUM(IF(YEAR(Actual!$B$2:$B$1462)=$B19,Actual!$AB$2:$AY$1462*IF('2DA'!$AB$2:$AY$1462>0,1,0))) -> 0.8000962448 | O19: 2007 | P19: Day Of | T19: 1
B20: 2009 | C20: =SUM(IF(YEAR(Actual!$B$2:$B$1462)=$B20,Actual!$AB$2:$AY$1462*IF(DA!$AB$2:$AY$1462>0,1,0))) -> 0.848448837 | D20: =SUM(IF(YEAR(Actual!$B$2:$B$1462)=$B20,Actual!$AB$2:$AY$1462*IF('2DA'!$AB$2:$AY$1462>0,1,0))) -> 0.7916954962 | P20: Day Ahead | U20: =C18 -> 0.9327164116
B21: Total | C21: =SUM(Actual!$AB$2:$AY$1462*IF(DA!$AB$2:$AY$1462>0,1,0))/4 -> 0.8829906618 | D21: =SUM(Actual!$AB$2:$AY$1462*IF('2DA'!$AB$2:$AY$1462>0,1,0))/4 -> 0.8277443765 | P21: Two Day Ahead | V21: =D18 -> 0.8542886817
O22: (blank)
O23: 2008 | P23: Day Of | T23: 1
P24: Day Ahead | U24: =C19 -> 0.8493389851
P25: Two Day Ahead | V25: =D19 -> 0.8000962448
O26: (blank)
O27: 2009 | P27: Day Of | T27: 1
P28: Day Ahead | U28: =C20 -> 0.848448837
P29: Two Day Ahead | V29: =D20 -> 0.7916954962
O30: (blank)
B34: Note that B-Factor analysis is NOT compatible with EUE data from SDG&E. The information herein remains based on the prior E3 250 hour method.

Sheet EUE
C1: 1 | D1: 2 | E1: 3 | F1: 4 | G1: 5 | H1: 6 | I1: 7 | J1: 8 | K1: 9 | L1: 10 | M1: 11 | N1: 12 | O1: 13 | P1: 14 | Q1: 15 | R1: 16 | S1: 17 | T1: 18 | U1: 19 | V1: 20 | W1: 21 | X1: 22 | Y1: 23 | Z1: 24 | AB1: 1 | AC1: 2 | AD1: 3 | AE1: 4 | AF1: 5 | AG1: 6 | AH1: 7 | AI1: 8 | AJ1: 9 | AK1: 10 | AL1: 11 | AM1: 12 | AN1: 13 | AO1: 14 | AP1: 15 | AQ1: 16 | AR1: 17 | AS1: 18 | AT1: 19 | AU1: 20 | AV1: 21 | AW1: 22 | AX1: 23 | AY1: 24
A2: A | B2: 2006-01-01 | C2: 0 | D2: 0 | E2: 0 | F2: 0 | G2: 0 | H2: 0 | I2: 0 | J2: 0 | K2: 0 | L2: 0 | M2: 0 | N2: 0 | O2: 0 | P2: 0 | Q2: 0 | R2: 0 | S2: 84.6 | T2: 19436.11 | U2: 22589.4 | V2: 12159.48 | W2: 2564.2 | X2: 0 | Y2: 0 | Z2: 0 | AB2: =C2*'B Factor'!$F$6 -> 0 | AC2: =D2*'B Factor'!$F$6 -> 0 | AD2: =E2*'B Factor'!$F$6 -> 0 | AE2: =F2*'B Factor'!$F$6 -> 0 | AF2: =G2*'B Factor'!$F$6 -> 0 | AG2: =H2*'B Factor'!$F$6 -> 0 | AH2: =I2*'B Factor'!$F$6 -> 0 | AI2: =J2*'B Factor'!$F$6 -> 0 | AJ2: =K2*'B Factor'!$F$6 -> 0 | AK2: =L2*'B Factor'!$F$6 -> 0 | AL2: =M2*'B Factor'!$F$6 -> 0 | AM2: =N2*'B Factor'!$F$6 -> 0 | AN2: =O2*'B Factor'!$F$6 -> 0 | AO2: =P2*'B Factor'!$F$6 -> 0 | AP2: =Q2*'B Factor'!$F$6 -> 0 | AQ2: =R2*'B Factor'!$F$6 -> 0 | AR2: =S2*'B Factor'!$F$6 -> 9.819610345e-06 | AS2: =T2*'B Factor'!$F$6 -> 0.002255969584 | AT2: =U2*'B Factor'!$F$6 -> 0.002621975247 | AU2: =V2*'B Factor'!$F$6 -> 0.001411363541 | AV2: =W2*'B Factor'!$F$6 -> 0.0002976293717 | AW2: =X2*'B Factor'!$F$6 -> 0 | AX2: =Y2*'B Factor'!$F$6 -> 0 | AY2: =Z2*'B Factor'!$F$6 -> 0
A3: A | B3: 2006-01-02 | C3: 0 | D3: 0 | E3: 0 | F3: 0 | G3: 0 | H3: 0 | I3: 0 | J3: 0 | K3: 0 | L3: 0 | M3: 0 | N3: 0 | O3: 0 | P3: 0 | Q3: 0 | R3: 0 | S3: 72.53 | T3: 19326.39 | U3: 23023.93 | V3: 13372.95 | W3: 3189.16 | X3: 4.11 | Y3: 0 | Z3: 0 | AB3: =C3*'B Factor'!$F$6 -> 0 | AC3: =D3*'B Factor'!$F$6 -> 0 | AD3: =E3*'B Factor'!$F$6 -> 0 | AE3: =F3*'B Factor'!$F$6 -> 0 | AF3: =G3*'B Factor'!$F$6 -> 0 | AG3: =H3*'B Factor'!$F$6 -> 0 | AH3: =I3*'B Factor'!$F$6 -> 0 | AI3: =J3*'B Factor'!$F$6 -> 0 | AJ3: =K3*'B Factor'!$F$6 -> 0 | AK3: =L3*'B Factor'!$F$6 -> 0 | AL3: =M3*'B Factor'!$F$6 -> 0 | AM3: =N3*'B Factor'!$F$6 -> 0 | AN3: =O3*'B Factor'!$F$6 -> 0 | AO3: =P3*'B Factor'!$F$6 -> 0 | AP3: =Q3*'B Factor'!$F$6 -> 0 | AQ3: =R3*'B Factor'!$F$6 -> 0 | AR3: =S3*'B Factor'!$F$6 -> 8.418632841e-06 | AS3: =T3*'B Factor'!$F$6 -> 0.002243234269 | AT3: =U3*'B Factor'!$F$6 -> 0.002672411598 | AU3: =V3*'B Factor'!$F$6 -> 0.001552212272 | AV3: =W3*'B Factor'!$F$6 -> 0.0003701691316 | AW3: =X3*'B Factor'!$F$6 -> 4.77051992e-07 | AX3: =Y3*'B Factor'!$F$6 -> 0 | AY3: =Z3*'B Factor'!$F$6 -> 0
A4: A | B4: 2006-01-03 | C4: 0 | D4: 0 | E4: 0 | F4: 0 | G4: 0 | H4: 0 | I4: 0 | J4: 0 | K4: 0 | L4: 0 | M4: 0 | N4: 0 | O4: 0 | P4: 0 | Q4: 0 | R4: 0 | S4: 69.93 | T4: 19259.66 | U4: 24791.98 | V4: 14208.58 | W4: 3207.19 | X4: 35.05 | Y4: 0 | Z4: 0 | AB4: =C4*'B Factor'!$F$6 -> 0 | AC4: =D4*'B Factor'!$F$6 -> 0 | AD4: =E4*'B Factor'!$F$6 -> 0 | AE4: =F4*'B Factor'!$F$6 -> 0 | AF4: =G4*'B Factor'!$F$6 -> 0 | AG4: =H4*'B Factor'!$F$6 -> 0 | AH4: =I4*'B Factor'!$F$6 -> 0 | AI4: =J4*'B Factor'!$F$6 -> 0 | AJ4: =K4*'B Factor'!$F$6 -> 0 | AK4: =L4*'B Factor'!$F$6 -> 0 | AL4: =M4*'B Factor'!$F$6 -> 0 | AM4: =N4*'B Factor'!$F$6 -> 0 | AN4: =O4*'B Factor'!$F$6 -> 0 | AO4: =P4*'B Factor'!$F$6 -> 0 | AP4: =Q4*'B Factor'!$F$6 -> 0 | AQ4: =R4*'B Factor'!$F$6 -> 0 | AR4: =S4*'B Factor'!$F$6 -> 8.116848126e-06 | AS4: =T4*'B Factor'!$F$6 -> 0.002235488849 | AT4: =U4*'B Factor'!$F$6 -> 0.002877631008 | AU4: =V4*'B Factor'!$F$6 -> 0.001649204718 | AV4: =W4*'B Factor'!$F$6 -> 0.0003722618925 | AW4: =X4*'B Factor'!$F$6 -> 4.068290102e-06 | AX4: =Y4*'B Factor'!$F$6 -> 0 | AY4: =Z4*'B Factor'!$F$6 -> 0
A5: A | B5: 2006-01-04 | C5: 0 | D5: 0 | E5: 0 | F5: 0 | G5: 0 | H5: 0 | I5: 0 | J5: 0 | K5: 0 | L5: 0 | M5: 0 | N5: 0 | O5: 0 | P5: 0 | Q5: 0 | R5: 0 | S5: 0 | T5: 10498.57 | U5: 12035.78 | V5: 5046.25 | W5: 1002.35 | X5: 0 | Y5: 0 | Z5: 0 | AB5: =C5*'B Factor'!$F$6 -> 0 | AC5: =D5*'B Factor'!$F$6 -> 0 | AD5: =E5*'B Factor'!$F$6 -> 0 | AE5: =F5*'B Factor'!$F$6 -> 0 | AF5: =G5*'B Factor'!$F$6 -> 0 | AG5: =H5*'B Factor'!$F$6 -> 0 | AH5: =I5*'B Factor'!$F$6 -> 0 | AI5: =J5*'B Factor'!$F$6 -> 0 | AJ5: =K5*'B Factor'!$F$6 -> 0 | AK5: =L5*'B Factor'!$F$6 -> 0 | AL5: =M5*'B Factor'!$F$6 -> 0 | AM5: =N5*'B Factor'!$F$6 -> 0 | AN5: =O5*'B Factor'!$F$6 -> 0 | AO5: =P5*'B Factor'!$F$6 -> 0 | AP5: =Q5*'B Factor'!$F$6 -> 0 | AQ5: =R5*'B Factor'!$F$6 -> 0 | AR5: =S5*'B Factor'!$F$6 -> 0 | AS5: =T5*'B Factor'!$F$6 -> 0.001218579983 | AT5: =U5*'B Factor'!$F$6 -> 0.001397005553 | AU5: =V5*'B Factor'!$F$6 -> 0.0005857235072 | AV5: =W5*'B Factor'!$F$6 -> 0.0001163438112 | AW5: =X5*'B Factor'!$F$6 -> 0 | AX5: =Y5*'B Factor'!$F$6 -> 0 | AY5: =Z5*'B Factor'!$F$6 -> 0
A6: A | B6: 2006-01-05 | C6: 0 | D6: 0 | E6: 0 | F6: 0 | G6: 0 | H6: 0 | I6: 0 | J6: 0 | K6: 0 | L6: 0 | M6: 0 | N6: 0 | O6: 0 | P6: 0 | Q6: 0 | R6: 0 | S6: 0 | T6: 2251.63 | U6: 2841.01 | V6: 953.42 | W6: 106.34 | X6: 0 | Y6: 0 | Z6: 0 | AB6: =C6*'B Factor'!$F$6 -> 0 | AC6: =D6*'B Factor'!$F$6 -> 0 | AD6: =E6*'B Factor'!$F$6 -> 0 | AE6: =F6*'B Factor'!$F$6 -> 0 | AF6: =G6*'B Factor'!$F$6 -> 0 | AG6: =H6*'B Factor'!$F$6 -> 0 | AH6: =I6*'B Factor'!$F$6 -> 0 | AI6: =J6*'B Factor'!$F$6 -> 0 | AJ6: =K6*'B Factor'!$F$6 -> 0 | AK6: =L6*'B Factor'!$F$6 -> 0 | AL6: =M6*'B Factor'!$F$6 -> 0 | AM6: =N6*'B Factor'!$F$6 -> 0 | AN6: =O6*'B Factor'!$F$6 -> 0 | AO6: =P6*'B Factor'!$F$6 -> 0 | AP6: =Q6*'B Factor'!$F$6 -> 0 | AQ6: =R6*'B Factor'!$F$6 -> 0 | AR6: =S6*'B Factor'!$F$6 -> 0 | AS6: =T6*'B Factor'!$F$6 -> 0.0002613490454 | AT6: =U6*'B Factor'!$F$6 -> 0.0003297589975 | AU6: =V6*'B Factor'!$F$6 -> 0.000110664455 | AV6: =W6*'B Factor'!$F$6 -> 1.234299485e-05 | AW6: =X6*'B Factor'!$F$6 -> 0 | AX6: =Y6*'B Factor'!$F$6 -> 0 | AY6: =Z6*'B Factor'!$F$6 -> 0
A7: A | B7: 2006-01-06 | C7: 0 | D7: 0 | E7: 0 | F7: 0 | G7: 0 | H7: 0 | I7: 0 | J7: 0 | K7: 0 | L7: 0 | M7: 0 | N7: 0 | O7: 0 | P7: 0 | Q7: 0 | R7: 0 | S7: 0 | T7: 2206.92 | U7: 3786.61 | V7: 1167.17 | W7: 86.59 | X7: 0 | Y7: 0 | Z7: 0 | AB7: =C7*'B Factor'!$F$6 -> 0 | AC7: =D7*'B Factor'!$F$6 -> 0 | AD7: =E7*'B Factor'!$F$6 -> 0 | AE7: =F7*'B Factor'!$F$6 -> 0 | AF7: =G7*'B Factor'!$F$6 -> 0 | AG7: =H7*'B Factor'!$F$6 -> 0 | AH7: =I7*'B Factor'!$F$6 -> 0 | AI7: =J7*'B Factor'!$F$6 -> 0 | AJ7: =K7*'B Factor'!$F$6 -> 0 | AK7: =L7*'B Factor'!$F$6 -> 0 | AL7: =M7*'B Factor'!$F$6 -> 0 | AM7: =N7*'B Factor'!$F$6 -> 0 | AN7: =O7*'B Factor'!$F$6 -> 0 | AO7: =P7*'B Factor'!$F$6 -> 0 | AP7: =Q7*'B Factor'!$F$6 -> 0 | AQ7: =R7*'B Factor'!$F$6 -> 0 | AR7: =S7*'B Factor'!$F$6 -> 0 | AS7: =T7*'B Factor'!$F$6 -> 0.000256159509 | AT7: =U7*'B Factor'!$F$6 -> 0.000439515777 | AU7: =V7*'B Factor'!$F$6 -> 0.0001354746407 | AV7: =W7*'B Factor'!$F$6 -> 1.005059172e-05 | AW7: =X7*'B Factor'!$F$6 -> 0 | AX7: =Y7*'B Factor'!$F$6 -> 0 | AY7: =Z7*'B Factor'!$F$6 -> 0
A8: A | B8: 2006-01-07 | C8: 0 | D8: 0 | E8: 0 | F8: 0 | G8: 0 | H8: 0 | I8: 0 | J8: 0 | K8: 0 | L8: 0 | M8: 0 | N8: 0 | O8: 0 | P8: 0 | Q8: 0 | R8: 0 | S8: 22.77 | T8: 13805.18 | U8: 18881.54 | V8: 9240.82 | W8: 1499.88 | X8: 0 | Y8: 0 | Z8: 0 | AB8: =C8*'B Factor'!$F$6 -> 0 | AC8: =D8*'B Factor'!$F$6 -> 0 | AD8: =E8*'B Factor'!$F$6 -> 0 | AE8: =F8*'B Factor'!$F$6 -> 0 | AF8: =G8*'B Factor'!$F$6 -> 0 | AG8: =H8*'B Factor'!$F$6 -> 0 | AH8: =I8*'B Factor'!$F$6 -> 0 | AI8: =J8*'B Factor'!$F$6 -> 0 | AJ8: =K8*'B Factor'!$F$6 -> 0 | AK8: =L8*'B Factor'!$F$6 -> 0 | AL8: =M8*'B Factor'!$F$6 -> 0 | AM8: =N8*'B Factor'!$F$6 -> 0 | AN8: =O8*'B Factor'!$F$6 -> 0 | AO8: =P8*'B Factor'!$F$6 -> 0 | AP8: =Q8*'B Factor'!$F$6 -> 0 | AQ8: =R8*'B Factor'!$F$6 -> 0 | AR8: =S8*'B Factor'!$F$6 -> 2.642937678e-06 | AS8: =T8*'B Factor'!$F$6 -> 0.001602381659 | AT8: =U8*'B Factor'!$F$6 -> 0.002191600065 | AU8: =V8*'B Factor'!$F$6 -> 0.001072591627 | AV8: =W8*'B Factor'!$F$6 -> 0.0001740926379 | AW8: =X8*'B Factor'!$F$6 -> 0 | AX8: =Y8*'B Factor'!$F$6 -> 0 | AY8: =Z8*'B Factor'!$F$6 -> 0
A9: A | B9: 2006-01-08 | C9: 0 | D9: 0 | E9: 0 | F9: 0 | G9: 0 | H9: 0 | I9: 0 | J9: 0 | K9: 0 | L9: 0 | M9: 0 | N9: 0 | O9: 0 | P9: 0 | Q9: 0 | R9: 0 | S9: 68.48 | T9: 13633.34 | U9: 18567.5 | V9: 9801.69 | W9: 1896.63 | X9: 0 | Y9: 0 | Z9: 0 | AB9: =C9*'B Factor'!$F$6 -> 0 | AC9: =D9*'B Factor'!$F$6 -> 0 | AD9: =E9*'B Factor'!$F$6 -> 0 | AE9: =F9*'B Factor'!$F$6 -> 0 | AF9: =G9*'B Factor'!$F$6 -> 0 | AG9: =H9*'B Factor'!$F$6 -> 0 | AH9: =I9*'B Factor'!$F$6 -> 0 | AI9: =J9*'B Factor'!$F$6 -> 0 | AJ9: =K9*'B Factor'!$F$6 -> 0 | AK9: =L9*'B Factor'!$F$6 -> 0 | AL9: =M9*'B Factor'!$F$6 -> 0 | AM9: =N9*'B Factor'!$F$6 -> 0 | AN9: =O9*'B Factor'!$F$6 -> 0 | AO9: =P9*'B Factor'!$F$6 -> 0 | AP9: =Q9*'B Factor'!$F$6 -> 0 | AQ9: =R9*'B Factor'!$F$6 -> 0 | AR9: =S9*'B Factor'!$F$6 -> 7.948545112e-06 | AS9: =T9*'B Factor'!$F$6 -> 0.001582436011 | AT9: =U9*'B Factor'!$F$6 -> 0.002155149115 | AU9: =V9*'B Factor'!$F$6 -> 0.001137692394 | AV9: =W9*'B Factor'!$F$6 -> 0.0002201438247 | AW9: =X9*'B Factor'!$F$6 -> 0 | AX9: =Y9*'B Factor'!$F$6 -> 0 | AY9: =Z9*'B Factor'!$F$6 -> 0
A10: A | B10: 2006-01-09 | C10: 0 | D10: 0 | E10: 0 | F10: 0 | G10: 0 | H10: 0 | I10: 0 | J10: 0 | K10: 0 | L10: 0 | M10: 0 | N10: 0 | O10: 0 | P10: 0 | Q10: 0 | R10: 0 | S10: 0 | T10: 11394.41 | U10: 15850.24 | V10: 7888.92 | W10: 1061.81 | X10: 0 | Y10: 0 | Z10: 0 | AB10: =C10*'B Factor'!$F$6 -> 0 | AC10: =D10*'B Factor'!$F$6 -> 0 | AD10: =E10*'B Factor'!$F$6 -> 0 | AE10: =F10*'B Factor'!$F$6 -> 0 | AF10: =G10*'B Factor'!$F$6 -> 0 | AG10: =H10*'B Factor'!$F$6 -> 0 | AH10: =I10*'B Factor'!$F$6 -> 0 | AI10: =J10*'B Factor'!$F$6 -> 0 | AJ10: =K10*'B Factor'!$F$6 -> 0 | AK10: =L10*'B Factor'!$F$6 -> 0 | AL10: =M10*'B Factor'!$F$6 -> 0 | AM10: =N10*'B Factor'!$F$6 -> 0 | AN10: =O10*'B Factor'!$F$6 -> 0 | AO10: =P10*'B Factor'!$F$6 -> 0 | AP10: =Q10*'B Factor'!$F$6 -> 0 | AQ10: =R10*'B Factor'!$F$6 -> 0 | AR10: =S10*'B Factor'!$F$6 -> 0 | AS10: =T10*'B Factor'!$F$6 -> 0.001322561068 | AT10: =U10*'B Factor'!$F$6 -> 0.001839753909 | AU10: =V10*'B Factor'!$F$6 -> 0.0009156751826 | AV10: =W10*'B Factor'!$F$6 -> 0.0001232453955 | AW10: =X10*'B Factor'!$F$6 -> 0 | AX10: =Y10*'B Factor'!$F$6 -> 0 | AY10: =Z10*'B Factor'!$F$6 -> 0
A11: A | B11: 2006-01-10 | C11: 0 | D11: 0 | E11: 0 | F11: 0 | G11: 0 | H11: 0 | I11: 0 | J11: 0 | K11: 0 | L11: 0 | M11: 0 | N11: 0 | O11: 0 | P11: 0 | Q11: 0 | R11: 0 | S11: 57.74 | T11: 9955.16 | U11: 12688.5 | V11: 4667.94 | W11: 449.37 | X11: 0 | Y11: 0 | Z11: 0 | AB11: =C11*'B Factor'!$F$6 -> 0 | AC11: =D11*'B Factor'!$F$6 -> 0 | AD11: =E11*'B Factor'!$F$6 -> 0 | AE11: =F11*'B Factor'!$F$6 -> 0 | AF11: =G11*'B Factor'!$F$6 -> 0 | AG11: =H11*'B Factor'!$F$6 -> 0 | AH11: =I11*'B Factor'!$F$6 -> 0 | AI11: =J11*'B Factor'!$F$6 -> 0 | AJ11: =K11*'B Factor'!$F$6 -> 0 | AK11: =L11*'B Factor'!$F$6 -> 0 | AL11: =M11*'B Factor'!$F$6 -> 0 | AM11: =N11*'B Factor'!$F$6 -> 0 | AN11: =O11*'B Factor'!$F$6 -> 0 | AO11: =P11*'B Factor'!$F$6 -> 0 | AP11: =Q11*'B Factor'!$F$6 -> 0 | AQ11: =R11*'B Factor'!$F$6 -> 0 | AR11: =S11*'B Factor'!$F$6 -> 6.701942096e-06 | AS11: =T11*'B Factor'!$F$6 -> 0.001155505817 | AT11: =U11*'B Factor'!$F$6 -> 0.001472767445 | AU11: =V11*'B Factor'!$F$6 -> 0.0005418126704 | AV11: =W11*'B Factor'!$F$6 -> 5.215884516e-05 | AW11: =X11*'B Factor'!$F$6 -> 0 | AX11: =Y11*'B Factor'!$F$6 -> 0 | AY11: =Z11*'B Factor'!$F$6 -> 0
A12: A | B12: 2006-01-11 | C12: 0 | D12: 0 | E12: 0 | F12: 0 | G12: 0 | H12: 0 | I12: 0 | J12: 0 | K12: 0 | L12: 0 | M12: 0 | N12: 0 | O12: 0 | P12: 0 | Q12: 0 | R12: 0 | S12: 0 | T12: 4157.1 | U12: 4998.18 | V12: 1054.7 | W12: 90.81 | X12: 0 | Y12: 0 | Z12: 0 | AB12: =C12*'B Factor'!$F$6 -> 0 | AC12: =D12*'B Factor'!$F$6 -> 0 | AD12: =E12*'B Factor'!$F$6 -> 0 | AE12: =F12*'B Factor'!$F$6 -> 0 | AF12: =G12*'B Factor'!$F$6 -> 0 | AG12: =H12*'B Factor'!$F$6 -> 0 | AH12: =I12*'B Factor'!$F$6 -> 0 | AI12: =J12*'B Factor'!$F$6 -> 0 | AJ12: =K12*'B Factor'!$F$6 -> 0 | AK12: =L12*'B Factor'!$F$6 -> 0 | AL12: =M12*'B Factor'!$F$6 -> 0 | AM12: =N12*'B Factor'!$F$6 -> 0 | AN12: =O12*'B Factor'!$F$6 -> 0 | AO12: =P12*'B Factor'!$F$6 -> 0 | AP12: =Q12*'B Factor'!$F$6 -> 0 | AQ12: =R12*'B Factor'!$F$6 -> 0 | AR12: =S12*'B Factor'!$F$6 -> 0 | AS12: =T12*'B Factor'!$F$6 -> 0.0004825189381 | AT12: =U12*'B Factor'!$F$6 -> 0.0005801439721 | AU12: =V12*'B Factor'!$F$6 -> 0.0001224201304 | AV12: =W12*'B Factor'!$F$6 -> 1.054041153e-05 | AW12: =X12*'B Factor'!$F$6 -> 0 | AX12: =Y12*'B Factor'!$F$6 -> 0 | AY12: =Z12*'B Factor'!$F$6 -> 0
A13: A | B13: 2006-01-12 | C13: 0 | D13: 0 | E13: 0 | F13: 0 | G13: 0 | H13: 0 | I13: 0 | J13: 0 | K13: 0 | L13: 0 | M13: 0 | N13: 0 | O13: 0 | P13: 0 | Q13: 0 | R13: 0 | S13: 0 | T13: 318.98 | U13: 712.61 | V13: 81.81 | W13: 0 | X13: 0 | Y13: 0 | Z13: 0 | AB13: =C13*'B Factor'!$F$6 -> 0 | AC13: =D13*'B Factor'!$F$6 -> 0 | AD13: =E13*'B Factor'!$F$6 -> 0 | AE13: =F13*'B Factor'!$F$6 -> 0 | AF13: =G13*'B Factor'!$F$6 -> 0 | AG13: =H13*'B Factor'!$F$6 -> 0 | AH13: =I13*'B Factor'!$F$6 -> 0 | AI13: =J13*'B Factor'!$F$6 -> 0 | AJ13: =K13*'B Factor'!$F$6 -> 0 | AK13: =L13*'B Factor'!$F$6 -> 0 | AL13: =M13*'B Factor'!$F$6 -> 0 | AM13: =N13*'B Factor'!$F$6 -> 0 | AN13: =O13*'B Factor'!$F$6 -> 0 | AO13: =P13*'B Factor'!$F$6 -> 0 | AP13: =Q13*'B Factor'!$F$6 -> 0 | AQ13: =R13*'B Factor'!$F$6 -> 0 | AR13: =S13*'B Factor'!$F$6 -> 0 | AS13: =T13*'B Factor'!$F$6 -> 3.70243417e-05 | AT13: =U13*'B Factor'!$F$6 -> 8.271338686e-05 | AU13: =V13*'B Factor'!$F$6 -> 9.495772132e-06 | AV13: =W13*'B Factor'!$F$6 -> 0 | AW13: =X13*'B Factor'!$F$6 -> 0 | AX13: =Y13*'B Factor'!$F$6 -> 0 | AY13: =Z13*'B Factor'!$F$6 -> 0
A14: A | B14: 2006-01-13 | C14: 0 | D14: 0 | E14: 0 | F14: 0 | G14: 0 | H14: 0 | I14: 0 | J14: 0 | K14: 0 | L14: 0 | M14: 0 | N14: 0 | O14: 0 | P14: 0 | Q14: 0 | R14: 0 | S14: 0 | T14: 280.25 | U14: 1662.86 | V14: 124.12 | W14: 0 | X14: 0 | Y14: 0 | Z14: 0 | AB14: =C14*'B Factor'!$F$6 -> 0 | AC14: =D14*'B Factor'!$F$6 -> 0 | AD14: =E14*'B Factor'!$F$6 -> 0 | AE14: =F14*'B Factor'!$F$6 -> 0 | AF14: =G14*'B Factor'!$F$6 -> 0 | AG14: =H14*'B Factor'!$F$6 -> 0 | AH14: =I14*'B Factor'!$F$6 -> 0 | AI14: =J14*'B Factor'!$F$6 -> 0 | AJ14: =K14*'B Factor'!$F$6 -> 0 | AK14: =L14*'B Factor'!$F$6 -> 0 | AL14: =M14*'B Factor'!$F$6 -> 0 | AM14: =N14*'B Factor'!$F$6 -> 0 | AN14: =O14*'B Factor'!$F$6 -> 0 | AO14: =P14*'B Factor'!$F$6 -> 0 | AP14: =Q14*'B Factor'!$F$6 -> 0 | AQ14: =R14*'B Factor'!$F$6 -> 0 | AR14: =S14*'B Factor'!$F$6 -> 0 | AS14: =T14*'B Factor'!$F$6 -> 3.252891016e-05 | AT14: =U14*'B Factor'!$F$6 -> 0.0001930098967 | AU14: =V14*'B Factor'!$F$6 -> 1.440673802e-05 | AV14: =W14*'B Factor'!$F$6 -> 0 | AW14: =X14*'B Factor'!$F$6 -> 0 | AX14: =Y14*'B Factor'!$F$6 -> 0 | AY14: =Z14*'B Factor'!$F$6 -> 0
A15: A | B15: 2006-01-14 | C15: 0 | D15: 0 | E15: 0 | F15: 0 | G15: 0 | H15: 0 | I15: 0 | J15: 0 | K15: 0 | L15: 0 | M15: 0 | N15: 0 | O15: 0 | P15: 0 | Q15: 0 | R15: 0 | S15: 13.14 | T15: 8805.72 | U15: 14643.9 | V15: 6516.89 | W15: 880.82 | X15: 0 | Y15: 0 | Z15: 0 | AB15: =C15*'B Factor'!$F$6 -> 0 | AC15: =D15*'B Factor'!$F$6 -> 0 | AD15: =E15*'B Factor'!$F$6 -> 0 | AE15: =F15*'B Factor'!$F$6 -> 0 | AF15: =G15*'B Factor'!$F$6 -> 0 | AG15: =H15*'B Factor'!$F$6 -> 0 | AH15: =I15*'B Factor'!$F$6 -> 0 | AI15: =J15*'B Factor'!$F$6 -> 0 | AJ15: =K15*'B Factor'!$F$6 -> 0 | AK15: =L15*'B Factor'!$F$6 -> 0 | AL15: =M15*'B Factor'!$F$6 -> 0 | AM15: =N15*'B Factor'!$F$6 -> 0 | AN15: =O15*'B Factor'!$F$6 -> 0 | AO15: =P15*'B Factor'!$F$6 -> 0 | AP15: =Q15*'B Factor'!$F$6 -> 0 | AQ15: =R15*'B Factor'!$F$6 -> 0 | AR15: =S15*'B Factor'!$F$6 -> 1.525173522e-06 | AS15: =T15*'B Factor'!$F$6 -> 0.001022089116 | AT15: =U15*'B Factor'!$F$6 -> 0.001699732765 | AU15: =V15*'B Factor'!$F$6 -> 0.0007564222277 | AV15: =W15*'B Factor'!$F$6 -> 0.0001022376972 | AW15: =X15*'B Factor'!$F$6 -> 0 | AX15: =Y15*'B Factor'!$F$6 -> 0 | AY15: =Z15*'B Factor'!$F$6 -> 0
A16: A | B16: 2006-01-15 | C16: 0 | D16: 0 | E16: 0 | F16: 0 | G16: 0 | H16: 0 | I16: 0 | J16: 0 | K16: 0 | L16: 0 | M16: 0 | N16: 0 | O16: 0 | P16: 0 | Q16: 0 | R16: 0 | S16: 0 | T16: 5762.6 | U16: 12114.27 | V16: 4551.04 | W16: 296.66 | X16: 0 | Y16: 0 | Z16: 0 | AB16: =C16*'B Factor'!$F$6 -> 0 | AC16: =D16*'B Factor'!$F$6 -> 0 | AD16: =E16*'B Factor'!$F$6 -> 0 | AE16: =F16*'B Factor'!$F$6 -> 0 | AF16: =G16*'B Factor'!$F$6 -> 0 | AG16: =H16*'B Factor'!$F$6 -> 0 | AH16: =I16*'B Factor'!$F$6 -> 0 | AI16: =J16*'B Factor'!$F$6 -> 0 | AJ16: =K16*'B Factor'!$F$6 -> 0 | AK16: =L16*'B Factor'!$F$6 -> 0 | AL16: =M16*'B Factor'!$F$6 -> 0 | AM16: =N16*'B Factor'!$F$6 -> 0 | AN16: =O16*'B Factor'!$F$6 -> 0 | AO16: =P16*'B Factor'!$F$6 -> 0 | AP16: =Q16*'B Factor'!$F$6 -> 0 | AQ16: =R16*'B Factor'!$F$6 -> 0 | AR16: =S16*'B Factor'!$F$6 -> 0 | AS16: =T16*'B Factor'!$F$6 -> 0.0006688709997 | AT16: =U16*'B Factor'!$F$6 -> 0.00140611597 | AU16: =V16*'B Factor'!$F$6 -> 0.0005282439653 | AV16: =W16*'B Factor'!$F$6 -> 3.443363599e-05 | AW16: =X16*'B Factor'!$F$6 -> 0 | AX16: =Y16*'B Factor'!$F$6 -> 0 | AY16: =Z16*'B Factor'!$F$6 -> 0
A17: A | B17: 2006-01-16 | C17: 0 | D17: 0 | E17: 0 | F17: 0 | G17: 0 | H17: 0 | I17: 0 | J17: 0 | K17: 0 | L17: 0 | M17: 0 | N17: 0 | O17: 0 | P17: 0 | Q17: 0 | R17: 0 | S17: 0 | T17: 3749.37 | U17: 9458.42 | V17: 2819.73 | W17: 32.95 | X17: 0 | Y17: 0 | Z17: 0 | AB17: =C17*'B Factor'!$F$6 -> 0 | AC17: =D17*'B Factor'!$F$6 -> 0 | AD17: =E17*'B Factor'!$F$6 -> 0 | AE17: =F17*'B Factor'!$F$6 -> 0 | AF17: =G17*'B Factor'!$F$6 -> 0 | AG17: =H17*'B Factor'!$F$6 -> 0 | AH17: =I17*'B Factor'!$F$6 -> 0 | AI17: =J17*'B Factor'!$F$6 -> 0 | AJ17: =K17*'B Factor'!$F$6 -> 0 | AK17: =L17*'B Factor'!$F$6 -> 0 | AL17: =M17*'B Factor'!$F$6 -> 0 | AM17: =N17*'B Factor'!$F$6 -> 0 | AN17: =O17*'B Factor'!$F$6 -> 0 | AO17: =P17*'B Factor'!$F$6 -> 0 | AP17: =Q17*'B Factor'!$F$6 -> 0 | AQ17: =R17*'B Factor'!$F$6 -> 0 | AR17: =S17*'B Factor'!$F$6 -> 0 | AS17: =T17*'B Factor'!$F$6 -> 0.0004351932913 | AT17: =U17*'B Factor'!$F$6 -> 0.001097848687 | AU17: =V17*'B Factor'!$F$6 -> 0.0003272890057 | AV17: =W17*'B Factor'!$F$6 -> 3.824540909e-06 | AW17: =X17*'B Factor'!$F$6 -> 0 | AX17: =Y17*'B Factor'!$F$6 -> 0 | AY17: =Z17*'B Factor'!$F$6 -> 0
A18: A | B18: 2006-01-17 | C18: 0 | D18: 0 | E18: 0 | F18: 0 | G18: 0 | H18: 0 | I18: 0 | J18: 0 | K18: 0 | L18: 0 | M18: 0 | N18: 0 | O18: 0 | P18: 0 | Q18: 0 | R18: 0 | S18: 219.28 | T18: 11959.18 | U18: 17355.72 | V18: 7854.81 | W18: 1115.61 | X18: 0 | Y18: 0 | Z18: 0 | AB18: =C18*'B Factor'!$F$6 -> 0 | AC18: =D18*'B Factor'!$F$6 -> 0 | AD18: =E18*'B Factor'!$F$6 -> 0 | AE18: =F18*'B Factor'!$F$6 -> 0 | AF18: =G18*'B Factor'!$F$6 -> 0 | AG18: =H18*'B Factor'!$F$6 -> 0 | AH18: =I18*'B Factor'!$F$6 -> 0 | AI18: =J18*'B Factor'!$F$6 -> 0 | AJ18: =K18*'B Factor'!$F$6 -> 0 | AK18: =L18*'B Factor'!$F$6 -> 0 | AL18: =M18*'B Factor'!$F$6 -> 0 | AM18: =N18*'B Factor'!$F$6 -> 0 | AN18: =O18*'B Factor'!$F$6 -> 0 | AO18: =P18*'B Factor'!$F$6 -> 0 | AP18: =Q18*'B Factor'!$F$6 -> 0 | AQ18: =R18*'B Factor'!$F$6 -> 0 | AR18: =S18*'B Factor'!$F$6 -> 2.545205859e-05 | AS18: =T18*'B Factor'!$F$6 -> 0.001388114511 | AT18: =U18*'B Factor'!$F$6 -> 0.002014496545 | AU18: =V18*'B Factor'!$F$6 -> 0.0009117159993 | AV18: =W18*'B Factor'!$F$6 -> 0.0001294900177 | AW18: =X18*'B Factor'!$F$6 -> 0 | AX18: =Y18*'B Factor'!$F$6 -> 0 | AY18: =Z18*'B Factor'!$F$6 -> 0
A19: A | B19: 2006-01-18 | C19: 0 | D19: 0 | E19: 0 | F19: 0 | G19: 0 | H19: 0 | I19: 0 | J19: 0 | K19: 0 | L19: 0 | M19: 0 | N19: 0 | O19: 0 | P19: 0 | Q19: 0 | R19: 0 | S19: 0 | T19: 1363.76 | U19: 3132.62 | V19: 744.7 | W19: 128.65 | X19: 0 | Y19: 0 | Z19: 0 | AB19: =C19*'B Factor'!$F$6 -> 0 | AC19: =D19*'B Factor'!$F$6 -> 0 | AD19: =E19*'B Factor'!$F$6 -> 0 | AE19: =F19*'B Factor'!$F$6 -> 0 | AF19: =G19*'B Factor'!$F$6 -> 0 | AG19: =H19*'B Factor'!$F$6 -> 0 | AH19: =I19*'B Factor'!$F$6 -> 0 | AI19: =J19*'B Factor'!$F$6 -> 0 | AJ19: =K19*'B Factor'!$F$6 -> 0 | AK19: =L19*'B Factor'!$F$6 -> 0 | AL19: =M19*'B Factor'!$F$6 -> 0 | AM19: =N19*'B Factor'!$F$6 -> 0 | AN19: =O19*'B Factor'!$F$6 -> 0 | AO19: =P19*'B Factor'!$F$6 -> 0 | AP19: =Q19*'B Factor'!$F$6 -> 0 | AQ19: =R19*'B Factor'!$F$6 -> 0 | AR19: =S19*'B Factor'!$F$6 -> 0 | AS19: =T19*'B Factor'!$F$6 -> 0.0001582930473 | AT19: =U19*'B Factor'!$F$6 -> 0.0003636064747 | AU19: =V19*'B Factor'!$F$6 -> 8.643810667e-05 | AV19: =W19*'B Factor'!$F$6 -> 1.493253985e-05 | AW19: =X19*'B Factor'!$F$6 -> 0 | AX19: =Y19*'B Factor'!$F$6 -> 0 | AY19: =Z19*'B Factor'!$F$6 -> 0
A20: A | B20: 2006-01-19 | C20: 0 | D20: 0 | E20: 0 | F20: 0 | G20: 0 | H20: 0 | I20: 0 | J20: 0 | K20: 0 | L20: 0 | M20: 0 | N20: 0 | O20: 0 | P20: 0 | Q20: 0 | R20: 0 | S20: 0 | T20: 0 | U20: 287.37 | V20: 0 | W20: 0 | X20: 0 | Y20: 0 | Z20: 0 | AB20: =C20*'B Factor'!$F$6 -> 0 | AC20: =D20*'B Factor'!$F$6 -> 0 | AD20: =E20*'B Factor'!$F$6 -> 0 | AE20: =F20*'B Factor'!$F$6 -> 0 | AF20: =G20*'B Factor'!$F$6 -> 0 | AG20: =H20*'B Factor'!$F$6 -> 0 | AH20: =I20*'B Factor'!$F$6 -> 0 | AI20: =J20*'B Factor'!$F$6 -> 0 | AJ20: =K20*'B Factor'!$F$6 -> 0 | AK20: =L20*'B Factor'!$F$6 -> 0 | AL20: =M20*'B Factor'!$F$6 -> 0 | AM20: =N20*'B Factor'!$F$6 -> 0 | AN20: =O20*'B Factor'!$F$6 -> 0 | AO20: =P20*'B Factor'!$F$6 -> 0 | AP20: =Q20*'B Factor'!$F$6 -> 0 | AQ20: =R20*'B Factor'!$F$6 -> 0 | AR20: =S20*'B Factor'!$F$6 -> 0 | AS20: =T20*'B Factor'!$F$6 -> 0 | AT20: =U20*'B Factor'!$F$6 -> 3.335533599e-05 | AU20: =V20*'B Factor'!$F$6 -> 0 | AV20: =W20*'B Factor'!$F$6 -> 0 | AW20: =X20*'B Factor'!$F$6 -> 0 | AX20: =Y20*'B Factor'!$F$6 -> 0 | AY20: =Z20*'B Factor'!$F$6 -> 0
A21: A | B21: 2006-01-20 | C21: 0 | D21: 0 | E21: 0 | F21: 0 | G21: 0 | H21: 0 | I21: 0 | J21: 0 | K21: 0 | L21: 0 | M21: 0 | N21: 0 | O21: 0 | P21: 0 | Q21: 0 | R21: 0 | S21: 0 | T21: 174.61 | U21: 1171.85 | V21: 314.73 | W21: 0 | X21: 0 | Y21: 0 | Z21: 0 | AB21: =C21*'B Factor'!$F$6 -> 0 | AC21: =D21*'B Factor'!$F$6 -> 0 | AD21: =E21*'B Factor'!$F$6 -> 0 | AE21: =F21*'B Factor'!$F$6 -> 0 | AF21: =G21*'B Factor'!$F$6 -> 0 | AG21: =H21*'B Factor'!$F$6 -> 0 | AH21: =I21*'B Factor'!$F$6 -> 0 | AI21: =J21*'B Factor'!$F$6 -> 0 | AJ21: =K21*'B Factor'!$F$6 -> 0 | AK21: =L21*'B Factor'!$F$6 -> 0 | AL21: =M21*'B Factor'!$F$6 -> 0 | AM21: =N21*'B Factor'!$F$6 -> 0 | AN21: =O21*'B Factor'!$F$6 -> 0 | AO21: =P21*'B Factor'!$F$6 -> 0 | AP21: =Q21*'B Factor'!$F$6 -> 0 | AQ21: =R21*'B Factor'!$F$6 -> 0 | AR21: =S21*'B Factor'!$F$6 -> 0 | AS21: =T21*'B Factor'!$F$6 -> 2.026716504e-05 | AT21: =U21*'B Factor'!$F$6 -> 0.0001360178532 | AU21: =V21*'B Factor'!$F$6 -> 3.653103976e-05 | AV21: =W21*'B Factor'!$F$6 -> 0 | AW21: =X21*'B Factor'!$F$6 -> 0 | AX21: =Y21*'B Factor'!$F$6 -> 0 | AY21: =Z21*'B Factor'!$F$6 -> 0
A22: A | B22: 2006-01-21 | C22: 0 | D22: 0 | E22: 0 | F22: 0 | G22: 0 | H22: 0 | I22: 0 | J22: 0 | K22: 0 | L22: 0 | M22: 0 | N22: 0 | O22: 0 | P22: 0 | Q22: 0 | R22: 0 | S22: 0 | T22: 7591.69 | U22: 17695.69 | V22: 8667.28 | W22: 1461.07 | X22: 0 | Y22: 0 | Z22: 0 | AB22: =C22*'B Factor'!$F$6 -> 0 | AC22: =D22*'B Factor'!$F$6 -> 0 | AD22: =E22*'B Factor'!$F$6 -> 0 | AE22: =F22*'B Factor'!$F$6 -> 0 | AF22: =G22*'B Factor'!$F$6 -> 0 | AG22: =H22*'B Factor'!$F$6 -> 0 | AH22: =I22*'B Factor'!$F$6 -> 0 | AI22: =J22*'B Factor'!$F$6 -> 0 | AJ22: =K22*'B Factor'!$F$6 -> 0 | AK22: =L22*'B Factor'!$F$6 -> 0 | AL22: =M22*'B Factor'!$F$6 -> 0 | AM22: =N22*'B Factor'!$F$6 -> 0 | AN22: =O22*'B Factor'!$F$6 -> 0 | AO22: =P22*'B Factor'!$F$6 -> 0 | AP22: =Q22*'B Factor'!$F$6 -> 0 | AQ22: =R22*'B Factor'!$F$6 -> 0 | AR22: =S22*'B Factor'!$F$6 -> 0 | AS22: =T22*'B Factor'!$F$6 -> 0.0008811753861 | AT22: =U22*'B Factor'!$F$6 -> 0.002053957217 | AU22: =V22*'B Factor'!$F$6 -> 0.001006020241 | AV22: =W22*'B Factor'!$F$6 -> 0.0001695879207 | AW22: =X22*'B Factor'!$F$6 -> 0 | AX22: =Y22*'B Factor'!$F$6 -> 0 | AY22: =Z22*'B Factor'!$F$6 -> 0
A23: A | B23: 2006-01-22 | C23: 0 | D23: 0 | E23: 0 | F23: 0 | G23: 0 | H23: 0 | I23: 0 | J23: 0 | K23: 0 | L23: 0 | M23: 0 | N23: 0 | O23: 0 | P23: 0 | Q23: 0 | R23: 0 | S23: 0 | T23: 7473.05 | U23: 17951.49 | V23: 9432.41 | W23: 1725.47 | X23: 0 | Y23: 0 | Z23: 0 | AB23: =C23*'B Factor'!$F$6 -> 0 | AC23: =D23*'B Factor'!$F$6 -> 0 | AD23: =E23*'B Factor'!$F$6 -> 0 | AE23: =F23*'B Factor'!$F$6 -> 0 | AF23: =G23*'B Factor'!$F$6 -> 0 | AG23: =H23*'B Factor'!$F$6 -> 0 | AH23: =I23*'B Factor'!$F$6 -> 0 | AI23: =J23*'B Factor'!$F$6 -> 0 | AJ23: =K23*'B Factor'!$F$6 -> 0 | AK23: =L23*'B Factor'!$F$6 -> 0 | AL23: =M23*'B Factor'!$F$6 -> 0 | AM23: =N23*'B Factor'!$F$6 -> 0 | AN23: =O23*'B Factor'!$F$6 -> 0 | AO23: =P23*'B Factor'!$F$6 -> 0 | AP23: =Q23*'B Factor'!$F$6 -> 0 | AQ23: =R23*'B Factor'!$F$6 -> 0 | AR23: =S23*'B Factor'!$F$6 -> 0 | AS23: =T23*'B Factor'!$F$6 -> 0.0008674047174 | AT23: =U23*'B Factor'!$F$6 -> 0.002083648191 | AU23: =V23*'B Factor'!$F$6 -> 0.001094829679 | AV23: =W23*'B Factor'!$F$6 -> 0.0002002771048 | AW23: =X23*'B Factor'!$F$6 -> 0 | AX23: =Y23*'B Factor'!$F$6 -> 0 | AY23: =Z23*'B Factor'!$F$6 -> 0
A24: A | B24: 2006-01-23 | C24: 0 | D24: 0 | E24: 0 | F24: 0 | G24: 0 | H24: 0 | I24: 0 | J24: 0 | K24: 0 | L24: 0 | M24: 0 | N24: 0 | O24: 0 | P24: 0 | Q24: 0 | R24: 0 | S24: 17.25 | T24: 5648.73 | U24: 17882.99 | V24: 8656.13 | W24: 1454.04 | X24: 0 | Y24: 0 | Z24: 0 | AB24: =C24*'B Factor'!$F$6 -> 0 | AC24: =D24*'B Factor'!$F$6 -> 0 | AD24: =E24*'B Factor'!$F$6 -> 0 | AE24: =F24*'B Factor'!$F$6 -> 0 | AF24: =G24*'B Factor'!$F$6 -> 0 | AG24: =H24*'B Factor'!$F$6 -> 0 | AH24: =I24*'B Factor'!$F$6 -> 0 | AI24: =J24*'B Factor'!$F$6 -> 0 | AJ24: =K24*'B Factor'!$F$6 -> 0 | AK24: =L24*'B Factor'!$F$6 -> 0 | AL24: =M24*'B Factor'!$F$6 -> 0 | AM24: =N24*'B Factor'!$F$6 -> 0 | AN24: =O24*'B Factor'!$F$6 -> 0 | AO24: =P24*'B Factor'!$F$6 -> 0 | AP24: =Q24*'B Factor'!$F$6 -> 0 | AQ24: =R24*'B Factor'!$F$6 -> 0 | AR24: =S24*'B Factor'!$F$6 -> 2.002225514e-06 | AS24: =T24*'B Factor'!$F$6 -> 0.0006556539899 | AT24: =U24*'B Factor'!$F$6 -> 0.002075697324 | AU24: =V24*'B Factor'!$F$6 -> 0.001004726048 | AV24: =W24*'B Factor'!$F$6 -> 0.0001687719412 | AW24: =X24*'B Factor'!$F$6 -> 0 | AX24: =Y24*'B Factor'!$F$6 -> 0 | AY24: =Z24*'B Factor'!$F$6 -> 0
A25: A | B25: 2006-01-24 | C25: 0 | D25: 0 | E25: 0 | F25: 0 | G25: 0 | H25: 0 | I25: 0 | J25: 0 | K25: 0 | L25: 0 | M25: 0 | N25: 0 | O25: 0 | P25: 0 | Q25: 0 | R25: 0 | S25: 0 | T25: 5253.98 | U25: 17924.13 | V25: 9259.54 | W25: 1406.44 | X25: 0 | Y25: 0 | Z25: 0 | AB25: =C25*'B Factor'!$F$6 -> 0 | AC25: =D25*'B Factor'!$F$6 -> 0 | AD25: =E25*'B Factor'!$F$6 -> 0 | AE25: =F25*'B Factor'!$F$6 -> 0 | AF25: =G25*'B Factor'!$F$6 -> 0 | AG25: =H25*'B Factor'!$F$6 -> 0 | AH25: =I25*'B Factor'!$F$6 -> 0 | AI25: =J25*'B Factor'!$F$6 -> 0 | AJ25: =K25*'B Factor'!$F$6 -> 0 | AK25: =L25*'B Factor'!$F$6 -> 0 | AL25: =M25*'B Factor'!$F$6 -> 0 | AM25: =N25*'B Factor'!$F$6 -> 0 | AN25: =O25*'B Factor'!$F$6 -> 0 | AO25: =P25*'B Factor'!$F$6 -> 0 | AP25: =Q25*'B Factor'!$F$6 -> 0 | AQ25: =R25*'B Factor'!$F$6 -> 0 | AR25: =S25*'B Factor'!$F$6 -> 0 | AS25: =T25*'B Factor'!$F$6 -> 0.0006098349452 | AT25: =U25*'B Factor'!$F$6 -> 0.002080472487 | AU25: =V25*'B Factor'!$F$6 -> 0.001074764477 | AV25: =W25*'B Factor'!$F$6 -> 0.0001632469595 | AW25: =X25*'B Factor'!$F$6 -> 0 | AX25: =Y25*'B Factor'!$F$6 -> 0 | AY25: =Z25*'B Factor'!$F$6 -> 0
A26: A | B26: 2006-01-25 | C26: 0 | D26: 0 | E26: 0 | F26: 0 | G26: 0 | H26: 0 | I26: 0 | J26: 0 | K26: 0 | L26: 0 | M26: 0 | N26: 0 | O26: 0 | P26: 0 | Q26: 0 | R26: 0 | S26: 0 | T26: 2380.26 | U26: 11103.53 | V26: 4011.95 | W26: 382.12 | X26: 0 | Y26: 0 | Z26: 0 | AB26: =C26*'B Factor'!$F$6 -> 0 | AC26: =D26*'B Factor'!$F$6 -> 0 | AD26: =E26*'B Factor'!$F$6 -> 0 | AE26: =F26*'B Factor'!$F$6 -> 0 | AF26: =G26*'B Factor'!$F$6 -> 0 | AG26: =H26*'B Factor'!$F$6 -> 0 | AH26: =I26*'B Factor'!$F$6 -> 0 | AI26: =J26*'B Factor'!$F$6 -> 0 | AJ26: =K26*'B Factor'!$F$6 -> 0 | AK26: =L26*'B Factor'!$F$6 -> 0 | AL26: =M26*'B Factor'!$F$6 -> 0 | AM26: =N26*'B Factor'!$F$6 -> 0 | AN26: =O26*'B Factor'!$F$6 -> 0 | AO26: =P26*'B Factor'!$F$6 -> 0 | AP26: =Q26*'B Factor'!$F$6 -> 0 | AQ26: =R26*'B Factor'!$F$6 -> 0 | AR26: =S26*'B Factor'!$F$6 -> 0 | AS26: =T26*'B Factor'!$F$6 -> 0.0002762792638 | AT26: =U26*'B Factor'!$F$6 -> 0.001288798322 | AU26: =V26*'B Factor'!$F$6 -> 0.0004656712261 | AV26: =W26*'B Factor'!$F$6 -> 4.435306744e-05 | AW26: =X26*'B Factor'!$F$6 -> 0 | AX26: =Y26*'B Factor'!$F$6 -> 0 | AY26: =Z26*'B Factor'!$F$6 -> 0
A27: A | B27: 2006-01-26 | C27: 0 | D27: 0 | E27: 0 | F27: 0 | G27: 0 | H27: 0 | I27: 0 | J27: 0 | K27: 0 | L27: 0 | M27: 0 | N27: 0 | O27: 0 | P27: 0 | Q27: 0 | R27: 0 | S27: 0 | T27: 232.57 | U27: 2857.05 | V27: 701.44 | W27: 12.31 | X27: 0 | Y27: 0 | Z27: 0 | AB27: =C27*'B Factor'!$F$6 -> 0 | AC27: =D27*'B Factor'!$F$6 -> 0 | AD27: =E27*'B Factor'!$F$6 -> 0 | AE27: =F27*'B Factor'!$F$6 -> 0 | AF27: =G27*'B Factor'!$F$6 -> 0 | AG27: =H27*'B Factor'!$F$6 -> 0 | AH27: =I27*'B Factor'!$F$6 -> 0 | AI27: =J27*'B Factor'!$F$6 -> 0 | AJ27: =K27*'B Factor'!$F$6 -> 0 | AK27: =L27*'B Factor'!$F$6 -> 0 | AL27: =M27*'B Factor'!$F$6 -> 0 | AM27: =N27*'B Factor'!$F$6 -> 0 | AN27: =O27*'B Factor'!$F$6 -> 0 | AO27: =P27*'B Factor'!$F$6 -> 0 | AP27: =Q27*'B Factor'!$F$6 -> 0 | AQ27: =R27*'B Factor'!$F$6 -> 0 | AR27: =S27*'B Factor'!$F$6 -> 0 | AS27: =T27*'B Factor'!$F$6 -> 2.699464277e-05 | AT27: =U27*'B Factor'!$F$6 -> 0.000331620777 | AU27: =V27*'B Factor'!$F$6 -> 8.141687329e-05 | AV27: =W27*'B Factor'!$F$6 -> 1.428834555e-06 | AW27: =X27*'B Factor'!$F$6 -> 0 | AX27: =Y27*'B Factor'!$F$6 -> 0 | AY27: =Z27*'B Factor'!$F$6 -> 0
A28: A | B28: 2006-01-27 | C28: 0 | D28: 0 | E28: 0 | F28: 0 | G28: 0 | H28: 0 | I28: 0 | J28: 0 | K28: 0 | L28: 0 | M28: 0 | N28: 0 | O28: 0 | P28: 0 | Q28: 0 | R28: 0 | S28: 0 | T28: 172.84 | U28: 2322.35 | V28: 465.22 | W28: 27.95 | X28: 0 | Y28: 0 | Z28: 0 | AB28: =C28*'B Factor'!$F$6 -> 0 | AC28: =D28*'B Factor'!$F$6 -> 0 | AD28: =E28*'B Factor'!$F$6 -> 0 | AE28: =F28*'B Factor'!$F$6 -> 0 | AF28: =G28*'B Factor'!$F$6 -> 0 | AG28: =H28*'B Factor'!$F$6 -> 0 | AH28: =I28*'B Factor'!$F$6 -> 0 | AI28: =J28*'B Factor'!$F$6 -> 0 | AJ28: =K28*'B Factor'!$F$6 -> 0 | AK28: =L28*'B Factor'!$F$6 -> 0 | AL28: =M28*'B Factor'!$F$6 -> 0 | AM28: =N28*'B Factor'!$F$6 -> 0 | AN28: =O28*'B Factor'!$F$6 -> 0 | AO28: =P28*'B Factor'!$F$6 -> 0 | AP28: =Q28*'B Factor'!$F$6 -> 0 | AQ28: =R28*'B Factor'!$F$6 -> 0 | AR28: =S28*'B Factor'!$F$6 -> 0 | AS28: =T28*'B Factor'!$F$6 -> 2.006171929e-05 | AT28: =U28*'B Factor'!$F$6 -> 0.0002695575897 | AU28: =V28*'B Factor'!$F$6 -> 5.399857122e-05 | AV28: =W28*'B Factor'!$F$6 -> 3.244185687e-06 | AW28: =X28*'B Factor'!$F$6 -> 0 | AX28: =Y28*'B Factor'!$F$6 -> 0 | AY28: =Z28*'B Factor'!$F$6 -> 0
A29: A | B29: 2006-01-28 | C29: 0 | D29: 0 | E29: 0 | F29: 0 | G29: 0 | H29: 0 | I29: 0 | J29: 0 | K29: 0 | L29: 0 | M29: 0 | N29: 0 | O29: 0 | P29: 0 | Q29: 0 | R29: 0 | S29: 0 | T29: 2044.33 | U29: 13208.31 | V29: 4519.14 | W29: 257.87 | X29: 0 | Y29: 0 | Z29: 0 | AB29: =C29*'B Factor'!$F$6 -> 0 | AC29: =D29*'B Factor'!$F$6 -> 0 | AD29: =E29*'B Factor'!$F$6 -> 0 | AE29: =F29*'B Factor'!$F$6 -> 0 | AF29: =G29*'B Factor'!$F$6 -> 0 | AG29: =H29*'B Factor'!$F$6 -> 0 | AH29: =I29*'B Factor'!$F$6 -> 0 | AI29: =J29*'B Factor'!$F$6 -> 0 | AJ29: =K29*'B Factor'!$F$6 -> 0 | AK29: =L29*'B Factor'!$F$6 -> 0 | AL29: =M29*'B Factor'!$F$6 -> 0 | AM29: =N29*'B Factor'!$F$6 -> 0 | AN29: =O29*'B Factor'!$F$6 -> 0 | AO29: =P29*'B Factor'!$F$6 -> 0 | AP29: =Q29*'B Factor'!$F$6 -> 0 | AQ29: =R29*'B Factor'!$F$6 -> 0 | AR29: =S29*'B Factor'!$F$6 -> 0 | AS29: =T29*'B Factor'!$F$6 -> 0.0002372875179 | AT29: =U29*'B Factor'!$F$6 -> 0.001533102335 | AU29: =V29*'B Factor'!$F$6 -> 0.000524541299 | AV29: =W29*'B Factor'!$F$6 -> 2.993124019e-05 | AW29: =X29*'B Factor'!$F$6 -> 0 | AX29: =Y29*'B Factor'!$F$6 -> 0 | AY29: =Z29*'B Factor'!$F$6 -> 0
A30: A | B30: 2006-01-29 | C30: 0 | D30: 0 | E30: 0 | F30: 0 | G30: 0 | H30: 0 | I30: 0 | J30: 0 | K30: 0 | L30: 0 | M30: 0 | N30: 0 | O30: 0 | P30: 0 | Q30: 0 | R30: 0 | S30: 0 | T30: 2654.36 | U30: 13023.67 | V30: 5421.35 | W30: 636.83 | X30: 0 | Y30: 0 | Z30: 0 | AB30: =C30*'B Factor'!$F$6 -> 0 | AC30: =D30*'B Factor'!$F$6 -> 0 | AD30: =E30*'B Factor'!$F$6 -> 0 | AE30: =F30*'B Factor'!$F$6 -> 0 | AF30: =G30*'B Factor'!$F$6 -> 0 | AG30: =H30*'B Factor'!$F$6 -> 0 | AH30: =I30*'B Factor'!$F$6 -> 0 | AI30: =J30*'B Factor'!$F$6 -> 0 | AJ30: =K30*'B Factor'!$F$6 -> 0 | AK30: =L30*'B Factor'!$F$6 -> 0 | AL30: =M30*'B Factor'!$F$6 -> 0 | AM30: =N30*'B Factor'!$F$6 -> 0 | AN30: =O30*'B Factor'!$F$6 -> 0 | AO30: =P30*'B Factor'!$F$6 -> 0 | AP30: =Q30*'B Factor'!$F$6 -> 0 | AQ30: =R30*'B Factor'!$F$6 -> 0 | AR30: =S30*'B Factor'!$F$6 -> 0 | AS30: =T30*'B Factor'!$F$6 -> 0.0003080943371 | AT30: =U30*'B Factor'!$F$6 -> 0.001511670977 | AU30: =V30*'B Factor'!$F$6 -> 0.0006292617559 | AV30: =W30*'B Factor'!$F$6 -> 7.391752312e-05 | AW30: =X30*'B Factor'!$F$6 -> 0 | AX30: =Y30*'B Factor'!$F$6 -> 0 | AY30: =Z30*'B Factor'!$F$6 -> 0
A31: A | B31: 2006-01-30 | C31: 0 | D31: 0 | E31: 0 | F31: 0 | G31: 0 | H31: 0 | I31: 0 | J31: 0 | K31: 0 | L31: 0 | M31: 0 | N31: 0 | O31: 0 | P31: 0 | Q31: 0 | R31: 0 | S31: 0 | T31: 1828.26 | U31: 12071.93 | V31: 5261.57 | W31: 710.7 | X31: 0 | Y31: 0 | Z31: 0 | AB31: =C31*'B Factor'!$F$6 -> 0 | AC31: =D31*'B Factor'!$F$6 -> 0 | AD31: =E31*'B Factor'!$F$6 -> 0 | AE31: =F31*'B Factor'!$F$6 -> 0 | AF31: =G31*'B Factor'!$F$6 -> 0 | AG31: =H31*'B Factor'!$F$6 -> 0 | AH31: =I31*'B Factor'!$F$6 -> 0 | AI31: =J31*'B Factor'!$F$6 -> 0 | AJ31: =K31*'B Factor'!$F$6 -> 0 | AK31: =L31*'B Factor'!$F$6 -> 0 | AL31: =M31*'B Factor'!$F$6 -> 0 | AM31: =N31*'B Factor'!$F$6 -> 0 | AN31: =O31*'B Factor'!$F$6 -> 0 | AO31: =P31*'B Factor'!$F$6 -> 0 | AP31: =Q31*'B Factor'!$F$6 -> 0 | AQ31: =R31*'B Factor'!$F$6 -> 0 | AR31: =S31*'B Factor'!$F$6 -> 0 | AS31: =T31*'B Factor'!$F$6 -> 0.0002122080474 | AT31: =U31*'B Factor'!$F$6 -> 0.001401201521 | AU31: =V31*'B Factor'!$F$6 -> 0.0006107159244 | AV31: =W31*'B Factor'!$F$6 -> 8.249169116e-05 | AW31: =X31*'B Factor'!$F$6 -> 0 | AX31: =Y31*'B Factor'!$F$6 -> 0 | AY31: =Z31*'B Factor'!$F$6 -> 0
A32: A | B32: 2006-01-31 | C32: 0 | D32: 0 | E32: 0 | F32: 0 | G32: 0 | H32: 0 | I32: 0 | J32: 0 | K32: 0 | L32: 0 | M32: 0 | N32: 0 | O32: 0 | P32: 0 | Q32: 0 | R32: 0 | S32: 0 | T32: 711.6 | U32: 7996.19 | V32: 2986.42 | W32: 117.01 | X32: 0 | Y32: 0 | Z32: 0 | AB32: =C32*'B Factor'!$F$6 -> 0 | AC32: =D32*'B Factor'!$F$6 -> 0 | AD32: =E32*'B Factor'!$F$6 -> 0 | AE32: =F32*'B Factor'!$F$6 -> 0 | AF32: =G32*'B Factor'!$F$6 -> 0 | AG32: =H32*'B Factor'!$F$6 -> 0 | AH32: =I32*'B Factor'!$F$6 -> 0 | AI32: =J32*'B Factor'!$F$6 -> 0 | AJ32: =K32*'B Factor'!$F$6 -> 0 | AK32: =L32*'B Factor'!$F$6 -> 0 | AL32: =M32*'B Factor'!$F$6 -> 0 | AM32: =N32*'B Factor'!$F$6 -> 0 | AN32: =O32*'B Factor'!$F$6 -> 0 | AO32: =P32*'B Factor'!$F$6 -> 0 | AP32: =Q32*'B Factor'!$F$6 -> 0 | AQ32: =R32*'B Factor'!$F$6 -> 0 | AR32: =S32*'B Factor'!$F$6 -> 0 | AS32: =T32*'B Factor'!$F$6 -> 8.25961551e-05 | AT32: =U32*'B Factor'!$F$6 -> 0.0009281261235 | AU32: =V32*'B Factor'!$F$6 -> 0.000346636888 | AV32: =W32*'B Factor'!$F$6 -> 1.358147289e-05 | AW32: =X32*'B Factor'!$F$6 -> 0 | AX32: =Y32*'B Factor'!$F$6 -> 0 | AY32: =Z32*'B Factor'!$F$6 -> 0
A33: A | B33: 2006-02-01 | C33: 0 | D33: 0 | E33: 0 | F33: 0 | G33: 0 | H33: 0 | I33: 0 | J33: 0 | K33: 0 | L33: 0 | M33: 0 | N33: 0 | O33: 0 | P33: 0 | Q33: 0 | R33: 0 | S33: 0 | T33: 116.4 | U33: 2067.83 | V33: 285.39 | W33: 0 | X33: 0 | Y33: 0 | Z33: 0 | AB33: =C33*'B Factor'!$F$6 -> 0 | AC33: =D33*'B Factor'!$F$6 -> 0 | AD33: =E33*'B Factor'!$F$6 -> 0 | AE33: =F33*'B Factor'!$F$6 -> 0 | AF33: =G33*'B Factor'!$F$6 -> 0 | AG33: =H33*'B Factor'!$F$6 -> 0 | AH33: =I33*'B Factor'!$F$6 -> 0 | AI33: =J33*'B Factor'!$F$6 -> 0 | AJ33: =K33*'B Factor'!$F$6 -> 0 | AK33: =L33*'B Factor'!$F$6 -> 0 | AL33: =M33*'B Factor'!$F$6 -> 0 | AM33: =N33*'B Factor'!$F$6 -> 0 | AN33: =O33*'B Factor'!$F$6 -> 0 | AO33: =P33*'B Factor'!$F$6 -> 0 | AP33: =Q33*'B Factor'!$F$6 -> 0 | AQ33: =R33*'B Factor'!$F$6 -> 0 | AR33: =S33*'B Factor'!$F$6 -> 0 | AS33: =T33*'B Factor'!$F$6 -> 1.351066955e-05 | AT33: =U33*'B Factor'!$F$6 -> 0.0002400151875 | AU33: =V33*'B Factor'!$F$6 -> 3.312551532e-05 | AV33: =W33*'B Factor'!$F$6 -> 0 | AW33: =X33*'B Factor'!$F$6 -> 0 | AX33: =Y33*'B Factor'!$F$6 -> 0 | AY33: =Z33*'B Factor'!$F$6 -> 0
A34: A | B34: 2006-02-02 | C34: 0 | D34: 0 | E34: 0 | F34: 0 | G34: 0 | H34: 0 | I34: 0 | J34: 0 | K34: 0 | L34: 0 | M34: 0 | N34: 0 | O34: 0 | P34: 0 | Q34: 0 | R34: 0 | S34: 0 | T34: 45.03 | U34: 886.54 | V34: 102.95 | W34: 0 | X34: 0 | Y34: 0 | Z34: 0 | AB34: =C34*'B Factor'!$F$6 -> 0 | AC34: =D34*'B Factor'!$F$6 -> 0 | AD34: =E34*'B Factor'!$F$6 -> 0 | AE34: =F34*'B Factor'!$F$6 -> 0 | AF34: =G34*'B Factor'!$F$6 -> 0 | AG34: =H34*'B Factor'!$F$6 -> 0 | AH34: =I34*'B Factor'!$F$6 -> 0 | AI34: =J34*'B Factor'!$F$6 -> 0 | AJ34: =K34*'B Factor'!$F$6 -> 0 | AK34: =L34*'B Factor'!$F$6 -> 0 | AL34: =M34*'B Factor'!$F$6 -> 0 | AM34: =N34*'B Factor'!$F$6 -> 0 | AN34: =O34*'B Factor'!$F$6 -> 0 | AO34: =P34*'B Factor'!$F$6 -> 0 | AP34: =Q34*'B Factor'!$F$6 -> 0 | AQ34: =R34*'B Factor'!$F$6 -> 0 | AR34: =S34*'B Factor'!$F$6 -> 0 | AS34: =T34*'B Factor'!$F$6 -> 5.226679124e-06 | AT34: =U34*'B Factor'!$F$6 -> 0.0001029016236 | AU34: =V34*'B Factor'!$F$6 -> 1.194951401e-05 | AV34: =W34*'B Factor'!$F$6 -> 0 | AW34: =X34*'B Factor'!$F$6 -> 0 | AX34: =Y34*'B Factor'!$F$6 -> 0 | AY34: =Z34*'B Factor'!$F$6 -> 0
A35: A | B35: 2006-02-03 | C35: 0 | D35: 0 | E35: 0 | F35: 0 | G35: 0 | H35: 0 | I35: 0 | J35: 0 | K35: 0 | L35: 0 | M35: 0 | N35: 0 | O35: 0 | P35: 0 | Q35: 0 | R35: 0 | S35: 0 | T35: 0 | U35: 763.87 | V35: 67.65 | W35: 0 | X35: 0 | Y35: 0 | Z35: 0 | AB35: =C35*'B Factor'!$F$6 -> 0 | AC35: =D35*'B Factor'!$F$6 -> 0 | AD35: =E35*'B Factor'!$F$6 -> 0 | AE35: =F35*'B Factor'!$F$6 -> 0 | AF35: =G35*'B Factor'!$F$6 -> 0 | AG35: =H35*'B Factor'!$F$6 -> 0 | AH35: =I35*'B Factor'!$F$6 -> 0 | AI35: =J35*'B Factor'!$F$6 -> 0 | AJ35: =K35*'B Factor'!$F$6 -> 0 | AK35: =L35*'B Factor'!$F$6 -> 0 | AL35: =M35*'B Factor'!$F$6 -> 0 | AM35: =N35*'B Factor'!$F$6 -> 0 | AN35: =O35*'B Factor'!$F$6 -> 0 | AO35: =P35*'B Factor'!$F$6 -> 0 | AP35: =Q35*'B Factor'!$F$6 -> 0 | AQ35: =R35*'B Factor'!$F$6 -> 0 | AR35: =S35*'B Factor'!$F$6 -> 0 | AS35: =T35*'B Factor'!$F$6 -> 0 | AT35: =U35*'B Factor'!$F$6 -> 8.866318859e-05 | AU35: =V35*'B Factor'!$F$6 -> 7.852206145e-06 | AV35: =W35*'B Factor'!$F$6 -> 0 | AW35: =X35*'B Factor'!$F$6 -> 0 | AX35: =Y35*'B Factor'!$F$6 -> 0 | AY35: =Z35*'B Factor'!$F$6 -> 0
A36: A | B36: 2006-02-04 | C36: 0 | D36: 0 | E36: 0 | F36: 0 | G36: 0 | H36: 0 | I36: 0 | J36: 0 | K36: 0 | L36: 0 | M36: 0 | N36: 0 | O36: 0 | P36: 0 | Q36: 0 | R36: 0 | S36: 0 | T36: 596.62 | U36: 11472.71 | V36: 3752.8 | W36: 113.19 | X36: 0 | Y36: 0 | Z36: 0 | AB36: =C36*'B Factor'!$F$6 -> 0 | AC36: =D36*'B Factor'!$F$6 -> 0 | AD36: =E36*'B Factor'!$F$6 -> 0 | AE36: =F36*'B Factor'!$F$6 -> 0 | AF36: =G36*'B Factor'!$F$6 -> 0 | AG36: =H36*'B Factor'!$F$6 -> 0 | AH36: =I36*'B Factor'!$F$6 -> 0 | AI36: =J36*'B Factor'!$F$6 -> 0 | AJ36: =K36*'B Factor'!$F$6 -> 0 | AK36: =L36*'B Factor'!$F$6 -> 0 | AL36: =M36*'B Factor'!$F$6 -> 0 | AM36: =N36*'B Factor'!$F$6 -> 0 | AN36: =O36*'B Factor'!$F$6 -> 0 | AO36: =P36*'B Factor'!$F$6 -> 0 | AP36: =Q36*'B Factor'!$F$6 -> 0 | AQ36: =R36*'B Factor'!$F$6 -> 0 | AR36: =S36*'B Factor'!$F$6 -> 0 | AS36: =T36*'B Factor'!$F$6 -> 6.925030643e-05 | AT36: =U36*'B Factor'!$F$6 -> 0.00133164943 | AU36: =V36*'B Factor'!$F$6 -> 0.0004355914149 | AV36: =W36*'B Factor'!$F$6 -> 1.31380815e-05 | AW36: =X36*'B Factor'!$F$6 -> 0 | AX36: =Y36*'B Factor'!$F$6 -> 0 | AY36: =Z36*'B Factor'!$F$6 -> 0
A37: A | B37: 2006-02-05 | C37: 0 | D37: 0 | E37: 0 | F37: 0 | G37: 0 | H37: 0 | I37: 0 | J37: 0 | K37: 0 | L37: 0 | M37: 0 | N37: 0 | O37: 0 | P37: 0 | Q37: 0 | R37: 0 | S37: 0 | T37: 795.28 | U37: 13703.6 | V37: 5860.82 | W37: 346.71 | X37: 0 | Y37: 0 | Z37: 0 | AB37: =C37*'B Factor'!$F$6 -> 0 | AC37: =D37*'B Factor'!$F$6 -> 0 | AD37: =E37*'B Factor'!$F$6 -> 0 | AE37: =F37*'B Factor'!$F$6 -> 0 | AF37: =G37*'B Factor'!$F$6 -> 0 | AG37: =H37*'B Factor'!$F$6 -> 0 | AH37: =I37*'B Factor'!$F$6 -> 0 | AI37: =J37*'B Factor'!$F$6 -> 0 | AJ37: =K37*'B Factor'!$F$6 -> 0 | AK37: =L37*'B Factor'!$F$6 -> 0 | AL37: =M37*'B Factor'!$F$6 -> 0 | AM37: =N37*'B Factor'!$F$6 -> 0 | AN37: =O37*'B Factor'!$F$6 -> 0 | AO37: =P37*'B Factor'!$F$6 -> 0 | AP37: =Q37*'B Factor'!$F$6 -> 0 | AQ37: =R37*'B Factor'!$F$6 -> 0 | AR37: =S37*'B Factor'!$F$6 -> 0 | AS37: =T37*'B Factor'!$F$6 -> 9.230898009e-05 | AT37: =U37*'B Factor'!$F$6 -> 0.001590591162 | AU37: =V37*'B Factor'!$F$6 -> 0.0006802714977 | AV37: =W37*'B Factor'!$F$6 -> 4.024299176e-05 | AW37: =X37*'B Factor'!$F$6 -> 0 | AX37: =Y37*'B Factor'!$F$6 -> 0 | AY37: =Z37*'B Factor'!$F$6 -> 0
A38: A | B38: 2006-02-06 | C38: 0 | D38: 0 | E38: 0 | F38: 0 | G38: 0 | H38: 0 | I38: 0 | J38: 0 | K38: 0 | L38: 0 | M38: 0 | N38: 0 | O38: 0 | P38: 0 | Q38: 0 | R38: 0 | S38: 0 | T38: 1041.69 | U38: 13181.19 | V38: 5696.22 | W38: 723.61 | X38: 0 | Y38: 0 | Z38: 0 | AB38: =C38*'B Factor'!$F$6 -> 0 | AC38: =D38*'B Factor'!$F$6 -> 0 | AD38: =E38*'B Factor'!$F$6 -> 0 | AE38: =F38*'B Factor'!$F$6 -> 0 | AF38: =G38*'B Factor'!$F$6 -> 0 | AG38: =H38*'B Factor'!$F$6 -> 0 | AH38: =I38*'B Factor'!$F$6 -> 0 | AI38: =J38*'B Factor'!$F$6 -> 0 | AJ38: =K38*'B Factor'!$F$6 -> 0 | AK38: =L38*'B Factor'!$F$6 -> 0 | AL38: =M38*'B Factor'!$F$6 -> 0 | AM38: =N38*'B Factor'!$F$6 -> 0 | AN38: =O38*'B Factor'!$F$6 -> 0 | AO38: =P38*'B Factor'!$F$6 -> 0 | AP38: =Q38*'B Factor'!$F$6 -> 0 | AQ38: =R38*'B Factor'!$F$6 -> 0 | AR38: =S38*'B Factor'!$F$6 -> 0 | AS38: =T38*'B Factor'!$F$6 -> 0.0001209100461 | AT38: =U38*'B Factor'!$F$6 -> 0.001529954488 | AU38: =V38*'B Factor'!$F$6 -> 0.0006611662038 | AV38: =W38*'B Factor'!$F$6 -> 8.399016835e-05 | AW38: =X38*'B Factor'!$F$6 -> 0 | AX38: =Y38*'B Factor'!$F$6 -> 0 | AY38: =Z38*'B Factor'!$F$6 -> 0
A39: A | B39: 2006-02-07 | C39: 0 | D39: 0 | E39: 0 | F39: 0 | G39: 0 | H39: 0 | I39: 0 | J39: 0 | K39: 0 | L39: 0 | M39: 0 | N39: 0 | O39: 0 | P39: 0 | Q39: 0 | R39: 0 | S39: 0 | T39: 837.43 | U39: 14306.48 | V39: 6471.52 | W39: 766.57 | X39: 0 | Y39: 0 | Z39: 0 | AB39: =C39*'B Factor'!$F$6 -> 0 | AC39: =D39*'B Factor'!$F$6 -> 0 | AD39: =E39*'B Factor'!$F$6 -> 0 | AE39: =F39*'B Factor'!$F$6 -> 0 | AF39: =G39*'B Factor'!$F$6 -> 0 | AG39: =H39*'B Factor'!$F$6 -> 0 | AH39: =I39*'B Factor'!$F$6 -> 0 | AI39: =J39*'B Factor'!$F$6 -> 0 | AJ39: =K39*'B Factor'!$F$6 -> 0 | AK39: =L39*'B Factor'!$F$6 -> 0 | AL39: =M39*'B Factor'!$F$6 -> 0 | AM39: =N39*'B Factor'!$F$6 -> 0 | AN39: =O39*'B Factor'!$F$6 -> 0 | AO39: =P39*'B Factor'!$F$6 -> 0 | AP39: =Q39*'B Factor'!$F$6 -> 0 | AQ39: =R39*'B Factor'!$F$6 -> 0 | AR39: =S39*'B Factor'!$F$6 -> 0 | AS39: =T39*'B Factor'!$F$6 -> 9.720137461e-05 | AT39: =U39*'B Factor'!$F$6 -> 0.001660568073 | AU39: =V39*'B Factor'!$F$6 -> 0.0007511560844 | AV39: =W39*'B Factor'!$F$6 -> 8.897658041e-05 | AW39: =X39*'B Factor'!$F$6 -> 0 | AX39: =Y39*'B Factor'!$F$6 -> 0 | AY39: =Z39*'B Factor'!$F$6 -> 0
A40: A | B40: 2006-02-08 | C40: 0 | D40: 0 | E40: 0 | F40: 0 | G40: 0 | H40: 0 | I40: 0 | J40: 0 | K40: 0 | L40: 0 | M40: 0 | N40: 0 | O40: 0 | P40: 0 | Q40: 0 | R40: 0 | S40: 0 | T40: 408.42 | U40: 8969.62 | V40: 3041.63 | W40: 483.12 | X40: 0 | Y40: 0 | Z40: 0 | AB40: =C40*'B Factor'!$F$6 -> 0 | AC40: =D40*'B Factor'!$F$6 -> 0 | AD40: =E40*'B Factor'!$F$6 -> 0 | AE40: =F40*'B Factor'!$F$6 -> 0 | AF40: =G40*'B Factor'!$F$6 -> 0 | AG40: =H40*'B Factor'!$F$6 -> 0 | AH40: =I40*'B Factor'!$F$6 -> 0 | AI40: =J40*'B Factor'!$F$6 -> 0 | AJ40: =K40*'B Factor'!$F$6 -> 0 | AK40: =L40*'B Factor'!$F$6 -> 0 | AL40: =M40*'B Factor'!$F$6 -> 0 | AM40: =N40*'B Factor'!$F$6 -> 0 | AN40: =O40*'B Factor'!$F$6 -> 0 | AO40: =P40*'B Factor'!$F$6 -> 0 | AP40: =Q40*'B Factor'!$F$6 -> 0 | AQ40: =R40*'B Factor'!$F$6 -> 0 | AR40: =S40*'B Factor'!$F$6 -> 0 | AS40: =T40*'B Factor'!$F$6 -> 4.74057359e-05 | AT40: =U40*'B Factor'!$F$6 -> 0.00104111316 | AU40: =V40*'B Factor'!$F$6 -> 0.0003530451704 | AV40: =W40*'B Factor'!$F$6 -> 5.607624291e-05 | AW40: =X40*'B Factor'!$F$6 -> 0 | AX40: =Y40*'B Factor'!$F$6 -> 0 | AY40: =Z40*'B Factor'!$F$6 -> 0
A41: A | B41: 2006-02-09 | C41: 0 | D41: 0 | E41: 0 | F41: 0 | G41: 0 | H41: 0 | I41: 0 | J41: 0 | K41: 0 | L41: 0 | M41: 0 | N41: 0 | O41: 0 | P41: 0 | Q41: 0 | R41: 0 | S41: 0 | T41: 0 | U41: 2418.54 | V41: 344.81 | W41: 7.59 | X41: 0 | Y41: 0 | Z41: 0 | AB41: =C41*'B Factor'!$F$6 -> 0 | AC41: =D41*'B Factor'!$F$6 -> 0 | AD41: =E41*'B Factor'!$F$6 -> 0 | AE41: =F41*'B Factor'!$F$6 -> 0 | AF41: =G41*'B Factor'!$F$6 -> 0 | AG41: =H41*'B Factor'!$F$6 -> 0 | AH41: =I41*'B Factor'!$F$6 -> 0 | AI41: =J41*'B Factor'!$F$6 -> 0 | AJ41: =K41*'B Factor'!$F$6 -> 0 | AK41: =L41*'B Factor'!$F$6 -> 0 | AL41: =M41*'B Factor'!$F$6 -> 0 | AM41: =N41*'B Factor'!$F$6 -> 0 | AN41: =O41*'B Factor'!$F$6 -> 0 | AO41: =P41*'B Factor'!$F$6 -> 0 | AP41: =Q41*'B Factor'!$F$6 -> 0 | AQ41: =R41*'B Factor'!$F$6 -> 0 | AR41: =S41*'B Factor'!$F$6 -> 0 | AS41: =T41*'B Factor'!$F$6 -> 0 | AT41: =U41*'B Factor'!$F$6 -> 0.0002807224634 | AU41: =V41*'B Factor'!$F$6 -> 4.002245678e-05 | AV41: =W41*'B Factor'!$F$6 -> 8.80979226e-07 | AW41: =X41*'B Factor'!$F$6 -> 0 | AX41: =Y41*'B Factor'!$F$6 -> 0 | AY41: =Z41*'B Factor'!$F$6 -> 0
A42: A | B42: 2006-02-10 | C42: 0 | D42: 0 | E42: 0 | F42: 0 | G42: 0 | H42: 0 | I42: 0 | J42: 0 | K42: 0 | L42: 0 | M42: 0 | N42: 0 | O42: 0 | P42: 0 | Q42: 0 | R42: 0 | S42: 0 | T42: 0 | U42: 613.32 | V42: 2.44 | W42: 0 | X42: 0 | Y42: 0 | Z42: 0 | AB42: =C42*'B Factor'!$F$6 -> 0 | AC42: =D42*'B Factor'!$F$6 -> 0 | AD42: =E42*'B Factor'!$F$6 -> 0 | AE42: =F42*'B Factor'!$F$6 -> 0 | AF42: =G42*'B Factor'!$F$6 -> 0 | AG42: =H42*'B Factor'!$F$6 -> 0 | AH42: =I42*'B Factor'!$F$6 -> 0 | AI42: =J42*'B Factor'!$F$6 -> 0 | AJ42: =K42*'B Factor'!$F$6 -> 0 | AK42: =L42*'B Factor'!$F$6 -> 0 | AL42: =M42*'B Factor'!$F$6 -> 0 | AM42: =N42*'B Factor'!$F$6 -> 0 | AN42: =O42*'B Factor'!$F$6 -> 0 | AO42: =P42*'B Factor'!$F$6 -> 0 | AP42: =Q42*'B Factor'!$F$6 -> 0 | AQ42: =R42*'B Factor'!$F$6 -> 0 | AR42: =S42*'B Factor'!$F$6 -> 0 | AS42: =T42*'B Factor'!$F$6 -> 0 | AT42: =U42*'B Factor'!$F$6 -> 7.118869287e-05 | AU42: =V42*'B Factor'!$F$6 -> 2.83213348e-07 | AV42: =W42*'B Factor'!$F$6 -> 0 | AW42: =X42*'B Factor'!$F$6 -> 0 | AX42: =Y42*'B Factor'!$F$6 -> 0 | AY42: =Z42*'B Factor'!$F$6 -> 0
A43: A | B43: 2006-02-11 | C43: 0 | D43: 0 | E43: 0 | F43: 0 | G43: 0 | H43: 0 | I43: 0 | J43: 0 | K43: 0 | L43: 0 | M43: 0 | N43: 0 | O43: 0 | P43: 0 | Q43: 0 | R43: 0 | S43: 0 | T43: 1017.92 | U43: 18733.21 | V43: 9219.61 | W43: 972.49 | X43: 0 | Y43: 0 | Z43: 0 | AB43: =C43*'B Factor'!$F$6 -> 0 | AC43: =D43*'B Factor'!$F$6 -> 0 | AD43: =E43*'B Factor'!$F$6 -> 0 | AE43: =F43*'B Factor'!$F$6 -> 0 | AF43: =G43*'B Factor'!$F$6 -> 0 | AG43: =H43*'B Factor'!$F$6 -> 0 | AH43: =I43*'B Factor'!$F$6 -> 0 | AI43: =J43*'B Factor'!$F$6 -> 0 | AJ43: =K43*'B Factor'!$F$6 -> 0 | AK43: =L43*'B Factor'!$F$6 -> 0 | AL43: =M43*'B Factor'!$F$6 -> 0 | AM43: =N43*'B Factor'!$F$6 -> 0 | AN43: =O43*'B Factor'!$F$6 -> 0 | AO43: =P43*'B Factor'!$F$6 -> 0 | AP43: =Q43*'B Factor'!$F$6 -> 0 | AQ43: =R43*'B Factor'!$F$6 -> 0 | AR43: =S43*'B Factor'!$F$6 -> 0 | AS43: =T43*'B Factor'!$F$6 -> 0.0001181510374 | AT43: =U43*'B Factor'!$F$6 -> 0.002174383247 | AU43: =V43*'B Factor'!$F$6 -> 0.00107012976 | AV43: =W43*'B Factor'!$F$6 -> 0.0001128779298 | AW43: =X43*'B Factor'!$F$6 -> 0 | AX43: =Y43*'B Factor'!$F$6 -> 0 | AY43: =Z43*'B Factor'!$F$6 -> 0
A44: A | B44: 2006-02-12 | C44: 0 | D44: 0 | E44: 0 | F44: 0 | G44: 0 | H44: 0 | I44: 0 | J44: 0 | K44: 0 | L44: 0 | M44: 0 | N44: 0 | O44: 0 | P44: 0 | Q44: 0 | R44: 0 | S44: 0 | T44: 541.08 | U44: 14332.35 | V44: 6912.32 | W44: 477.3 | X44: 0 | Y44: 0 | Z44: 0 | AB44: =C44*'B Factor'!$F$6 -> 0 | AC44: =D44*'B Factor'!$F$6 -> 0 | AD44: =E44*'B Factor'!$F$6 -> 0 | AE44: =F44*'B Factor'!$F$6 -> 0 | AF44: =G44*'B Factor'!$F$6 -> 0 | AG44: =H44*'B Factor'!$F$6 -> 0 | AH44: =I44*'B Factor'!$F$6 -> 0 | AI44: =J44*'B Factor'!$F$6 -> 0 | AJ44: =K44*'B Factor'!$F$6 -> 0 | AK44: =L44*'B Factor'!$F$6 -> 0 | AL44: =M44*'B Factor'!$F$6 -> 0 | AM44: =N44*'B Factor'!$F$6 -> 0 | AN44: =O44*'B Factor'!$F$6 -> 0 | AO44: =P44*'B Factor'!$F$6 -> 0 | AP44: =Q44*'B Factor'!$F$6 -> 0 | AQ44: =R44*'B Factor'!$F$6 -> 0 | AR44: =S44*'B Factor'!$F$6 -> 0 | AS44: =T44*'B Factor'!$F$6 -> 6.280372064e-05 | AT44: =U44*'B Factor'!$F$6 -> 0.001663570831 | AU44: =V44*'B Factor'!$F$6 -> 0.0008023202007 | AV44: =W44*'B Factor'!$F$6 -> 5.540070943e-05 | AW44: =X44*'B Factor'!$F$6 -> 0 | AX44: =Y44*'B Factor'!$F$6 -> 0 | AY44: =Z44*'B Factor'!$F$6 -> 0
A45: A | B45: 2006-02-13 | C45: 0 | D45: 0 | E45: 0 | F45: 0 | G45: 0 | H45: 0 | I45: 0 | J45: 0 | K45: 0 | L45: 0 | M45: 0 | N45: 0 | O45: 0 | P45: 0 | Q45: 0 | R45: 0 | S45: 0 | T45: 621.32 | U45: 16106.46 | V45: 8629.63 | W45: 843.38 | X45: 0 | Y45: 0 | Z45: 0 | AB45: =C45*'B Factor'!$F$6 -> 0 | AC45: =D45*'B Factor'!$F$6 -> 0 | AD45: =E45*'B Factor'!$F$6 -> 0 | AE45: =F45*'B Factor'!$F$6 -> 0 | AF45: =G45*'B Factor'!$F$6 -> 0 | AG45: =H45*'B Factor'!$F$6 -> 0 | AH45: =I45*'B Factor'!$F$6 -> 0 | AI45: =J45*'B Factor'!$F$6 -> 0 | AJ45: =K45*'B Factor'!$F$6 -> 0 | AK45: =L45*'B Factor'!$F$6 -> 0 | AL45: =M45*'B Factor'!$F$6 -> 0 | AM45: =N45*'B Factor'!$F$6 -> 0 | AN45: =O45*'B Factor'!$F$6 -> 0 | AO45: =P45*'B Factor'!$F$6 -> 0 | AP45: =Q45*'B Factor'!$F$6 -> 0 | AQ45: =R45*'B Factor'!$F$6 -> 0 | AR45: =S45*'B Factor'!$F$6 -> 0 | AS45: =T45*'B Factor'!$F$6 -> 7.211726123e-05 | AT45: =U45*'B Factor'!$F$6 -> 0.001869493632 | AU45: =V45*'B Factor'!$F$6 -> 0.001001650166 | AV45: =W45*'B Factor'!$F$6 -> 9.789199732e-05 | AW45: =X45*'B Factor'!$F$6 -> 0 | AX45: =Y45*'B Factor'!$F$6 -> 0 | AY45: =Z45*'B Factor'!$F$6 -> 0
A46: A | B46: 2006-02-14 | C46: 0 | D46: 0 | E46: 0 | F46: 0 | G46: 0 | H46: 0 | I46: 0 | J46: 0 | K46: 0 | L46: 0 | M46: 0 | N46: 0 | O46: 0 | P46: 0 | Q46: 0 | R46: 0 | S46: 0 | T46: 424.16 | U46: 12679.83 | V46: 6416.01 | W46: 618.7 | X46: 0 | Y46: 0 | Z46: 0 | AB46: =C46*'B Factor'!$F$6 -> 0 | AC46: =D46*'B Factor'!$F$6 -> 0 | AD46: =E46*'B Factor'!$F$6 -> 0 | AE46: =F46*'B Factor'!$F$6 -> 0 | AF46: =G46*'B Factor'!$F$6 -> 0 | AG46: =H46*'B Factor'!$F$6 -> 0 | AH46: =I46*'B Factor'!$F$6 -> 0 | AI46: =J46*'B Factor'!$F$6 -> 0 | AJ46: =K46*'B Factor'!$F$6 -> 0 | AK46: =L46*'B Factor'!$F$6 -> 0 | AL46: =M46*'B Factor'!$F$6 -> 0 | AM46: =N46*'B Factor'!$F$6 -> 0 | AN46: =O46*'B Factor'!$F$6 -> 0 | AO46: =P46*'B Factor'!$F$6 -> 0 | AP46: =Q46*'B Factor'!$F$6 -> 0 | AQ46: =R46*'B Factor'!$F$6 -> 0 | AR46: =S46*'B Factor'!$F$6 -> 0 | AS46: =T46*'B Factor'!$F$6 -> 4.923269414e-05 | AT46: =U46*'B Factor'!$F$6 -> 0.001471761109 | AU46: =V46*'B Factor'!$F$6 -> 0.0007447129808 | AV46: =W46*'B Factor'!$F$6 -> 7.181315509e-05 | AW46: =X46*'B Factor'!$F$6 -> 0 | AX46: =Y46*'B Factor'!$F$6 -> 0 | AY46: =Z46*'B Factor'!$F$6 -> 0
A47: A | B47: 2006-02-15 | C47: 0 | D47: 0 | E47: 0 | F47: 0 | G47: 0 | H47: 0 | I47: 0 | J47: 0 | K47: 0 | L47: 0 | M47: 0 | N47: 0 | O47: 0 | P47: 0 | Q47: 0 | R47: 0 | S47: 0 | T47: 53.67 | U47: 4952.05 | V47: 1363.63 | W47: 75.61 | X47: 0 | Y47: 0 | Z47: 0 | AB47: =C47*'B Factor'!$F$6 -> 0 | AC47: =D47*'B Factor'!$F$6 -> 0 | AD47: =E47*'B Factor'!$F$6 -> 0 | AE47: =F47*'B Factor'!$F$6 -> 0 | AF47: =G47*'B Factor'!$F$6 -> 0 | AG47: =H47*'B Factor'!$F$6 -> 0 | AH47: =I47*'B Factor'!$F$6 -> 0 | AI47: =J47*'B Factor'!$F$6 -> 0 | AJ47: =K47*'B Factor'!$F$6 -> 0 | AK47: =L47*'B Factor'!$F$6 -> 0 | AL47: =M47*'B Factor'!$F$6 -> 0 | AM47: =N47*'B Factor'!$F$6 -> 0 | AN47: =O47*'B Factor'!$F$6 -> 0 | AO47: =P47*'B Factor'!$F$6 -> 0 | AP47: =Q47*'B Factor'!$F$6 -> 0 | AQ47: =R47*'B Factor'!$F$6 -> 0 | AR47: =S47*'B Factor'!$F$6 -> 0 | AS47: =T47*'B Factor'!$F$6 -> 6.229532946e-06 | AT47: =U47*'B Factor'!$F$6 -> 0.0005747896148 | AU47: =V47*'B Factor'!$F$6 -> 0.0001582779581 | AV47: =W47*'B Factor'!$F$6 -> 8.776131657e-06 | AW47: =X47*'B Factor'!$F$6 -> 0 | AX47: =Y47*'B Factor'!$F$6 -> 0 | AY47: =Z47*'B Factor'!$F$6 -> 0
A48: A | B48: 2006-02-16 | C48: 0 | D48: 0 | E48: 0 | F48: 0 | G48: 0 | H48: 0 | I48: 0 | J48: 0 | K48: 0 | L48: 0 | M48: 0 | N48: 0 | O48: 0 | P48: 0 | Q48: 0 | R48: 0 | S48: 0 | T48: 0 | U48: 734.5 | V48: 157.93 | W48: 0 | X48: 0 | Y48: 0 | Z48: 0 | AB48: =C48*'B Factor'!$F$6 -> 0 | AC48: =D48*'B Factor'!$F$6 -> 0 | AD48: =E48*'B Factor'!$F$6 -> 0 | AE48: =F48*'B Factor'!$F$6 -> 0 | AF48: =G48*'B Factor'!$F$6 -> 0 | AG48: =H48*'B Factor'!$F$6 -> 0 | AH48: =I48*'B Factor'!$F$6 -> 0 | AI48: =J48*'B Factor'!$F$6 -> 0 | AJ48: =K48*'B Factor'!$F$6 -> 0 | AK48: =L48*'B Factor'!$F$6 -> 0 | AL48: =M48*'B Factor'!$F$6 -> 0 | AM48: =N48*'B Factor'!$F$6 -> 0 | AN48: =O48*'B Factor'!$F$6 -> 0 | AO48: =P48*'B Factor'!$F$6 -> 0 | AP48: =Q48*'B Factor'!$F$6 -> 0 | AQ48: =R48*'B Factor'!$F$6 -> 0 | AR48: =S48*'B Factor'!$F$6 -> 0 | AS48: =T48*'B Factor'!$F$6 -> 0 | AT48: =U48*'B Factor'!$F$6 -> 8.525418202e-05 | AU48: =V48*'B Factor'!$F$6 -> 1.833110002e-05 | AV48: =W48*'B Factor'!$F$6 -> 0 | AW48: =X48*'B Factor'!$F$6 -> 0 | AX48: =Y48*'B Factor'!$F$6 -> 0 | AY48: =Z48*'B Factor'!$F$6 -> 0
A49: A | B49: 2006-02-17 | C49: 0 | D49: 0 | E49: 0 | F49: 0 | G49: 0 | H49: 0 | I49: 0 | J49: 0 | K49: 0 | L49: 0 | M49: 0 | N49: 0 | O49: 0 | P49: 0 | Q49: 0 | R49: 0 | S49: 0 | T49: 0 | U49: 725.87 | V49: 167.17 | W49: 0 | X49: 0 | Y49: 0 | Z49: 0 | AB49: =C49*'B Factor'!$F$6 -> 0 | AC49: =D49*'B Factor'!$F$6 -> 0 | AD49: =E49*'B Factor'!$F$6 -> 0 | AE49: =F49*'B Factor'!$F$6 -> 0 | AF49: =G49*'B Factor'!$F$6 -> 0 | AG49: =H49*'B Factor'!$F$6 -> 0 | AH49: =I49*'B Factor'!$F$6 -> 0 | AI49: =J49*'B Factor'!$F$6 -> 0 | AJ49: =K49*'B Factor'!$F$6 -> 0 | AK49: =L49*'B Factor'!$F$6 -> 0 | AL49: =M49*'B Factor'!$F$6 -> 0 | AM49: =N49*'B Factor'!$F$6 -> 0 | AN49: =O49*'B Factor'!$F$6 -> 0 | AO49: =P49*'B Factor'!$F$6 -> 0 | AP49: =Q49*'B Factor'!$F$6 -> 0 | AQ49: =R49*'B Factor'!$F$6 -> 0 | AR49: =S49*'B Factor'!$F$6 -> 0 | AS49: =T49*'B Factor'!$F$6 -> 0 | AT49: =U49*'B Factor'!$F$6 -> 8.425248891e-05 | AU49: =V49*'B Factor'!$F$6 -> 1.940359647e-05 | AV49: =W49*'B Factor'!$F$6 -> 0 | AW49: =X49*'B Factor'!$F$6 -> 0 | AX49: =Y49*'B Factor'!$F$6 -> 0 | AY49: =Z49*'B Factor'!$F$6 -> 0
A50: A | B50: 2006-02-18 | C50: 0 | D50: 0 | E50: 0 | F50: 0 | G50: 0 | H50: 0 | I50: 0 | J50: 0 | K50: 0 | L50: 0 | M50: 0 | N50: 0 | O50: 0 | P50: 0 | Q50: 0 | R50: 0 | S50: 0 | T50: 12.16 | U50: 5144.25 | V50: 1889.45 | W50: 27.8 | X50: 0 | Y50: 0 | Z50: 0 | AB50: =C50*'B Factor'!$F$6 -> 0 | AC50: =D50*'B Factor'!$F$6 -> 0 | AD50: =E50*'B Factor'!$F$6 -> 0 | AE50: =F50*'B Factor'!$F$6 -> 0 | AF50: =G50*'B Factor'!$F$6 -> 0 | AG50: =H50*'B Factor'!$F$6 -> 0 | AH50: =I50*'B Factor'!$F$6 -> 0 | AI50: =J50*'B Factor'!$F$6 -> 0 | AJ50: =K50*'B Factor'!$F$6 -> 0 | AK50: =L50*'B Factor'!$F$6 -> 0 | AL50: =M50*'B Factor'!$F$6 -> 0 | AM50: =N50*'B Factor'!$F$6 -> 0 | AN50: =O50*'B Factor'!$F$6 -> 0 | AO50: =P50*'B Factor'!$F$6 -> 0 | AP50: =Q50*'B Factor'!$F$6 -> 0 | AQ50: =R50*'B Factor'!$F$6 -> 0 | AR50: =S50*'B Factor'!$F$6 -> 0 | AS50: =T50*'B Factor'!$F$6 -> 1.411423898e-06 | AT50: =U50*'B Factor'!$F$6 -> 0.0005970984695 | AU50: =V50*'B Factor'!$F$6 -> 0.0002193104346 | AV50: =W50*'B Factor'!$F$6 -> 3.226775031e-06 | AW50: =X50*'B Factor'!$F$6 -> 0 | AX50: =Y50*'B Factor'!$F$6 -> 0 | AY50: =Z50*'B Factor'!$F$6 -> 0
A51: A | B51: 2006-02-19 | C51: 0 | D51: 0 | E51: 0 | F51: 0 | G51: 0 | H51: 0 | I51: 0 | J51: 0 | K51: 0 | L51: 0 | M51: 0 | N51: 0 | O51: 0 | P51: 0 | Q51: 0 | R51: 0 | S51: 0 | T51: 36.27 | U51: 5873 | V51: 2393.62 | W51: 18.15 | X51: 0 | Y51: 0 | Z51: 0 | AB51: =C51*'B Factor'!$F$6 -> 0 | AC51: =D51*'B Factor'!$F$6 -> 0 | AD51: =E51*'B Factor'!$F$6 -> 0 | AE51: =F51*'B Factor'!$F$6 -> 0 | AF51: =G51*'B Factor'!$F$6 -> 0 | AG51: =H51*'B Factor'!$F$6 -> 0 | AH51: =I51*'B Factor'!$F$6 -> 0 | AI51: =J51*'B Factor'!$F$6 -> 0 | AJ51: =K51*'B Factor'!$F$6 -> 0 | AK51: =L51*'B Factor'!$F$6 -> 0 | AL51: =M51*'B Factor'!$F$6 -> 0 | AM51: =N51*'B Factor'!$F$6 -> 0 | AN51: =O51*'B Factor'!$F$6 -> 0 | AO51: =P51*'B Factor'!$F$6 -> 0 | AP51: =Q51*'B Factor'!$F$6 -> 0 | AQ51: =R51*'B Factor'!$F$6 -> 0 | AR51: =S51*'B Factor'!$F$6 -> 0 | AS51: =T51*'B Factor'!$F$6 -> 4.209896776e-06 | AT51: =U51*'B Factor'!$F$6 -> 0.000681685243 | AU51: =V51*'B Factor'!$F$6 -> 0.000277829973 | AV51: =W51*'B Factor'!$F$6 -> 2.106689454e-06 | AW51: =X51*'B Factor'!$F$6 -> 0 | AX51: =Y51*'B Factor'!$F$6 -> 0 | AY51: =Z51*'B Factor'!$F$6 -> 0
A52: A | B52: 2006-02-20 | C52: 0 | D52: 0 | E52: 0 | F52: 0 | G52: 0 | H52: 0 | I52: 0 | J52: 0 | K52: 0 | L52: 0 | M52: 0 | N52: 0 | O52: 0 | P52: 0 | Q52: 0 | R52: 0 | S52: 7.32 | T52: 1178.57 | U52: 12133.33 | V52: 4685.11 | W52: 450.98 | X52: 0 | Y52: 0 | Z52: 0 | AB52: =C52*'B Factor'!$F$6 -> 0 | AC52: =D52*'B Factor'!$F$6 -> 0 | AD52: =E52*'B Factor'!$F$6 -> 0 | AE52: =F52*'B Factor'!$F$6 -> 0 | AF52: =G52*'B Factor'!$F$6 -> 0 | AG52: =H52*'B Factor'!$F$6 -> 0 | AH52: =I52*'B Factor'!$F$6 -> 0 | AI52: =J52*'B Factor'!$F$6 -> 0 | AJ52: =K52*'B Factor'!$F$6 -> 0 | AK52: =L52*'B Factor'!$F$6 -> 0 | AL52: =M52*'B Factor'!$F$6 -> 0 | AM52: =N52*'B Factor'!$F$6 -> 0 | AN52: =O52*'B Factor'!$F$6 -> 0 | AO52: =P52*'B Factor'!$F$6 -> 0 | AP52: =Q52*'B Factor'!$F$6 -> 0 | AQ52: =R52*'B Factor'!$F$6 -> 0 | AR52: =S52*'B Factor'!$F$6 -> 8.496400441e-07 | AS52: =T52*'B Factor'!$F$6 -> 0.0001367978506 | AT52: =U52*'B Factor'!$F$6 -> 0.001408328284 | AU52: =V52*'B Factor'!$F$6 -> 0.0005438056102 | AV52: =W52*'B Factor'!$F$6 -> 5.234571955e-05 | AW52: =X52*'B Factor'!$F$6 -> 0 | AX52: =Y52*'B Factor'!$F$6 -> 0 | AY52: =Z52*'B Factor'!$F$6 -> 0
A53: A | B53: 2006-02-21 | C53: 0 | D53: 0 | E53: 0 | F53: 0 | G53: 0 | H53: 0 | I53: 0 | J53: 0 | K53: 0 | L53: 0 | M53: 0 | N53: 0 | O53: 0 | P53: 0 | Q53: 0 | R53: 0 | S53: 0 | T53: 283.81 | U53: 5593.62 | V53: 2485.42 | W53: 184.52 | X53: 0 | Y53: 0 | Z53: 0 | AB53: =C53*'B Factor'!$F$6 -> 0 | AC53: =D53*'B Factor'!$F$6 -> 0 | AD53: =E53*'B Factor'!$F$6 -> 0 | AE53: =F53*'B Factor'!$F$6 -> 0 | AF53: =G53*'B Factor'!$F$6 -> 0 | AG53: =H53*'B Factor'!$F$6 -> 0 | AH53: =I53*'B Factor'!$F$6 -> 0 | AI53: =J53*'B Factor'!$F$6 -> 0 | AJ53: =K53*'B Factor'!$F$6 -> 0 | AK53: =L53*'B Factor'!$F$6 -> 0 | AL53: =M53*'B Factor'!$F$6 -> 0 | AM53: =N53*'B Factor'!$F$6 -> 0 | AN53: =O53*'B Factor'!$F$6 -> 0 | AO53: =P53*'B Factor'!$F$6 -> 0 | AP53: =Q53*'B Factor'!$F$6 -> 0 | AQ53: =R53*'B Factor'!$F$6 -> 0 | AR53: =S53*'B Factor'!$F$6 -> 0 | AS53: =T53*'B Factor'!$F$6 -> 3.294212308e-05 | AT53: =U53*'B Factor'!$F$6 -> 0.0006492573147 | AU53: =V53*'B Factor'!$F$6 -> 0.0002884852949 | AV53: =W53*'B Factor'!$F$6 -> 2.141742909e-05 | AW53: =X53*'B Factor'!$F$6 -> 0 | AX53: =Y53*'B Factor'!$F$6 -> 0 | AY53: =Z53*'B Factor'!$F$6 -> 0
A54: A | B54: 2006-02-22 | C54: 0 | D54: 0 | E54: 0 | F54: 0 | G54: 0 | H54: 0 | I54: 0 | J54: 0 | K54: 0 | L54: 0 | M54: 0 | N54: 0 | O54: 0 | P54: 0 | Q54: 0 | R54: 0 | S54: 0 | T54: 0 | U54: 949.78 | V54: 109.26 | W54: 0 | X54: 0 | Y54: 0 | Z54: 0 | AB54: =C54*'B Factor'!$F$6 -> 0 | AC54: =D54*'B Factor'!$F$6 -> 0 | AD54: =E54*'B Factor'!$F$6 -> 0 | AE54: =F54*'B Factor'!$F$6 -> 0 | AF54: =G54*'B Factor'!$F$6 -> 0 | AG54: =H54*'B Factor'!$F$6 -> 0 | AH54: =I54*'B Factor'!$F$6 -> 0 | AI54: =J54*'B Factor'!$F$6 -> 0 | AJ54: =K54*'B Factor'!$F$6 -> 0 | AK54: =L54*'B Factor'!$F$6 -> 0 | AL54: =M54*'B Factor'!$F$6 -> 0 | AM54: =N54*'B Factor'!$F$6 -> 0 | AN54: =O54*'B Factor'!$F$6 -> 0 | AO54: =P54*'B Factor'!$F$6 -> 0 | AP54: =Q54*'B Factor'!$F$6 -> 0 | AQ54: =R54*'B Factor'!$F$6 -> 0 | AR54: =S54*'B Factor'!$F$6 -> 0 | AS54: =T54*'B Factor'!$F$6 -> 0 | AT54: =U54*'B Factor'!$F$6 -> 0.0001102419564 | AU54: =V54*'B Factor'!$F$6 -> 1.26819223e-05 | AV54: =W54*'B Factor'!$F$6 -> 0 | AW54: =X54*'B Factor'!$F$6 -> 0 | AX54: =Y54*'B Factor'!$F$6 -> 0 | AY54: =Z54*'B Factor'!$F$6 -> 0
A55: A | B55: 2006-02-23 | C55: 0 | D55: 0 | E55: 0 | F55: 0 | G55: 0 | H55: 0 | I55: 0 | J55: 0 | K55: 0 | L55: 0 | M55: 0 | N55: 0 | O55: 0 | P55: 0 | Q55: 0 | R55: 0 | S55: 0 | T55: 0 | U55: 200.62 | V55: 0 | W55: 0 | X55: 0 | Y55: 0 | Z55: 0 | AB55: =C55*'B Factor'!$F$6 -> 0 | AC55: =D55*'B Factor'!$F$6 -> 0 | AD55: =E55*'B Factor'!$F$6 -> 0 | AE55: =F55*'B Factor'!$F$6 -> 0 | AF55: =G55*'B Factor'!$F$6 -> 0 | AG55: =H55*'B Factor'!$F$6 -> 0 | AH55: =I55*'B Factor'!$F$6 -> 0 | AI55: =J55*'B Factor'!$F$6 -> 0 | AJ55: =K55*'B Factor'!$F$6 -> 0 | AK55: =L55*'B Factor'!$F$6 -> 0 | AL55: =M55*'B Factor'!$F$6 -> 0 | AM55: =N55*'B Factor'!$F$6 -> 0 | AN55: =O55*'B Factor'!$F$6 -> 0 | AO55: =P55*'B Factor'!$F$6 -> 0 | AP55: =Q55*'B Factor'!$F$6 -> 0 | AQ55: =R55*'B Factor'!$F$6 -> 0 | AR55: =S55*'B Factor'!$F$6 -> 0 | AS55: =T55*'B Factor'!$F$6 -> 0 | AT55: =U55*'B Factor'!$F$6 -> 2.32861729e-05 | AU55: =V55*'B Factor'!$F$6 -> 0 | AV55: =W55*'B Factor'!$F$6 -> 0 | AW55: =X55*'B Factor'!$F$6 -> 0 | AX55: =Y55*'B Factor'!$F$6 -> 0 | AY55: =Z55*'B Factor'!$F$6 -> 0
A56: A | B56: 2006-02-24 | C56: 0 | D56: 0 | E56: 0 | F56: 0 | G56: 0 | H56: 0 | I56: 0 | J56: 0 | K56: 0 | L56: 0 | M56: 0 | N56: 0 | O56: 0 | P56: 0 | Q56: 0 | R56: 0 | S56: 0 | T56: 0 | U56: 507.73 | V56: 244.16 | W56: 0 | X56: 0 | Y56: 0 | Z56: 0 | AB56: =C56*'B Factor'!$F$6 -> 0 | AC56: =D56*'B Factor'!$F$6 -> 0 | AD56: =E56*'B Factor'!$F$6 -> 0 | AE56: =F56*'B Factor'!$F$6 -> 0 | AF56: =G56*'B Factor'!$F$6 -> 0 | AG56: =H56*'B Factor'!$F$6 -> 0 | AH56: =I56*'B Factor'!$F$6 -> 0 | AI56: =J56*'B Factor'!$F$6 -> 0 | AJ56: =K56*'B Factor'!$F$6 -> 0 | AK56: =L56*'B Factor'!$F$6 -> 0 | AL56: =M56*'B Factor'!$F$6 -> 0 | AM56: =N56*'B Factor'!$F$6 -> 0 | AN56: =O56*'B Factor'!$F$6 -> 0 | AO56: =P56*'B Factor'!$F$6 -> 0 | AP56: =Q56*'B Factor'!$F$6 -> 0 | AQ56: =R56*'B Factor'!$F$6 -> 0 | AR56: =S56*'B Factor'!$F$6 -> 0 | AS56: =T56*'B Factor'!$F$6 -> 0 | AT56: =U56*'B Factor'!$F$6 -> 5.893275131e-05 | AU56: =V56*'B Factor'!$F$6 -> 2.833990617e-05 | AV56: =W56*'B Factor'!$F$6 -> 0 | AW56: =X56*'B Factor'!$F$6 -> 0 | AX56: =Y56*'B Factor'!$F$6 -> 0 | AY56: =Z56*'B Factor'!$F$6 -> 0
A57: A | B57: 2006-02-25 | C57: 0 | D57: 0 | E57: 0 | F57: 0 | G57: 0 | H57: 0 | I57: 0 | J57: 0 | K57: 0 | L57: 0 | M57: 0 | N57: 0 | O57: 0 | P57: 0 | Q57: 0 | R57: 0 | S57: 0 | T57: 219.03 | U57: 9106.23 | V57: 5217.36 | W57: 307.64 | X57: 0 | Y57: 0 | Z57: 0 | AB57: =C57*'B Factor'!$F$6 -> 0 | AC57: =D57*'B Factor'!$F$6 -> 0 | AD57: =E57*'B Factor'!$F$6 -> 0 | AE57: =F57*'B Factor'!$F$6 -> 0 | AF57: =G57*'B Factor'!$F$6 -> 0 | AG57: =H57*'B Factor'!$F$6 -> 0 | AH57: =I57*'B Factor'!$F$6 -> 0 | AI57: =J57*'B Factor'!$F$6 -> 0 | AJ57: =K57*'B Factor'!$F$6 -> 0 | AK57: =L57*'B Factor'!$F$6 -> 0 | AL57: =M57*'B Factor'!$F$6 -> 0 | AM57: =N57*'B Factor'!$F$6 -> 0 | AN57: =O57*'B Factor'!$F$6 -> 0 | AO57: =P57*'B Factor'!$F$6 -> 0 | AP57: =Q57*'B Factor'!$F$6 -> 0 | AQ57: =R57*'B Factor'!$F$6 -> 0 | AR57: =S57*'B Factor'!$F$6 -> 0 | AS57: =T57*'B Factor'!$F$6 -> 2.542304083e-05 | AT57: =U57*'B Factor'!$F$6 -> 0.001056969625 | AU57: =V57*'B Factor'!$F$6 -> 0.0006055844235 | AV57: =W57*'B Factor'!$F$6 -> 3.570809606e-05 | AW57: =X57*'B Factor'!$F$6 -> 0 | AX57: =Y57*'B Factor'!$F$6 -> 0 | AY57: =Z57*'B Factor'!$F$6 -> 0
A58: A | B58: 2006-02-26 | C58: 0 | D58: 0 | E58: 0 | F58: 0 | G58: 0 | H58: 0 | I58: 0 | J58: 0 | K58: 0 | L58: 0 | M58: 0 | N58: 0 | O58: 0 | P58: 0 | Q58: 0 | R58: 0 | S58: 0 | T58: 19.57 | U58: 4757.92 | V58: 2358.16 | W58: 20.68 | X58: 0 | Y58: 0 | Z58: 0 | AB58: =C58*'B Factor'!$F$6 -> 0 | AC58: =D58*'B Factor'!$F$6 -> 0 | AD58: =E58*'B Factor'!$F$6 -> 0 | AE58: =F58*'B Factor'!$F$6 -> 0 | AF58: =G58*'B Factor'!$F$6 -> 0 | AG58: =H58*'B Factor'!$F$6 -> 0 | AH58: =I58*'B Factor'!$F$6 -> 0 | AI58: =J58*'B Factor'!$F$6 -> 0 | AJ58: =K58*'B Factor'!$F$6 -> 0 | AK58: =L58*'B Factor'!$F$6 -> 0 | AL58: =M58*'B Factor'!$F$6 -> 0 | AM58: =N58*'B Factor'!$F$6 -> 0 | AN58: =O58*'B Factor'!$F$6 -> 0 | AO58: =P58*'B Factor'!$F$6 -> 0 | AP58: =Q58*'B Factor'!$F$6 -> 0 | AQ58: =R58*'B Factor'!$F$6 -> 0 | AR58: =S58*'B Factor'!$F$6 -> 0 | AS58: =T58*'B Factor'!$F$6 -> 2.271510336e-06 | AT58: =U58*'B Factor'!$F$6 -> 0.000552256743 | AU58: =V58*'B Factor'!$F$6 -> 0.0002737140938 | AV58: =W58*'B Factor'!$F$6 -> 2.400349196e-06 | AW58: =X58*'B Factor'!$F$6 -> 0 | AX58: =Y58*'B Factor'!$F$6 -> 0 | AY58: =Z58*'B Factor'!$F$6 -> 0
A59: A | B59: 2006-02-27 | C59: 0 | D59: 0 | E59: 0 | F59: 0 | G59: 0 | H59: 0 | I59: 0 | J59: 0 | K59: 0 | L59: 0 | M59: 0 | N59: 0 | O59: 0 | P59: 0 | Q59: 0 | R59: 0 | S59: 0 | T59: 0 | U59: 2228.78 | V59: 957.32 | W59: 0 | X59: 0 | Y59: 0 | Z59: 0 | AB59: =C59*'B Factor'!$F$6 -> 0 | AC59: =D59*'B Factor'!$F$6 -> 0 | AD59: =E59*'B Factor'!$F$6 -> 0 | AE59: =F59*'B Factor'!$F$6 -> 0 | AF59: =G59*'B Factor'!$F$6 -> 0 | AG59: =H59*'B Factor'!$F$6 -> 0 | AH59: =I59*'B Factor'!$F$6 -> 0 | AI59: =J59*'B Factor'!$F$6 -> 0 | AJ59: =K59*'B Factor'!$F$6 -> 0 | AK59: =L59*'B Factor'!$F$6 -> 0 | AL59: =M59*'B Factor'!$F$6 -> 0 | AM59: =N59*'B Factor'!$F$6 -> 0 | AN59: =O59*'B Factor'!$F$6 -> 0 | AO59: =P59*'B Factor'!$F$6 -> 0 | AP59: =Q59*'B Factor'!$F$6 -> 0 | AQ59: =R59*'B Factor'!$F$6 -> 0 | AR59: =S59*'B Factor'!$F$6 -> 0 | AS59: =T59*'B Factor'!$F$6 -> 0 | AT59: =U59*'B Factor'!$F$6 -> 0.0002586968221 | AU59: =V59*'B Factor'!$F$6 -> 0.0001111171321 | AV59: =W59*'B Factor'!$F$6 -> 0 | AW59: =X59*'B Factor'!$F$6 -> 0 | AX59: =Y59*'B Factor'!$F$6 -> 0 | AY59: =Z59*'B Factor'!$F$6 -> 0
A60: A | B60: 2006-02-28 | C60: 0 | D60: 0 | E60: 0 | F60: 0 | G60: 0 | H60: 0 | I60: 0 | J60: 0 | K60: 0 | L60: 0 | M60: 0 | N60: 0 | O60: 0 | P60: 0 | Q60: 0 | R60: 0 | S60: 0 | T60: 27.87 | U60: 5710.99 | V60: 2702.89 | W60: 249.73 | X60: 0 | Y60: 0 | Z60: 0 | AB60: =C60*'B Factor'!$F$6 -> 0 | AC60: =D60*'B Factor'!$F$6 -> 0 | AD60: =E60*'B Factor'!$F$6 -> 0 | AE60: =F60*'B Factor'!$F$6 -> 0 | AF60: =G60*'B Factor'!$F$6 -> 0 | AG60: =H60*'B Factor'!$F$6 -> 0 | AH60: =I60*'B Factor'!$F$6 -> 0 | AI60: =J60*'B Factor'!$F$6 -> 0 | AJ60: =K60*'B Factor'!$F$6 -> 0 | AK60: =L60*'B Factor'!$F$6 -> 0 | AL60: =M60*'B Factor'!$F$6 -> 0 | AM60: =N60*'B Factor'!$F$6 -> 0 | AN60: =O60*'B Factor'!$F$6 -> 0 | AO60: =P60*'B Factor'!$F$6 -> 0 | AP60: =Q60*'B Factor'!$F$6 -> 0 | AQ60: =R60*'B Factor'!$F$6 -> 0 | AR60: =S60*'B Factor'!$F$6 -> 0 | AS60: =T60*'B Factor'!$F$6 -> 3.234900004e-06 | AT60: =U60*'B Factor'!$F$6 -> 0.0006628805731 | AU60: =V60*'B Factor'!$F$6 -> 0.0003137272649 | AV60: =W60*'B Factor'!$F$6 -> 2.898642189e-05 | AW60: =X60*'B Factor'!$F$6 -> 0 | AX60: =Y60*'B Factor'!$F$6 -> 0 | AY60: =Z60*'B Factor'!$F$6 -> 0
A61: A | B61: 2006-03-01 | C61: 0 | D61: 0 | E61: 0 | F61: 0 | G61: 0 | H61: 0 | I61: 0 | J61: 0 | K61: 0 | L61: 0 | M61: 0 | N61: 0 | O61: 0 | P61: 0 | Q61: 0 | R61: 0 | S61: 0 | T61: 0 | U61: 2953.25 | V61: 734.56 | W61: 0 | X61: 0 | Y61: 0 | Z61: 0 | AB61: =C61*'B Factor'!$F$6 -> 0 | AC61: =D61*'B Factor'!$F$6 -> 0 | AD61: =E61*'B Factor'!$F$6 -> 0 | AE61: =F61*'B Factor'!$F$6 -> 0 | AF61: =G61*'B Factor'!$F$6 -> 0 | AG61: =H61*'B Factor'!$F$6 -> 0 | AH61: =I61*'B Factor'!$F$6 -> 0 | AI61: =J61*'B Factor'!$F$6 -> 0 | AJ61: =K61*'B Factor'!$F$6 -> 0 | AK61: =L61*'B Factor'!$F$6 -> 0 | AL61: =M61*'B Factor'!$F$6 -> 0 | AM61: =N61*'B Factor'!$F$6 -> 0 | AN61: =O61*'B Factor'!$F$6 -> 0 | AO61: =P61*'B Factor'!$F$6 -> 0 | AP61: =Q61*'B Factor'!$F$6 -> 0 | AQ61: =R61*'B Factor'!$F$6 -> 0 | AR61: =S61*'B Factor'!$F$6 -> 0 | AS61: =T61*'B Factor'!$F$6 -> 0 | AT61: =U61*'B Factor'!$F$6 -> 0.0003427868115 | AU61: =V61*'B Factor'!$F$6 -> 8.526114628e-05 | AV61: =W61*'B Factor'!$F$6 -> 0 | AW61: =X61*'B Factor'!$F$6 -> 0 | AX61: =Y61*'B Factor'!$F$6 -> 0 | AY61: =Z61*'B Factor'!$F$6 -> 0
A62: A | B62: 2006-03-02 | C62: 0 | D62: 0 | E62: 0 | F62: 0 | G62: 0 | H62: 0 | I62: 0 | J62: 0 | K62: 0 | L62: 0 | M62: 0 | N62: 0 | O62: 0 | P62: 0 | Q62: 0 | R62: 0 | S62: 0 | T62: 0 | U62: 198.67 | V62: 18.2 | W62: 0 | X62: 0 | Y62: 0 | Z62: 0 | AB62: =C62*'B Factor'!$F$6 -> 0 | AC62: =D62*'B Factor'!$F$6 -> 0 | AD62: =E62*'B Factor'!$F$6 -> 0 | AE62: =F62*'B Factor'!$F$6 -> 0 | AF62: =G62*'B Factor'!$F$6 -> 0 | AG62: =H62*'B Factor'!$F$6 -> 0 | AH62: =I62*'B Factor'!$F$6 -> 0 | AI62: =J62*'B Factor'!$F$6 -> 0 | AJ62: =K62*'B Factor'!$F$6 -> 0 | AK62: =L62*'B Factor'!$F$6 -> 0 | AL62: =M62*'B Factor'!$F$6 -> 0 | AM62: =N62*'B Factor'!$F$6 -> 0 | AN62: =O62*'B Factor'!$F$6 -> 0 | AO62: =P62*'B Factor'!$F$6 -> 0 | AP62: =Q62*'B Factor'!$F$6 -> 0 | AQ62: =R62*'B Factor'!$F$6 -> 0 | AR62: =S62*'B Factor'!$F$6 -> 0 | AS62: =T62*'B Factor'!$F$6 -> 0 | AT62: =U62*'B Factor'!$F$6 -> 2.305983437e-05 | AU62: =V62*'B Factor'!$F$6 -> 2.112493006e-06 | AV62: =W62*'B Factor'!$F$6 -> 0 | AW62: =X62*'B Factor'!$F$6 -> 0 | AX62: =Y62*'B Factor'!$F$6 -> 0 | AY62: =Z62*'B Factor'!$F$6 -> 0
A63: A | B63: 2006-03-03 | C63: 0 | D63: 0 | E63: 0 | F63: 0 | G63: 0 | H63: 0 | I63: 0 | J63: 0 | K63: 0 | L63: 0 | M63: 0 | N63: 0 | O63: 0 | P63: 0 | Q63: 0 | R63: 0 | S63: 0 | T63: 0 | U63: 219.8 | V63: 79.53 | W63: 0 | X63: 0 | Y63: 0 | Z63: 0 | AB63: =C63*'B Factor'!$F$6 -> 0 | AC63: =D63*'B Factor'!$F$6 -> 0 | AD63: =E63*'B Factor'!$F$6 -> 0 | AE63: =F63*'B Factor'!$F$6 -> 0 | AF63: =G63*'B Factor'!$F$6 -> 0 | AG63: =H63*'B Factor'!$F$6 -> 0 | AH63: =I63*'B Factor'!$F$6 -> 0 | AI63: =J63*'B Factor'!$F$6 -> 0 | AJ63: =K63*'B Factor'!$F$6 -> 0 | AK63: =L63*'B Factor'!$F$6 -> 0 | AL63: =M63*'B Factor'!$F$6 -> 0 | AM63: =N63*'B Factor'!$F$6 -> 0 | AN63: =O63*'B Factor'!$F$6 -> 0 | AO63: =P63*'B Factor'!$F$6 -> 0 | AP63: =Q63*'B Factor'!$F$6 -> 0 | AQ63: =R63*'B Factor'!$F$6 -> 0 | AR63: =S63*'B Factor'!$F$6 -> 0 | AS63: =T63*'B Factor'!$F$6 -> 0 | AT63: =U63*'B Factor'!$F$6 -> 2.551241553e-05 | AU63: =V63*'B Factor'!$F$6 -> 9.231130151e-06 | AV63: =W63*'B Factor'!$F$6 -> 0 | AW63: =X63*'B Factor'!$F$6 -> 0 | AX63: =Y63*'B Factor'!$F$6 -> 0 | AY63: =Z63*'B Factor'!$F$6 -> 0
A64: A | B64: 2006-03-04 | C64: 0 | D64: 0 | E64: 0 | F64: 0 | G64: 0 | H64: 0 | I64: 0 | J64: 0 | K64: 0 | L64: 0 | M64: 0 | N64: 0 | O64: 0 | P64: 0 | Q64: 0 | R64: 0 | S64: 0 | T64: 0 | U64: 4063.97 | V64: 2435 | W64: 211 | X64: 0 | Y64: 0 | Z64: 0 | AB64: =C64*'B Factor'!$F$6 -> 0 | AC64: =D64*'B Factor'!$F$6 -> 0 | AD64: =E64*'B Factor'!$F$6 -> 0 | AE64: =F64*'B Factor'!$F$6 -> 0 | AF64: =G64*'B Factor'!$F$6 -> 0 | AG64: =H64*'B Factor'!$F$6 -> 0 | AH64: =I64*'B Factor'!$F$6 -> 0 | AI64: =J64*'B Factor'!$F$6 -> 0 | AJ64: =K64*'B Factor'!$F$6 -> 0 | AK64: =L64*'B Factor'!$F$6 -> 0 | AL64: =M64*'B Factor'!$F$6 -> 0 | AM64: =N64*'B Factor'!$F$6 -> 0 | AN64: =O64*'B Factor'!$F$6 -> 0 | AO64: =P64*'B Factor'!$F$6 -> 0 | AP64: =Q64*'B Factor'!$F$6 -> 0 | AQ64: =R64*'B Factor'!$F$6 -> 0 | AR64: =S64*'B Factor'!$F$6 -> 0 | AS64: =T64*'B Factor'!$F$6 -> 0 | AT64: =U64*'B Factor'!$F$6 -> 0.0004717092418 | AU64: =V64*'B Factor'!$F$6 -> 0.0002826329928 | AV64: =W64*'B Factor'!$F$6 -> 2.449099034e-05 | AW64: =X64*'B Factor'!$F$6 -> 0 | AX64: =Y64*'B Factor'!$F$6 -> 0 | AY64: =Z64*'B Factor'!$F$6 -> 0
A65: A | B65: 2006-03-05 | C65: 0 | D65: 0 | E65: 0 | F65: 0 | G65: 0 | H65: 0 | I65: 0 | J65: 0 | K65: 0 | L65: 0 | M65: 0 | N65: 0 | O65: 0 | P65: 0 | Q65: 0 | R65: 0 | S65: 0 | T65: 0 | U65: 6658.61 | V65: 4903.61 | W65: 529 | X65: 0 | Y65: 0 | Z65: 0 | AB65: =C65*'B Factor'!$F$6 -> 0 | AC65: =D65*'B Factor'!$F$6 -> 0 | AD65: =E65*'B Factor'!$F$6 -> 0 | AE65: =F65*'B Factor'!$F$6 -> 0 | AF65: =G65*'B Factor'!$F$6 -> 0 | AG65: =H65*'B Factor'!$F$6 -> 0 | AH65: =I65*'B Factor'!$F$6 -> 0 | AI65: =J65*'B Factor'!$F$6 -> 0 | AJ65: =K65*'B Factor'!$F$6 -> 0 | AK65: =L65*'B Factor'!$F$6 -> 0 | AL65: =M65*'B Factor'!$F$6 -> 0 | AM65: =N65*'B Factor'!$F$6 -> 0 | AN65: =O65*'B Factor'!$F$6 -> 0 | AO65: =P65*'B Factor'!$F$6 -> 0 | AP65: =Q65*'B Factor'!$F$6 -> 0 | AQ65: =R65*'B Factor'!$F$6 -> 0 | AR65: =S65*'B Factor'!$F$6 -> 0 | AS65: =T65*'B Factor'!$F$6 -> 0 | AT65: =U65*'B Factor'!$F$6 -> 0.0007728718161 | AU65: =V65*'B Factor'!$F$6 -> 0.0005691671334 | AV65: =W65*'B Factor'!$F$6 -> 6.140158242e-05 | AW65: =X65*'B Factor'!$F$6 -> 0 | AX65: =Y65*'B Factor'!$F$6 -> 0 | AY65: =Z65*'B Factor'!$F$6 -> 0
A66: A | B66: 2006-03-06 | C66: 0 | D66: 0 | E66: 0 | F66: 0 | G66: 0 | H66: 0 | I66: 0 | J66: 0 | K66: 0 | L66: 0 | M66: 0 | N66: 0 | O66: 0 | P66: 0 | Q66: 0 | R66: 0 | S66: 0 | T66: 0 | U66: 4881.45 | V66: 3577.49 | W66: 405.52 | X66: 0 | Y66: 0 | Z66: 0 | AB66: =C66*'B Factor'!$F$6 -> 0 | AC66: =D66*'B Factor'!$F$6 -> 0 | AD66: =E66*'B Factor'!$F$6 -> 0 | AE66: =F66*'B Factor'!$F$6 -> 0 | AF66: =G66*'B Factor'!$F$6 -> 0 | AG66: =H66*'B Factor'!$F$6 -> 0 | AH66: =I66*'B Factor'!$F$6 -> 0 | AI66: =J66*'B Factor'!$F$6 -> 0 | AJ66: =K66*'B Factor'!$F$6 -> 0 | AK66: =L66*'B Factor'!$F$6 -> 0 | AL66: =M66*'B Factor'!$F$6 -> 0 | AM66: =N66*'B Factor'!$F$6 -> 0 | AN66: =O66*'B Factor'!$F$6 -> 0 | AO66: =P66*'B Factor'!$F$6 -> 0 | AP66: =Q66*'B Factor'!$F$6 -> 0 | AQ66: =R66*'B Factor'!$F$6 -> 0 | AR66: =S66*'B Factor'!$F$6 -> 0 | AS66: =T66*'B Factor'!$F$6 -> 0 | AT66: =U66*'B Factor'!$F$6 -> 0.0005665949991 | AU66: =V66*'B Factor'!$F$6 -> 0.0004152430002 | AV66: =W66*'B Factor'!$F$6 -> 4.706912987e-05 | AW66: =X66*'B Factor'!$F$6 -> 0 | AX66: =Y66*'B Factor'!$F$6 -> 0 | AY66: =Z66*'B Factor'!$F$6 -> 0
A67: A | B67: 2006-03-07 | C67: 0 | D67: 0 | E67: 0 | F67: 0 | G67: 0 | H67: 0 | I67: 0 | J67: 0 | K67: 0 | L67: 0 | M67: 0 | N67: 0 | O67: 0 | P67: 0 | Q67: 0 | R67: 0 | S67: 0 | T67: 0 | U67: 3827.29 | V67: 2756.29 | W67: 23.13 | X67: 0 | Y67: 0 | Z67: 0 | AB67: =C67*'B Factor'!$F$6 -> 0 | AC67: =D67*'B Factor'!$F$6 -> 0 | AD67: =E67*'B Factor'!$F$6 -> 0 | AE67: =F67*'B Factor'!$F$6 -> 0 | AF67: =G67*'B Factor'!$F$6 -> 0 | AG67: =H67*'B Factor'!$F$6 -> 0 | AH67: =I67*'B Factor'!$F$6 -> 0 | AI67: =J67*'B Factor'!$F$6 -> 0 | AJ67: =K67*'B Factor'!$F$6 -> 0 | AK67: =L67*'B Factor'!$F$6 -> 0 | AL67: =M67*'B Factor'!$F$6 -> 0 | AM67: =N67*'B Factor'!$F$6 -> 0 | AN67: =O67*'B Factor'!$F$6 -> 0 | AO67: =P67*'B Factor'!$F$6 -> 0 | AP67: =Q67*'B Factor'!$F$6 -> 0 | AQ67: =R67*'B Factor'!$F$6 -> 0 | AR67: =S67*'B Factor'!$F$6 -> 0 | AS67: =T67*'B Factor'!$F$6 -> 0 | AT67: =U67*'B Factor'!$F$6 -> 0.000444237547 | AU67: =V67*'B Factor'!$F$6 -> 0.0003199254586 | AV67: =W67*'B Factor'!$F$6 -> 2.684723254e-06 | AW67: =X67*'B Factor'!$F$6 -> 0 | AX67: =Y67*'B Factor'!$F$6 -> 0 | AY67: =Z67*'B Factor'!$F$6 -> 0
A68: A | B68: 2006-03-08 | C68: 0 | D68: 0 | E68: 0 | F68: 0 | G68: 0 | H68: 0 | I68: 0 | J68: 0 | K68: 0 | L68: 0 | M68: 0 | N68: 0 | O68: 0 | P68: 0 | Q68: 0 | R68: 0 | S68: 0 | T68: 0 | U68: 447.89 | V68: 180.49 | W68: 0 | X68: 0 | Y68: 0 | Z68: 0 | AB68: =C68*'B Factor'!$F$6 -> 0 | AC68: =D68*'B Factor'!$F$6 -> 0 | AD68: =E68*'B Factor'!$F$6 -> 0 | AE68: =F68*'B Factor'!$F$6 -> 0 | AF68: =G68*'B Factor'!$F$6 -> 0 | AG68: =H68*'B Factor'!$F$6 -> 0 | AH68: =I68*'B Factor'!$F$6 -> 0 | AI68: =J68*'B Factor'!$F$6 -> 0 | AJ68: =K68*'B Factor'!$F$6 -> 0 | AK68: =L68*'B Factor'!$F$6 -> 0 | AL68: =M68*'B Factor'!$F$6 -> 0 | AM68: =N68*'B Factor'!$F$6 -> 0 | AN68: =O68*'B Factor'!$F$6 -> 0 | AO68: =P68*'B Factor'!$F$6 -> 0 | AP68: =Q68*'B Factor'!$F$6 -> 0 | AQ68: =R68*'B Factor'!$F$6 -> 0 | AR68: =S68*'B Factor'!$F$6 -> 0 | AS68: =T68*'B Factor'!$F$6 -> 0 | AT68: =U68*'B Factor'!$F$6 -> 5.198706002e-05 | AU68: =V68*'B Factor'!$F$6 -> 2.094966278e-05 | AV68: =W68*'B Factor'!$F$6 -> 0 | AW68: =X68*'B Factor'!$F$6 -> 0 | AX68: =Y68*'B Factor'!$F$6 -> 0 | AY68: =Z68*'B Factor'!$F$6 -> 0
A69: A | B69: 2006-03-09 | C69: 0 | D69: 0 | E69: 0 | F69: 0 | G69: 0 | H69: 0 | I69: 0 | J69: 0 | K69: 0 | L69: 0 | M69: 0 | N69: 0 | O69: 0 | P69: 0 | Q69: 0 | R69: 0 | S69: 0 | T69: 0 | U69: 456.15 | V69: 233.7 | W69: 0 | X69: 0 | Y69: 0 | Z69: 0 | AB69: =C69*'B Factor'!$F$6 -> 0 | AC69: =D69*'B Factor'!$F$6 -> 0 | AD69: =E69*'B Factor'!$F$6 -> 0 | AE69: =F69*'B Factor'!$F$6 -> 0 | AF69: =G69*'B Factor'!$F$6 -> 0 | AG69: =H69*'B Factor'!$F$6 -> 0 | AH69: =I69*'B Factor'!$F$6 -> 0 | AI69: =J69*'B Factor'!$F$6 -> 0 | AJ69: =K69*'B Factor'!$F$6 -> 0 | AK69: =L69*'B Factor'!$F$6 -> 0 | AL69: =M69*'B Factor'!$F$6 -> 0 | AM69: =N69*'B Factor'!$F$6 -> 0 | AN69: =O69*'B Factor'!$F$6 -> 0 | AO69: =P69*'B Factor'!$F$6 -> 0 | AP69: =Q69*'B Factor'!$F$6 -> 0 | AQ69: =R69*'B Factor'!$F$6 -> 0 | AR69: =S69*'B Factor'!$F$6 -> 0 | AS69: =T69*'B Factor'!$F$6 -> 0 | AT69: =U69*'B Factor'!$F$6 -> 5.294580684e-05 | AU69: =V69*'B Factor'!$F$6 -> 2.712580305e-05 | AV69: =W69*'B Factor'!$F$6 -> 0 | AW69: =X69*'B Factor'!$F$6 -> 0 | AX69: =Y69*'B Factor'!$F$6 -> 0 | AY69: =Z69*'B Factor'!$F$6 -> 0
A70: A | B70: 2006-03-10 | C70: 0 | D70: 0 | E70: 0 | F70: 0 | G70: 0 | H70: 0 | I70: 0 | J70: 0 | K70: 0 | L70: 0 | M70: 0 | N70: 0 | O70: 0 | P70: 0 | Q70: 0 | R70: 0 | S70: 0 | T70: 0 | U70: 141.26 | V70: 50.03 | W70: 0 | X70: 0 | Y70: 0 | Z70: 0 | AB70: =C70*'B Factor'!$F$6 -> 0 | AC70: =D70*'B Factor'!$F$6 -> 0 | AD70: =E70*'B Factor'!$F$6 -> 0 | AE70: =F70*'B Factor'!$F$6 -> 0 | AF70: =G70*'B Factor'!$F$6 -> 0 | AG70: =H70*'B Factor'!$F$6 -> 0 | AH70: =I70*'B Factor'!$F$6 -> 0 | AI70: =J70*'B Factor'!$F$6 -> 0 | AJ70: =K70*'B Factor'!$F$6 -> 0 | AK70: =L70*'B Factor'!$F$6 -> 0 | AL70: =M70*'B Factor'!$F$6 -> 0 | AM70: =N70*'B Factor'!$F$6 -> 0 | AN70: =O70*'B Factor'!$F$6 -> 0 | AO70: =P70*'B Factor'!$F$6 -> 0 | AP70: =Q70*'B Factor'!$F$6 -> 0 | AQ70: =R70*'B Factor'!$F$6 -> 0 | AR70: =S70*'B Factor'!$F$6 -> 0 | AS70: =T70*'B Factor'!$F$6 -> 0 | AT70: =U70*'B Factor'!$F$6 -> 1.639619571e-05 | AU70: =V70*'B Factor'!$F$6 -> 5.807034345e-06 | AV70: =W70*'B Factor'!$F$6 -> 0 | AW70: =X70*'B Factor'!$F$6 -> 0 | AX70: =Y70*'B Factor'!$F$6 -> 0 | AY70: =Z70*'B Factor'!$F$6 -> 0
A71: A | B71: 2006-03-11 | C71: 0 | D71: 0 | E71: 0 | F71: 0 | G71: 0 | H71: 0 | I71: 0 | J71: 0 | K71: 0 | L71: 0 | M71: 0 | N71: 0 | O71: 0 | P71: 0 | Q71: 0 | R71: 0 | S71: 0 | T71: 0 | U71: 1485.2 | V71: 743.76 | W71: 0 | X71: 0 | Y71: 0 | Z71: 0 | AB71: =C71*'B Factor'!$F$6 -> 0 | AC71: =D71*'B Factor'!$F$6 -> 0 | AD71: =E71*'B Factor'!$F$6 -> 0 | AE71: =F71*'B Factor'!$F$6 -> 0 | AF71: =G71*'B Factor'!$F$6 -> 0 | AG71: =H71*'B Factor'!$F$6 -> 0 | AH71: =I71*'B Factor'!$F$6 -> 0 | AI71: =J71*'B Factor'!$F$6 -> 0 | AJ71: =K71*'B Factor'!$F$6 -> 0 | AK71: =L71*'B Factor'!$F$6 -> 0 | AL71: =M71*'B Factor'!$F$6 -> 0 | AM71: =N71*'B Factor'!$F$6 -> 0 | AN71: =O71*'B Factor'!$F$6 -> 0 | AO71: =P71*'B Factor'!$F$6 -> 0 | AP71: =Q71*'B Factor'!$F$6 -> 0 | AQ71: =R71*'B Factor'!$F$6 -> 0 | AR71: =S71*'B Factor'!$F$6 -> 0 | AS71: =T71*'B Factor'!$F$6 -> 0 | AT71: =U71*'B Factor'!$F$6 -> 0.000172388715 | AU71: =V71*'B Factor'!$F$6 -> 8.632899989e-05 | AV71: =W71*'B Factor'!$F$6 -> 0 | AW71: =X71*'B Factor'!$F$6 -> 0 | AX71: =Y71*'B Factor'!$F$6 -> 0 | AY71: =Z71*'B Factor'!$F$6 -> 0
A72: A | B72: 2006-03-12 | C72: 0 | D72: 0 | E72: 0 | F72: 0 | G72: 0 | H72: 0 | I72: 0 | J72: 0 | K72: 0 | L72: 0 | M72: 0 | N72: 0 | O72: 0 | P72: 0 | Q72: 0 | R72: 0 | S72: 0 | T72: 0 | U72: 1489.09 | V72: 914.28 | W72: 0 | X72: 0 | Y72: 0 | Z72: 0 | AB72: =C72*'B Factor'!$F$6 -> 0 | AC72: =D72*'B Factor'!$F$6 -> 0 | AD72: =E72*'B Factor'!$F$6 -> 0 | AE72: =F72*'B Factor'!$F$6 -> 0 | AF72: =G72*'B Factor'!$F$6 -> 0 | AG72: =H72*'B Factor'!$F$6 -> 0 | AH72: =I72*'B Factor'!$F$6 -> 0 | AI72: =J72*'B Factor'!$F$6 -> 0 | AJ72: =K72*'B Factor'!$F$6 -> 0 | AK72: =L72*'B Factor'!$F$6 -> 0 | AL72: =M72*'B Factor'!$F$6 -> 0 | AM72: =N72*'B Factor'!$F$6 -> 0 | AN72: =O72*'B Factor'!$F$6 -> 0 | AO72: =P72*'B Factor'!$F$6 -> 0 | AP72: =Q72*'B Factor'!$F$6 -> 0 | AQ72: =R72*'B Factor'!$F$6 -> 0 | AR72: =S72*'B Factor'!$F$6 -> 0 | AS72: =T72*'B Factor'!$F$6 -> 0 | AT72: =U72*'B Factor'!$F$6 -> 0.0001728402313 | AU72: =V72*'B Factor'!$F$6 -> 0.0001061214344 | AV72: =W72*'B Factor'!$F$6 -> 0 | AW72: =X72*'B Factor'!$F$6 -> 0 | AX72: =Y72*'B Factor'!$F$6 -> 0 | AY72: =Z72*'B Factor'!$F$6 -> 0
A73: A | B73: 2006-03-13 | C73: 0 | D73: 0 | E73: 0 | F73: 0 | G73: 0 | H73: 0 | I73: 0 | J73: 0 | K73: 0 | L73: 0 | M73: 0 | N73: 0 | O73: 0 | P73: 0 | Q73: 0 | R73: 0 | S73: 0 | T73: 0 | U73: 670.37 | V73: 310.38 | W73: 0 | X73: 0 | Y73: 0 | Z73: 0 | AB73: =C73*'B Factor'!$F$6 -> 0 | AC73: =D73*'B Factor'!$F$6 -> 0 | AD73: =E73*'B Factor'!$F$6 -> 0 | AE73: =F73*'B Factor'!$F$6 -> 0 | AF73: =G73*'B Factor'!$F$6 -> 0 | AG73: =H73*'B Factor'!$F$6 -> 0 | AH73: =I73*'B Factor'!$F$6 -> 0 | AI73: =J73*'B Factor'!$F$6 -> 0 | AJ73: =K73*'B Factor'!$F$6 -> 0 | AK73: =L73*'B Factor'!$F$6 -> 0 | AL73: =M73*'B Factor'!$F$6 -> 0 | AM73: =N73*'B Factor'!$F$6 -> 0 | AN73: =O73*'B Factor'!$F$6 -> 0 | AO73: =P73*'B Factor'!$F$6 -> 0 | AP73: =Q73*'B Factor'!$F$6 -> 0 | AQ73: =R73*'B Factor'!$F$6 -> 0 | AR73: =S73*'B Factor'!$F$6 -> 0 | AS73: =T73*'B Factor'!$F$6 -> 0 | AT73: =U73*'B Factor'!$F$6 -> 7.781054595e-05 | AU73: =V73*'B Factor'!$F$6 -> 3.602613072e-05 | AV73: =W73*'B Factor'!$F$6 -> 0 | AW73: =X73*'B Factor'!$F$6 -> 0 | AX73: =Y73*'B Factor'!$F$6 -> 0 | AY73: =Z73*'B Factor'!$F$6 -> 0
A74: A | B74: 2006-03-14 | C74: 0 | D74: 0 | E74: 0 | F74: 0 | G74: 0 | H74: 0 | I74: 0 | J74: 0 | K74: 0 | L74: 0 | M74: 0 | N74: 0 | O74: 0 | P74: 0 | Q74: 0 | R74: 0 | S74: 0 | T74: 0 | U74: 632.33 | V74: 371.5 | W74: 0 | X74: 0 | Y74: 0 | Z74: 0 | AB74: =C74*'B Factor'!$F$6 -> 0 | AC74: =D74*'B Factor'!$F$6 -> 0 | AD74: =E74*'B Factor'!$F$6 -> 0 | AE74: =F74*'B Factor'!$F$6 -> 0 | AF74: =G74*'B Factor'!$F$6 -> 0 | AG74: =H74*'B Factor'!$F$6 -> 0 | AH74: =I74*'B Factor'!$F$6 -> 0 | AI74: =J74*'B Factor'!$F$6 -> 0 | AJ74: =K74*'B Factor'!$F$6 -> 0 | AK74: =L74*'B Factor'!$F$6 -> 0 | AL74: =M74*'B Factor'!$F$6 -> 0 | AM74: =N74*'B Factor'!$F$6 -> 0 | AN74: =O74*'B Factor'!$F$6 -> 0 | AO74: =P74*'B Factor'!$F$6 -> 0 | AP74: =Q74*'B Factor'!$F$6 -> 0 | AQ74: =R74*'B Factor'!$F$6 -> 0 | AR74: =S74*'B Factor'!$F$6 -> 0 | AS74: =T74*'B Factor'!$F$6 -> 0 | AT74: =U74*'B Factor'!$F$6 -> 7.339520342e-05 | AU74: =V74*'B Factor'!$F$6 -> 4.312039295e-05 | AV74: =W74*'B Factor'!$F$6 -> 0 | AW74: =X74*'B Factor'!$F$6 -> 0 | AX74: =Y74*'B Factor'!$F$6 -> 0 | AY74: =Z74*'B Factor'!$F$6 -> 0
A75: A | B75: 2006-03-15 | C75: 0 | D75: 0 | E75: 0 | F75: 0 | G75: 0 | H75: 0 | I75: 0 | J75: 0 | K75: 0 | L75: 0 | M75: 0 | N75: 0 | O75: 0 | P75: 0 | Q75: 0 | R75: 0 | S75: 0 | T75: 0 | U75: 132.88 | V75: 45.04 | W75: 0 | X75: 0 | Y75: 0 | Z75: 0 | AB75: =C75*'B Factor'!$F$6 -> 0 | AC75: =D75*'B Factor'!$F$6 -> 0 | AD75: =E75*'B Factor'!$F$6 -> 0 | AE75: =F75*'B Factor'!$F$6 -> 0 | AF75: =G75*'B Factor'!$F$6 -> 0 | AG75: =H75*'B Factor'!$F$6 -> 0 | AH75: =I75*'B Factor'!$F$6 -> 0 | AI75: =J75*'B Factor'!$F$6 -> 0 | AJ75: =K75*'B Factor'!$F$6 -> 0 | AK75: =L75*'B Factor'!$F$6 -> 0 | AL75: =M75*'B Factor'!$F$6 -> 0 | AM75: =N75*'B Factor'!$F$6 -> 0 | AN75: =O75*'B Factor'!$F$6 -> 0 | AO75: =P75*'B Factor'!$F$6 -> 0 | AP75: =Q75*'B Factor'!$F$6 -> 0 | AQ75: =R75*'B Factor'!$F$6 -> 0 | AR75: =S75*'B Factor'!$F$6 -> 0 | AS75: =T75*'B Factor'!$F$6 -> 0 | AT75: =U75*'B Factor'!$F$6 -> 1.542352036e-05 | AU75: =V75*'B Factor'!$F$6 -> 5.227839834e-06 | AV75: =W75*'B Factor'!$F$6 -> 0 | AW75: =X75*'B Factor'!$F$6 -> 0 | AX75: =Y75*'B Factor'!$F$6 -> 0 | AY75: =Z75*'B Factor'!$F$6 -> 0
A76: A | B76: 2006-03-16 | C76: 0 | D76: 0 | E76: 0 | F76: 0 | G76: 0 | H76: 0 | I76: 0 | J76: 0 | K76: 0 | L76: 0 | M76: 0 | N76: 0 | O76: 0 | P76: 0 | Q76: 0 | R76: 0 | S76: 0 | T76: 0 | U76: 0 | V76: 0 | W76: 0 | X76: 0 | Y76: 0 | Z76: 0 | AB76: =C76*'B Factor'!$F$6 -> 0 | AC76: =D76*'B Factor'!$F$6 -> 0 | AD76: =E76*'B Factor'!$F$6 -> 0 | AE76: =F76*'B Factor'!$F$6 -> 0 | AF76: =G76*'B Factor'!$F$6 -> 0 | AG76: =H76*'B Factor'!$F$6 -> 0 | AH76: =I76*'B Factor'!$F$6 -> 0 | AI76: =J76*'B Factor'!$F$6 -> 0 | AJ76: =K76*'B Factor'!$F$6 -> 0 | AK76: =L76*'B Factor'!$F$6 -> 0 | AL76: =M76*'B Factor'!$F$6 -> 0 | AM76: =N76*'B Factor'!$F$6 -> 0 | AN76: =O76*'B Factor'!$F$6 -> 0 | AO76: =P76*'B Factor'!$F$6 -> 0 | AP76: =Q76*'B Factor'!$F$6 -> 0 | AQ76: =R76*'B Factor'!$F$6 -> 0 | AR76: =S76*'B Factor'!$F$6 -> 0 | AS76: =T76*'B Factor'!$F$6 -> 0 | AT76: =U76*'B Factor'!$F$6 -> 0 | AU76: =V76*'B Factor'!$F$6 -> 0 | AV76: =W76*'B Factor'!$F$6 -> 0 | AW76: =X76*'B Factor'!$F$6 -> 0 | AX76: =Y76*'B Factor'!$F$6 -> 0 | AY76: =Z76*'B Factor'!$F$6 -> 0
A77: A | B77: 2006-03-17 | C77: 0 | D77: 0 | E77: 0 | F77: 0 | G77: 0 | H77: 0 | I77: 0 | J77: 0 | K77: 0 | L77: 0 | M77: 0 | N77: 0 | O77: 0 | P77: 0 | Q77: 0 | R77: 0 | S77: 0 | T77: 0 | U77: 12.41 | V77: 0 | W77: 0 | X77: 0 | Y77: 0 | Z77: 0 | AB77: =C77*'B Factor'!$F$6 -> 0 | AC77: =D77*'B Factor'!$F$6 -> 0 | AD77: =E77*'B Factor'!$F$6 -> 0 | AE77: =F77*'B Factor'!$F$6 -> 0 | AF77: =G77*'B Factor'!$F$6 -> 0 | AG77: =H77*'B Factor'!$F$6 -> 0 | AH77: =I77*'B Factor'!$F$6 -> 0 | AI77: =J77*'B Factor'!$F$6 -> 0 | AJ77: =K77*'B Factor'!$F$6 -> 0 | AK77: =L77*'B Factor'!$F$6 -> 0 | AL77: =M77*'B Factor'!$F$6 -> 0 | AM77: =N77*'B Factor'!$F$6 -> 0 | AN77: =O77*'B Factor'!$F$6 -> 0 | AO77: =P77*'B Factor'!$F$6 -> 0 | AP77: =Q77*'B Factor'!$F$6 -> 0 | AQ77: =R77*'B Factor'!$F$6 -> 0 | AR77: =S77*'B Factor'!$F$6 -> 0 | AS77: =T77*'B Factor'!$F$6 -> 0 | AT77: =U77*'B Factor'!$F$6 -> 1.440441659e-06 | AU77: =V77*'B Factor'!$F$6 -> 0 | AV77: =W77*'B Factor'!$F$6 -> 0 | AW77: =X77*'B Factor'!$F$6 -> 0 | AX77: =Y77*'B Factor'!$F$6 -> 0 | AY77: =Z77*'B Factor'!$F$6 -> 0
A78: A | B78: 2006-03-18 | C78: 0 | D78: 0 | E78: 0 | F78: 0 | G78: 0 | H78: 0 | I78: 0 | J78: 0 | K78: 0 | L78: 0 | M78: 0 | N78: 0 | O78: 0 | P78: 0 | Q78: 0 | R78: 0 | S78: 0 | T78: 0 | U78: 136.48 | V78: 52.85 | W78: 0 | X78: 0 | Y78: 0 | Z78: 0 | AB78: =C78*'B Factor'!$F$6 -> 0 | AC78: =D78*'B Factor'!$F$6 -> 0 | AD78: =E78*'B Factor'!$F$6 -> 0 | AE78: =F78*'B Factor'!$F$6 -> 0 | AF78: =G78*'B Factor'!$F$6 -> 0 | AG78: =H78*'B Factor'!$F$6 -> 0 | AH78: =I78*'B Factor'!$F$6 -> 0 | AI78: =J78*'B Factor'!$F$6 -> 0 | AJ78: =K78*'B Factor'!$F$6 -> 0 | AK78: =L78*'B Factor'!$F$6 -> 0 | AL78: =M78*'B Factor'!$F$6 -> 0 | AM78: =N78*'B Factor'!$F$6 -> 0 | AN78: =O78*'B Factor'!$F$6 -> 0 | AO78: =P78*'B Factor'!$F$6 -> 0 | AP78: =Q78*'B Factor'!$F$6 -> 0 | AQ78: =R78*'B Factor'!$F$6 -> 0 | AR78: =S78*'B Factor'!$F$6 -> 0 | AS78: =T78*'B Factor'!$F$6 -> 0 | AT78: =U78*'B Factor'!$F$6 -> 1.584137612e-05 | AU78: =V78*'B Factor'!$F$6 -> 6.13435469e-06 | AV78: =W78*'B Factor'!$F$6 -> 0 | AW78: =X78*'B Factor'!$F$6 -> 0 | AX78: =Y78*'B Factor'!$F$6 -> 0 | AY78: =Z78*'B Factor'!$F$6 -> 0
A79: A | B79: 2006-03-19 | C79: 0 | D79: 0 | E79: 0 | F79: 0 | G79: 0 | H79: 0 | I79: 0 | J79: 0 | K79: 0 | L79: 0 | M79: 0 | N79: 0 | O79: 0 | P79: 0 | Q79: 0 | R79: 0 | S79: 0 | T79: 0 | U79: 413.4 | V79: 251.63 | W79: 0 | X79: 0 | Y79: 0 | Z79: 0 | AB79: =C79*'B Factor'!$F$6 -> 0 | AC79: =D79*'B Factor'!$F$6 -> 0 | AD79: =E79*'B Factor'!$F$6 -> 0 | AE79: =F79*'B Factor'!$F$6 -> 0 | AF79: =G79*'B Factor'!$F$6 -> 0 | AG79: =H79*'B Factor'!$F$6 -> 0 | AH79: =I79*'B Factor'!$F$6 -> 0 | AI79: =J79*'B Factor'!$F$6 -> 0 | AJ79: =K79*'B Factor'!$F$6 -> 0 | AK79: =L79*'B Factor'!$F$6 -> 0 | AL79: =M79*'B Factor'!$F$6 -> 0 | AM79: =N79*'B Factor'!$F$6 -> 0 | AN79: =O79*'B Factor'!$F$6 -> 0 | AO79: =P79*'B Factor'!$F$6 -> 0 | AP79: =Q79*'B Factor'!$F$6 -> 0 | AQ79: =R79*'B Factor'!$F$6 -> 0 | AR79: =S79*'B Factor'!$F$6 -> 0 | AS79: =T79*'B Factor'!$F$6 -> 0 | AT79: =U79*'B Factor'!$F$6 -> 4.79837697e-05 | AU79: =V79*'B Factor'!$F$6 -> 2.920695687e-05 | AV79: =W79*'B Factor'!$F$6 -> 0 | AW79: =X79*'B Factor'!$F$6 -> 0 | AX79: =Y79*'B Factor'!$F$6 -> 0 | AY79: =Z79*'B Factor'!$F$6 -> 0
A80: A | B80: 2006-03-20 | C80: 0 | D80: 0 | E80: 0 | F80: 0 | G80: 0 | H80: 0 | I80: 0 | J80: 0 | K80: 0 | L80: 0 | M80: 0 | N80: 0 | O80: 0 | P80: 0 | Q80: 0 | R80: 0 | S80: 0 | T80: 0 | U80: 190.3 | V80: 149.62 | W80: 0 | X80: 0 | Y80: 0 | Z80: 0 | AB80: =C80*'B Factor'!$F$6 -> 0 | AC80: =D80*'B Factor'!$F$6 -> 0 | AD80: =E80*'B Factor'!$F$6 -> 0 | AE80: =F80*'B Factor'!$F$6 -> 0 | AF80: =G80*'B Factor'!$F$6 -> 0 | AG80: =H80*'B Factor'!$F$6 -> 0 | AH80: =I80*'B Factor'!$F$6 -> 0 | AI80: =J80*'B Factor'!$F$6 -> 0 | AJ80: =K80*'B Factor'!$F$6 -> 0 | AK80: =L80*'B Factor'!$F$6 -> 0 | AL80: =M80*'B Factor'!$F$6 -> 0 | AM80: =N80*'B Factor'!$F$6 -> 0 | AN80: =O80*'B Factor'!$F$6 -> 0 | AO80: =P80*'B Factor'!$F$6 -> 0 | AP80: =Q80*'B Factor'!$F$6 -> 0 | AQ80: =R80*'B Factor'!$F$6 -> 0 | AR80: =S80*'B Factor'!$F$6 -> 0 | AS80: =T80*'B Factor'!$F$6 -> 0 | AT80: =U80*'B Factor'!$F$6 -> 2.208831973e-05 | AU80: =V80*'B Factor'!$F$6 -> 1.736654964e-05 | AV80: =W80*'B Factor'!$F$6 -> 0 | AW80: =X80*'B Factor'!$F$6 -> 0 | AX80: =Y80*'B Factor'!$F$6 -> 0 | AY80: =Z80*'B Factor'!$F$6 -> 0
A81: A | B81: 2006-03-21 | C81: 0 | D81: 0 | E81: 0 | F81: 0 | G81: 0 | H81: 0 | I81: 0 | J81: 0 | K81: 0 | L81: 0 | M81: 0 | N81: 0 | O81: 0 | P81: 0 | Q81: 0 | R81: 0 | S81: 0 | T81: 0 | U81: 316.75 | V81: 236.04 | W81: 0 | X81: 0 | Y81: 0 | Z81: 0 | AB81: =C81*'B Factor'!$F$6 -> 0 | AC81: =D81*'B Factor'!$F$6 -> 0 | AD81: =E81*'B Factor'!$F$6 -> 0 | AE81: =F81*'B Factor'!$F$6 -> 0 | AF81: =G81*'B Factor'!$F$6 -> 0 | AG81: =H81*'B Factor'!$F$6 -> 0 | AH81: =I81*'B Factor'!$F$6 -> 0 | AI81: =J81*'B Factor'!$F$6 -> 0 | AJ81: =K81*'B Factor'!$F$6 -> 0 | AK81: =L81*'B Factor'!$F$6 -> 0 | AL81: =M81*'B Factor'!$F$6 -> 0 | AM81: =N81*'B Factor'!$F$6 -> 0 | AN81: =O81*'B Factor'!$F$6 -> 0 | AO81: =P81*'B Factor'!$F$6 -> 0 | AP81: =Q81*'B Factor'!$F$6 -> 0 | AQ81: =R81*'B Factor'!$F$6 -> 0 | AR81: =S81*'B Factor'!$F$6 -> 0 | AS81: =T81*'B Factor'!$F$6 -> 0 | AT81: =U81*'B Factor'!$F$6 -> 3.676550327e-05 | AU81: =V81*'B Factor'!$F$6 -> 2.739740929e-05 | AV81: =W81*'B Factor'!$F$6 -> 0 | AW81: =X81*'B Factor'!$F$6 -> 0 | AX81: =Y81*'B Factor'!$F$6 -> 0 | AY81: =Z81*'B Factor'!$F$6 -> 0
A82: A | B82: 2006-03-22 | C82: 0 | D82: 0 | E82: 0 | F82: 0 | G82: 0 | H82: 0 | I82: 0 | J82: 0 | K82: 0 | L82: 0 | M82: 0 | N82: 0 | O82: 0 | P82: 0 | Q82: 0 | R82: 0 | S82: 0 | T82: 0 | U82: 185.3 | V82: 133.03 | W82: 0 | X82: 0 | Y82: 0 | Z82: 0 | AB82: =C82*'B Factor'!$F$6 -> 0 | AC82: =D82*'B Factor'!$F$6 -> 0 | AD82: =E82*'B Factor'!$F$6 -> 0 | AE82: =F82*'B Factor'!$F$6 -> 0 | AF82: =G82*'B Factor'!$F$6 -> 0 | AG82: =H82*'B Factor'!$F$6 -> 0 | AH82: =I82*'B Factor'!$F$6 -> 0 | AI82: =J82*'B Factor'!$F$6 -> 0 | AJ82: =K82*'B Factor'!$F$6 -> 0 | AK82: =L82*'B Factor'!$F$6 -> 0 | AL82: =M82*'B Factor'!$F$6 -> 0 | AM82: =N82*'B Factor'!$F$6 -> 0 | AN82: =O82*'B Factor'!$F$6 -> 0 | AO82: =P82*'B Factor'!$F$6 -> 0 | AP82: =Q82*'B Factor'!$F$6 -> 0 | AQ82: =R82*'B Factor'!$F$6 -> 0 | AR82: =S82*'B Factor'!$F$6 -> 0 | AS82: =T82*'B Factor'!$F$6 -> 0 | AT82: =U82*'B Factor'!$F$6 -> 2.15079645e-05 | AU82: =V82*'B Factor'!$F$6 -> 1.544093102e-05 | AV82: =W82*'B Factor'!$F$6 -> 0 | AW82: =X82*'B Factor'!$F$6 -> 0 | AX82: =Y82*'B Factor'!$F$6 -> 0 | AY82: =Z82*'B Factor'!$F$6 -> 0
A83: A | B83: 2006-03-23 | C83: 0 | D83: 0 | E83: 0 | F83: 0 | G83: 0 | H83: 0 | I83: 0 | J83: 0 | K83: 0 | L83: 0 | M83: 0 | N83: 0 | O83: 0 | P83: 0 | Q83: 0 | R83: 0 | S83: 0 | T83: 0 | U83: 0 | V83: 0 | W83: 0 | X83: 0 | Y83: 0 | Z83: 0 | AB83: =C83*'B Factor'!$F$6 -> 0 | AC83: =D83*'B Factor'!$F$6 -> 0 | AD83: =E83*'B Factor'!$F$6 -> 0 | AE83: =F83*'B Factor'!$F$6 -> 0 | AF83: =G83*'B Factor'!$F$6 -> 0 | AG83: =H83*'B Factor'!$F$6 -> 0 | AH83: =I83*'B Factor'!$F$6 -> 0 | AI83: =J83*'B Factor'!$F$6 -> 0 | AJ83: =K83*'B Factor'!$F$6 -> 0 | AK83: =L83*'B Factor'!$F$6 -> 0 | AL83: =M83*'B Factor'!$F$6 -> 0 | AM83: =N83*'B Factor'!$F$6 -> 0 | AN83: =O83*'B Factor'!$F$6 -> 0 | AO83: =P83*'B Factor'!$F$6 -> 0 | AP83: =Q83*'B Factor'!$F$6 -> 0 | AQ83: =R83*'B Factor'!$F$6 -> 0 | AR83: =S83*'B Factor'!$F$6 -> 0 | AS83: =T83*'B Factor'!$F$6 -> 0 | AT83: =U83*'B Factor'!$F$6 -> 0 | AU83: =V83*'B Factor'!$F$6 -> 0 | AV83: =W83*'B Factor'!$F$6 -> 0 | AW83: =X83*'B Factor'!$F$6 -> 0 | AX83: =Y83*'B Factor'!$F$6 -> 0 | AY83: =Z83*'B Factor'!$F$6 -> 0
A84: A | B84: 2006-03-24 | C84: 0 | D84: 0 | E84: 0 | F84: 0 | G84: 0 | H84: 0 | I84: 0 | J84: 0 | K84: 0 | L84: 0 | M84: 0 | N84: 0 | O84: 0 | P84: 0 | Q84: 0 | R84: 0 | S84: 0 | T84: 0 | U84: 0 | V84: 0 | W84: 0 | X84: 0 | Y84: 0 | Z84: 0 | AB84: =C84*'B Factor'!$F$6 -> 0 | AC84: =D84*'B Factor'!$F$6 -> 0 | AD84: =E84*'B Factor'!$F$6 -> 0 | AE84: =F84*'B Factor'!$F$6 -> 0 | AF84: =G84*'B Factor'!$F$6 -> 0 | AG84: =H84*'B Factor'!$F$6 -> 0 | AH84: =I84*'B Factor'!$F$6 -> 0 | AI84: =J84*'B Factor'!$F$6 -> 0 | AJ84: =K84*'B Factor'!$F$6 -> 0 | AK84: =L84*'B Factor'!$F$6 -> 0 | AL84: =M84*'B Factor'!$F$6 -> 0 | AM84: =N84*'B Factor'!$F$6 -> 0 | AN84: =O84*'B Factor'!$F$6 -> 0 | AO84: =P84*'B Factor'!$F$6 -> 0 | AP84: =Q84*'B Factor'!$F$6 -> 0 | AQ84: =R84*'B Factor'!$F$6 -> 0 | AR84: =S84*'B Factor'!$F$6 -> 0 | AS84: =T84*'B Factor'!$F$6 -> 0 | AT84: =U84*'B Factor'!$F$6 -> 0 | AU84: =V84*'B Factor'!$F$6 -> 0 | AV84: =W84*'B Factor'!$F$6 -> 0 | AW84: =X84*'B Factor'!$F$6 -> 0 | AX84: =Y84*'B Factor'!$F$6 -> 0 | AY84: =Z84*'B Factor'!$F$6 -> 0
A85: A | B85: 2006-03-25 | C85: 0 | D85: 0 | E85: 0 | F85: 0 | G85: 0 | H85: 0 | I85: 0 | J85: 0 | K85: 0 | L85: 0 | M85: 0 | N85: 0 | O85: 0 | P85: 0 | Q85: 0 | R85: 0 | S85: 0 | T85: 0 | U85: 162.7 | V85: 77.8 | W85: 0 | X85: 0 | Y85: 0 | Z85: 0 | AB85: =C85*'B Factor'!$F$6 -> 0 | AC85: =D85*'B Factor'!$F$6 -> 0 | AD85: =E85*'B Factor'!$F$6 -> 0 | AE85: =F85*'B Factor'!$F$6 -> 0 | AF85: =G85*'B Factor'!$F$6 -> 0 | AG85: =H85*'B Factor'!$F$6 -> 0 | AH85: =I85*'B Factor'!$F$6 -> 0 | AI85: =J85*'B Factor'!$F$6 -> 0 | AJ85: =K85*'B Factor'!$F$6 -> 0 | AK85: =L85*'B Factor'!$F$6 -> 0 | AL85: =M85*'B Factor'!$F$6 -> 0 | AM85: =N85*'B Factor'!$F$6 -> 0 | AN85: =O85*'B Factor'!$F$6 -> 0 | AO85: =P85*'B Factor'!$F$6 -> 0 | AP85: =Q85*'B Factor'!$F$6 -> 0 | AQ85: =R85*'B Factor'!$F$6 -> 0 | AR85: =S85*'B Factor'!$F$6 -> 0 | AS85: =T85*'B Factor'!$F$6 -> 0 | AT85: =U85*'B Factor'!$F$6 -> 1.88847589e-05 | AU85: =V85*'B Factor'!$F$6 -> 9.030327244e-06 | AV85: =W85*'B Factor'!$F$6 -> 0 | AW85: =X85*'B Factor'!$F$6 -> 0 | AX85: =Y85*'B Factor'!$F$6 -> 0 | AY85: =Z85*'B Factor'!$F$6 -> 0
A86: A | B86: 2006-03-26 | C86: 0 | D86: 0 | E86: 0 | F86: 0 | G86: 0 | H86: 0 | I86: 0 | J86: 0 | K86: 0 | L86: 0 | M86: 0 | N86: 0 | O86: 0 | P86: 0 | Q86: 0 | R86: 0 | S86: 0 | T86: 0 | U86: 149.35 | V86: 121.65 | W86: 0 | X86: 0 | Y86: 0 | Z86: 0 | AB86: =C86*'B Factor'!$F$6 -> 0 | AC86: =D86*'B Factor'!$F$6 -> 0 | AD86: =E86*'B Factor'!$F$6 -> 0 | AE86: =F86*'B Factor'!$F$6 -> 0 | AF86: =G86*'B Factor'!$F$6 -> 0 | AG86: =H86*'B Factor'!$F$6 -> 0 | AH86: =I86*'B Factor'!$F$6 -> 0 | AI86: =J86*'B Factor'!$F$6 -> 0 | AJ86: =K86*'B Factor'!$F$6 -> 0 | AK86: =L86*'B Factor'!$F$6 -> 0 | AL86: =M86*'B Factor'!$F$6 -> 0 | AM86: =N86*'B Factor'!$F$6 -> 0 | AN86: =O86*'B Factor'!$F$6 -> 0 | AO86: =P86*'B Factor'!$F$6 -> 0 | AP86: =Q86*'B Factor'!$F$6 -> 0 | AQ86: =R86*'B Factor'!$F$6 -> 0 | AR86: =S86*'B Factor'!$F$6 -> 0 | AS86: =T86*'B Factor'!$F$6 -> 0 | AT86: =U86*'B Factor'!$F$6 -> 1.733521046e-05 | AU86: =V86*'B Factor'!$F$6 -> 1.412004254e-05 | AV86: =W86*'B Factor'!$F$6 -> 0 | AW86: =X86*'B Factor'!$F$6 -> 0 | AX86: =Y86*'B Factor'!$F$6 -> 0 | AY86: =Z86*'B Factor'!$F$6 -> 0
A87: A | B87: 2006-03-27 | C87: 0 | D87: 0 | E87: 0 | F87: 0 | G87: 0 | H87: 0 | I87: 0 | J87: 0 | K87: 0 | L87: 0 | M87: 0 | N87: 0 | O87: 0 | P87: 0 | Q87: 0 | R87: 0 | S87: 0 | T87: 0 | U87: 353.24 | V87: 253.22 | W87: 0 | X87: 0 | Y87: 0 | Z87: 0 | AB87: =C87*'B Factor'!$F$6 -> 0 | AC87: =D87*'B Factor'!$F$6 -> 0 | AD87: =E87*'B Factor'!$F$6 -> 0 | AE87: =F87*'B Factor'!$F$6 -> 0 | AF87: =G87*'B Factor'!$F$6 -> 0 | AG87: =H87*'B Factor'!$F$6 -> 0 | AH87: =I87*'B Factor'!$F$6 -> 0 | AI87: =J87*'B Factor'!$F$6 -> 0 | AJ87: =K87*'B Factor'!$F$6 -> 0 | AK87: =L87*'B Factor'!$F$6 -> 0 | AL87: =M87*'B Factor'!$F$6 -> 0 | AM87: =N87*'B Factor'!$F$6 -> 0 | AN87: =O87*'B Factor'!$F$6 -> 0 | AO87: =P87*'B Factor'!$F$6 -> 0 | AP87: =Q87*'B Factor'!$F$6 -> 0 | AQ87: =R87*'B Factor'!$F$6 -> 0 | AR87: =S87*'B Factor'!$F$6 -> 0 | AS87: =T87*'B Factor'!$F$6 -> 0 | AT87: =U87*'B Factor'!$F$6 -> 4.100093568e-05 | AU87: =V87*'B Factor'!$F$6 -> 2.939150983e-05 | AV87: =W87*'B Factor'!$F$6 -> 0 | AW87: =X87*'B Factor'!$F$6 -> 0 | AX87: =Y87*'B Factor'!$F$6 -> 0 | AY87: =Z87*'B Factor'!$F$6 -> 0
A88: A | B88: 2006-03-28 | C88: 0 | D88: 0 | E88: 0 | F88: 0 | G88: 0 | H88: 0 | I88: 0 | J88: 0 | K88: 0 | L88: 0 | M88: 0 | N88: 0 | O88: 0 | P88: 0 | Q88: 0 | R88: 0 | S88: 0 | T88: 0 | U88: 188.52 | V88: 188.52 | W88: 0 | X88: 0 | Y88: 0 | Z88: 0 | AB88: =C88*'B Factor'!$F$6 -> 0 | AC88: =D88*'B Factor'!$F$6 -> 0 | AD88: =E88*'B Factor'!$F$6 -> 0 | AE88: =F88*'B Factor'!$F$6 -> 0 | AF88: =G88*'B Factor'!$F$6 -> 0 | AG88: =H88*'B Factor'!$F$6 -> 0 | AH88: =I88*'B Factor'!$F$6 -> 0 | AI88: =J88*'B Factor'!$F$6 -> 0 | AJ88: =K88*'B Factor'!$F$6 -> 0 | AK88: =L88*'B Factor'!$F$6 -> 0 | AL88: =M88*'B Factor'!$F$6 -> 0 | AM88: =N88*'B Factor'!$F$6 -> 0 | AN88: =O88*'B Factor'!$F$6 -> 0 | AO88: =P88*'B Factor'!$F$6 -> 0 | AP88: =Q88*'B Factor'!$F$6 -> 0 | AQ88: =R88*'B Factor'!$F$6 -> 0 | AR88: =S88*'B Factor'!$F$6 -> 0 | AS88: =T88*'B Factor'!$F$6 -> 0 | AT88: =U88*'B Factor'!$F$6 -> 2.188171327e-05 | AU88: =V88*'B Factor'!$F$6 -> 2.188171327e-05 | AV88: =W88*'B Factor'!$F$6 -> 0 | AW88: =X88*'B Factor'!$F$6 -> 0 | AX88: =Y88*'B Factor'!$F$6 -> 0 | AY88: =Z88*'B Factor'!$F$6 -> 0
A89: A | B89: 2006-03-29 | C89: 0 | D89: 0 | E89: 0 | F89: 0 | G89: 0 | H89: 0 | I89: 0 | J89: 0 | K89: 0 | L89: 0 | M89: 0 | N89: 0 | O89: 0 | P89: 0 | Q89: 0 | R89: 0 | S89: 0 | T89: 0 | U89: 64.53 | V89: 56.54 | W89: 0 | X89: 0 | Y89: 0 | Z89: 0 | AB89: =C89*'B Factor'!$F$6 -> 0 | AC89: =D89*'B Factor'!$F$6 -> 0 | AD89: =E89*'B Factor'!$F$6 -> 0 | AE89: =F89*'B Factor'!$F$6 -> 0 | AF89: =G89*'B Factor'!$F$6 -> 0 | AG89: =H89*'B Factor'!$F$6 -> 0 | AH89: =I89*'B Factor'!$F$6 -> 0 | AI89: =J89*'B Factor'!$F$6 -> 0 | AJ89: =K89*'B Factor'!$F$6 -> 0 | AK89: =L89*'B Factor'!$F$6 -> 0 | AL89: =M89*'B Factor'!$F$6 -> 0 | AM89: =N89*'B Factor'!$F$6 -> 0 | AN89: =O89*'B Factor'!$F$6 -> 0 | AO89: =P89*'B Factor'!$F$6 -> 0 | AP89: =Q89*'B Factor'!$F$6 -> 0 | AQ89: =R89*'B Factor'!$F$6 -> 0 | AR89: =S89*'B Factor'!$F$6 -> 0 | AS89: =T89*'B Factor'!$F$6 -> 0 | AT89: =U89*'B Factor'!$F$6 -> 7.490064487e-06 | AU89: =V89*'B Factor'!$F$6 -> 6.562656843e-06 | AV89: =W89*'B Factor'!$F$6 -> 0 | AW89: =X89*'B Factor'!$F$6 -> 0 | AX89: =Y89*'B Factor'!$F$6 -> 0 | AY89: =Z89*'B Factor'!$F$6 -> 0
A90: A | B90: 2006-03-30 | C90: 0 | D90: 0 | E90: 0 | F90: 0 | G90: 0 | H90: 0 | I90: 0 | J90: 0 | K90: 0 | L90: 0 | M90: 0 | N90: 0 | O90: 0 | P90: 0 | Q90: 0 | R90: 0 | S90: 0 | T90: 0 | U90: 0 | V90: 0 | W90: 0 | X90: 0 | Y90: 0 | Z90: 0 | AB90: =C90*'B Factor'!$F$6 -> 0 | AC90: =D90*'B Factor'!$F$6 -> 0 | AD90: =E90*'B Factor'!$F$6 -> 0 | AE90: =F90*'B Factor'!$F$6 -> 0 | AF90: =G90*'B Factor'!$F$6 -> 0 | AG90: =H90*'B Factor'!$F$6 -> 0 | AH90: =I90*'B Factor'!$F$6 -> 0 | AI90: =J90*'B Factor'!$F$6 -> 0 | AJ90: =K90*'B Factor'!$F$6 -> 0 | AK90: =L90*'B Factor'!$F$6 -> 0 | AL90: =M90*'B Factor'!$F$6 -> 0 | AM90: =N90*'B Factor'!$F$6 -> 0 | AN90: =O90*'B Factor'!$F$6 -> 0 | AO90: =P90*'B Factor'!$F$6 -> 0 | AP90: =Q90*'B Factor'!$F$6 -> 0 | AQ90: =R90*'B Factor'!$F$6 -> 0 | AR90: =S90*'B Factor'!$F$6 -> 0 | AS90: =T90*'B Factor'!$F$6 -> 0 | AT90: =U90*'B Factor'!$F$6 -> 0 | AU90: =V90*'B Factor'!$F$6 -> 0 | AV90: =W90*'B Factor'!$F$6 -> 0 | AW90: =X90*'B Factor'!$F$6 -> 0 | AX90: =Y90*'B Factor'!$F$6 -> 0 | AY90: =Z90*'B Factor'!$F$6 -> 0
A91: A | B91: 2006-03-31 | C91: 0 | D91: 0 | E91: 0 | F91: 0 | G91: 0 | H91: 0 | I91: 0 | J91: 0 | K91: 0 | L91: 0 | M91: 0 | N91: 0 | O91: 0 | P91: 0 | Q91: 0 | R91: 0 | S91: 0 | T91: 0 | U91: 0 | V91: 0 | W91: 0 | X91: 0 | Y91: 0 | Z91: 0 | AB91: =C91*'B Factor'!$F$6 -> 0 | AC91: =D91*'B Factor'!$F$6 -> 0 | AD91: =E91*'B Factor'!$F$6 -> 0 | AE91: =F91*'B Factor'!$F$6 -> 0 | AF91: =G91*'B Factor'!$F$6 -> 0 | AG91: =H91*'B Factor'!$F$6 -> 0 | AH91: =I91*'B Factor'!$F$6 -> 0 | AI91: =J91*'B Factor'!$F$6 -> 0 | AJ91: =K91*'B Factor'!$F$6 -> 0 | AK91: =L91*'B Factor'!$F$6 -> 0 | AL91: =M91*'B Factor'!$F$6 -> 0 | AM91: =N91*'B Factor'!$F$6 -> 0 | AN91: =O91*'B Factor'!$F$6 -> 0 | AO91: =P91*'B Factor'!$F$6 -> 0 | AP91: =Q91*'B Factor'!$F$6 -> 0 | AQ91: =R91*'B Factor'!$F$6 -> 0 | AR91: =S91*'B Factor'!$F$6 -> 0 | AS91: =T91*'B Factor'!$F$6 -> 0 | AT91: =U91*'B Factor'!$F$6 -> 0 | AU91: =V91*'B Factor'!$F$6 -> 0 | AV91: =W91*'B Factor'!$F$6 -> 0 | AW91: =X91*'B Factor'!$F$6 -> 0 | AX91: =Y91*'B Factor'!$F$6 -> 0 | AY91: =Z91*'B Factor'!$F$6 -> 0
A92: A | B92: 2006-04-01 | C92: 0 | D92: 0 | E92: 0 | F92: 0 | G92: 0 | H92: 0 | I92: 0 | J92: 0 | K92: 0 | L92: 0 | M92: 0 | N92: 0 | O92: 0 | P92: 0 | Q92: 0 | R92: 0 | S92: 0 | T92: 0 | U92: 93.11 | V92: 132.21 | W92: 0 | X92: 0 | Y92: 0 | Z92: 0 | AB92: =C92*'B Factor'!$F$6 -> 0 | AC92: =D92*'B Factor'!$F$6 -> 0 | AD92: =E92*'B Factor'!$F$6 -> 0 | AE92: =F92*'B Factor'!$F$6 -> 0 | AF92: =G92*'B Factor'!$F$6 -> 0 | AG92: =H92*'B Factor'!$F$6 -> 0 | AH92: =I92*'B Factor'!$F$6 -> 0 | AI92: =J92*'B Factor'!$F$6 -> 0 | AJ92: =K92*'B Factor'!$F$6 -> 0 | AK92: =L92*'B Factor'!$F$6 -> 0 | AL92: =M92*'B Factor'!$F$6 -> 0 | AM92: =N92*'B Factor'!$F$6 -> 0 | AN92: =O92*'B Factor'!$F$6 -> 0 | AO92: =P92*'B Factor'!$F$6 -> 0 | AP92: =Q92*'B Factor'!$F$6 -> 0 | AQ92: =R92*'B Factor'!$F$6 -> 0 | AR92: =S92*'B Factor'!$F$6 -> 0 | AS92: =T92*'B Factor'!$F$6 -> 0 | AT92: =U92*'B Factor'!$F$6 -> 1.080737493e-05 | AU92: =V92*'B Factor'!$F$6 -> 1.534575276e-05 | AV92: =W92*'B Factor'!$F$6 -> 0 | AW92: =X92*'B Factor'!$F$6 -> 0 | AX92: =Y92*'B Factor'!$F$6 -> 0 | AY92: =Z92*'B Factor'!$F$6 -> 0
A93: A | B93: 2006-04-02 | C93: 0 | D93: 0 | E93: 0 | F93: 0 | G93: 0 | H93: 0 | I93: 0 | J93: 0 | K93: 0 | L93: 0 | M93: 0 | N93: 0 | O93: 0 | P93: 0 | Q93: 0 | R93: 0 | S93: 0 | T93: 0 | U93: 218.73 | V93: 277.79 | W93: 0 | X93: 0 | Y93: 0 | Z93: 0 | AB93: =C93*'B Factor'!$F$6 -> 0 | AC93: =D93*'B Factor'!$F$6 -> 0 | AD93: =E93*'B Factor'!$F$6 -> 0 | AE93: =F93*'B Factor'!$F$6 -> 0 | AF93: =G93*'B Factor'!$F$6 -> 0 | AG93: =H93*'B Factor'!$F$6 -> 0 | AH93: =I93*'B Factor'!$F$6 -> 0 | AI93: =J93*'B Factor'!$F$6 -> 0 | AJ93: =K93*'B Factor'!$F$6 -> 0 | AK93: =L93*'B Factor'!$F$6 -> 0 | AL93: =M93*'B Factor'!$F$6 -> 0 | AM93: =N93*'B Factor'!$F$6 -> 0 | AN93: =O93*'B Factor'!$F$6 -> 0 | AO93: =P93*'B Factor'!$F$6 -> 0 | AP93: =Q93*'B Factor'!$F$6 -> 0 | AQ93: =R93*'B Factor'!$F$6 -> 0 | AR93: =S93*'B Factor'!$F$6 -> 0 | AS93: =T93*'B Factor'!$F$6 -> 0 | AT93: =U93*'B Factor'!$F$6 -> 2.538821951e-05 | AU93: =V93*'B Factor'!$F$6 -> 3.224337539e-05 | AV93: =W93*'B Factor'!$F$6 -> 0 | AW93: =X93*'B Factor'!$F$6 -> 0 | AX93: =Y93*'B Factor'!$F$6 -> 0 | AY93: =Z93*'B Factor'!$F$6 -> 0
A94: A | B94: 2006-04-03 | C94: 0 | D94: 0 | E94: 0 | F94: 0 | G94: 0 | H94: 0 | I94: 0 | J94: 0 | K94: 0 | L94: 0 | M94: 0 | N94: 0 | O94: 0 | P94: 0 | Q94: 0 | R94: 0 | S94: 0 | T94: 0 | U94: 129.45 | V94: 233.22 | W94: 0 | X94: 0 | Y94: 0 | Z94: 0 | AB94: =C94*'B Factor'!$F$6 -> 0 | AC94: =D94*'B Factor'!$F$6 -> 0 | AD94: =E94*'B Factor'!$F$6 -> 0 | AE94: =F94*'B Factor'!$F$6 -> 0 | AF94: =G94*'B Factor'!$F$6 -> 0 | AG94: =H94*'B Factor'!$F$6 -> 0 | AH94: =I94*'B Factor'!$F$6 -> 0 | AI94: =J94*'B Factor'!$F$6 -> 0 | AJ94: =K94*'B Factor'!$F$6 -> 0 | AK94: =L94*'B Factor'!$F$6 -> 0 | AL94: =M94*'B Factor'!$F$6 -> 0 | AM94: =N94*'B Factor'!$F$6 -> 0 | AN94: =O94*'B Factor'!$F$6 -> 0 | AO94: =P94*'B Factor'!$F$6 -> 0 | AP94: =Q94*'B Factor'!$F$6 -> 0 | AQ94: =R94*'B Factor'!$F$6 -> 0 | AR94: =S94*'B Factor'!$F$6 -> 0 | AS94: =T94*'B Factor'!$F$6 -> 0 | AT94: =U94*'B Factor'!$F$6 -> 1.502539668e-05 | AU94: =V94*'B Factor'!$F$6 -> 2.707008895e-05 | AV94: =W94*'B Factor'!$F$6 -> 0 | AW94: =X94*'B Factor'!$F$6 -> 0 | AX94: =Y94*'B Factor'!$F$6 -> 0 | AY94: =Z94*'B Factor'!$F$6 -> 0
A95: A | B95: 2006-04-04 | C95: 0 | D95: 0 | E95: 0 | F95: 0 | G95: 0 | H95: 0 | I95: 0 | J95: 0 | K95: 0 | L95: 0 | M95: 0 | N95: 0 | O95: 0 | P95: 0 | Q95: 0 | R95: 0 | S95: 0 | T95: 0 | U95: 0 | V95: 7.72 | W95: 0 | X95: 0 | Y95: 0 | Z95: 0 | AB95: =C95*'B Factor'!$F$6 -> 0 | AC95: =D95*'B Factor'!$F$6 -> 0 | AD95: =E95*'B Factor'!$F$6 -> 0 | AE95: =F95*'B Factor'!$F$6 -> 0 | AF95: =G95*'B Factor'!$F$6 -> 0 | AG95: =H95*'B Factor'!$F$6 -> 0 | AH95: =I95*'B Factor'!$F$6 -> 0 | AI95: =J95*'B Factor'!$F$6 -> 0 | AJ95: =K95*'B Factor'!$F$6 -> 0 | AK95: =L95*'B Factor'!$F$6 -> 0 | AL95: =M95*'B Factor'!$F$6 -> 0 | AM95: =N95*'B Factor'!$F$6 -> 0 | AN95: =O95*'B Factor'!$F$6 -> 0 | AO95: =P95*'B Factor'!$F$6 -> 0 | AP95: =Q95*'B Factor'!$F$6 -> 0 | AQ95: =R95*'B Factor'!$F$6 -> 0 | AR95: =S95*'B Factor'!$F$6 -> 0 | AS95: =T95*'B Factor'!$F$6 -> 0 | AT95: =U95*'B Factor'!$F$6 -> 0 | AU95: =V95*'B Factor'!$F$6 -> 8.960684618e-07 | AV95: =W95*'B Factor'!$F$6 -> 0 | AW95: =X95*'B Factor'!$F$6 -> 0 | AX95: =Y95*'B Factor'!$F$6 -> 0 | AY95: =Z95*'B Factor'!$F$6 -> 0
A96: A | B96: 2006-04-05 | C96: 0 | D96: 0 | E96: 0 | F96: 0 | G96: 0 | H96: 0 | I96: 0 | J96: 0 | K96: 0 | L96: 0 | M96: 0 | N96: 0 | O96: 0 | P96: 0 | Q96: 0 | R96: 0 | S96: 0 | T96: 0 | U96: 0 | V96: 0 | W96: 0 | X96: 0 | Y96: 0 | Z96: 0 | AB96: =C96*'B Factor'!$F$6 -> 0 | AC96: =D96*'B Factor'!$F$6 -> 0 | AD96: =E96*'B Factor'!$F$6 -> 0 | AE96: =F96*'B Factor'!$F$6 -> 0 | AF96: =G96*'B Factor'!$F$6 -> 0 | AG96: =H96*'B Factor'!$F$6 -> 0 | AH96: =I96*'B Factor'!$F$6 -> 0 | AI96: =J96*'B Factor'!$F$6 -> 0 | AJ96: =K96*'B Factor'!$F$6 -> 0 | AK96: =L96*'B Factor'!$F$6 -> 0 | AL96: =M96*'B Factor'!$F$6 -> 0 | AM96: =N96*'B Factor'!$F$6 -> 0 | AN96: =O96*'B Factor'!$F$6 -> 0 | AO96: =P96*'B Factor'!$F$6 -> 0 | AP96: =Q96*'B Factor'!$F$6 -> 0 | AQ96: =R96*'B Factor'!$F$6 -> 0 | AR96: =S96*'B Factor'!$F$6 -> 0 | AS96: =T96*'B Factor'!$F$6 -> 0 | AT96: =U96*'B Factor'!$F$6 -> 0 | AU96: =V96*'B Factor'!$F$6 -> 0 | AV96: =W96*'B Factor'!$F$6 -> 0 | AW96: =X96*'B Factor'!$F$6 -> 0 | AX96: =Y96*'B Factor'!$F$6 -> 0 | AY96: =Z96*'B Factor'!$F$6 -> 0
A97: A | B97: 2006-04-06 | C97: 0 | D97: 0 | E97: 0 | F97: 0 | G97: 0 | H97: 0 | I97: 0 | J97: 0 | K97: 0 | L97: 0 | M97: 0 | N97: 0 | O97: 0 | P97: 0 | Q97: 0 | R97: 0 | S97: 0 | T97: 0 | U97: 0 | V97: 0 | W97: 0 | X97: 0 | Y97: 0 | Z97: 0 | AB97: =C97*'B Factor'!$F$6 -> 0 | AC97: =D97*'B Factor'!$F$6 -> 0 | AD97: =E97*'B Factor'!$F$6 -> 0 | AE97: =F97*'B Factor'!$F$6 -> 0 | AF97: =G97*'B Factor'!$F$6 -> 0 | AG97: =H97*'B Factor'!$F$6 -> 0 | AH97: =I97*'B Factor'!$F$6 -> 0 | AI97: =J97*'B Factor'!$F$6 -> 0 | AJ97: =K97*'B Factor'!$F$6 -> 0 | AK97: =L97*'B Factor'!$F$6 -> 0 | AL97: =M97*'B Factor'!$F$6 -> 0 | AM97: =N97*'B Factor'!$F$6 -> 0 | AN97: =O97*'B Factor'!$F$6 -> 0 | AO97: =P97*'B Factor'!$F$6 -> 0 | AP97: =Q97*'B Factor'!$F$6 -> 0 | AQ97: =R97*'B Factor'!$F$6 -> 0 | AR97: =S97*'B Factor'!$F$6 -> 0 | AS97: =T97*'B Factor'!$F$6 -> 0 | AT97: =U97*'B Factor'!$F$6 -> 0 | AU97: =V97*'B Factor'!$F$6 -> 0 | AV97: =W97*'B Factor'!$F$6 -> 0 | AW97: =X97*'B Factor'!$F$6 -> 0 | AX97: =Y97*'B Factor'!$F$6 -> 0 | AY97: =Z97*'B Factor'!$F$6 -> 0
A98: A | B98: 2006-04-07 | C98: 0 | D98: 0 | E98: 0 | F98: 0 | G98: 0 | H98: 0 | I98: 0 | J98: 0 | K98: 0 | L98: 0 | M98: 0 | N98: 0 | O98: 0 | P98: 0 | Q98: 0 | R98: 0 | S98: 0 | T98: 0 | U98: 0 | V98: 0 | W98: 0 | X98: 0 | Y98: 0 | Z98: 0 | AB98: =C98*'B Factor'!$F$6 -> 0 | AC98: =D98*'B Factor'!$F$6 -> 0 | AD98: =E98*'B Factor'!$F$6 -> 0 | AE98: =F98*'B Factor'!$F$6 -> 0 | AF98: =G98*'B Factor'!$F$6 -> 0 | AG98: =H98*'B Factor'!$F$6 -> 0 | AH98: =I98*'B Factor'!$F$6 -> 0 | AI98: =J98*'B Factor'!$F$6 -> 0 | AJ98: =K98*'B Factor'!$F$6 -> 0 | AK98: =L98*'B Factor'!$F$6 -> 0 | AL98: =M98*'B Factor'!$F$6 -> 0 | AM98: =N98*'B Factor'!$F$6 -> 0 | AN98: =O98*'B Factor'!$F$6 -> 0 | AO98: =P98*'B Factor'!$F$6 -> 0 | AP98: =Q98*'B Factor'!$F$6 -> 0 | AQ98: =R98*'B Factor'!$F$6 -> 0 | AR98: =S98*'B Factor'!$F$6 -> 0 | AS98: =T98*'B Factor'!$F$6 -> 0 | AT98: =U98*'B Factor'!$F$6 -> 0 | AU98: =V98*'B Factor'!$F$6 -> 0 | AV98: =W98*'B Factor'!$F$6 -> 0 | AW98: =X98*'B Factor'!$F$6 -> 0 | AX98: =Y98*'B Factor'!$F$6 -> 0 | AY98: =Z98*'B Factor'!$F$6 -> 0
A99: A | B99: 2006-04-08 | C99: 0 | D99: 0 | E99: 0 | F99: 0 | G99: 0 | H99: 0 | I99: 0 | J99: 0 | K99: 0 | L99: 0 | M99: 0 | N99: 0 | O99: 0 | P99: 0 | Q99: 0 | R99: 0 | S99: 0 | T99: 0 | U99: 114.18 | V99: 282.92 | W99: 0 | X99: 0 | Y99: 0 | Z99: 0 | AB99: =C99*'B Factor'!$F$6 -> 0 | AC99: =D99*'B Factor'!$F$6 -> 0 | AD99: =E99*'B Factor'!$F$6 -> 0 | AE99: =F99*'B Factor'!$F$6 -> 0 | AF99: =G99*'B Factor'!$F$6 -> 0 | AG99: =H99*'B Factor'!$F$6 -> 0 | AH99: =I99*'B Factor'!$F$6 -> 0 | AI99: =J99*'B Factor'!$F$6 -> 0 | AJ99: =K99*'B Factor'!$F$6 -> 0 | AK99: =L99*'B Factor'!$F$6 -> 0 | AL99: =M99*'B Factor'!$F$6 -> 0 | AM99: =N99*'B Factor'!$F$6 -> 0 | AN99: =O99*'B Factor'!$F$6 -> 0 | AO99: =P99*'B Factor'!$F$6 -> 0 | AP99: =Q99*'B Factor'!$F$6 -> 0 | AQ99: =R99*'B Factor'!$F$6 -> 0 | AR99: =S99*'B Factor'!$F$6 -> 0 | AS99: =T99*'B Factor'!$F$6 -> 0 | AT99: =U99*'B Factor'!$F$6 -> 1.325299184e-05 | AU99: =V99*'B Factor'!$F$6 -> 3.283881985e-05 | AV99: =W99*'B Factor'!$F$6 -> 0 | AW99: =X99*'B Factor'!$F$6 -> 0 | AX99: =Y99*'B Factor'!$F$6 -> 0 | AY99: =Z99*'B Factor'!$F$6 -> 0
A100: A | B100: 2006-04-09 | C100: 0 | D100: 0 | E100: 0 | F100: 0 | G100: 0 | H100: 0 | I100: 0 | J100: 0 | K100: 0 | L100: 0 | M100: 0 | N100: 0 | O100: 0 | P100: 0 | Q100: 0 | R100: 0 | S100: 0 | T100: 0 | U100: 281 | V100: 528.39 | W100: 21.28 | X100: 0 | Y100: 0 | Z100: 0 | AB100: =C100*'B Factor'!$F$6 -> 0 | AC100: =D100*'B Factor'!$F$6 -> 0 | AD100: =E100*'B Factor'!$F$6 -> 0 | AE100: =F100*'B Factor'!$F$6 -> 0 | AF100: =G100*'B Factor'!$F$6 -> 0 | AG100: =H100*'B Factor'!$F$6 -> 0 | AH100: =I100*'B Factor'!$F$6 -> 0 | AI100: =J100*'B Factor'!$F$6 -> 0 | AJ100: =K100*'B Factor'!$F$6 -> 0 | AK100: =L100*'B Factor'!$F$6 -> 0 | AL100: =M100*'B Factor'!$F$6 -> 0 | AM100: =N100*'B Factor'!$F$6 -> 0 | AN100: =O100*'B Factor'!$F$6 -> 0 | AO100: =P100*'B Factor'!$F$6 -> 0 | AP100: =Q100*'B Factor'!$F$6 -> 0 | AQ100: =R100*'B Factor'!$F$6 -> 0 | AR100: =S100*'B Factor'!$F$6 -> 0 | AS100: =T100*'B Factor'!$F$6 -> 0 | AT100: =U100*'B Factor'!$F$6 -> 3.261596344e-05 | AU100: =V100*'B Factor'!$F$6 -> 6.133077908e-05 | AV100: =W100*'B Factor'!$F$6 -> 2.469991822e-06 | AW100: =X100*'B Factor'!$F$6 -> 0 | AX100: =Y100*'B Factor'!$F$6 -> 0 | AY100: =Z100*'B Factor'!$F$6 -> 0
A101: A | B101: 2006-04-10 | C101: 0 | D101: 0 | E101: 0 | F101: 0 | G101: 0 | H101: 0 | I101: 0 | J101: 0 | K101: 0 | L101: 0 | M101: 0 | N101: 0 | O101: 0 | P101: 0 | Q101: 0 | R101: 0 | S101: 0 | T101: 0 | U101: 155.2 | V101: 278.09 | W101: 3.47 | X101: 0 | Y101: 0 | Z101: 0 | AB101: =C101*'B Factor'!$F$6 -> 0 | AC101: =D101*'B Factor'!$F$6 -> 0 | AD101: =E101*'B Factor'!$F$6 -> 0 | AE101: =F101*'B Factor'!$F$6 -> 0 | AF101: =G101*'B Factor'!$F$6 -> 0 | AG101: =H101*'B Factor'!$F$6 -> 0 | AH101: =I101*'B Factor'!$F$6 -> 0 | AI101: =J101*'B Factor'!$F$6 -> 0 | AJ101: =K101*'B Factor'!$F$6 -> 0 | AK101: =L101*'B Factor'!$F$6 -> 0 | AL101: =M101*'B Factor'!$F$6 -> 0 | AM101: =N101*'B Factor'!$F$6 -> 0 | AN101: =O101*'B Factor'!$F$6 -> 0 | AO101: =P101*'B Factor'!$F$6 -> 0 | AP101: =Q101*'B Factor'!$F$6 -> 0 | AQ101: =R101*'B Factor'!$F$6 -> 0 | AR101: =S101*'B Factor'!$F$6 -> 0 | AS101: =T101*'B Factor'!$F$6 -> 0 | AT101: =U101*'B Factor'!$F$6 -> 1.801422607e-05 | AU101: =V101*'B Factor'!$F$6 -> 3.22781967e-05 | AV101: =W101*'B Factor'!$F$6 -> 4.027665236e-07 | AW101: =X101*'B Factor'!$F$6 -> 0 | AX101: =Y101*'B Factor'!$F$6 -> 0 | AY101: =Z101*'B Factor'!$F$6 -> 0
A102: A | B102: 2006-04-11 | C102: 0 | D102: 0 | E102: 0 | F102: 0 | G102: 0 | H102: 0 | I102: 0 | J102: 0 | K102: 0 | L102: 0 | M102: 0 | N102: 0 | O102: 0 | P102: 0 | Q102: 0 | R102: 0 | S102: 0 | T102: 0 | U102: 132.07 | V102: 380.5 | W102: 0 | X102: 0 | Y102: 0 | Z102: 0 | AB102: =C102*'B Factor'!$F$6 -> 0 | AC102: =D102*'B Factor'!$F$6 -> 0 | AD102: =E102*'B Factor'!$F$6 -> 0 | AE102: =F102*'B Factor'!$F$6 -> 0 | AF102: =G102*'B Factor'!$F$6 -> 0 | AG102: =H102*'B Factor'!$F$6 -> 0 | AH102: =I102*'B Factor'!$F$6 -> 0 | AI102: =J102*'B Factor'!$F$6 -> 0 | AJ102: =K102*'B Factor'!$F$6 -> 0 | AK102: =L102*'B Factor'!$F$6 -> 0 | AL102: =M102*'B Factor'!$F$6 -> 0 | AM102: =N102*'B Factor'!$F$6 -> 0 | AN102: =O102*'B Factor'!$F$6 -> 0 | AO102: =P102*'B Factor'!$F$6 -> 0 | AP102: =Q102*'B Factor'!$F$6 -> 0 | AQ102: =R102*'B Factor'!$F$6 -> 0 | AR102: =S102*'B Factor'!$F$6 -> 0 | AS102: =T102*'B Factor'!$F$6 -> 0 | AT102: =U102*'B Factor'!$F$6 -> 1.532950282e-05 | AU102: =V102*'B Factor'!$F$6 -> 4.416503235e-05 | AV102: =W102*'B Factor'!$F$6 -> 0 | AW102: =X102*'B Factor'!$F$6 -> 0 | AX102: =Y102*'B Factor'!$F$6 -> 0 | AY102: =Z102*'B Factor'!$F$6 -> 0
A103: A | B103: 2006-04-12 | C103: 0 | D103: 0 | E103: 0 | F103: 0 | G103: 0 | H103: 0 | I103: 0 | J103: 0 | K103: 0 | L103: 0 | M103: 0 | N103: 0 | O103: 0 | P103: 0 | Q103: 0 | R103: 0 | S103: 0 | T103: 0 | U103: 13.57 | V103: 51.97 | W103: 0 | X103: 0 | Y103: 0 | Z103: 0 | AB103: =C103*'B Factor'!$F$6 -> 0 | AC103: =D103*'B Factor'!$F$6 -> 0 | AD103: =E103*'B Factor'!$F$6 -> 0 | AE103: =F103*'B Factor'!$F$6 -> 0 | AF103: =G103*'B Factor'!$F$6 -> 0 | AG103: =H103*'B Factor'!$F$6 -> 0 | AH103: =I103*'B Factor'!$F$6 -> 0 | AI103: =J103*'B Factor'!$F$6 -> 0 | AJ103: =K103*'B Factor'!$F$6 -> 0 | AK103: =L103*'B Factor'!$F$6 -> 0 | AL103: =M103*'B Factor'!$F$6 -> 0 | AM103: =N103*'B Factor'!$F$6 -> 0 | AN103: =O103*'B Factor'!$F$6 -> 0 | AO103: =P103*'B Factor'!$F$6 -> 0 | AP103: =Q103*'B Factor'!$F$6 -> 0 | AQ103: =R103*'B Factor'!$F$6 -> 0 | AR103: =S103*'B Factor'!$F$6 -> 0 | AS103: =T103*'B Factor'!$F$6 -> 0 | AT103: =U103*'B Factor'!$F$6 -> 1.575084071e-06 | AU103: =V103*'B Factor'!$F$6 -> 6.032212171e-06 | AV103: =W103*'B Factor'!$F$6 -> 0 | AW103: =X103*'B Factor'!$F$6 -> 0 | AX103: =Y103*'B Factor'!$F$6 -> 0 | AY103: =Z103*'B Factor'!$F$6 -> 0
A104: A | B104: 2006-04-13 | C104: 0 | D104: 0 | E104: 0 | F104: 0 | G104: 0 | H104: 0 | I104: 0 | J104: 0 | K104: 0 | L104: 0 | M104: 0 | N104: 0 | O104: 0 | P104: 0 | Q104: 0 | R104: 0 | S104: 0 | T104: 0 | U104: 0 | V104: 0 | W104: 0 | X104: 0 | Y104: 0 | Z104: 0 | AB104: =C104*'B Factor'!$F$6 -> 0 | AC104: =D104*'B Factor'!$F$6 -> 0 | AD104: =E104*'B Factor'!$F$6 -> 0 | AE104: =F104*'B Factor'!$F$6 -> 0 | AF104: =G104*'B Factor'!$F$6 -> 0 | AG104: =H104*'B Factor'!$F$6 -> 0 | AH104: =I104*'B Factor'!$F$6 -> 0 | AI104: =J104*'B Factor'!$F$6 -> 0 | AJ104: =K104*'B Factor'!$F$6 -> 0 | AK104: =L104*'B Factor'!$F$6 -> 0 | AL104: =M104*'B Factor'!$F$6 -> 0 | AM104: =N104*'B Factor'!$F$6 -> 0 | AN104: =O104*'B Factor'!$F$6 -> 0 | AO104: =P104*'B Factor'!$F$6 -> 0 | AP104: =Q104*'B Factor'!$F$6 -> 0 | AQ104: =R104*'B Factor'!$F$6 -> 0 | AR104: =S104*'B Factor'!$F$6 -> 0 | AS104: =T104*'B Factor'!$F$6 -> 0 | AT104: =U104*'B Factor'!$F$6 -> 0 | AU104: =V104*'B Factor'!$F$6 -> 0 | AV104: =W104*'B Factor'!$F$6 -> 0 | AW104: =X104*'B Factor'!$F$6 -> 0 | AX104: =Y104*'B Factor'!$F$6 -> 0 | AY104: =Z104*'B Factor'!$F$6 -> 0
A105: A | B105: 2006-04-14 | C105: 0 | D105: 0 | E105: 0 | F105: 0 | G105: 0 | H105: 0 | I105: 0 | J105: 0 | K105: 0 | L105: 0 | M105: 0 | N105: 0 | O105: 0 | P105: 0 | Q105: 0 | R105: 0 | S105: 0 | T105: 0 | U105: 0 | V105: 19.84 | W105: 0 | X105: 0 | Y105: 0 | Z105: 0 | AB105: =C105*'B Factor'!$F$6 -> 0 | AC105: =D105*'B Factor'!$F$6 -> 0 | AD105: =E105*'B Factor'!$F$6 -> 0 | AE105: =F105*'B Factor'!$F$6 -> 0 | AF105: =G105*'B Factor'!$F$6 -> 0 | AG105: =H105*'B Factor'!$F$6 -> 0 | AH105: =I105*'B Factor'!$F$6 -> 0 | AI105: =J105*'B Factor'!$F$6 -> 0 | AJ105: =K105*'B Factor'!$F$6 -> 0 | AK105: =L105*'B Factor'!$F$6 -> 0 | AL105: =M105*'B Factor'!$F$6 -> 0 | AM105: =N105*'B Factor'!$F$6 -> 0 | AN105: =O105*'B Factor'!$F$6 -> 0 | AO105: =P105*'B Factor'!$F$6 -> 0 | AP105: =Q105*'B Factor'!$F$6 -> 0 | AQ105: =R105*'B Factor'!$F$6 -> 0 | AR105: =S105*'B Factor'!$F$6 -> 0 | AS105: =T105*'B Factor'!$F$6 -> 0 | AT105: =U105*'B Factor'!$F$6 -> 0 | AU105: =V105*'B Factor'!$F$6 -> 2.302849518e-06 | AV105: =W105*'B Factor'!$F$6 -> 0 | AW105: =X105*'B Factor'!$F$6 -> 0 | AX105: =Y105*'B Factor'!$F$6 -> 0 | AY105: =Z105*'B Factor'!$F$6 -> 0
A106: A | B106: 2006-04-15 | C106: 0 | D106: 0 | E106: 0 | F106: 0 | G106: 0 | H106: 0 | I106: 0 | J106: 0 | K106: 0 | L106: 0 | M106: 0 | N106: 0 | O106: 0 | P106: 0 | Q106: 0 | R106: 0 | S106: 0 | T106: 0 | U106: 515.41 | V106: 1172.97 | W106: 27.65 | X106: 0 | Y106: 0 | Z106: 0 | AB106: =C106*'B Factor'!$F$6 -> 0 | AC106: =D106*'B Factor'!$F$6 -> 0 | AD106: =E106*'B Factor'!$F$6 -> 0 | AE106: =F106*'B Factor'!$F$6 -> 0 | AF106: =G106*'B Factor'!$F$6 -> 0 | AG106: =H106*'B Factor'!$F$6 -> 0 | AH106: =I106*'B Factor'!$F$6 -> 0 | AI106: =J106*'B Factor'!$F$6 -> 0 | AJ106: =K106*'B Factor'!$F$6 -> 0 | AK106: =L106*'B Factor'!$F$6 -> 0 | AL106: =M106*'B Factor'!$F$6 -> 0 | AM106: =N106*'B Factor'!$F$6 -> 0 | AN106: =O106*'B Factor'!$F$6 -> 0 | AO106: =P106*'B Factor'!$F$6 -> 0 | AP106: =Q106*'B Factor'!$F$6 -> 0 | AQ106: =R106*'B Factor'!$F$6 -> 0 | AR106: =S106*'B Factor'!$F$6 -> 0 | AS106: =T106*'B Factor'!$F$6 -> 0 | AT106: =U106*'B Factor'!$F$6 -> 5.982417693e-05 | AU106: =V106*'B Factor'!$F$6 -> 0.0001361478528 | AV106: =W106*'B Factor'!$F$6 -> 3.209364374e-06 | AW106: =X106*'B Factor'!$F$6 -> 0 | AX106: =Y106*'B Factor'!$F$6 -> 0 | AY106: =Z106*'B Factor'!$F$6 -> 0
A107: A | B107: 2006-04-16 | C107: 0 | D107: 0 | E107: 0 | F107: 0 | G107: 0 | H107: 0 | I107: 0 | J107: 0 | K107: 0 | L107: 0 | M107: 0 | N107: 0 | O107: 0 | P107: 0 | Q107: 0 | R107: 0 | S107: 0 | T107: 0 | U107: 88.16 | V107: 314.43 | W107: 0 | X107: 0 | Y107: 0 | Z107: 0 | AB107: =C107*'B Factor'!$F$6 -> 0 | AC107: =D107*'B Factor'!$F$6 -> 0 | AD107: =E107*'B Factor'!$F$6 -> 0 | AE107: =F107*'B Factor'!$F$6 -> 0 | AF107: =G107*'B Factor'!$F$6 -> 0 | AG107: =H107*'B Factor'!$F$6 -> 0 | AH107: =I107*'B Factor'!$F$6 -> 0 | AI107: =J107*'B Factor'!$F$6 -> 0 | AJ107: =K107*'B Factor'!$F$6 -> 0 | AK107: =L107*'B Factor'!$F$6 -> 0 | AL107: =M107*'B Factor'!$F$6 -> 0 | AM107: =N107*'B Factor'!$F$6 -> 0 | AN107: =O107*'B Factor'!$F$6 -> 0 | AO107: =P107*'B Factor'!$F$6 -> 0 | AP107: =Q107*'B Factor'!$F$6 -> 0 | AQ107: =R107*'B Factor'!$F$6 -> 0 | AR107: =S107*'B Factor'!$F$6 -> 0 | AS107: =T107*'B Factor'!$F$6 -> 0 | AT107: =U107*'B Factor'!$F$6 -> 1.023282326e-05 | AU107: =V107*'B Factor'!$F$6 -> 3.649621845e-05 | AV107: =W107*'B Factor'!$F$6 -> 0 | AW107: =X107*'B Factor'!$F$6 -> 0 | AX107: =Y107*'B Factor'!$F$6 -> 0 | AY107: =Z107*'B Factor'!$F$6 -> 0
A108: A | B108: 2006-04-17 | C108: 0 | D108: 0 | E108: 0 | F108: 0 | G108: 0 | H108: 0 | I108: 0 | J108: 0 | K108: 0 | L108: 0 | M108: 0 | N108: 0 | O108: 0 | P108: 0 | Q108: 0 | R108: 0 | S108: 0 | T108: 0 | U108: 103.6 | V108: 328.88 | W108: 0 | X108: 0 | Y108: 0 | Z108: 0 | AB108: =C108*'B Factor'!$F$6 -> 0 | AC108: =D108*'B Factor'!$F$6 -> 0 | AD108: =E108*'B Factor'!$F$6 -> 0 | AE108: =F108*'B Factor'!$F$6 -> 0 | AF108: =G108*'B Factor'!$F$6 -> 0 | AG108: =H108*'B Factor'!$F$6 -> 0 | AH108: =I108*'B Factor'!$F$6 -> 0 | AI108: =J108*'B Factor'!$F$6 -> 0 | AJ108: =K108*'B Factor'!$F$6 -> 0 | AK108: =L108*'B Factor'!$F$6 -> 0 | AL108: =M108*'B Factor'!$F$6 -> 0 | AM108: =N108*'B Factor'!$F$6 -> 0 | AN108: =O108*'B Factor'!$F$6 -> 0 | AO108: =P108*'B Factor'!$F$6 -> 0 | AP108: =Q108*'B Factor'!$F$6 -> 0 | AQ108: =R108*'B Factor'!$F$6 -> 0 | AR108: =S108*'B Factor'!$F$6 -> 0 | AS108: =T108*'B Factor'!$F$6 -> 0 | AT108: =U108*'B Factor'!$F$6 -> 1.202496019e-05 | AU108: =V108*'B Factor'!$F$6 -> 3.817344504e-05 | AV108: =W108*'B Factor'!$F$6 -> 0 | AW108: =X108*'B Factor'!$F$6 -> 0 | AX108: =Y108*'B Factor'!$F$6 -> 0 | AY108: =Z108*'B Factor'!$F$6 -> 0
A109: A | B109: 2006-04-18 | C109: 0 | D109: 0 | E109: 0 | F109: 0 | G109: 0 | H109: 0 | I109: 0 | J109: 0 | K109: 0 | L109: 0 | M109: 0 | N109: 0 | O109: 0 | P109: 0 | Q109: 0 | R109: 0 | S109: 0 | T109: 205.83 | U109: 1185.6 | V109: 1998.8 | W109: 239.02 | X109: 0 | Y109: 0 | Z109: 0 | AB109: =C109*'B Factor'!$F$6 -> 0 | AC109: =D109*'B Factor'!$F$6 -> 0 | AD109: =E109*'B Factor'!$F$6 -> 0 | AE109: =F109*'B Factor'!$F$6 -> 0 | AF109: =G109*'B Factor'!$F$6 -> 0 | AG109: =H109*'B Factor'!$F$6 -> 0 | AH109: =I109*'B Factor'!$F$6 -> 0 | AI109: =J109*'B Factor'!$F$6 -> 0 | AJ109: =K109*'B Factor'!$F$6 -> 0 | AK109: =L109*'B Factor'!$F$6 -> 0 | AL109: =M109*'B Factor'!$F$6 -> 0 | AM109: =N109*'B Factor'!$F$6 -> 0 | AN109: =O109*'B Factor'!$F$6 -> 0 | AO109: =P109*'B Factor'!$F$6 -> 0 | AP109: =Q109*'B Factor'!$F$6 -> 0 | AQ109: =R109*'B Factor'!$F$6 -> 0 | AR109: =S109*'B Factor'!$F$6 -> 0 | AS109: =T109*'B Factor'!$F$6 -> 2.389090304e-05 | AT109: =U109*'B Factor'!$F$6 -> 0.0001376138301 | AU109: =V109*'B Factor'!$F$6 -> 0.0002320028033 | AV109: =W109*'B Factor'!$F$6 -> 2.7743301e-05 | AW109: =X109*'B Factor'!$F$6 -> 0 | AX109: =Y109*'B Factor'!$F$6 -> 0 | AY109: =Z109*'B Factor'!$F$6 -> 0
A110: A | B110: 2006-04-19 | C110: 0 | D110: 0 | E110: 0 | F110: 0 | G110: 0 | H110: 0 | I110: 0 | J110: 0 | K110: 0 | L110: 0 | M110: 0 | N110: 0 | O110: 0 | P110: 0 | Q110: 0 | R110: 0 | S110: 0 | T110: 176.79 | U110: 1045.65 | V110: 1553.04 | W110: 51.95 | X110: 0 | Y110: 0 | Z110: 0 | AB110: =C110*'B Factor'!$F$6 -> 0 | AC110: =D110*'B Factor'!$F$6 -> 0 | AD110: =E110*'B Factor'!$F$6 -> 0 | AE110: =F110*'B Factor'!$F$6 -> 0 | AF110: =G110*'B Factor'!$F$6 -> 0 | AG110: =H110*'B Factor'!$F$6 -> 0 | AH110: =I110*'B Factor'!$F$6 -> 0 | AI110: =J110*'B Factor'!$F$6 -> 0 | AJ110: =K110*'B Factor'!$F$6 -> 0 | AK110: =L110*'B Factor'!$F$6 -> 0 | AL110: =M110*'B Factor'!$F$6 -> 0 | AM110: =N110*'B Factor'!$F$6 -> 0 | AN110: =O110*'B Factor'!$F$6 -> 0 | AO110: =P110*'B Factor'!$F$6 -> 0 | AP110: =Q110*'B Factor'!$F$6 -> 0 | AQ110: =R110*'B Factor'!$F$6 -> 0 | AR110: =S110*'B Factor'!$F$6 -> 0 | AS110: =T110*'B Factor'!$F$6 -> 2.052019992e-05 | AT110: =U110*'B Factor'!$F$6 -> 0.0001213696874 | AU110: =V110*'B Factor'!$F$6 -> 0.0001802629746 | AV110: =W110*'B Factor'!$F$6 -> 6.02989075e-06 | AW110: =X110*'B Factor'!$F$6 -> 0 | AX110: =Y110*'B Factor'!$F$6 -> 0 | AY110: =Z110*'B Factor'!$F$6 -> 0
A111: A | B111: 2006-04-20 | C111: 0 | D111: 0 | E111: 0 | F111: 0 | G111: 0 | H111: 0 | I111: 0 | J111: 0 | K111: 0 | L111: 0 | M111: 0 | N111: 0 | O111: 0 | P111: 0 | Q111: 0 | R111: 0 | S111: 0 | T111: 15.56 | U111: 333.88 | V111: 516.06 | W111: 94.4 | X111: 0 | Y111: 0 | Z111: 0 | AB111: =C111*'B Factor'!$F$6 -> 0 | AC111: =D111*'B Factor'!$F$6 -> 0 | AD111: =E111*'B Factor'!$F$6 -> 0 | AE111: =F111*'B Factor'!$F$6 -> 0 | AF111: =G111*'B Factor'!$F$6 -> 0 | AG111: =H111*'B Factor'!$F$6 -> 0 | AH111: =I111*'B Factor'!$F$6 -> 0 | AI111: =J111*'B Factor'!$F$6 -> 0 | AJ111: =K111*'B Factor'!$F$6 -> 0 | AK111: =L111*'B Factor'!$F$6 -> 0 | AL111: =M111*'B Factor'!$F$6 -> 0 | AM111: =N111*'B Factor'!$F$6 -> 0 | AN111: =O111*'B Factor'!$F$6 -> 0 | AO111: =P111*'B Factor'!$F$6 -> 0 | AP111: =Q111*'B Factor'!$F$6 -> 0 | AQ111: =R111*'B Factor'!$F$6 -> 0 | AR111: =S111*'B Factor'!$F$6 -> 0 | AS111: =T111*'B Factor'!$F$6 -> 1.806065449e-06 | AT111: =U111*'B Factor'!$F$6 -> 3.875380026e-05 | AU111: =V111*'B Factor'!$F$6 -> 5.989962311e-05 | AV111: =W111*'B Factor'!$F$6 -> 1.095710658e-05 | AW111: =X111*'B Factor'!$F$6 -> 0 | AX111: =Y111*'B Factor'!$F$6 -> 0 | AY111: =Z111*'B Factor'!$F$6 -> 0
A112: A | B112: 2006-04-21 | C112: 0 | D112: 0 | E112: 0 | F112: 0 | G112: 0 | H112: 0 | I112: 0 | J112: 0 | K112: 0 | L112: 0 | M112: 0 | N112: 0 | O112: 0 | P112: 0 | Q112: 0 | R112: 0 | S112: 0 | T112: 0 | U112: 175.74 | V112: 512.23 | W112: 6.37 | X112: 0 | Y112: 0 | Z112: 0 | AB112: =C112*'B Factor'!$F$6 -> 0 | AC112: =D112*'B Factor'!$F$6 -> 0 | AD112: =E112*'B Factor'!$F$6 -> 0 | AE112: =F112*'B Factor'!$F$6 -> 0 | AF112: =G112*'B Factor'!$F$6 -> 0 | AG112: =H112*'B Factor'!$F$6 -> 0 | AH112: =I112*'B Factor'!$F$6 -> 0 | AI112: =J112*'B Factor'!$F$6 -> 0 | AJ112: =K112*'B Factor'!$F$6 -> 0 | AK112: =L112*'B Factor'!$F$6 -> 0 | AL112: =M112*'B Factor'!$F$6 -> 0 | AM112: =N112*'B Factor'!$F$6 -> 0 | AN112: =O112*'B Factor'!$F$6 -> 0 | AO112: =P112*'B Factor'!$F$6 -> 0 | AP112: =Q112*'B Factor'!$F$6 -> 0 | AQ112: =R112*'B Factor'!$F$6 -> 0 | AR112: =S112*'B Factor'!$F$6 -> 0 | AS112: =T112*'B Factor'!$F$6 -> 0 | AT112: =U112*'B Factor'!$F$6 -> 2.039832532e-05 | AU112: =V112*'B Factor'!$F$6 -> 5.945507101e-05 | AV112: =W112*'B Factor'!$F$6 -> 7.39372552e-07 | AW112: =X112*'B Factor'!$F$6 -> 0 | AX112: =Y112*'B Factor'!$F$6 -> 0 | AY112: =Z112*'B Factor'!$F$6 -> 0
A113: A | B113: 2006-04-22 | C113: 0 | D113: 0 | E113: 0 | F113: 0 | G113: 0 | H113: 0 | I113: 0 | J113: 0 | K113: 0 | L113: 0 | M113: 0 | N113: 0 | O113: 0 | P113: 0 | Q113: 0 | R113: 0 | S113: 0 | T113: 0 | U113: 66.79 | V113: 503.41 | W113: 0 | X113: 0 | Y113: 0 | Z113: 0 | AB113: =C113*'B Factor'!$F$6 -> 0 | AC113: =D113*'B Factor'!$F$6 -> 0 | AD113: =E113*'B Factor'!$F$6 -> 0 | AE113: =F113*'B Factor'!$F$6 -> 0 | AF113: =G113*'B Factor'!$F$6 -> 0 | AG113: =H113*'B Factor'!$F$6 -> 0 | AH113: =I113*'B Factor'!$F$6 -> 0 | AI113: =J113*'B Factor'!$F$6 -> 0 | AJ113: =K113*'B Factor'!$F$6 -> 0 | AK113: =L113*'B Factor'!$F$6 -> 0 | AL113: =M113*'B Factor'!$F$6 -> 0 | AM113: =N113*'B Factor'!$F$6 -> 0 | AN113: =O113*'B Factor'!$F$6 -> 0 | AO113: =P113*'B Factor'!$F$6 -> 0 | AP113: =Q113*'B Factor'!$F$6 -> 0 | AQ113: =R113*'B Factor'!$F$6 -> 0 | AR113: =S113*'B Factor'!$F$6 -> 0 | AS113: =T113*'B Factor'!$F$6 -> 0 | AT113: =U113*'B Factor'!$F$6 -> 7.752385047e-06 | AU113: =V113*'B Factor'!$F$6 -> 5.84313244e-05 | AV113: =W113*'B Factor'!$F$6 -> 0 | AW113: =X113*'B Factor'!$F$6 -> 0 | AX113: =Y113*'B Factor'!$F$6 -> 0 | AY113: =Z113*'B Factor'!$F$6 -> 0
A114: A | B114: 2006-04-23 | C114: 0 | D114: 0 | E114: 0 | F114: 0 | G114: 0 | H114: 0 | I114: 0 | J114: 0 | K114: 0 | L114: 0 | M114: 0 | N114: 0 | O114: 0 | P114: 0 | Q114: 0 | R114: 0 | S114: 0 | T114: 0 | U114: 36.29 | V114: 314.58 | W114: 0 | X114: 0 | Y114: 0 | Z114: 0 | AB114: =C114*'B Factor'!$F$6 -> 0 | AC114: =D114*'B Factor'!$F$6 -> 0 | AD114: =E114*'B Factor'!$F$6 -> 0 | AE114: =F114*'B Factor'!$F$6 -> 0 | AF114: =G114*'B Factor'!$F$6 -> 0 | AG114: =H114*'B Factor'!$F$6 -> 0 | AH114: =I114*'B Factor'!$F$6 -> 0 | AI114: =J114*'B Factor'!$F$6 -> 0 | AJ114: =K114*'B Factor'!$F$6 -> 0 | AK114: =L114*'B Factor'!$F$6 -> 0 | AL114: =M114*'B Factor'!$F$6 -> 0 | AM114: =N114*'B Factor'!$F$6 -> 0 | AN114: =O114*'B Factor'!$F$6 -> 0 | AO114: =P114*'B Factor'!$F$6 -> 0 | AP114: =Q114*'B Factor'!$F$6 -> 0 | AQ114: =R114*'B Factor'!$F$6 -> 0 | AR114: =S114*'B Factor'!$F$6 -> 0 | AS114: =T114*'B Factor'!$F$6 -> 0 | AT114: =U114*'B Factor'!$F$6 -> 4.212218197e-06 | AU114: =V114*'B Factor'!$F$6 -> 3.651362911e-05 | AV114: =W114*'B Factor'!$F$6 -> 0 | AW114: =X114*'B Factor'!$F$6 -> 0 | AX114: =Y114*'B Factor'!$F$6 -> 0 | AY114: =Z114*'B Factor'!$F$6 -> 0
A115: A | B115: 2006-04-24 | C115: 0 | D115: 0 | E115: 0 | F115: 0 | G115: 0 | H115: 0 | I115: 0 | J115: 0 | K115: 0 | L115: 0 | M115: 0 | N115: 0 | O115: 0 | P115: 0 | Q115: 0 | R115: 0 | S115: 0 | T115: 0 | U115: 11.79 | V115: 391.76 | W115: 0 | X115: 0 | Y115: 0 | Z115: 0 | AB115: =C115*'B Factor'!$F$6 -> 0 | AC115: =D115*'B Factor'!$F$6 -> 0 | AD115: =E115*'B Factor'!$F$6 -> 0 | AE115: =F115*'B Factor'!$F$6 -> 0 | AF115: =G115*'B Factor'!$F$6 -> 0 | AG115: =H115*'B Factor'!$F$6 -> 0 | AH115: =I115*'B Factor'!$F$6 -> 0 | AI115: =J115*'B Factor'!$F$6 -> 0 | AJ115: =K115*'B Factor'!$F$6 -> 0 | AK115: =L115*'B Factor'!$F$6 -> 0 | AL115: =M115*'B Factor'!$F$6 -> 0 | AM115: =N115*'B Factor'!$F$6 -> 0 | AN115: =O115*'B Factor'!$F$6 -> 0 | AO115: =P115*'B Factor'!$F$6 -> 0 | AP115: =Q115*'B Factor'!$F$6 -> 0 | AQ115: =R115*'B Factor'!$F$6 -> 0 | AR115: =S115*'B Factor'!$F$6 -> 0 | AS115: =T115*'B Factor'!$F$6 -> 0 | AT115: =U115*'B Factor'!$F$6 -> 1.368477612e-06 | AU115: =V115*'B Factor'!$F$6 -> 4.54719923e-05 | AV115: =W115*'B Factor'!$F$6 -> 0 | AW115: =X115*'B Factor'!$F$6 -> 0 | AX115: =Y115*'B Factor'!$F$6 -> 0 | AY115: =Z115*'B Factor'!$F$6 -> 0
A116: A | B116: 2006-04-25 | C116: 0 | D116: 0 | E116: 0 | F116: 0 | G116: 0 | H116: 0 | I116: 0 | J116: 0 | K116: 0 | L116: 0 | M116: 0 | N116: 0 | O116: 0 | P116: 0 | Q116: 0 | R116: 0 | S116: 0 | T116: 0 | U116: 54.13 | V116: 671.47 | W116: 0 | X116: 0 | Y116: 0 | Z116: 0 | AB116: =C116*'B Factor'!$F$6 -> 0 | AC116: =D116*'B Factor'!$F$6 -> 0 | AD116: =E116*'B Factor'!$F$6 -> 0 | AE116: =F116*'B Factor'!$F$6 -> 0 | AF116: =G116*'B Factor'!$F$6 -> 0 | AG116: =H116*'B Factor'!$F$6 -> 0 | AH116: =I116*'B Factor'!$F$6 -> 0 | AI116: =J116*'B Factor'!$F$6 -> 0 | AJ116: =K116*'B Factor'!$F$6 -> 0 | AK116: =L116*'B Factor'!$F$6 -> 0 | AL116: =M116*'B Factor'!$F$6 -> 0 | AM116: =N116*'B Factor'!$F$6 -> 0 | AN116: =O116*'B Factor'!$F$6 -> 0 | AO116: =P116*'B Factor'!$F$6 -> 0 | AP116: =Q116*'B Factor'!$F$6 -> 0 | AQ116: =R116*'B Factor'!$F$6 -> 0 | AR116: =S116*'B Factor'!$F$6 -> 0 | AS116: =T116*'B Factor'!$F$6 -> 0 | AT116: =U116*'B Factor'!$F$6 -> 6.282925626e-06 | AU116: =V116*'B Factor'!$F$6 -> 7.79382241e-05 | AV116: =W116*'B Factor'!$F$6 -> 0 | AW116: =X116*'B Factor'!$F$6 -> 0 | AX116: =Y116*'B Factor'!$F$6 -> 0 | AY116: =Z116*'B Factor'!$F$6 -> 0
A117: A | B117: 2006-04-26 | C117: 0 | D117: 0 | E117: 0 | F117: 0 | G117: 0 | H117: 0 | I117: 0 | J117: 0 | K117: 0 | L117: 0 | M117: 0 | N117: 0 | O117: 0 | P117: 0 | Q117: 0 | R117: 0 | S117: 0 | T117: 0 | U117: 0 | V117: 0 | W117: 0 | X117: 0 | Y117: 0 | Z117: 0 | AB117: =C117*'B Factor'!$F$6 -> 0 | AC117: =D117*'B Factor'!$F$6 -> 0 | AD117: =E117*'B Factor'!$F$6 -> 0 | AE117: =F117*'B Factor'!$F$6 -> 0 | AF117: =G117*'B Factor'!$F$6 -> 0 | AG117: =H117*'B Factor'!$F$6 -> 0 | AH117: =I117*'B Factor'!$F$6 -> 0 | AI117: =J117*'B Factor'!$F$6 -> 0 | AJ117: =K117*'B Factor'!$F$6 -> 0 | AK117: =L117*'B Factor'!$F$6 -> 0 | AL117: =M117*'B Factor'!$F$6 -> 0 | AM117: =N117*'B Factor'!$F$6 -> 0 | AN117: =O117*'B Factor'!$F$6 -> 0 | AO117: =P117*'B Factor'!$F$6 -> 0 | AP117: =Q117*'B Factor'!$F$6 -> 0 | AQ117: =R117*'B Factor'!$F$6 -> 0 | AR117: =S117*'B Factor'!$F$6 -> 0 | AS117: =T117*'B Factor'!$F$6 -> 0 | AT117: =U117*'B Factor'!$F$6 -> 0 | AU117: =V117*'B Factor'!$F$6 -> 0 | AV117: =W117*'B Factor'!$F$6 -> 0 | AW117: =X117*'B Factor'!$F$6 -> 0 | AX117: =Y117*'B Factor'!$F$6 -> 0 | AY117: =Z117*'B Factor'!$F$6 -> 0
A118: A | B118: 2006-04-27 | C118: 0 | D118: 0 | E118: 0 | F118: 0 | G118: 0 | H118: 0 | I118: 0 | J118: 0 | K118: 0 | L118: 0 | M118: 0 | N118: 0 | O118: 0 | P118: 0 | Q118: 0 | R118: 0 | S118: 0 | T118: 0 | U118: 0 | V118: 0 | W118: 0 | X118: 0 | Y118: 0 | Z118: 0 | AB118: =C118*'B Factor'!$F$6 -> 0 | AC118: =D118*'B Factor'!$F$6 -> 0 | AD118: =E118*'B Factor'!$F$6 -> 0 | AE118: =F118*'B Factor'!$F$6 -> 0 | AF118: =G118*'B Factor'!$F$6 -> 0 | AG118: =H118*'B Factor'!$F$6 -> 0 | AH118: =I118*'B Factor'!$F$6 -> 0 | AI118: =J118*'B Factor'!$F$6 -> 0 | AJ118: =K118*'B Factor'!$F$6 -> 0 | AK118: =L118*'B Factor'!$F$6 -> 0 | AL118: =M118*'B Factor'!$F$6 -> 0 | AM118: =N118*'B Factor'!$F$6 -> 0 | AN118: =O118*'B Factor'!$F$6 -> 0 | AO118: =P118*'B Factor'!$F$6 -> 0 | AP118: =Q118*'B Factor'!$F$6 -> 0 | AQ118: =R118*'B Factor'!$F$6 -> 0 | AR118: =S118*'B Factor'!$F$6 -> 0 | AS118: =T118*'B Factor'!$F$6 -> 0 | AT118: =U118*'B Factor'!$F$6 -> 0 | AU118: =V118*'B Factor'!$F$6 -> 0 | AV118: =W118*'B Factor'!$F$6 -> 0 | AW118: =X118*'B Factor'!$F$6 -> 0 | AX118: =Y118*'B Factor'!$F$6 -> 0 | AY118: =Z118*'B Factor'!$F$6 -> 0
A119: A | B119: 2006-04-28 | C119: 0 | D119: 0 | E119: 0 | F119: 0 | G119: 0 | H119: 0 | I119: 0 | J119: 0 | K119: 0 | L119: 0 | M119: 0 | N119: 0 | O119: 0 | P119: 0 | Q119: 0 | R119: 0 | S119: 0 | T119: 0 | U119: 0 | V119: 0 | W119: 0 | X119: 0 | Y119: 0 | Z119: 0 | AB119: =C119*'B Factor'!$F$6 -> 0 | AC119: =D119*'B Factor'!$F$6 -> 0 | AD119: =E119*'B Factor'!$F$6 -> 0 | AE119: =F119*'B Factor'!$F$6 -> 0 | AF119: =G119*'B Factor'!$F$6 -> 0 | AG119: =H119*'B Factor'!$F$6 -> 0 | AH119: =I119*'B Factor'!$F$6 -> 0 | AI119: =J119*'B Factor'!$F$6 -> 0 | AJ119: =K119*'B Factor'!$F$6 -> 0 | AK119: =L119*'B Factor'!$F$6 -> 0 | AL119: =M119*'B Factor'!$F$6 -> 0 | AM119: =N119*'B Factor'!$F$6 -> 0 | AN119: =O119*'B Factor'!$F$6 -> 0 | AO119: =P119*'B Factor'!$F$6 -> 0 | AP119: =Q119*'B Factor'!$F$6 -> 0 | AQ119: =R119*'B Factor'!$F$6 -> 0 | AR119: =S119*'B Factor'!$F$6 -> 0 | AS119: =T119*'B Factor'!$F$6 -> 0 | AT119: =U119*'B Factor'!$F$6 -> 0 | AU119: =V119*'B Factor'!$F$6 -> 0 | AV119: =W119*'B Factor'!$F$6 -> 0 | AW119: =X119*'B Factor'!$F$6 -> 0 | AX119: =Y119*'B Factor'!$F$6 -> 0 | AY119: =Z119*'B Factor'!$F$6 -> 0
A120: A | B120: 2006-04-29 | C120: 0 | D120: 0 | E120: 0 | F120: 0 | G120: 0 | H120: 0 | I120: 0 | J120: 0 | K120: 0 | L120: 0 | M120: 0 | N120: 0 | O120: 0 | P120: 0 | Q120: 0 | R120: 0 | S120: 0 | T120: 0 | U120: 0 | V120: 18.69 | W120: 0 | X120: 0 | Y120: 0 | Z120: 0 | AB120: =C120*'B Factor'!$F$6 -> 0 | AC120: =D120*'B Factor'!$F$6 -> 0 | AD120: =E120*'B Factor'!$F$6 -> 0 | AE120: =F120*'B Factor'!$F$6 -> 0 | AF120: =G120*'B Factor'!$F$6 -> 0 | AG120: =H120*'B Factor'!$F$6 -> 0 | AH120: =I120*'B Factor'!$F$6 -> 0 | AI120: =J120*'B Factor'!$F$6 -> 0 | AJ120: =K120*'B Factor'!$F$6 -> 0 | AK120: =L120*'B Factor'!$F$6 -> 0 | AL120: =M120*'B Factor'!$F$6 -> 0 | AM120: =N120*'B Factor'!$F$6 -> 0 | AN120: =O120*'B Factor'!$F$6 -> 0 | AO120: =P120*'B Factor'!$F$6 -> 0 | AP120: =Q120*'B Factor'!$F$6 -> 0 | AQ120: =R120*'B Factor'!$F$6 -> 0 | AR120: =S120*'B Factor'!$F$6 -> 0 | AS120: =T120*'B Factor'!$F$6 -> 0 | AT120: =U120*'B Factor'!$F$6 -> 0 | AU120: =V120*'B Factor'!$F$6 -> 2.169367817e-06 | AV120: =W120*'B Factor'!$F$6 -> 0 | AW120: =X120*'B Factor'!$F$6 -> 0 | AX120: =Y120*'B Factor'!$F$6 -> 0 | AY120: =Z120*'B Factor'!$F$6 -> 0
A121: A | B121: 2006-04-30 | C121: 0 | D121: 0 | E121: 0 | F121: 0 | G121: 0 | H121: 0 | I121: 0 | J121: 0 | K121: 0 | L121: 0 | M121: 0 | N121: 0 | O121: 0 | P121: 0 | Q121: 0 | R121: 0 | S121: 0 | T121: 0 | U121: 0 | V121: 30.27 | W121: 0 | X121: 0 | Y121: 0 | Z121: 0 | AB121: =C121*'B Factor'!$F$6 -> 0 | AC121: =D121*'B Factor'!$F$6 -> 0 | AD121: =E121*'B Factor'!$F$6 -> 0 | AE121: =F121*'B Factor'!$F$6 -> 0 | AF121: =G121*'B Factor'!$F$6 -> 0 | AG121: =H121*'B Factor'!$F$6 -> 0 | AH121: =I121*'B Factor'!$F$6 -> 0 | AI121: =J121*'B Factor'!$F$6 -> 0 | AJ121: =K121*'B Factor'!$F$6 -> 0 | AK121: =L121*'B Factor'!$F$6 -> 0 | AL121: =M121*'B Factor'!$F$6 -> 0 | AM121: =N121*'B Factor'!$F$6 -> 0 | AN121: =O121*'B Factor'!$F$6 -> 0 | AO121: =P121*'B Factor'!$F$6 -> 0 | AP121: =Q121*'B Factor'!$F$6 -> 0 | AQ121: =R121*'B Factor'!$F$6 -> 0 | AR121: =S121*'B Factor'!$F$6 -> 0 | AS121: =T121*'B Factor'!$F$6 -> 0 | AT121: =U121*'B Factor'!$F$6 -> 0 | AU121: =V121*'B Factor'!$F$6 -> 3.51347051e-06 | AV121: =W121*'B Factor'!$F$6 -> 0 | AW121: =X121*'B Factor'!$F$6 -> 0 | AX121: =Y121*'B Factor'!$F$6 -> 0 | AY121: =Z121*'B Factor'!$F$6 -> 0
A122: A | B122: 2006-05-01 | C122: 0 | D122: 0 | E122: 0 | F122: 0 | G122: 0 | H122: 0 | I122: 0 | J122: 0 | K122: 0 | L122: 0 | M122: 0 | N122: 0 | O122: 0 | P122: 0 | Q122: 0 | R122: 0 | S122: 0 | T122: 0 | U122: 45.01 | V122: 272.91 | W122: 0 | X122: 0 | Y122: 0 | Z122: 0 | AB122: =C122*'B Factor'!$F$6 -> 0 | AC122: =D122*'B Factor'!$F$6 -> 0 | AD122: =E122*'B Factor'!$F$6 -> 0 | AE122: =F122*'B Factor'!$F$6 -> 0 | AF122: =G122*'B Factor'!$F$6 -> 0 | AG122: =H122*'B Factor'!$F$6 -> 0 | AH122: =I122*'B Factor'!$F$6 -> 0 | AI122: =J122*'B Factor'!$F$6 -> 0 | AJ122: =K122*'B Factor'!$F$6 -> 0 | AK122: =L122*'B Factor'!$F$6 -> 0 | AL122: =M122*'B Factor'!$F$6 -> 0 | AM122: =N122*'B Factor'!$F$6 -> 0 | AN122: =O122*'B Factor'!$F$6 -> 0 | AO122: =P122*'B Factor'!$F$6 -> 0 | AP122: =Q122*'B Factor'!$F$6 -> 0 | AQ122: =R122*'B Factor'!$F$6 -> 0 | AR122: =S122*'B Factor'!$F$6 -> 0 | AS122: =T122*'B Factor'!$F$6 -> 0 | AT122: =U122*'B Factor'!$F$6 -> 5.224357703e-06 | AU122: =V122*'B Factor'!$F$6 -> 3.167694869e-05 | AV122: =W122*'B Factor'!$F$6 -> 0 | AW122: =X122*'B Factor'!$F$6 -> 0 | AX122: =Y122*'B Factor'!$F$6 -> 0 | AY122: =Z122*'B Factor'!$F$6 -> 0
A123: A | B123: 2006-05-02 | C123: 0 | D123: 0 | E123: 0 | F123: 0 | G123: 0 | H123: 0 | I123: 0 | J123: 0 | K123: 0 | L123: 0 | M123: 0 | N123: 0 | O123: 0 | P123: 0 | Q123: 0 | R123: 0 | S123: 0 | T123: 0 | U123: 0 | V123: 17.91 | W123: 0 | X123: 0 | Y123: 0 | Z123: 0 | AB123: =C123*'B Factor'!$F$6 -> 0 | AC123: =D123*'B Factor'!$F$6 -> 0 | AD123: =E123*'B Factor'!$F$6 -> 0 | AE123: =F123*'B Factor'!$F$6 -> 0 | AF123: =G123*'B Factor'!$F$6 -> 0 | AG123: =H123*'B Factor'!$F$6 -> 0 | AH123: =I123*'B Factor'!$F$6 -> 0 | AI123: =J123*'B Factor'!$F$6 -> 0 | AJ123: =K123*'B Factor'!$F$6 -> 0 | AK123: =L123*'B Factor'!$F$6 -> 0 | AL123: =M123*'B Factor'!$F$6 -> 0 | AM123: =N123*'B Factor'!$F$6 -> 0 | AN123: =O123*'B Factor'!$F$6 -> 0 | AO123: =P123*'B Factor'!$F$6 -> 0 | AP123: =Q123*'B Factor'!$F$6 -> 0 | AQ123: =R123*'B Factor'!$F$6 -> 0 | AR123: =S123*'B Factor'!$F$6 -> 0 | AS123: =T123*'B Factor'!$F$6 -> 0 | AT123: =U123*'B Factor'!$F$6 -> 0 | AU123: =V123*'B Factor'!$F$6 -> 2.078832403e-06 | AV123: =W123*'B Factor'!$F$6 -> 0 | AW123: =X123*'B Factor'!$F$6 -> 0 | AX123: =Y123*'B Factor'!$F$6 -> 0 | AY123: =Z123*'B Factor'!$F$6 -> 0
A124: A | B124: 2006-05-03 | C124: 0 | D124: 0 | E124: 0 | F124: 0 | G124: 0 | H124: 0 | I124: 0 | J124: 0 | K124: 0 | L124: 0 | M124: 0 | N124: 0 | O124: 0 | P124: 0 | Q124: 0 | R124: 0 | S124: 0 | T124: 0 | U124: 0 | V124: 15.22 | W124: 0 | X124: 0 | Y124: 0 | Z124: 0 | AB124: =C124*'B Factor'!$F$6 -> 0 | AC124: =D124*'B Factor'!$F$6 -> 0 | AD124: =E124*'B Factor'!$F$6 -> 0 | AE124: =F124*'B Factor'!$F$6 -> 0 | AF124: =G124*'B Factor'!$F$6 -> 0 | AG124: =H124*'B Factor'!$F$6 -> 0 | AH124: =I124*'B Factor'!$F$6 -> 0 | AI124: =J124*'B Factor'!$F$6 -> 0 | AJ124: =K124*'B Factor'!$F$6 -> 0 | AK124: =L124*'B Factor'!$F$6 -> 0 | AL124: =M124*'B Factor'!$F$6 -> 0 | AM124: =N124*'B Factor'!$F$6 -> 0 | AN124: =O124*'B Factor'!$F$6 -> 0 | AO124: =P124*'B Factor'!$F$6 -> 0 | AP124: =Q124*'B Factor'!$F$6 -> 0 | AQ124: =R124*'B Factor'!$F$6 -> 0 | AR124: =S124*'B Factor'!$F$6 -> 0 | AS124: =T124*'B Factor'!$F$6 -> 0 | AT124: =U124*'B Factor'!$F$6 -> 0 | AU124: =V124*'B Factor'!$F$6 -> 1.766601294e-06 | AV124: =W124*'B Factor'!$F$6 -> 0 | AW124: =X124*'B Factor'!$F$6 -> 0 | AX124: =Y124*'B Factor'!$F$6 -> 0 | AY124: =Z124*'B Factor'!$F$6 -> 0
A125: A | B125: 2006-05-04 | C125: 0 | D125: 0 | E125: 0 | F125: 0 | G125: 0 | H125: 0 | I125: 0 | J125: 0 | K125: 0 | L125: 0 | M125: 0 | N125: 0 | O125: 0 | P125: 0 | Q125: 0 | R125: 0 | S125: 0 | T125: 0 | U125: 0 | V125: 0 | W125: 0 | X125: 0 | Y125: 0 | Z125: 0 | AB125: =C125*'B Factor'!$F$6 -> 0 | AC125: =D125*'B Factor'!$F$6 -> 0 | AD125: =E125*'B Factor'!$F$6 -> 0 | AE125: =F125*'B Factor'!$F$6 -> 0 | AF125: =G125*'B Factor'!$F$6 -> 0 | AG125: =H125*'B Factor'!$F$6 -> 0 | AH125: =I125*'B Factor'!$F$6 -> 0 | AI125: =J125*'B Factor'!$F$6 -> 0 | AJ125: =K125*'B Factor'!$F$6 -> 0 | AK125: =L125*'B Factor'!$F$6 -> 0 | AL125: =M125*'B Factor'!$F$6 -> 0 | AM125: =N125*'B Factor'!$F$6 -> 0 | AN125: =O125*'B Factor'!$F$6 -> 0 | AO125: =P125*'B Factor'!$F$6 -> 0 | AP125: =Q125*'B Factor'!$F$6 -> 0 | AQ125: =R125*'B Factor'!$F$6 -> 0 | AR125: =S125*'B Factor'!$F$6 -> 0 | AS125: =T125*'B Factor'!$F$6 -> 0 | AT125: =U125*'B Factor'!$F$6 -> 0 | AU125: =V125*'B Factor'!$F$6 -> 0 | AV125: =W125*'B Factor'!$F$6 -> 0 | AW125: =X125*'B Factor'!$F$6 -> 0 | AX125: =Y125*'B Factor'!$F$6 -> 0 | AY125: =Z125*'B Factor'!$F$6 -> 0
A126: A | B126: 2006-05-05 | C126: 0 | D126: 0 | E126: 0 | F126: 0 | G126: 0 | H126: 0 | I126: 0 | J126: 0 | K126: 0 | L126: 0 | M126: 0 | N126: 0 | O126: 0 | P126: 0 | Q126: 0 | R126: 0 | S126: 0 | T126: 0 | U126: 0 | V126: 46.67 | W126: 0 | X126: 0 | Y126: 0 | Z126: 0 | AB126: =C126*'B Factor'!$F$6 -> 0 | AC126: =D126*'B Factor'!$F$6 -> 0 | AD126: =E126*'B Factor'!$F$6 -> 0 | AE126: =F126*'B Factor'!$F$6 -> 0 | AF126: =G126*'B Factor'!$F$6 -> 0 | AG126: =H126*'B Factor'!$F$6 -> 0 | AH126: =I126*'B Factor'!$F$6 -> 0 | AI126: =J126*'B Factor'!$F$6 -> 0 | AJ126: =K126*'B Factor'!$F$6 -> 0 | AK126: =L126*'B Factor'!$F$6 -> 0 | AL126: =M126*'B Factor'!$F$6 -> 0 | AM126: =N126*'B Factor'!$F$6 -> 0 | AN126: =O126*'B Factor'!$F$6 -> 0 | AO126: =P126*'B Factor'!$F$6 -> 0 | AP126: =Q126*'B Factor'!$F$6 -> 0 | AQ126: =R126*'B Factor'!$F$6 -> 0 | AR126: =S126*'B Factor'!$F$6 -> 0 | AS126: =T126*'B Factor'!$F$6 -> 0 | AT126: =U126*'B Factor'!$F$6 -> 0 | AU126: =V126*'B Factor'!$F$6 -> 5.417035636e-06 | AV126: =W126*'B Factor'!$F$6 -> 0 | AW126: =X126*'B Factor'!$F$6 -> 0 | AX126: =Y126*'B Factor'!$F$6 -> 0 | AY126: =Z126*'B Factor'!$F$6 -> 0
A127: A | B127: 2006-05-06 | C127: 0 | D127: 0 | E127: 0 | F127: 0 | G127: 0 | H127: 0 | I127: 0 | J127: 0 | K127: 0 | L127: 0 | M127: 0 | N127: 0 | O127: 0 | P127: 0 | Q127: 0 | R127: 5.84 | S127: 48.39 | T127: 139.46 | U127: 571.15 | V127: 1210.32 | W127: 174.14 | X127: 0 | Y127: 0 | Z127: 0 | AB127: =C127*'B Factor'!$F$6 -> 0 | AC127: =D127*'B Factor'!$F$6 -> 0 | AD127: =E127*'B Factor'!$F$6 -> 0 | AE127: =F127*'B Factor'!$F$6 -> 0 | AF127: =G127*'B Factor'!$F$6 -> 0 | AG127: =H127*'B Factor'!$F$6 -> 0 | AH127: =I127*'B Factor'!$F$6 -> 0 | AI127: =J127*'B Factor'!$F$6 -> 0 | AJ127: =K127*'B Factor'!$F$6 -> 0 | AK127: =L127*'B Factor'!$F$6 -> 0 | AL127: =M127*'B Factor'!$F$6 -> 0 | AM127: =N127*'B Factor'!$F$6 -> 0 | AN127: =O127*'B Factor'!$F$6 -> 0 | AO127: =P127*'B Factor'!$F$6 -> 0 | AP127: =Q127*'B Factor'!$F$6 -> 0 | AQ127: =R127*'B Factor'!$F$6 -> 6.778548986e-07 | AR127: =S127*'B Factor'!$F$6 -> 5.616677832e-06 | AS127: =T127*'B Factor'!$F$6 -> 1.618726783e-05 | AT127: =U127*'B Factor'!$F$6 -> 6.629397694e-05 | AU127: =V127*'B Factor'!$F$6 -> 0.0001404831063 | AV127: =W127*'B Factor'!$F$6 -> 2.021261165e-05 | AW127: =X127*'B Factor'!$F$6 -> 0 | AX127: =Y127*'B Factor'!$F$6 -> 0 | AY127: =Z127*'B Factor'!$F$6 -> 0
A128: A | B128: 2006-05-07 | C128: 0 | D128: 0 | E128: 0 | F128: 0 | G128: 0 | H128: 0 | I128: 0 | J128: 0 | K128: 0 | L128: 0 | M128: 0 | N128: 0 | O128: 0 | P128: 0 | Q128: 0 | R128: 0 | S128: 0 | T128: 0 | U128: 149.25 | V128: 599.24 | W128: 0 | X128: 0 | Y128: 0 | Z128: 0 | AB128: =C128*'B Factor'!$F$6 -> 0 | AC128: =D128*'B Factor'!$F$6 -> 0 | AD128: =E128*'B Factor'!$F$6 -> 0 | AE128: =F128*'B Factor'!$F$6 -> 0 | AF128: =G128*'B Factor'!$F$6 -> 0 | AG128: =H128*'B Factor'!$F$6 -> 0 | AH128: =I128*'B Factor'!$F$6 -> 0 | AI128: =J128*'B Factor'!$F$6 -> 0 | AJ128: =K128*'B Factor'!$F$6 -> 0 | AK128: =L128*'B Factor'!$F$6 -> 0 | AL128: =M128*'B Factor'!$F$6 -> 0 | AM128: =N128*'B Factor'!$F$6 -> 0 | AN128: =O128*'B Factor'!$F$6 -> 0 | AO128: =P128*'B Factor'!$F$6 -> 0 | AP128: =Q128*'B Factor'!$F$6 -> 0 | AQ128: =R128*'B Factor'!$F$6 -> 0 | AR128: =S128*'B Factor'!$F$6 -> 0 | AS128: =T128*'B Factor'!$F$6 -> 0 | AT128: =U128*'B Factor'!$F$6 -> 1.732360336e-05 | AU128: =V128*'B Factor'!$F$6 -> 6.955441257e-05 | AV128: =W128*'B Factor'!$F$6 -> 0 | AW128: =X128*'B Factor'!$F$6 -> 0 | AX128: =Y128*'B Factor'!$F$6 -> 0 | AY128: =Z128*'B Factor'!$F$6 -> 0
A129: A | B129: 2006-05-08 | C129: 0 | D129: 0 | E129: 0 | F129: 0 | G129: 0 | H129: 0 | I129: 0 | J129: 0 | K129: 0 | L129: 0 | M129: 0 | N129: 0 | O129: 0 | P129: 0 | Q129: 0 | R129: 0 | S129: 0 | T129: 0 | U129: 3.89 | V129: 190.62 | W129: 0 | X129: 0 | Y129: 0 | Z129: 0 | AB129: =C129*'B Factor'!$F$6 -> 0 | AC129: =D129*'B Factor'!$F$6 -> 0 | AD129: =E129*'B Factor'!$F$6 -> 0 | AE129: =F129*'B Factor'!$F$6 -> 0 | AF129: =G129*'B Factor'!$F$6 -> 0 | AG129: =H129*'B Factor'!$F$6 -> 0 | AH129: =I129*'B Factor'!$F$6 -> 0 | AI129: =J129*'B Factor'!$F$6 -> 0 | AJ129: =K129*'B Factor'!$F$6 -> 0 | AK129: =L129*'B Factor'!$F$6 -> 0 | AL129: =M129*'B Factor'!$F$6 -> 0 | AM129: =N129*'B Factor'!$F$6 -> 0 | AN129: =O129*'B Factor'!$F$6 -> 0 | AO129: =P129*'B Factor'!$F$6 -> 0 | AP129: =Q129*'B Factor'!$F$6 -> 0 | AQ129: =R129*'B Factor'!$F$6 -> 0 | AR129: =S129*'B Factor'!$F$6 -> 0 | AS129: =T129*'B Factor'!$F$6 -> 0 | AT129: =U129*'B Factor'!$F$6 -> 4.515163622e-07 | AU129: =V129*'B Factor'!$F$6 -> 2.212546246e-05 | AV129: =W129*'B Factor'!$F$6 -> 0 | AW129: =X129*'B Factor'!$F$6 -> 0 | AX129: =Y129*'B Factor'!$F$6 -> 0 | AY129: =Z129*'B Factor'!$F$6 -> 0
A130: A | B130: 2006-05-09 | C130: 0 | D130: 0 | E130: 0 | F130: 0 | G130: 0 | H130: 0 | I130: 0 | J130: 0 | K130: 0 | L130: 0 | M130: 0 | N130: 0 | O130: 0 | P130: 0 | Q130: 0 | R130: 0 | S130: 0 | T130: 0 | U130: 0 | V130: 0 | W130: 0 | X130: 0 | Y130: 0 | Z130: 0 | AB130: =C130*'B Factor'!$F$6 -> 0 | AC130: =D130*'B Factor'!$F$6 -> 0 | AD130: =E130*'B Factor'!$F$6 -> 0 | AE130: =F130*'B Factor'!$F$6 -> 0 | AF130: =G130*'B Factor'!$F$6 -> 0 | AG130: =H130*'B Factor'!$F$6 -> 0 | AH130: =I130*'B Factor'!$F$6 -> 0 | AI130: =J130*'B Factor'!$F$6 -> 0 | AJ130: =K130*'B Factor'!$F$6 -> 0 | AK130: =L130*'B Factor'!$F$6 -> 0 | AL130: =M130*'B Factor'!$F$6 -> 0 | AM130: =N130*'B Factor'!$F$6 -> 0 | AN130: =O130*'B Factor'!$F$6 -> 0 | AO130: =P130*'B Factor'!$F$6 -> 0 | AP130: =Q130*'B Factor'!$F$6 -> 0 | AQ130: =R130*'B Factor'!$F$6 -> 0 | AR130: =S130*'B Factor'!$F$6 -> 0 | AS130: =T130*'B Factor'!$F$6 -> 0 | AT130: =U130*'B Factor'!$F$6 -> 0 | AU130: =V130*'B Factor'!$F$6 -> 0 | AV130: =W130*'B Factor'!$F$6 -> 0 | AW130: =X130*'B Factor'!$F$6 -> 0 | AX130: =Y130*'B Factor'!$F$6 -> 0 | AY130: =Z130*'B Factor'!$F$6 -> 0
A131: A | B131: 2006-05-10 | C131: 0 | D131: 0 | E131: 0 | F131: 0 | G131: 0 | H131: 0 | I131: 0 | J131: 0 | K131: 0 | L131: 0 | M131: 0 | N131: 0 | O131: 0 | P131: 0 | Q131: 0 | R131: 0 | S131: 0 | T131: 0 | U131: 0 | V131: 0 | W131: 0 | X131: 0 | Y131: 0 | Z131: 0 | AB131: =C131*'B Factor'!$F$6 -> 0 | AC131: =D131*'B Factor'!$F$6 -> 0 | AD131: =E131*'B Factor'!$F$6 -> 0 | AE131: =F131*'B Factor'!$F$6 -> 0 | AF131: =G131*'B Factor'!$F$6 -> 0 | AG131: =H131*'B Factor'!$F$6 -> 0 | AH131: =I131*'B Factor'!$F$6 -> 0 | AI131: =J131*'B Factor'!$F$6 -> 0 | AJ131: =K131*'B Factor'!$F$6 -> 0 | AK131: =L131*'B Factor'!$F$6 -> 0 | AL131: =M131*'B Factor'!$F$6 -> 0 | AM131: =N131*'B Factor'!$F$6 -> 0 | AN131: =O131*'B Factor'!$F$6 -> 0 | AO131: =P131*'B Factor'!$F$6 -> 0 | AP131: =Q131*'B Factor'!$F$6 -> 0 | AQ131: =R131*'B Factor'!$F$6 -> 0 | AR131: =S131*'B Factor'!$F$6 -> 0 | AS131: =T131*'B Factor'!$F$6 -> 0 | AT131: =U131*'B Factor'!$F$6 -> 0 | AU131: =V131*'B Factor'!$F$6 -> 0 | AV131: =W131*'B Factor'!$F$6 -> 0 | AW131: =X131*'B Factor'!$F$6 -> 0 | AX131: =Y131*'B Factor'!$F$6 -> 0 | AY131: =Z131*'B Factor'!$F$6 -> 0
A132: A | B132: 2006-05-11 | C132: 0 | D132: 0 | E132: 0 | F132: 0 | G132: 0 | H132: 0 | I132: 0 | J132: 0 | K132: 0 | L132: 0 | M132: 0 | N132: 0 | O132: 0 | P132: 0 | Q132: 0 | R132: 0 | S132: 0 | T132: 0 | U132: 0 | V132: 0 | W132: 0 | X132: 0 | Y132: 0 | Z132: 0 | AB132: =C132*'B Factor'!$F$6 -> 0 | AC132: =D132*'B Factor'!$F$6 -> 0 | AD132: =E132*'B Factor'!$F$6 -> 0 | AE132: =F132*'B Factor'!$F$6 -> 0 | AF132: =G132*'B Factor'!$F$6 -> 0 | AG132: =H132*'B Factor'!$F$6 -> 0 | AH132: =I132*'B Factor'!$F$6 -> 0 | AI132: =J132*'B Factor'!$F$6 -> 0 | AJ132: =K132*'B Factor'!$F$6 -> 0 | AK132: =L132*'B Factor'!$F$6 -> 0 | AL132: =M132*'B Factor'!$F$6 -> 0 | AM132: =N132*'B Factor'!$F$6 -> 0 | AN132: =O132*'B Factor'!$F$6 -> 0 | AO132: =P132*'B Factor'!$F$6 -> 0 | AP132: =Q132*'B Factor'!$F$6 -> 0 | AQ132: =R132*'B Factor'!$F$6 -> 0 | AR132: =S132*'B Factor'!$F$6 -> 0 | AS132: =T132*'B Factor'!$F$6 -> 0 | AT132: =U132*'B Factor'!$F$6 -> 0 | AU132: =V132*'B Factor'!$F$6 -> 0 | AV132: =W132*'B Factor'!$F$6 -> 0 | AW132: =X132*'B Factor'!$F$6 -> 0 | AX132: =Y132*'B Factor'!$F$6 -> 0 | AY132: =Z132*'B Factor'!$F$6 -> 0
A133: A | B133: 2006-05-12 | C133: 0 | D133: 0 | E133: 0 | F133: 0 | G133: 0 | H133: 0 | I133: 0 | J133: 0 | K133: 0 | L133: 0 | M133: 0 | N133: 0 | O133: 0 | P133: 0 | Q133: 0 | R133: 0 | S133: 0 | T133: 0 | U133: 0 | V133: 0 | W133: 0 | X133: 0 | Y133: 0 | Z133: 0 | AB133: =C133*'B Factor'!$F$6 -> 0 | AC133: =D133*'B Factor'!$F$6 -> 0 | AD133: =E133*'B Factor'!$F$6 -> 0 | AE133: =F133*'B Factor'!$F$6 -> 0 | AF133: =G133*'B Factor'!$F$6 -> 0 | AG133: =H133*'B Factor'!$F$6 -> 0 | AH133: =I133*'B Factor'!$F$6 -> 0 | AI133: =J133*'B Factor'!$F$6 -> 0 | AJ133: =K133*'B Factor'!$F$6 -> 0 | AK133: =L133*'B Factor'!$F$6 -> 0 | AL133: =M133*'B Factor'!$F$6 -> 0 | AM133: =N133*'B Factor'!$F$6 -> 0 | AN133: =O133*'B Factor'!$F$6 -> 0 | AO133: =P133*'B Factor'!$F$6 -> 0 | AP133: =Q133*'B Factor'!$F$6 -> 0 | AQ133: =R133*'B Factor'!$F$6 -> 0 | AR133: =S133*'B Factor'!$F$6 -> 0 | AS133: =T133*'B Factor'!$F$6 -> 0 | AT133: =U133*'B Factor'!$F$6 -> 0 | AU133: =V133*'B Factor'!$F$6 -> 0 | AV133: =W133*'B Factor'!$F$6 -> 0 | AW133: =X133*'B Factor'!$F$6 -> 0 | AX133: =Y133*'B Factor'!$F$6 -> 0 | AY133: =Z133*'B Factor'!$F$6 -> 0
A134: A | B134: 2006-05-13 | C134: 0 | D134: 0 | E134: 0 | F134: 0 | G134: 0 | H134: 0 | I134: 0 | J134: 0 | K134: 0 | L134: 0 | M134: 0 | N134: 0 | O134: 0 | P134: 0 | Q134: 0 | R134: 0 | S134: 0 | T134: 0 | U134: 20.79 | V134: 158.65 | W134: 0 | X134: 0 | Y134: 0 | Z134: 0 | AB134: =C134*'B Factor'!$F$6 -> 0 | AC134: =D134*'B Factor'!$F$6 -> 0 | AD134: =E134*'B Factor'!$F$6 -> 0 | AE134: =F134*'B Factor'!$F$6 -> 0 | AF134: =G134*'B Factor'!$F$6 -> 0 | AG134: =H134*'B Factor'!$F$6 -> 0 | AH134: =I134*'B Factor'!$F$6 -> 0 | AI134: =J134*'B Factor'!$F$6 -> 0 | AJ134: =K134*'B Factor'!$F$6 -> 0 | AK134: =L134*'B Factor'!$F$6 -> 0 | AL134: =M134*'B Factor'!$F$6 -> 0 | AM134: =N134*'B Factor'!$F$6 -> 0 | AN134: =O134*'B Factor'!$F$6 -> 0 | AO134: =P134*'B Factor'!$F$6 -> 0 | AP134: =Q134*'B Factor'!$F$6 -> 0 | AQ134: =R134*'B Factor'!$F$6 -> 0 | AR134: =S134*'B Factor'!$F$6 -> 0 | AS134: =T134*'B Factor'!$F$6 -> 0 | AT134: =U134*'B Factor'!$F$6 -> 2.41311701e-06 | AU134: =V134*'B Factor'!$F$6 -> 1.841467117e-05 | AV134: =W134*'B Factor'!$F$6 -> 0 | AW134: =X134*'B Factor'!$F$6 -> 0 | AX134: =Y134*'B Factor'!$F$6 -> 0 | AY134: =Z134*'B Factor'!$F$6 -> 0
A135: A | B135: 2006-05-14 | C135: 0 | D135: 0 | E135: 0 | F135: 0 | G135: 0 | H135: 0 | I135: 0 | J135: 0 | K135: 0 | L135: 0 | M135: 0 | N135: 0 | O135: 0 | P135: 0 | Q135: 0 | R135: 0 | S135: 0 | T135: 0 | U135: 0 | V135: 19.21 | W135: 0 | X135: 0 | Y135: 0 | Z135: 0 | AB135: =C135*'B Factor'!$F$6 -> 0 | AC135: =D135*'B Factor'!$F$6 -> 0 | AD135: =E135*'B Factor'!$F$6 -> 0 | AE135: =F135*'B Factor'!$F$6 -> 0 | AF135: =G135*'B Factor'!$F$6 -> 0 | AG135: =H135*'B Factor'!$F$6 -> 0 | AH135: =I135*'B Factor'!$F$6 -> 0 | AI135: =J135*'B Factor'!$F$6 -> 0 | AJ135: =K135*'B Factor'!$F$6 -> 0 | AK135: =L135*'B Factor'!$F$6 -> 0 | AL135: =M135*'B Factor'!$F$6 -> 0 | AM135: =N135*'B Factor'!$F$6 -> 0 | AN135: =O135*'B Factor'!$F$6 -> 0 | AO135: =P135*'B Factor'!$F$6 -> 0 | AP135: =Q135*'B Factor'!$F$6 -> 0 | AQ135: =R135*'B Factor'!$F$6 -> 0 | AR135: =S135*'B Factor'!$F$6 -> 0 | AS135: =T135*'B Factor'!$F$6 -> 0 | AT135: =U135*'B Factor'!$F$6 -> 0 | AU135: =V135*'B Factor'!$F$6 -> 2.22972476e-06 | AV135: =W135*'B Factor'!$F$6 -> 0 | AW135: =X135*'B Factor'!$F$6 -> 0 | AX135: =Y135*'B Factor'!$F$6 -> 0 | AY135: =Z135*'B Factor'!$F$6 -> 0
A136: A | B136: 2006-05-15 | C136: 0 | D136: 0 | E136: 0 | F136: 0 | G136: 0 | H136: 0 | I136: 0 | J136: 0 | K136: 0 | L136: 0 | M136: 0 | N136: 0 | O136: 0 | P136: 0 | Q136: 0 | R136: 0 | S136: 0 | T136: 0 | U136: 0 | V136: 58.06 | W136: 0 | X136: 0 | Y136: 0 | Z136: 0 | AB136: =C136*'B Factor'!$F$6 -> 0 | AC136: =D136*'B Factor'!$F$6 -> 0 | AD136: =E136*'B Factor'!$F$6 -> 0 | AE136: =F136*'B Factor'!$F$6 -> 0 | AF136: =G136*'B Factor'!$F$6 -> 0 | AG136: =H136*'B Factor'!$F$6 -> 0 | AH136: =I136*'B Factor'!$F$6 -> 0 | AI136: =J136*'B Factor'!$F$6 -> 0 | AJ136: =K136*'B Factor'!$F$6 -> 0 | AK136: =L136*'B Factor'!$F$6 -> 0 | AL136: =M136*'B Factor'!$F$6 -> 0 | AM136: =N136*'B Factor'!$F$6 -> 0 | AN136: =O136*'B Factor'!$F$6 -> 0 | AO136: =P136*'B Factor'!$F$6 -> 0 | AP136: =Q136*'B Factor'!$F$6 -> 0 | AQ136: =R136*'B Factor'!$F$6 -> 0 | AR136: =S136*'B Factor'!$F$6 -> 0 | AS136: =T136*'B Factor'!$F$6 -> 0 | AT136: =U136*'B Factor'!$F$6 -> 0 | AU136: =V136*'B Factor'!$F$6 -> 6.73908483e-06 | AV136: =W136*'B Factor'!$F$6 -> 0 | AW136: =X136*'B Factor'!$F$6 -> 0 | AX136: =Y136*'B Factor'!$F$6 -> 0 | AY136: =Z136*'B Factor'!$F$6 -> 0
A137: A | B137: 2006-05-16 | C137: 0 | D137: 0 | E137: 0 | F137: 0 | G137: 0 | H137: 0 | I137: 0 | J137: 0 | K137: 0 | L137: 0 | M137: 0 | N137: 0 | O137: 0 | P137: 0 | Q137: 0 | R137: 0 | S137: 0 | T137: 0 | U137: 0 | V137: 0 | W137: 0 | X137: 0 | Y137: 0 | Z137: 0 | AB137: =C137*'B Factor'!$F$6 -> 0 | AC137: =D137*'B Factor'!$F$6 -> 0 | AD137: =E137*'B Factor'!$F$6 -> 0 | AE137: =F137*'B Factor'!$F$6 -> 0 | AF137: =G137*'B Factor'!$F$6 -> 0 | AG137: =H137*'B Factor'!$F$6 -> 0 | AH137: =I137*'B Factor'!$F$6 -> 0 | AI137: =J137*'B Factor'!$F$6 -> 0 | AJ137: =K137*'B Factor'!$F$6 -> 0 | AK137: =L137*'B Factor'!$F$6 -> 0 | AL137: =M137*'B Factor'!$F$6 -> 0 | AM137: =N137*'B Factor'!$F$6 -> 0 | AN137: =O137*'B Factor'!$F$6 -> 0 | AO137: =P137*'B Factor'!$F$6 -> 0 | AP137: =Q137*'B Factor'!$F$6 -> 0 | AQ137: =R137*'B Factor'!$F$6 -> 0 | AR137: =S137*'B Factor'!$F$6 -> 0 | AS137: =T137*'B Factor'!$F$6 -> 0 | AT137: =U137*'B Factor'!$F$6 -> 0 | AU137: =V137*'B Factor'!$F$6 -> 0 | AV137: =W137*'B Factor'!$F$6 -> 0 | AW137: =X137*'B Factor'!$F$6 -> 0 | AX137: =Y137*'B Factor'!$F$6 -> 0 | AY137: =Z137*'B Factor'!$F$6 -> 0
A138: A | B138: 2006-05-17 | C138: 0 | D138: 0 | E138: 0 | F138: 0 | G138: 0 | H138: 0 | I138: 0 | J138: 0 | K138: 0 | L138: 0 | M138: 0 | N138: 0 | O138: 0 | P138: 0 | Q138: 0 | R138: 0 | S138: 0 | T138: 0 | U138: 0 | V138: 0 | W138: 0 | X138: 0 | Y138: 0 | Z138: 0 | AB138: =C138*'B Factor'!$F$6 -> 0 | AC138: =D138*'B Factor'!$F$6 -> 0 | AD138: =E138*'B Factor'!$F$6 -> 0 | AE138: =F138*'B Factor'!$F$6 -> 0 | AF138: =G138*'B Factor'!$F$6 -> 0 | AG138: =H138*'B Factor'!$F$6 -> 0 | AH138: =I138*'B Factor'!$F$6 -> 0 | AI138: =J138*'B Factor'!$F$6 -> 0 | AJ138: =K138*'B Factor'!$F$6 -> 0 | AK138: =L138*'B Factor'!$F$6 -> 0 | AL138: =M138*'B Factor'!$F$6 -> 0 | AM138: =N138*'B Factor'!$F$6 -> 0 | AN138: =O138*'B Factor'!$F$6 -> 0 | AO138: =P138*'B Factor'!$F$6 -> 0 | AP138: =Q138*'B Factor'!$F$6 -> 0 | AQ138: =R138*'B Factor'!$F$6 -> 0 | AR138: =S138*'B Factor'!$F$6 -> 0 | AS138: =T138*'B Factor'!$F$6 -> 0 | AT138: =U138*'B Factor'!$F$6 -> 0 | AU138: =V138*'B Factor'!$F$6 -> 0 | AV138: =W138*'B Factor'!$F$6 -> 0 | AW138: =X138*'B Factor'!$F$6 -> 0 | AX138: =Y138*'B Factor'!$F$6 -> 0 | AY138: =Z138*'B Factor'!$F$6 -> 0
A139: A | B139: 2006-05-18 | C139: 0 | D139: 0 | E139: 0 | F139: 0 | G139: 0 | H139: 0 | I139: 0 | J139: 0 | K139: 0 | L139: 0 | M139: 0 | N139: 0 | O139: 0 | P139: 0 | Q139: 0 | R139: 0 | S139: 0 | T139: 0 | U139: 0 | V139: 61.92 | W139: 0 | X139: 0 | Y139: 0 | Z139: 0 | AB139: =C139*'B Factor'!$F$6 -> 0 | AC139: =D139*'B Factor'!$F$6 -> 0 | AD139: =E139*'B Factor'!$F$6 -> 0 | AE139: =F139*'B Factor'!$F$6 -> 0 | AF139: =G139*'B Factor'!$F$6 -> 0 | AG139: =H139*'B Factor'!$F$6 -> 0 | AH139: =I139*'B Factor'!$F$6 -> 0 | AI139: =J139*'B Factor'!$F$6 -> 0 | AJ139: =K139*'B Factor'!$F$6 -> 0 | AK139: =L139*'B Factor'!$F$6 -> 0 | AL139: =M139*'B Factor'!$F$6 -> 0 | AM139: =N139*'B Factor'!$F$6 -> 0 | AN139: =O139*'B Factor'!$F$6 -> 0 | AO139: =P139*'B Factor'!$F$6 -> 0 | AP139: =Q139*'B Factor'!$F$6 -> 0 | AQ139: =R139*'B Factor'!$F$6 -> 0 | AR139: =S139*'B Factor'!$F$6 -> 0 | AS139: =T139*'B Factor'!$F$6 -> 0 | AT139: =U139*'B Factor'!$F$6 -> 0 | AU139: =V139*'B Factor'!$F$6 -> 7.187119061e-06 | AV139: =W139*'B Factor'!$F$6 -> 0 | AW139: =X139*'B Factor'!$F$6 -> 0 | AX139: =Y139*'B Factor'!$F$6 -> 0 | AY139: =Z139*'B Factor'!$F$6 -> 0
A140: A | B140: 2006-05-19 | C140: 0 | D140: 0 | E140: 0 | F140: 0 | G140: 0 | H140: 0 | I140: 0 | J140: 0 | K140: 0 | L140: 0 | M140: 0 | N140: 0 | O140: 0 | P140: 0 | Q140: 0 | R140: 0 | S140: 0 | T140: 0 | U140: 0 | V140: 0 | W140: 0 | X140: 0 | Y140: 0 | Z140: 0 | AB140: =C140*'B Factor'!$F$6 -> 0 | AC140: =D140*'B Factor'!$F$6 -> 0 | AD140: =E140*'B Factor'!$F$6 -> 0 | AE140: =F140*'B Factor'!$F$6 -> 0 | AF140: =G140*'B Factor'!$F$6 -> 0 | AG140: =H140*'B Factor'!$F$6 -> 0 | AH140: =I140*'B Factor'!$F$6 -> 0 | AI140: =J140*'B Factor'!$F$6 -> 0 | AJ140: =K140*'B Factor'!$F$6 -> 0 | AK140: =L140*'B Factor'!$F$6 -> 0 | AL140: =M140*'B Factor'!$F$6 -> 0 | AM140: =N140*'B Factor'!$F$6 -> 0 | AN140: =O140*'B Factor'!$F$6 -> 0 | AO140: =P140*'B Factor'!$F$6 -> 0 | AP140: =Q140*'B Factor'!$F$6 -> 0 | AQ140: =R140*'B Factor'!$F$6 -> 0 | AR140: =S140*'B Factor'!$F$6 -> 0 | AS140: =T140*'B Factor'!$F$6 -> 0 | AT140: =U140*'B Factor'!$F$6 -> 0 | AU140: =V140*'B Factor'!$F$6 -> 0 | AV140: =W140*'B Factor'!$F$6 -> 0 | AW140: =X140*'B Factor'!$F$6 -> 0 | AX140: =Y140*'B Factor'!$F$6 -> 0 | AY140: =Z140*'B Factor'!$F$6 -> 0
A141: A | B141: 2006-05-20 | C141: 0 | D141: 0 | E141: 0 | F141: 0 | G141: 0 | H141: 0 | I141: 0 | J141: 0 | K141: 0 | L141: 0 | M141: 0 | N141: 0 | O141: 0 | P141: 0 | Q141: 0 | R141: 0 | S141: 0 | T141: 88.79 | U141: 251.75 | V141: 503.61 | W141: 188.14 | X141: 0 | Y141: 0 | Z141: 0 | AB141: =C141*'B Factor'!$F$6 -> 0 | AC141: =D141*'B Factor'!$F$6 -> 0 | AD141: =E141*'B Factor'!$F$6 -> 0 | AE141: =F141*'B Factor'!$F$6 -> 0 | AF141: =G141*'B Factor'!$F$6 -> 0 | AG141: =H141*'B Factor'!$F$6 -> 0 | AH141: =I141*'B Factor'!$F$6 -> 0 | AI141: =J141*'B Factor'!$F$6 -> 0 | AJ141: =K141*'B Factor'!$F$6 -> 0 | AK141: =L141*'B Factor'!$F$6 -> 0 | AL141: =M141*'B Factor'!$F$6 -> 0 | AM141: =N141*'B Factor'!$F$6 -> 0 | AN141: =O141*'B Factor'!$F$6 -> 0 | AO141: =P141*'B Factor'!$F$6 -> 0 | AP141: =Q141*'B Factor'!$F$6 -> 0 | AQ141: =R141*'B Factor'!$F$6 -> 0 | AR141: =S141*'B Factor'!$F$6 -> 0 | AS141: =T141*'B Factor'!$F$6 -> 1.030594802e-05 | AT141: =U141*'B Factor'!$F$6 -> 2.92208854e-05 | AU141: =V141*'B Factor'!$F$6 -> 5.845453861e-05 | AV141: =W141*'B Factor'!$F$6 -> 2.183760627e-05 | AW141: =X141*'B Factor'!$F$6 -> 0 | AX141: =Y141*'B Factor'!$F$6 -> 0 | AY141: =Z141*'B Factor'!$F$6 -> 0
A142: A | B142: 2006-05-21 | C142: 0 | D142: 0 | E142: 0 | F142: 0 | G142: 0 | H142: 0 | I142: 0 | J142: 0 | K142: 0 | L142: 0 | M142: 0 | N142: 0 | O142: 0 | P142: 0 | Q142: 0 | R142: 0 | S142: 0 | T142: 0 | U142: 63.7 | V142: 223.04 | W142: 44.86 | X142: 0 | Y142: 0 | Z142: 0 | AB142: =C142*'B Factor'!$F$6 -> 0 | AC142: =D142*'B Factor'!$F$6 -> 0 | AD142: =E142*'B Factor'!$F$6 -> 0 | AE142: =F142*'B Factor'!$F$6 -> 0 | AF142: =G142*'B Factor'!$F$6 -> 0 | AG142: =H142*'B Factor'!$F$6 -> 0 | AH142: =I142*'B Factor'!$F$6 -> 0 | AI142: =J142*'B Factor'!$F$6 -> 0 | AJ142: =K142*'B Factor'!$F$6 -> 0 | AK142: =L142*'B Factor'!$F$6 -> 0 | AL142: =M142*'B Factor'!$F$6 -> 0 | AM142: =N142*'B Factor'!$F$6 -> 0 | AN142: =O142*'B Factor'!$F$6 -> 0 | AO142: =P142*'B Factor'!$F$6 -> 0 | AP142: =Q142*'B Factor'!$F$6 -> 0 | AQ142: =R142*'B Factor'!$F$6 -> 0 | AR142: =S142*'B Factor'!$F$6 -> 0 | AS142: =T142*'B Factor'!$F$6 -> 0 | AT142: =U142*'B Factor'!$F$6 -> 7.39372552e-06 | AU142: =V142*'B Factor'!$F$6 -> 2.588848571e-05 | AV142: =W142*'B Factor'!$F$6 -> 5.206947046e-06 | AW142: =X142*'B Factor'!$F$6 -> 0 | AX142: =Y142*'B Factor'!$F$6 -> 0 | AY142: =Z142*'B Factor'!$F$6 -> 0
A143: A | B143: 2006-05-22 | C143: 0 | D143: 0 | E143: 0 | F143: 0 | G143: 0 | H143: 0 | I143: 0 | J143: 0 | K143: 0 | L143: 0 | M143: 0 | N143: 0 | O143: 0 | P143: 0 | Q143: 0 | R143: 0 | S143: 0 | T143: 0 | U143: 0 | V143: 0 | W143: 0 | X143: 0 | Y143: 0 | Z143: 0 | AB143: =C143*'B Factor'!$F$6 -> 0 | AC143: =D143*'B Factor'!$F$6 -> 0 | AD143: =E143*'B Factor'!$F$6 -> 0 | AE143: =F143*'B Factor'!$F$6 -> 0 | AF143: =G143*'B Factor'!$F$6 -> 0 | AG143: =H143*'B Factor'!$F$6 -> 0 | AH143: =I143*'B Factor'!$F$6 -> 0 | AI143: =J143*'B Factor'!$F$6 -> 0 | AJ143: =K143*'B Factor'!$F$6 -> 0 | AK143: =L143*'B Factor'!$F$6 -> 0 | AL143: =M143*'B Factor'!$F$6 -> 0 | AM143: =N143*'B Factor'!$F$6 -> 0 | AN143: =O143*'B Factor'!$F$6 -> 0 | AO143: =P143*'B Factor'!$F$6 -> 0 | AP143: =Q143*'B Factor'!$F$6 -> 0 | AQ143: =R143*'B Factor'!$F$6 -> 0 | AR143: =S143*'B Factor'!$F$6 -> 0 | AS143: =T143*'B Factor'!$F$6 -> 0 | AT143: =U143*'B Factor'!$F$6 -> 0 | AU143: =V143*'B Factor'!$F$6 -> 0 | AV143: =W143*'B Factor'!$F$6 -> 0 | AW143: =X143*'B Factor'!$F$6 -> 0 | AX143: =Y143*'B Factor'!$F$6 -> 0 | AY143: =Z143*'B Factor'!$F$6 -> 0
A144: A | B144: 2006-05-23 | C144: 0 | D144: 0 | E144: 0 | F144: 0 | G144: 0 | H144: 0 | I144: 0 | J144: 0 | K144: 0 | L144: 0 | M144: 0 | N144: 0 | O144: 0 | P144: 0 | Q144: 0 | R144: 0 | S144: 0 | T144: 0 | U144: 0 | V144: 0 | W144: 0 | X144: 0 | Y144: 0 | Z144: 0 | AB144: =C144*'B Factor'!$F$6 -> 0 | AC144: =D144*'B Factor'!$F$6 -> 0 | AD144: =E144*'B Factor'!$F$6 -> 0 | AE144: =F144*'B Factor'!$F$6 -> 0 | AF144: =G144*'B Factor'!$F$6 -> 0 | AG144: =H144*'B Factor'!$F$6 -> 0 | AH144: =I144*'B Factor'!$F$6 -> 0 | AI144: =J144*'B Factor'!$F$6 -> 0 | AJ144: =K144*'B Factor'!$F$6 -> 0 | AK144: =L144*'B Factor'!$F$6 -> 0 | AL144: =M144*'B Factor'!$F$6 -> 0 | AM144: =N144*'B Factor'!$F$6 -> 0 | AN144: =O144*'B Factor'!$F$6 -> 0 | AO144: =P144*'B Factor'!$F$6 -> 0 | AP144: =Q144*'B Factor'!$F$6 -> 0 | AQ144: =R144*'B Factor'!$F$6 -> 0 | AR144: =S144*'B Factor'!$F$6 -> 0 | AS144: =T144*'B Factor'!$F$6 -> 0 | AT144: =U144*'B Factor'!$F$6 -> 0 | AU144: =V144*'B Factor'!$F$6 -> 0 | AV144: =W144*'B Factor'!$F$6 -> 0 | AW144: =X144*'B Factor'!$F$6 -> 0 | AX144: =Y144*'B Factor'!$F$6 -> 0 | AY144: =Z144*'B Factor'!$F$6 -> 0
A145: A | B145: 2006-05-24 | C145: 0 | D145: 0 | E145: 0 | F145: 0 | G145: 0 | H145: 0 | I145: 0 | J145: 0 | K145: 0 | L145: 0 | M145: 0 | N145: 0 | O145: 0 | P145: 0 | Q145: 0 | R145: 0 | S145: 0 | T145: 0 | U145: 0 | V145: 0 | W145: 0 | X145: 0 | Y145: 0 | Z145: 0 | AB145: =C145*'B Factor'!$F$6 -> 0 | AC145: =D145*'B Factor'!$F$6 -> 0 | AD145: =E145*'B Factor'!$F$6 -> 0 | AE145: =F145*'B Factor'!$F$6 -> 0 | AF145: =G145*'B Factor'!$F$6 -> 0 | AG145: =H145*'B Factor'!$F$6 -> 0 | AH145: =I145*'B Factor'!$F$6 -> 0 | AI145: =J145*'B Factor'!$F$6 -> 0 | AJ145: =K145*'B Factor'!$F$6 -> 0 | AK145: =L145*'B Factor'!$F$6 -> 0 | AL145: =M145*'B Factor'!$F$6 -> 0 | AM145: =N145*'B Factor'!$F$6 -> 0 | AN145: =O145*'B Factor'!$F$6 -> 0 | AO145: =P145*'B Factor'!$F$6 -> 0 | AP145: =Q145*'B Factor'!$F$6 -> 0 | AQ145: =R145*'B Factor'!$F$6 -> 0 | AR145: =S145*'B Factor'!$F$6 -> 0 | AS145: =T145*'B Factor'!$F$6 -> 0 | AT145: =U145*'B Factor'!$F$6 -> 0 | AU145: =V145*'B Factor'!$F$6 -> 0 | AV145: =W145*'B Factor'!$F$6 -> 0 | AW145: =X145*'B Factor'!$F$6 -> 0 | AX145: =Y145*'B Factor'!$F$6 -> 0 | AY145: =Z145*'B Factor'!$F$6 -> 0
A146: A | B146: 2006-05-25 | C146: 0 | D146: 0 | E146: 0 | F146: 0 | G146: 0 | H146: 0 | I146: 0 | J146: 0 | K146: 0 | L146: 0 | M146: 0 | N146: 0 | O146: 0 | P146: 0 | Q146: 0 | R146: 0 | S146: 0 | T146: 0 | U146: 0 | V146: 0 | W146: 0 | X146: 0 | Y146: 0 | Z146: 0 | AB146: =C146*'B Factor'!$F$6 -> 0 | AC146: =D146*'B Factor'!$F$6 -> 0 | AD146: =E146*'B Factor'!$F$6 -> 0 | AE146: =F146*'B Factor'!$F$6 -> 0 | AF146: =G146*'B Factor'!$F$6 -> 0 | AG146: =H146*'B Factor'!$F$6 -> 0 | AH146: =I146*'B Factor'!$F$6 -> 0 | AI146: =J146*'B Factor'!$F$6 -> 0 | AJ146: =K146*'B Factor'!$F$6 -> 0 | AK146: =L146*'B Factor'!$F$6 -> 0 | AL146: =M146*'B Factor'!$F$6 -> 0 | AM146: =N146*'B Factor'!$F$6 -> 0 | AN146: =O146*'B Factor'!$F$6 -> 0 | AO146: =P146*'B Factor'!$F$6 -> 0 | AP146: =Q146*'B Factor'!$F$6 -> 0 | AQ146: =R146*'B Factor'!$F$6 -> 0 | AR146: =S146*'B Factor'!$F$6 -> 0 | AS146: =T146*'B Factor'!$F$6 -> 0 | AT146: =U146*'B Factor'!$F$6 -> 0 | AU146: =V146*'B Factor'!$F$6 -> 0 | AV146: =W146*'B Factor'!$F$6 -> 0 | AW146: =X146*'B Factor'!$F$6 -> 0 | AX146: =Y146*'B Factor'!$F$6 -> 0 | AY146: =Z146*'B Factor'!$F$6 -> 0
A147: A | B147: 2006-05-26 | C147: 0 | D147: 0 | E147: 0 | F147: 0 | G147: 0 | H147: 0 | I147: 0 | J147: 0 | K147: 0 | L147: 0 | M147: 0 | N147: 0 | O147: 0 | P147: 0 | Q147: 0 | R147: 0 | S147: 0 | T147: 0 | U147: 0 | V147: 0 | W147: 0 | X147: 0 | Y147: 0 | Z147: 0 | AB147: =C147*'B Factor'!$F$6 -> 0 | AC147: =D147*'B Factor'!$F$6 -> 0 | AD147: =E147*'B Factor'!$F$6 -> 0 | AE147: =F147*'B Factor'!$F$6 -> 0 | AF147: =G147*'B Factor'!$F$6 -> 0 | AG147: =H147*'B Factor'!$F$6 -> 0 | AH147: =I147*'B Factor'!$F$6 -> 0 | AI147: =J147*'B Factor'!$F$6 -> 0 | AJ147: =K147*'B Factor'!$F$6 -> 0 | AK147: =L147*'B Factor'!$F$6 -> 0 | AL147: =M147*'B Factor'!$F$6 -> 0 | AM147: =N147*'B Factor'!$F$6 -> 0 | AN147: =O147*'B Factor'!$F$6 -> 0 | AO147: =P147*'B Factor'!$F$6 -> 0 | AP147: =Q147*'B Factor'!$F$6 -> 0 | AQ147: =R147*'B Factor'!$F$6 -> 0 | AR147: =S147*'B Factor'!$F$6 -> 0 | AS147: =T147*'B Factor'!$F$6 -> 0 | AT147: =U147*'B Factor'!$F$6 -> 0 | AU147: =V147*'B Factor'!$F$6 -> 0 | AV147: =W147*'B Factor'!$F$6 -> 0 | AW147: =X147*'B Factor'!$F$6 -> 0 | AX147: =Y147*'B Factor'!$F$6 -> 0 | AY147: =Z147*'B Factor'!$F$6 -> 0
A148: A | B148: 2006-05-27 | C148: 0 | D148: 0 | E148: 0 | F148: 0 | G148: 0 | H148: 0 | I148: 0 | J148: 0 | K148: 0 | L148: 0 | M148: 0 | N148: 0 | O148: 0 | P148: 0 | Q148: 0 | R148: 0 | S148: 0 | T148: 0 | U148: 0 | V148: 0 | W148: 0 | X148: 0 | Y148: 0 | Z148: 0 | AB148: =C148*'B Factor'!$F$6 -> 0 | AC148: =D148*'B Factor'!$F$6 -> 0 | AD148: =E148*'B Factor'!$F$6 -> 0 | AE148: =F148*'B Factor'!$F$6 -> 0 | AF148: =G148*'B Factor'!$F$6 -> 0 | AG148: =H148*'B Factor'!$F$6 -> 0 | AH148: =I148*'B Factor'!$F$6 -> 0 | AI148: =J148*'B Factor'!$F$6 -> 0 | AJ148: =K148*'B Factor'!$F$6 -> 0 | AK148: =L148*'B Factor'!$F$6 -> 0 | AL148: =M148*'B Factor'!$F$6 -> 0 | AM148: =N148*'B Factor'!$F$6 -> 0 | AN148: =O148*'B Factor'!$F$6 -> 0 | AO148: =P148*'B Factor'!$F$6 -> 0 | AP148: =Q148*'B Factor'!$F$6 -> 0 | AQ148: =R148*'B Factor'!$F$6 -> 0 | AR148: =S148*'B Factor'!$F$6 -> 0 | AS148: =T148*'B Factor'!$F$6 -> 0 | AT148: =U148*'B Factor'!$F$6 -> 0 | AU148: =V148*'B Factor'!$F$6 -> 0 | AV148: =W148*'B Factor'!$F$6 -> 0 | AW148: =X148*'B Factor'!$F$6 -> 0 | AX148: =Y148*'B Factor'!$F$6 -> 0 | AY148: =Z148*'B Factor'!$F$6 -> 0
A149: A | B149: 2006-05-28 | C149: 0 | D149: 0 | E149: 0 | F149: 0 | G149: 0 | H149: 0 | I149: 0 | J149: 0 | K149: 0 | L149: 0 | M149: 0 | N149: 0 | O149: 0 | P149: 0 | Q149: 0 | R149: 0 | S149: 0 | T149: 0 | U149: 0 | V149: 21.65 | W149: 0 | X149: 0 | Y149: 0 | Z149: 0 | AB149: =C149*'B Factor'!$F$6 -> 0 | AC149: =D149*'B Factor'!$F$6 -> 0 | AD149: =E149*'B Factor'!$F$6 -> 0 | AE149: =F149*'B Factor'!$F$6 -> 0 | AF149: =G149*'B Factor'!$F$6 -> 0 | AG149: =H149*'B Factor'!$F$6 -> 0 | AH149: =I149*'B Factor'!$F$6 -> 0 | AI149: =J149*'B Factor'!$F$6 -> 0 | AJ149: =K149*'B Factor'!$F$6 -> 0 | AK149: =L149*'B Factor'!$F$6 -> 0 | AL149: =M149*'B Factor'!$F$6 -> 0 | AM149: =N149*'B Factor'!$F$6 -> 0 | AN149: =O149*'B Factor'!$F$6 -> 0 | AO149: =P149*'B Factor'!$F$6 -> 0 | AP149: =Q149*'B Factor'!$F$6 -> 0 | AQ149: =R149*'B Factor'!$F$6 -> 0 | AR149: =S149*'B Factor'!$F$6 -> 0 | AS149: =T149*'B Factor'!$F$6 -> 0 | AT149: =U149*'B Factor'!$F$6 -> 0 | AU149: =V149*'B Factor'!$F$6 -> 2.512938109e-06 | AV149: =W149*'B Factor'!$F$6 -> 0 | AW149: =X149*'B Factor'!$F$6 -> 0 | AX149: =Y149*'B Factor'!$F$6 -> 0 | AY149: =Z149*'B Factor'!$F$6 -> 0
A150: A | B150: 2006-05-29 | C150: 0 | D150: 0 | E150: 0 | F150: 0 | G150: 0 | H150: 0 | I150: 0 | J150: 0 | K150: 0 | L150: 0 | M150: 0 | N150: 0 | O150: 0 | P150: 0 | Q150: 0 | R150: 0 | S150: 0 | T150: 0 | U150: 0 | V150: 0 | W150: 0 | X150: 0 | Y150: 0 | Z150: 0 | AB150: =C150*'B Factor'!$F$6 -> 0 | AC150: =D150*'B Factor'!$F$6 -> 0 | AD150: =E150*'B Factor'!$F$6 -> 0 | AE150: =F150*'B Factor'!$F$6 -> 0 | AF150: =G150*'B Factor'!$F$6 -> 0 | AG150: =H150*'B Factor'!$F$6 -> 0 | AH150: =I150*'B Factor'!$F$6 -> 0 | AI150: =J150*'B Factor'!$F$6 -> 0 | AJ150: =K150*'B Factor'!$F$6 -> 0 | AK150: =L150*'B Factor'!$F$6 -> 0 | AL150: =M150*'B Factor'!$F$6 -> 0 | AM150: =N150*'B Factor'!$F$6 -> 0 | AN150: =O150*'B Factor'!$F$6 -> 0 | AO150: =P150*'B Factor'!$F$6 -> 0 | AP150: =Q150*'B Factor'!$F$6 -> 0 | AQ150: =R150*'B Factor'!$F$6 -> 0 | AR150: =S150*'B Factor'!$F$6 -> 0 | AS150: =T150*'B Factor'!$F$6 -> 0 | AT150: =U150*'B Factor'!$F$6 -> 0 | AU150: =V150*'B Factor'!$F$6 -> 0 | AV150: =W150*'B Factor'!$F$6 -> 0 | AW150: =X150*'B Factor'!$F$6 -> 0 | AX150: =Y150*'B Factor'!$F$6 -> 0 | AY150: =Z150*'B Factor'!$F$6 -> 0
A151: A | B151: 2006-05-30 | C151: 0 | D151: 0 | E151: 0 | F151: 0 | G151: 0 | H151: 0 | I151: 0 | J151: 0 | K151: 0 | L151: 0 | M151: 0 | N151: 0 | O151: 0 | P151: 0 | Q151: 0 | R151: 0 | S151: 0 | T151: 0 | U151: 0 | V151: 0 | W151: 0 | X151: 0 | Y151: 0 | Z151: 0 | AB151: =C151*'B Factor'!$F$6 -> 0 | AC151: =D151*'B Factor'!$F$6 -> 0 | AD151: =E151*'B Factor'!$F$6 -> 0 | AE151: =F151*'B Factor'!$F$6 -> 0 | AF151: =G151*'B Factor'!$F$6 -> 0 | AG151: =H151*'B Factor'!$F$6 -> 0 | AH151: =I151*'B Factor'!$F$6 -> 0 | AI151: =J151*'B Factor'!$F$6 -> 0 | AJ151: =K151*'B Factor'!$F$6 -> 0 | AK151: =L151*'B Factor'!$F$6 -> 0 | AL151: =M151*'B Factor'!$F$6 -> 0 | AM151: =N151*'B Factor'!$F$6 -> 0 | AN151: =O151*'B Factor'!$F$6 -> 0 | AO151: =P151*'B Factor'!$F$6 -> 0 | AP151: =Q151*'B Factor'!$F$6 -> 0 | AQ151: =R151*'B Factor'!$F$6 -> 0 | AR151: =S151*'B Factor'!$F$6 -> 0 | AS151: =T151*'B Factor'!$F$6 -> 0 | AT151: =U151*'B Factor'!$F$6 -> 0 | AU151: =V151*'B Factor'!$F$6 -> 0 | AV151: =W151*'B Factor'!$F$6 -> 0 | AW151: =X151*'B Factor'!$F$6 -> 0 | AX151: =Y151*'B Factor'!$F$6 -> 0 | AY151: =Z151*'B Factor'!$F$6 -> 0
A152: A | B152: 2006-05-31 | C152: 0 | D152: 0 | E152: 0 | F152: 0 | G152: 0 | H152: 0 | I152: 0 | J152: 0 | K152: 0 | L152: 0 | M152: 0 | N152: 0 | O152: 0 | P152: 0 | Q152: 0 | R152: 0 | S152: 0 | T152: 0 | U152: 0 | V152: 0 | W152: 0 | X152: 0 | Y152: 0 | Z152: 0 | AB152: =C152*'B Factor'!$F$6 -> 0 | AC152: =D152*'B Factor'!$F$6 -> 0 | AD152: =E152*'B Factor'!$F$6 -> 0 | AE152: =F152*'B Factor'!$F$6 -> 0 | AF152: =G152*'B Factor'!$F$6 -> 0 | AG152: =H152*'B Factor'!$F$6 -> 0 | AH152: =I152*'B Factor'!$F$6 -> 0 | AI152: =J152*'B Factor'!$F$6 -> 0 | AJ152: =K152*'B Factor'!$F$6 -> 0 | AK152: =L152*'B Factor'!$F$6 -> 0 | AL152: =M152*'B Factor'!$F$6 -> 0 | AM152: =N152*'B Factor'!$F$6 -> 0 | AN152: =O152*'B Factor'!$F$6 -> 0 | AO152: =P152*'B Factor'!$F$6 -> 0 | AP152: =Q152*'B Factor'!$F$6 -> 0 | AQ152: =R152*'B Factor'!$F$6 -> 0 | AR152: =S152*'B Factor'!$F$6 -> 0 | AS152: =T152*'B Factor'!$F$6 -> 0 | AT152: =U152*'B Factor'!$F$6 -> 0 | AU152: =V152*'B Factor'!$F$6 -> 0 | AV152: =W152*'B Factor'!$F$6 -> 0 | AW152: =X152*'B Factor'!$F$6 -> 0 | AX152: =Y152*'B Factor'!$F$6 -> 0 | AY152: =Z152*'B Factor'!$F$6 -> 0
A153: A | B153: 2006-06-01 | C153: 0 | D153: 0 | E153: 0 | F153: 0 | G153: 0 | H153: 0 | I153: 0 | J153: 0 | K153: 0 | L153: 0 | M153: 0 | N153: 0 | O153: 0 | P153: 0 | Q153: 0 | R153: 0 | S153: 0 | T153: 0 | U153: 0 | V153: 0 | W153: 0 | X153: 0 | Y153: 0 | Z153: 0 | AB153: =C153*'B Factor'!$F$6 -> 0 | AC153: =D153*'B Factor'!$F$6 -> 0 | AD153: =E153*'B Factor'!$F$6 -> 0 | AE153: =F153*'B Factor'!$F$6 -> 0 | AF153: =G153*'B Factor'!$F$6 -> 0 | AG153: =H153*'B Factor'!$F$6 -> 0 | AH153: =I153*'B Factor'!$F$6 -> 0 | AI153: =J153*'B Factor'!$F$6 -> 0 | AJ153: =K153*'B Factor'!$F$6 -> 0 | AK153: =L153*'B Factor'!$F$6 -> 0 | AL153: =M153*'B Factor'!$F$6 -> 0 | AM153: =N153*'B Factor'!$F$6 -> 0 | AN153: =O153*'B Factor'!$F$6 -> 0 | AO153: =P153*'B Factor'!$F$6 -> 0 | AP153: =Q153*'B Factor'!$F$6 -> 0 | AQ153: =R153*'B Factor'!$F$6 -> 0 | AR153: =S153*'B Factor'!$F$6 -> 0 | AS153: =T153*'B Factor'!$F$6 -> 0 | AT153: =U153*'B Factor'!$F$6 -> 0 | AU153: =V153*'B Factor'!$F$6 -> 0 | AV153: =W153*'B Factor'!$F$6 -> 0 | AW153: =X153*'B Factor'!$F$6 -> 0 | AX153: =Y153*'B Factor'!$F$6 -> 0 | AY153: =Z153*'B Factor'!$F$6 -> 0
A154: A | B154: 2006-06-02 | C154: 0 | D154: 0 | E154: 0 | F154: 0 | G154: 0 | H154: 0 | I154: 0 | J154: 0 | K154: 0 | L154: 0 | M154: 0 | N154: 0 | O154: 0 | P154: 0 | Q154: 0 | R154: 0 | S154: 0 | T154: 0 | U154: 0 | V154: 0 | W154: 0 | X154: 0 | Y154: 0 | Z154: 0 | AB154: =C154*'B Factor'!$F$6 -> 0 | AC154: =D154*'B Factor'!$F$6 -> 0 | AD154: =E154*'B Factor'!$F$6 -> 0 | AE154: =F154*'B Factor'!$F$6 -> 0 | AF154: =G154*'B Factor'!$F$6 -> 0 | AG154: =H154*'B Factor'!$F$6 -> 0 | AH154: =I154*'B Factor'!$F$6 -> 0 | AI154: =J154*'B Factor'!$F$6 -> 0 | AJ154: =K154*'B Factor'!$F$6 -> 0 | AK154: =L154*'B Factor'!$F$6 -> 0 | AL154: =M154*'B Factor'!$F$6 -> 0 | AM154: =N154*'B Factor'!$F$6 -> 0 | AN154: =O154*'B Factor'!$F$6 -> 0 | AO154: =P154*'B Factor'!$F$6 -> 0 | AP154: =Q154*'B Factor'!$F$6 -> 0 | AQ154: =R154*'B Factor'!$F$6 -> 0 | AR154: =S154*'B Factor'!$F$6 -> 0 | AS154: =T154*'B Factor'!$F$6 -> 0 | AT154: =U154*'B Factor'!$F$6 -> 0 | AU154: =V154*'B Factor'!$F$6 -> 0 | AV154: =W154*'B Factor'!$F$6 -> 0 | AW154: =X154*'B Factor'!$F$6 -> 0 | AX154: =Y154*'B Factor'!$F$6 -> 0 | AY154: =Z154*'B Factor'!$F$6 -> 0
A155: A | B155: 2006-06-03 | C155: 0 | D155: 0 | E155: 0 | F155: 0 | G155: 0 | H155: 0 | I155: 0 | J155: 0 | K155: 0 | L155: 0 | M155: 0 | N155: 0 | O155: 0 | P155: 0 | Q155: 0 | R155: 0 | S155: 0 | T155: 0 | U155: 0 | V155: 0 | W155: 0 | X155: 0 | Y155: 0 | Z155: 0 | AB155: =C155*'B Factor'!$F$6 -> 0 | AC155: =D155*'B Factor'!$F$6 -> 0 | AD155: =E155*'B Factor'!$F$6 -> 0 | AE155: =F155*'B Factor'!$F$6 -> 0 | AF155: =G155*'B Factor'!$F$6 -> 0 | AG155: =H155*'B Factor'!$F$6 -> 0 | AH155: =I155*'B Factor'!$F$6 -> 0 | AI155: =J155*'B Factor'!$F$6 -> 0 | AJ155: =K155*'B Factor'!$F$6 -> 0 | AK155: =L155*'B Factor'!$F$6 -> 0 | AL155: =M155*'B Factor'!$F$6 -> 0 | AM155: =N155*'B Factor'!$F$6 -> 0 | AN155: =O155*'B Factor'!$F$6 -> 0 | AO155: =P155*'B Factor'!$F$6 -> 0 | AP155: =Q155*'B Factor'!$F$6 -> 0 | AQ155: =R155*'B Factor'!$F$6 -> 0 | AR155: =S155*'B Factor'!$F$6 -> 0 | AS155: =T155*'B Factor'!$F$6 -> 0 | AT155: =U155*'B Factor'!$F$6 -> 0 | AU155: =V155*'B Factor'!$F$6 -> 0 | AV155: =W155*'B Factor'!$F$6 -> 0 | AW155: =X155*'B Factor'!$F$6 -> 0 | AX155: =Y155*'B Factor'!$F$6 -> 0 | AY155: =Z155*'B Factor'!$F$6 -> 0
A156: A | B156: 2006-06-04 | C156: 0 | D156: 0 | E156: 0 | F156: 0 | G156: 0 | H156: 0 | I156: 0 | J156: 0 | K156: 0 | L156: 0 | M156: 0 | N156: 0 | O156: 0 | P156: 0 | Q156: 0 | R156: 0 | S156: 0 | T156: 0 | U156: 0 | V156: 0 | W156: 0 | X156: 0 | Y156: 0 | Z156: 0 | AB156: =C156*'B Factor'!$F$6 -> 0 | AC156: =D156*'B Factor'!$F$6 -> 0 | AD156: =E156*'B Factor'!$F$6 -> 0 | AE156: =F156*'B Factor'!$F$6 -> 0 | AF156: =G156*'B Factor'!$F$6 -> 0 | AG156: =H156*'B Factor'!$F$6 -> 0 | AH156: =I156*'B Factor'!$F$6 -> 0 | AI156: =J156*'B Factor'!$F$6 -> 0 | AJ156: =K156*'B Factor'!$F$6 -> 0 | AK156: =L156*'B Factor'!$F$6 -> 0 | AL156: =M156*'B Factor'!$F$6 -> 0 | AM156: =N156*'B Factor'!$F$6 -> 0 | AN156: =O156*'B Factor'!$F$6 -> 0 | AO156: =P156*'B Factor'!$F$6 -> 0 | AP156: =Q156*'B Factor'!$F$6 -> 0 | AQ156: =R156*'B Factor'!$F$6 -> 0 | AR156: =S156*'B Factor'!$F$6 -> 0 | AS156: =T156*'B Factor'!$F$6 -> 0 | AT156: =U156*'B Factor'!$F$6 -> 0 | AU156: =V156*'B Factor'!$F$6 -> 0 | AV156: =W156*'B Factor'!$F$6 -> 0 | AW156: =X156*'B Factor'!$F$6 -> 0 | AX156: =Y156*'B Factor'!$F$6 -> 0 | AY156: =Z156*'B Factor'!$F$6 -> 0
A157: A | B157: 2006-06-05 | C157: 0 | D157: 0 | E157: 0 | F157: 0 | G157: 0 | H157: 0 | I157: 0 | J157: 0 | K157: 0 | L157: 0 | M157: 0 | N157: 0 | O157: 0 | P157: 0 | Q157: 0 | R157: 0 | S157: 0 | T157: 0 | U157: 0 | V157: 0 | W157: 0 | X157: 0 | Y157: 0 | Z157: 0 | AB157: =C157*'B Factor'!$F$6 -> 0 | AC157: =D157*'B Factor'!$F$6 -> 0 | AD157: =E157*'B Factor'!$F$6 -> 0 | AE157: =F157*'B Factor'!$F$6 -> 0 | AF157: =G157*'B Factor'!$F$6 -> 0 | AG157: =H157*'B Factor'!$F$6 -> 0 | AH157: =I157*'B Factor'!$F$6 -> 0 | AI157: =J157*'B Factor'!$F$6 -> 0 | AJ157: =K157*'B Factor'!$F$6 -> 0 | AK157: =L157*'B Factor'!$F$6 -> 0 | AL157: =M157*'B Factor'!$F$6 -> 0 | AM157: =N157*'B Factor'!$F$6 -> 0 | AN157: =O157*'B Factor'!$F$6 -> 0 | AO157: =P157*'B Factor'!$F$6 -> 0 | AP157: =Q157*'B Factor'!$F$6 -> 0 | AQ157: =R157*'B Factor'!$F$6 -> 0 | AR157: =S157*'B Factor'!$F$6 -> 0 | AS157: =T157*'B Factor'!$F$6 -> 0 | AT157: =U157*'B Factor'!$F$6 -> 0 | AU157: =V157*'B Factor'!$F$6 -> 0 | AV157: =W157*'B Factor'!$F$6 -> 0 | AW157: =X157*'B Factor'!$F$6 -> 0 | AX157: =Y157*'B Factor'!$F$6 -> 0 | AY157: =Z157*'B Factor'!$F$6 -> 0
A158: A | B158: 2006-06-06 | C158: 0 | D158: 0 | E158: 0 | F158: 0 | G158: 0 | H158: 0 | I158: 0 | J158: 0 | K158: 0 | L158: 0 | M158: 0 | N158: 0 | O158: 0 | P158: 0 | Q158: 0 | R158: 0 | S158: 0 | T158: 0 | U158: 0 | V158: 0 | W158: 0 | X158: 0 | Y158: 0 | Z158: 0 | AB158: =C158*'B Factor'!$F$6 -> 0 | AC158: =D158*'B Factor'!$F$6 -> 0 | AD158: =E158*'B Factor'!$F$6 -> 0 | AE158: =F158*'B Factor'!$F$6 -> 0 | AF158: =G158*'B Factor'!$F$6 -> 0 | AG158: =H158*'B Factor'!$F$6 -> 0 | AH158: =I158*'B Factor'!$F$6 -> 0 | AI158: =J158*'B Factor'!$F$6 -> 0 | AJ158: =K158*'B Factor'!$F$6 -> 0 | AK158: =L158*'B Factor'!$F$6 -> 0 | AL158: =M158*'B Factor'!$F$6 -> 0 | AM158: =N158*'B Factor'!$F$6 -> 0 | AN158: =O158*'B Factor'!$F$6 -> 0 | AO158: =P158*'B Factor'!$F$6 -> 0 | AP158: =Q158*'B Factor'!$F$6 -> 0 | AQ158: =R158*'B Factor'!$F$6 -> 0 | AR158: =S158*'B Factor'!$F$6 -> 0 | AS158: =T158*'B Factor'!$F$6 -> 0 | AT158: =U158*'B Factor'!$F$6 -> 0 | AU158: =V158*'B Factor'!$F$6 -> 0 | AV158: =W158*'B Factor'!$F$6 -> 0 | AW158: =X158*'B Factor'!$F$6 -> 0 | AX158: =Y158*'B Factor'!$F$6 -> 0 | AY158: =Z158*'B Factor'!$F$6 -> 0
A159: A | B159: 2006-06-07 | C159: 0 | D159: 0 | E159: 0 | F159: 0 | G159: 0 | H159: 0 | I159: 0 | J159: 0 | K159: 0 | L159: 0 | M159: 0 | N159: 0 | O159: 0 | P159: 0 | Q159: 0 | R159: 0 | S159: 0 | T159: 0 | U159: 0 | V159: 0 | W159: 0 | X159: 0 | Y159: 0 | Z159: 0 | AB159: =C159*'B Factor'!$F$6 -> 0 | AC159: =D159*'B Factor'!$F$6 -> 0 | AD159: =E159*'B Factor'!$F$6 -> 0 | AE159: =F159*'B Factor'!$F$6 -> 0 | AF159: =G159*'B Factor'!$F$6 -> 0 | AG159: =H159*'B Factor'!$F$6 -> 0 | AH159: =I159*'B Factor'!$F$6 -> 0 | AI159: =J159*'B Factor'!$F$6 -> 0 | AJ159: =K159*'B Factor'!$F$6 -> 0 | AK159: =L159*'B Factor'!$F$6 -> 0 | AL159: =M159*'B Factor'!$F$6 -> 0 | AM159: =N159*'B Factor'!$F$6 -> 0 | AN159: =O159*'B Factor'!$F$6 -> 0 | AO159: =P159*'B Factor'!$F$6 -> 0 | AP159: =Q159*'B Factor'!$F$6 -> 0 | AQ159: =R159*'B Factor'!$F$6 -> 0 | AR159: =S159*'B Factor'!$F$6 -> 0 | AS159: =T159*'B Factor'!$F$6 -> 0 | AT159: =U159*'B Factor'!$F$6 -> 0 | AU159: =V159*'B Factor'!$F$6 -> 0 | AV159: =W159*'B Factor'!$F$6 -> 0 | AW159: =X159*'B Factor'!$F$6 -> 0 | AX159: =Y159*'B Factor'!$F$6 -> 0 | AY159: =Z159*'B Factor'!$F$6 -> 0
A160: A | B160: 2006-06-08 | C160: 0 | D160: 0 | E160: 0 | F160: 0 | G160: 0 | H160: 0 | I160: 0 | J160: 0 | K160: 0 | L160: 0 | M160: 0 | N160: 0 | O160: 0 | P160: 0 | Q160: 0 | R160: 0 | S160: 0 | T160: 0 | U160: 0 | V160: 0 | W160: 0 | X160: 0 | Y160: 0 | Z160: 0 | AB160: =C160*'B Factor'!$F$6 -> 0 | AC160: =D160*'B Factor'!$F$6 -> 0 | AD160: =E160*'B Factor'!$F$6 -> 0 | AE160: =F160*'B Factor'!$F$6 -> 0 | AF160: =G160*'B Factor'!$F$6 -> 0 | AG160: =H160*'B Factor'!$F$6 -> 0 | AH160: =I160*'B Factor'!$F$6 -> 0 | AI160: =J160*'B Factor'!$F$6 -> 0 | AJ160: =K160*'B Factor'!$F$6 -> 0 | AK160: =L160*'B Factor'!$F$6 -> 0 | AL160: =M160*'B Factor'!$F$6 -> 0 | AM160: =N160*'B Factor'!$F$6 -> 0 | AN160: =O160*'B Factor'!$F$6 -> 0 | AO160: =P160*'B Factor'!$F$6 -> 0 | AP160: =Q160*'B Factor'!$F$6 -> 0 | AQ160: =R160*'B Factor'!$F$6 -> 0 | AR160: =S160*'B Factor'!$F$6 -> 0 | AS160: =T160*'B Factor'!$F$6 -> 0 | AT160: =U160*'B Factor'!$F$6 -> 0 | AU160: =V160*'B Factor'!$F$6 -> 0 | AV160: =W160*'B Factor'!$F$6 -> 0 | AW160: =X160*'B Factor'!$F$6 -> 0 | AX160: =Y160*'B Factor'!$F$6 -> 0 | AY160: =Z160*'B Factor'!$F$6 -> 0
A161: A | B161: 2006-06-09 | C161: 0 | D161: 0 | E161: 0 | F161: 0 | G161: 0 | H161: 0 | I161: 0 | J161: 0 | K161: 0 | L161: 0 | M161: 0 | N161: 0 | O161: 0 | P161: 0 | Q161: 0 | R161: 0 | S161: 0 | T161: 0 | U161: 0 | V161: 0 | W161: 0 | X161: 0 | Y161: 0 | Z161: 0 | AB161: =C161*'B Factor'!$F$6 -> 0 | AC161: =D161*'B Factor'!$F$6 -> 0 | AD161: =E161*'B Factor'!$F$6 -> 0 | AE161: =F161*'B Factor'!$F$6 -> 0 | AF161: =G161*'B Factor'!$F$6 -> 0 | AG161: =H161*'B Factor'!$F$6 -> 0 | AH161: =I161*'B Factor'!$F$6 -> 0 | AI161: =J161*'B Factor'!$F$6 -> 0 | AJ161: =K161*'B Factor'!$F$6 -> 0 | AK161: =L161*'B Factor'!$F$6 -> 0 | AL161: =M161*'B Factor'!$F$6 -> 0 | AM161: =N161*'B Factor'!$F$6 -> 0 | AN161: =O161*'B Factor'!$F$6 -> 0 | AO161: =P161*'B Factor'!$F$6 -> 0 | AP161: =Q161*'B Factor'!$F$6 -> 0 | AQ161: =R161*'B Factor'!$F$6 -> 0 | AR161: =S161*'B Factor'!$F$6 -> 0 | AS161: =T161*'B Factor'!$F$6 -> 0 | AT161: =U161*'B Factor'!$F$6 -> 0 | AU161: =V161*'B Factor'!$F$6 -> 0 | AV161: =W161*'B Factor'!$F$6 -> 0 | AW161: =X161*'B Factor'!$F$6 -> 0 | AX161: =Y161*'B Factor'!$F$6 -> 0 | AY161: =Z161*'B Factor'!$F$6 -> 0
A162: A | B162: 2006-06-10 | C162: 0 | D162: 0 | E162: 0 | F162: 0 | G162: 0 | H162: 0 | I162: 0 | J162: 0 | K162: 0 | L162: 0 | M162: 0 | N162: 0 | O162: 0 | P162: 0 | Q162: 0 | R162: 0 | S162: 0 | T162: 0 | U162: 0 | V162: 32.63 | W162: 0 | X162: 0 | Y162: 0 | Z162: 0 | AB162: =C162*'B Factor'!$F$6 -> 0 | AC162: =D162*'B Factor'!$F$6 -> 0 | AD162: =E162*'B Factor'!$F$6 -> 0 | AE162: =F162*'B Factor'!$F$6 -> 0 | AF162: =G162*'B Factor'!$F$6 -> 0 | AG162: =H162*'B Factor'!$F$6 -> 0 | AH162: =I162*'B Factor'!$F$6 -> 0 | AI162: =J162*'B Factor'!$F$6 -> 0 | AJ162: =K162*'B Factor'!$F$6 -> 0 | AK162: =L162*'B Factor'!$F$6 -> 0 | AL162: =M162*'B Factor'!$F$6 -> 0 | AM162: =N162*'B Factor'!$F$6 -> 0 | AN162: =O162*'B Factor'!$F$6 -> 0 | AO162: =P162*'B Factor'!$F$6 -> 0 | AP162: =Q162*'B Factor'!$F$6 -> 0 | AQ162: =R162*'B Factor'!$F$6 -> 0 | AR162: =S162*'B Factor'!$F$6 -> 0 | AS162: =T162*'B Factor'!$F$6 -> 0 | AT162: =U162*'B Factor'!$F$6 -> 0 | AU162: =V162*'B Factor'!$F$6 -> 3.787398175e-06 | AV162: =W162*'B Factor'!$F$6 -> 0 | AW162: =X162*'B Factor'!$F$6 -> 0 | AX162: =Y162*'B Factor'!$F$6 -> 0 | AY162: =Z162*'B Factor'!$F$6 -> 0
A163: A | B163: 2006-06-11 | C163: 0 | D163: 0 | E163: 0 | F163: 0 | G163: 0 | H163: 0 | I163: 0 | J163: 0 | K163: 0 | L163: 0 | M163: 0 | N163: 0 | O163: 0 | P163: 0 | Q163: 0 | R163: 0 | S163: 0 | T163: 0 | U163: 0 | V163: 0 | W163: 0 | X163: 0 | Y163: 0 | Z163: 0 | AB163: =C163*'B Factor'!$F$6 -> 0 | AC163: =D163*'B Factor'!$F$6 -> 0 | AD163: =E163*'B Factor'!$F$6 -> 0 | AE163: =F163*'B Factor'!$F$6 -> 0 | AF163: =G163*'B Factor'!$F$6 -> 0 | AG163: =H163*'B Factor'!$F$6 -> 0 | AH163: =I163*'B Factor'!$F$6 -> 0 | AI163: =J163*'B Factor'!$F$6 -> 0 | AJ163: =K163*'B Factor'!$F$6 -> 0 | AK163: =L163*'B Factor'!$F$6 -> 0 | AL163: =M163*'B Factor'!$F$6 -> 0 | AM163: =N163*'B Factor'!$F$6 -> 0 | AN163: =O163*'B Factor'!$F$6 -> 0 | AO163: =P163*'B Factor'!$F$6 -> 0 | AP163: =Q163*'B Factor'!$F$6 -> 0 | AQ163: =R163*'B Factor'!$F$6 -> 0 | AR163: =S163*'B Factor'!$F$6 -> 0 | AS163: =T163*'B Factor'!$F$6 -> 0 | AT163: =U163*'B Factor'!$F$6 -> 0 | AU163: =V163*'B Factor'!$F$6 -> 0 | AV163: =W163*'B Factor'!$F$6 -> 0 | AW163: =X163*'B Factor'!$F$6 -> 0 | AX163: =Y163*'B Factor'!$F$6 -> 0 | AY163: =Z163*'B Factor'!$F$6 -> 0
A164: A | B164: 2006-06-12 | C164: 0 | D164: 0 | E164: 0 | F164: 0 | G164: 0 | H164: 0 | I164: 0 | J164: 0 | K164: 0 | L164: 0 | M164: 0 | N164: 0 | O164: 0 | P164: 0 | Q164: 0 | R164: 0 | S164: 0 | T164: 0 | U164: 0 | V164: 0 | W164: 0 | X164: 0 | Y164: 0 | Z164: 0 | AB164: =C164*'B Factor'!$F$6 -> 0 | AC164: =D164*'B Factor'!$F$6 -> 0 | AD164: =E164*'B Factor'!$F$6 -> 0 | AE164: =F164*'B Factor'!$F$6 -> 0 | AF164: =G164*'B Factor'!$F$6 -> 0 | AG164: =H164*'B Factor'!$F$6 -> 0 | AH164: =I164*'B Factor'!$F$6 -> 0 | AI164: =J164*'B Factor'!$F$6 -> 0 | AJ164: =K164*'B Factor'!$F$6 -> 0 | AK164: =L164*'B Factor'!$F$6 -> 0 | AL164: =M164*'B Factor'!$F$6 -> 0 | AM164: =N164*'B Factor'!$F$6 -> 0 | AN164: =O164*'B Factor'!$F$6 -> 0 | AO164: =P164*'B Factor'!$F$6 -> 0 | AP164: =Q164*'B Factor'!$F$6 -> 0 | AQ164: =R164*'B Factor'!$F$6 -> 0 | AR164: =S164*'B Factor'!$F$6 -> 0 | AS164: =T164*'B Factor'!$F$6 -> 0 | AT164: =U164*'B Factor'!$F$6 -> 0 | AU164: =V164*'B Factor'!$F$6 -> 0 | AV164: =W164*'B Factor'!$F$6 -> 0 | AW164: =X164*'B Factor'!$F$6 -> 0 | AX164: =Y164*'B Factor'!$F$6 -> 0 | AY164: =Z164*'B Factor'!$F$6 -> 0
A165: A | B165: 2006-06-13 | C165: 0 | D165: 0 | E165: 0 | F165: 0 | G165: 0 | H165: 0 | I165: 0 | J165: 0 | K165: 0 | L165: 0 | M165: 0 | N165: 0 | O165: 0 | P165: 0 | Q165: 0 | R165: 0 | S165: 0 | T165: 0 | U165: 0 | V165: 0 | W165: 0 | X165: 0 | Y165: 0 | Z165: 0 | AB165: =C165*'B Factor'!$F$6 -> 0 | AC165: =D165*'B Factor'!$F$6 -> 0 | AD165: =E165*'B Factor'!$F$6 -> 0 | AE165: =F165*'B Factor'!$F$6 -> 0 | AF165: =G165*'B Factor'!$F$6 -> 0 | AG165: =H165*'B Factor'!$F$6 -> 0 | AH165: =I165*'B Factor'!$F$6 -> 0 | AI165: =J165*'B Factor'!$F$6 -> 0 | AJ165: =K165*'B Factor'!$F$6 -> 0 | AK165: =L165*'B Factor'!$F$6 -> 0 | AL165: =M165*'B Factor'!$F$6 -> 0 | AM165: =N165*'B Factor'!$F$6 -> 0 | AN165: =O165*'B Factor'!$F$6 -> 0 | AO165: =P165*'B Factor'!$F$6 -> 0 | AP165: =Q165*'B Factor'!$F$6 -> 0 | AQ165: =R165*'B Factor'!$F$6 -> 0 | AR165: =S165*'B Factor'!$F$6 -> 0 | AS165: =T165*'B Factor'!$F$6 -> 0 | AT165: =U165*'B Factor'!$F$6 -> 0 | AU165: =V165*'B Factor'!$F$6 -> 0 | AV165: =W165*'B Factor'!$F$6 -> 0 | AW165: =X165*'B Factor'!$F$6 -> 0 | AX165: =Y165*'B Factor'!$F$6 -> 0 | AY165: =Z165*'B Factor'!$F$6 -> 0
A166: A | B166: 2006-06-14 | C166: 0 | D166: 0 | E166: 0 | F166: 0 | G166: 0 | H166: 0 | I166: 0 | J166: 0 | K166: 0 | L166: 0 | M166: 0 | N166: 0 | O166: 0 | P166: 0 | Q166: 0 | R166: 0 | S166: 0 | T166: 0 | U166: 0 | V166: 0 | W166: 0 | X166: 0 | Y166: 0 | Z166: 0 | AB166: =C166*'B Factor'!$F$6 -> 0 | AC166: =D166*'B Factor'!$F$6 -> 0 | AD166: =E166*'B Factor'!$F$6 -> 0 | AE166: =F166*'B Factor'!$F$6 -> 0 | AF166: =G166*'B Factor'!$F$6 -> 0 | AG166: =H166*'B Factor'!$F$6 -> 0 | AH166: =I166*'B Factor'!$F$6 -> 0 | AI166: =J166*'B Factor'!$F$6 -> 0 | AJ166: =K166*'B Factor'!$F$6 -> 0 | AK166: =L166*'B Factor'!$F$6 -> 0 | AL166: =M166*'B Factor'!$F$6 -> 0 | AM166: =N166*'B Factor'!$F$6 -> 0 | AN166: =O166*'B Factor'!$F$6 -> 0 | AO166: =P166*'B Factor'!$F$6 -> 0 | AP166: =Q166*'B Factor'!$F$6 -> 0 | AQ166: =R166*'B Factor'!$F$6 -> 0 | AR166: =S166*'B Factor'!$F$6 -> 0 | AS166: =T166*'B Factor'!$F$6 -> 0 | AT166: =U166*'B Factor'!$F$6 -> 0 | AU166: =V166*'B Factor'!$F$6 -> 0 | AV166: =W166*'B Factor'!$F$6 -> 0 | AW166: =X166*'B Factor'!$F$6 -> 0 | AX166: =Y166*'B Factor'!$F$6 -> 0 | AY166: =Z166*'B Factor'!$F$6 -> 0
A167: A | B167: 2006-06-15 | C167: 0 | D167: 0 | E167: 0 | F167: 0 | G167: 0 | H167: 0 | I167: 0 | J167: 0 | K167: 0 | L167: 0 | M167: 0 | N167: 0 | O167: 0 | P167: 0 | Q167: 0 | R167: 0 | S167: 0 | T167: 0 | U167: 0 | V167: 0 | W167: 0 | X167: 0 | Y167: 0 | Z167: 0 | AB167: =C167*'B Factor'!$F$6 -> 0 | AC167: =D167*'B Factor'!$F$6 -> 0 | AD167: =E167*'B Factor'!$F$6 -> 0 | AE167: =F167*'B Factor'!$F$6 -> 0 | AF167: =G167*'B Factor'!$F$6 -> 0 | AG167: =H167*'B Factor'!$F$6 -> 0 | AH167: =I167*'B Factor'!$F$6 -> 0 | AI167: =J167*'B Factor'!$F$6 -> 0 | AJ167: =K167*'B Factor'!$F$6 -> 0 | AK167: =L167*'B Factor'!$F$6 -> 0 | AL167: =M167*'B Factor'!$F$6 -> 0 | AM167: =N167*'B Factor'!$F$6 -> 0 | AN167: =O167*'B Factor'!$F$6 -> 0 | AO167: =P167*'B Factor'!$F$6 -> 0 | AP167: =Q167*'B Factor'!$F$6 -> 0 | AQ167: =R167*'B Factor'!$F$6 -> 0 | AR167: =S167*'B Factor'!$F$6 -> 0 | AS167: =T167*'B Factor'!$F$6 -> 0 | AT167: =U167*'B Factor'!$F$6 -> 0 | AU167: =V167*'B Factor'!$F$6 -> 0 | AV167: =W167*'B Factor'!$F$6 -> 0 | AW167: =X167*'B Factor'!$F$6 -> 0 | AX167: =Y167*'B Factor'!$F$6 -> 0 | AY167: =Z167*'B Factor'!$F$6 -> 0
A168: A | B168: 2006-06-16 | C168: 0 | D168: 0 | E168: 0 | F168: 0 | G168: 0 | H168: 0 | I168: 0 | J168: 0 | K168: 0 | L168: 0 | M168: 0 | N168: 0 | O168: 0 | P168: 0 | Q168: 0 | R168: 0 | S168: 0 | T168: 0 | U168: 0 | V168: 0 | W168: 0 | X168: 0 | Y168: 0 | Z168: 0 | AB168: =C168*'B Factor'!$F$6 -> 0 | AC168: =D168*'B Factor'!$F$6 -> 0 | AD168: =E168*'B Factor'!$F$6 -> 0 | AE168: =F168*'B Factor'!$F$6 -> 0 | AF168: =G168*'B Factor'!$F$6 -> 0 | AG168: =H168*'B Factor'!$F$6 -> 0 | AH168: =I168*'B Factor'!$F$6 -> 0 | AI168: =J168*'B Factor'!$F$6 -> 0 | AJ168: =K168*'B Factor'!$F$6 -> 0 | AK168: =L168*'B Factor'!$F$6 -> 0 | AL168: =M168*'B Factor'!$F$6 -> 0 | AM168: =N168*'B Factor'!$F$6 -> 0 | AN168: =O168*'B Factor'!$F$6 -> 0 | AO168: =P168*'B Factor'!$F$6 -> 0 | AP168: =Q168*'B Factor'!$F$6 -> 0 | AQ168: =R168*'B Factor'!$F$6 -> 0 | AR168: =S168*'B Factor'!$F$6 -> 0 | AS168: =T168*'B Factor'!$F$6 -> 0 | AT168: =U168*'B Factor'!$F$6 -> 0 | AU168: =V168*'B Factor'!$F$6 -> 0 | AV168: =W168*'B Factor'!$F$6 -> 0 | AW168: =X168*'B Factor'!$F$6 -> 0 | AX168: =Y168*'B Factor'!$F$6 -> 0 | AY168: =Z168*'B Factor'!$F$6 -> 0
A169: A | B169: 2006-06-17 | C169: 0 | D169: 0 | E169: 0 | F169: 0 | G169: 0 | H169: 0 | I169: 0 | J169: 0 | K169: 0 | L169: 0 | M169: 0 | N169: 0 | O169: 0 | P169: 0 | Q169: 0 | R169: 0 | S169: 0 | T169: 0 | U169: 0 | V169: 17.43 | W169: 0 | X169: 0 | Y169: 0 | Z169: 0 | AB169: =C169*'B Factor'!$F$6 -> 0 | AC169: =D169*'B Factor'!$F$6 -> 0 | AD169: =E169*'B Factor'!$F$6 -> 0 | AE169: =F169*'B Factor'!$F$6 -> 0 | AF169: =G169*'B Factor'!$F$6 -> 0 | AG169: =H169*'B Factor'!$F$6 -> 0 | AH169: =I169*'B Factor'!$F$6 -> 0 | AI169: =J169*'B Factor'!$F$6 -> 0 | AJ169: =K169*'B Factor'!$F$6 -> 0 | AK169: =L169*'B Factor'!$F$6 -> 0 | AL169: =M169*'B Factor'!$F$6 -> 0 | AM169: =N169*'B Factor'!$F$6 -> 0 | AN169: =O169*'B Factor'!$F$6 -> 0 | AO169: =P169*'B Factor'!$F$6 -> 0 | AP169: =Q169*'B Factor'!$F$6 -> 0 | AQ169: =R169*'B Factor'!$F$6 -> 0 | AR169: =S169*'B Factor'!$F$6 -> 0 | AS169: =T169*'B Factor'!$F$6 -> 0 | AT169: =U169*'B Factor'!$F$6 -> 0 | AU169: =V169*'B Factor'!$F$6 -> 2.023118302e-06 | AV169: =W169*'B Factor'!$F$6 -> 0 | AW169: =X169*'B Factor'!$F$6 -> 0 | AX169: =Y169*'B Factor'!$F$6 -> 0 | AY169: =Z169*'B Factor'!$F$6 -> 0
A170: A | B170: 2006-06-18 | C170: 0 | D170: 0 | E170: 0 | F170: 0 | G170: 0 | H170: 0 | I170: 0 | J170: 0 | K170: 0 | L170: 0 | M170: 0 | N170: 0 | O170: 0 | P170: 0 | Q170: 0 | R170: 0 | S170: 0 | T170: 0 | U170: 0 | V170: 100.67 | W170: 0 | X170: 0 | Y170: 0 | Z170: 0 | AB170: =C170*'B Factor'!$F$6 -> 0 | AC170: =D170*'B Factor'!$F$6 -> 0 | AD170: =E170*'B Factor'!$F$6 -> 0 | AE170: =F170*'B Factor'!$F$6 -> 0 | AF170: =G170*'B Factor'!$F$6 -> 0 | AG170: =H170*'B Factor'!$F$6 -> 0 | AH170: =I170*'B Factor'!$F$6 -> 0 | AI170: =J170*'B Factor'!$F$6 -> 0 | AJ170: =K170*'B Factor'!$F$6 -> 0 | AK170: =L170*'B Factor'!$F$6 -> 0 | AL170: =M170*'B Factor'!$F$6 -> 0 | AM170: =N170*'B Factor'!$F$6 -> 0 | AN170: =O170*'B Factor'!$F$6 -> 0 | AO170: =P170*'B Factor'!$F$6 -> 0 | AP170: =Q170*'B Factor'!$F$6 -> 0 | AQ170: =R170*'B Factor'!$F$6 -> 0 | AR170: =S170*'B Factor'!$F$6 -> 0 | AS170: =T170*'B Factor'!$F$6 -> 0 | AT170: =U170*'B Factor'!$F$6 -> 0 | AU170: =V170*'B Factor'!$F$6 -> 1.168487203e-05 | AV170: =W170*'B Factor'!$F$6 -> 0 | AW170: =X170*'B Factor'!$F$6 -> 0 | AX170: =Y170*'B Factor'!$F$6 -> 0 | AY170: =Z170*'B Factor'!$F$6 -> 0
A171: A | B171: 2006-06-19 | C171: 0 | D171: 0 | E171: 0 | F171: 0 | G171: 0 | H171: 0 | I171: 0 | J171: 0 | K171: 0 | L171: 0 | M171: 0 | N171: 0 | O171: 0 | P171: 0 | Q171: 0 | R171: 0 | S171: 0 | T171: 0 | U171: 0 | V171: 0 | W171: 0 | X171: 0 | Y171: 0 | Z171: 0 | AB171: =C171*'B Factor'!$F$6 -> 0 | AC171: =D171*'B Factor'!$F$6 -> 0 | AD171: =E171*'B Factor'!$F$6 -> 0 | AE171: =F171*'B Factor'!$F$6 -> 0 | AF171: =G171*'B Factor'!$F$6 -> 0 | AG171: =H171*'B Factor'!$F$6 -> 0 | AH171: =I171*'B Factor'!$F$6 -> 0 | AI171: =J171*'B Factor'!$F$6 -> 0 | AJ171: =K171*'B Factor'!$F$6 -> 0 | AK171: =L171*'B Factor'!$F$6 -> 0 | AL171: =M171*'B Factor'!$F$6 -> 0 | AM171: =N171*'B Factor'!$F$6 -> 0 | AN171: =O171*'B Factor'!$F$6 -> 0 | AO171: =P171*'B Factor'!$F$6 -> 0 | AP171: =Q171*'B Factor'!$F$6 -> 0 | AQ171: =R171*'B Factor'!$F$6 -> 0 | AR171: =S171*'B Factor'!$F$6 -> 0 | AS171: =T171*'B Factor'!$F$6 -> 0 | AT171: =U171*'B Factor'!$F$6 -> 0 | AU171: =V171*'B Factor'!$F$6 -> 0 | AV171: =W171*'B Factor'!$F$6 -> 0 | AW171: =X171*'B Factor'!$F$6 -> 0 | AX171: =Y171*'B Factor'!$F$6 -> 0 | AY171: =Z171*'B Factor'!$F$6 -> 0
A172: A | B172: 2006-06-20 | C172: 0 | D172: 0 | E172: 0 | F172: 0 | G172: 0 | H172: 0 | I172: 0 | J172: 0 | K172: 0 | L172: 0 | M172: 0 | N172: 0 | O172: 0 | P172: 0 | Q172: 0 | R172: 0 | S172: 0 | T172: 0 | U172: 0 | V172: 0 | W172: 0 | X172: 0 | Y172: 0 | Z172: 0 | AB172: =C172*'B Factor'!$F$6 -> 0 | AC172: =D172*'B Factor'!$F$6 -> 0 | AD172: =E172*'B Factor'!$F$6 -> 0 | AE172: =F172*'B Factor'!$F$6 -> 0 | AF172: =G172*'B Factor'!$F$6 -> 0 | AG172: =H172*'B Factor'!$F$6 -> 0 | AH172: =I172*'B Factor'!$F$6 -> 0 | AI172: =J172*'B Factor'!$F$6 -> 0 | AJ172: =K172*'B Factor'!$F$6 -> 0 | AK172: =L172*'B Factor'!$F$6 -> 0 | AL172: =M172*'B Factor'!$F$6 -> 0 | AM172: =N172*'B Factor'!$F$6 -> 0 | AN172: =O172*'B Factor'!$F$6 -> 0 | AO172: =P172*'B Factor'!$F$6 -> 0 | AP172: =Q172*'B Factor'!$F$6 -> 0 | AQ172: =R172*'B Factor'!$F$6 -> 0 | AR172: =S172*'B Factor'!$F$6 -> 0 | AS172: =T172*'B Factor'!$F$6 -> 0 | AT172: =U172*'B Factor'!$F$6 -> 0 | AU172: =V172*'B Factor'!$F$6 -> 0 | AV172: =W172*'B Factor'!$F$6 -> 0 | AW172: =X172*'B Factor'!$F$6 -> 0 | AX172: =Y172*'B Factor'!$F$6 -> 0 | AY172: =Z172*'B Factor'!$F$6 -> 0
A173: A | B173: 2006-06-21 | C173: 0 | D173: 0 | E173: 0 | F173: 0 | G173: 0 | H173: 0 | I173: 0 | J173: 0 | K173: 0 | L173: 0 | M173: 0 | N173: 0 | O173: 0 | P173: 0 | Q173: 0 | R173: 0 | S173: 0 | T173: 0 | U173: 0 | V173: 0 | W173: 0 | X173: 0 | Y173: 0 | Z173: 0 | AB173: =C173*'B Factor'!$F$6 -> 0 | AC173: =D173*'B Factor'!$F$6 -> 0 | AD173: =E173*'B Factor'!$F$6 -> 0 | AE173: =F173*'B Factor'!$F$6 -> 0 | AF173: =G173*'B Factor'!$F$6 -> 0 | AG173: =H173*'B Factor'!$F$6 -> 0 | AH173: =I173*'B Factor'!$F$6 -> 0 | AI173: =J173*'B Factor'!$F$6 -> 0 | AJ173: =K173*'B Factor'!$F$6 -> 0 | AK173: =L173*'B Factor'!$F$6 -> 0 | AL173: =M173*'B Factor'!$F$6 -> 0 | AM173: =N173*'B Factor'!$F$6 -> 0 | AN173: =O173*'B Factor'!$F$6 -> 0 | AO173: =P173*'B Factor'!$F$6 -> 0 | AP173: =Q173*'B Factor'!$F$6 -> 0 | AQ173: =R173*'B Factor'!$F$6 -> 0 | AR173: =S173*'B Factor'!$F$6 -> 0 | AS173: =T173*'B Factor'!$F$6 -> 0 | AT173: =U173*'B Factor'!$F$6 -> 0 | AU173: =V173*'B Factor'!$F$6 -> 0 | AV173: =W173*'B Factor'!$F$6 -> 0 | AW173: =X173*'B Factor'!$F$6 -> 0 | AX173: =Y173*'B Factor'!$F$6 -> 0 | AY173: =Z173*'B Factor'!$F$6 -> 0
A174: A | B174: 2006-06-22 | C174: 0 | D174: 0 | E174: 0 | F174: 0 | G174: 0 | H174: 0 | I174: 0 | J174: 0 | K174: 0 | L174: 0 | M174: 0 | N174: 0 | O174: 0 | P174: 0 | Q174: 0 | R174: 0 | S174: 0 | T174: 0 | U174: 0 | V174: 0 | W174: 0 | X174: 0 | Y174: 0 | Z174: 0 | AB174: =C174*'B Factor'!$F$6 -> 0 | AC174: =D174*'B Factor'!$F$6 -> 0 | AD174: =E174*'B Factor'!$F$6 -> 0 | AE174: =F174*'B Factor'!$F$6 -> 0 | AF174: =G174*'B Factor'!$F$6 -> 0 | AG174: =H174*'B Factor'!$F$6 -> 0 | AH174: =I174*'B Factor'!$F$6 -> 0 | AI174: =J174*'B Factor'!$F$6 -> 0 | AJ174: =K174*'B Factor'!$F$6 -> 0 | AK174: =L174*'B Factor'!$F$6 -> 0 | AL174: =M174*'B Factor'!$F$6 -> 0 | AM174: =N174*'B Factor'!$F$6 -> 0 | AN174: =O174*'B Factor'!$F$6 -> 0 | AO174: =P174*'B Factor'!$F$6 -> 0 | AP174: =Q174*'B Factor'!$F$6 -> 0 | AQ174: =R174*'B Factor'!$F$6 -> 0 | AR174: =S174*'B Factor'!$F$6 -> 0 | AS174: =T174*'B Factor'!$F$6 -> 0 | AT174: =U174*'B Factor'!$F$6 -> 0 | AU174: =V174*'B Factor'!$F$6 -> 0 | AV174: =W174*'B Factor'!$F$6 -> 0 | AW174: =X174*'B Factor'!$F$6 -> 0 | AX174: =Y174*'B Factor'!$F$6 -> 0 | AY174: =Z174*'B Factor'!$F$6 -> 0
A175: A | B175: 2006-06-23 | C175: 0 | D175: 0 | E175: 0 | F175: 0 | G175: 0 | H175: 0 | I175: 0 | J175: 0 | K175: 0 | L175: 0 | M175: 0 | N175: 0 | O175: 0 | P175: 0 | Q175: 0 | R175: 0 | S175: 0 | T175: 0 | U175: 0 | V175: 0 | W175: 0 | X175: 0 | Y175: 0 | Z175: 0 | AB175: =C175*'B Factor'!$F$6 -> 0 | AC175: =D175*'B Factor'!$F$6 -> 0 | AD175: =E175*'B Factor'!$F$6 -> 0 | AE175: =F175*'B Factor'!$F$6 -> 0 | AF175: =G175*'B Factor'!$F$6 -> 0 | AG175: =H175*'B Factor'!$F$6 -> 0 | AH175: =I175*'B Factor'!$F$6 -> 0 | AI175: =J175*'B Factor'!$F$6 -> 0 | AJ175: =K175*'B Factor'!$F$6 -> 0 | AK175: =L175*'B Factor'!$F$6 -> 0 | AL175: =M175*'B Factor'!$F$6 -> 0 | AM175: =N175*'B Factor'!$F$6 -> 0 | AN175: =O175*'B Factor'!$F$6 -> 0 | AO175: =P175*'B Factor'!$F$6 -> 0 | AP175: =Q175*'B Factor'!$F$6 -> 0 | AQ175: =R175*'B Factor'!$F$6 -> 0 | AR175: =S175*'B Factor'!$F$6 -> 0 | AS175: =T175*'B Factor'!$F$6 -> 0 | AT175: =U175*'B Factor'!$F$6 -> 0 | AU175: =V175*'B Factor'!$F$6 -> 0 | AV175: =W175*'B Factor'!$F$6 -> 0 | AW175: =X175*'B Factor'!$F$6 -> 0 | AX175: =Y175*'B Factor'!$F$6 -> 0 | AY175: =Z175*'B Factor'!$F$6 -> 0
A176: A | B176: 2006-06-24 | C176: 0 | D176: 0 | E176: 0 | F176: 0 | G176: 0 | H176: 0 | I176: 0 | J176: 0 | K176: 0 | L176: 0 | M176: 0 | N176: 0 | O176: 0 | P176: 0 | Q176: 0 | R176: 0 | S176: 0 | T176: 0 | U176: 0 | V176: 0 | W176: 0 | X176: 0 | Y176: 0 | Z176: 0 | AB176: =C176*'B Factor'!$F$6 -> 0 | AC176: =D176*'B Factor'!$F$6 -> 0 | AD176: =E176*'B Factor'!$F$6 -> 0 | AE176: =F176*'B Factor'!$F$6 -> 0 | AF176: =G176*'B Factor'!$F$6 -> 0 | AG176: =H176*'B Factor'!$F$6 -> 0 | AH176: =I176*'B Factor'!$F$6 -> 0 | AI176: =J176*'B Factor'!$F$6 -> 0 | AJ176: =K176*'B Factor'!$F$6 -> 0 | AK176: =L176*'B Factor'!$F$6 -> 0 | AL176: =M176*'B Factor'!$F$6 -> 0 | AM176: =N176*'B Factor'!$F$6 -> 0 | AN176: =O176*'B Factor'!$F$6 -> 0 | AO176: =P176*'B Factor'!$F$6 -> 0 | AP176: =Q176*'B Factor'!$F$6 -> 0 | AQ176: =R176*'B Factor'!$F$6 -> 0 | AR176: =S176*'B Factor'!$F$6 -> 0 | AS176: =T176*'B Factor'!$F$6 -> 0 | AT176: =U176*'B Factor'!$F$6 -> 0 | AU176: =V176*'B Factor'!$F$6 -> 0 | AV176: =W176*'B Factor'!$F$6 -> 0 | AW176: =X176*'B Factor'!$F$6 -> 0 | AX176: =Y176*'B Factor'!$F$6 -> 0 | AY176: =Z176*'B Factor'!$F$6 -> 0
A177: A | B177: 2006-06-25 | C177: 0 | D177: 0 | E177: 0 | F177: 0 | G177: 0 | H177: 0 | I177: 0 | J177: 0 | K177: 0 | L177: 0 | M177: 0 | N177: 0 | O177: 0 | P177: 0 | Q177: 0 | R177: 0 | S177: 0 | T177: 0 | U177: 0 | V177: 32.48 | W177: 0 | X177: 0 | Y177: 0 | Z177: 0 | AB177: =C177*'B Factor'!$F$6 -> 0 | AC177: =D177*'B Factor'!$F$6 -> 0 | AD177: =E177*'B Factor'!$F$6 -> 0 | AE177: =F177*'B Factor'!$F$6 -> 0 | AF177: =G177*'B Factor'!$F$6 -> 0 | AG177: =H177*'B Factor'!$F$6 -> 0 | AH177: =I177*'B Factor'!$F$6 -> 0 | AI177: =J177*'B Factor'!$F$6 -> 0 | AJ177: =K177*'B Factor'!$F$6 -> 0 | AK177: =L177*'B Factor'!$F$6 -> 0 | AL177: =M177*'B Factor'!$F$6 -> 0 | AM177: =N177*'B Factor'!$F$6 -> 0 | AN177: =O177*'B Factor'!$F$6 -> 0 | AO177: =P177*'B Factor'!$F$6 -> 0 | AP177: =Q177*'B Factor'!$F$6 -> 0 | AQ177: =R177*'B Factor'!$F$6 -> 0 | AR177: =S177*'B Factor'!$F$6 -> 0 | AS177: =T177*'B Factor'!$F$6 -> 0 | AT177: =U177*'B Factor'!$F$6 -> 0 | AU177: =V177*'B Factor'!$F$6 -> 3.769987518e-06 | AV177: =W177*'B Factor'!$F$6 -> 0 | AW177: =X177*'B Factor'!$F$6 -> 0 | AX177: =Y177*'B Factor'!$F$6 -> 0 | AY177: =Z177*'B Factor'!$F$6 -> 0
A178: A | B178: 2006-06-26 | C178: 0 | D178: 0 | E178: 0 | F178: 0 | G178: 0 | H178: 0 | I178: 0 | J178: 0 | K178: 0 | L178: 0 | M178: 0 | N178: 0 | O178: 0 | P178: 0 | Q178: 0 | R178: 0 | S178: 0 | T178: 0 | U178: 0 | V178: 13.52 | W178: 0 | X178: 0 | Y178: 0 | Z178: 0 | AB178: =C178*'B Factor'!$F$6 -> 0 | AC178: =D178*'B Factor'!$F$6 -> 0 | AD178: =E178*'B Factor'!$F$6 -> 0 | AE178: =F178*'B Factor'!$F$6 -> 0 | AF178: =G178*'B Factor'!$F$6 -> 0 | AG178: =H178*'B Factor'!$F$6 -> 0 | AH178: =I178*'B Factor'!$F$6 -> 0 | AI178: =J178*'B Factor'!$F$6 -> 0 | AJ178: =K178*'B Factor'!$F$6 -> 0 | AK178: =L178*'B Factor'!$F$6 -> 0 | AL178: =M178*'B Factor'!$F$6 -> 0 | AM178: =N178*'B Factor'!$F$6 -> 0 | AN178: =O178*'B Factor'!$F$6 -> 0 | AO178: =P178*'B Factor'!$F$6 -> 0 | AP178: =Q178*'B Factor'!$F$6 -> 0 | AQ178: =R178*'B Factor'!$F$6 -> 0 | AR178: =S178*'B Factor'!$F$6 -> 0 | AS178: =T178*'B Factor'!$F$6 -> 0 | AT178: =U178*'B Factor'!$F$6 -> 0 | AU178: =V178*'B Factor'!$F$6 -> 1.569280519e-06 | AV178: =W178*'B Factor'!$F$6 -> 0 | AW178: =X178*'B Factor'!$F$6 -> 0 | AX178: =Y178*'B Factor'!$F$6 -> 0 | AY178: =Z178*'B Factor'!$F$6 -> 0
A179: A | B179: 2006-06-27 | C179: 0 | D179: 0 | E179: 0 | F179: 0 | G179: 0 | H179: 0 | I179: 0 | J179: 0 | K179: 0 | L179: 0 | M179: 0 | N179: 0 | O179: 0 | P179: 0 | Q179: 0 | R179: 0 | S179: 0 | T179: 0 | U179: 0 | V179: 80.14 | W179: 0 | X179: 0 | Y179: 0 | Z179: 0 | AB179: =C179*'B Factor'!$F$6 -> 0 | AC179: =D179*'B Factor'!$F$6 -> 0 | AD179: =E179*'B Factor'!$F$6 -> 0 | AE179: =F179*'B Factor'!$F$6 -> 0 | AF179: =G179*'B Factor'!$F$6 -> 0 | AG179: =H179*'B Factor'!$F$6 -> 0 | AH179: =I179*'B Factor'!$F$6 -> 0 | AI179: =J179*'B Factor'!$F$6 -> 0 | AJ179: =K179*'B Factor'!$F$6 -> 0 | AK179: =L179*'B Factor'!$F$6 -> 0 | AL179: =M179*'B Factor'!$F$6 -> 0 | AM179: =N179*'B Factor'!$F$6 -> 0 | AN179: =O179*'B Factor'!$F$6 -> 0 | AO179: =P179*'B Factor'!$F$6 -> 0 | AP179: =Q179*'B Factor'!$F$6 -> 0 | AQ179: =R179*'B Factor'!$F$6 -> 0 | AR179: =S179*'B Factor'!$F$6 -> 0 | AS179: =T179*'B Factor'!$F$6 -> 0 | AT179: =U179*'B Factor'!$F$6 -> 0 | AU179: =V179*'B Factor'!$F$6 -> 9.301933488e-06 | AV179: =W179*'B Factor'!$F$6 -> 0 | AW179: =X179*'B Factor'!$F$6 -> 0 | AX179: =Y179*'B Factor'!$F$6 -> 0 | AY179: =Z179*'B Factor'!$F$6 -> 0
A180: A | B180: 2006-06-28 | C180: 0 | D180: 0 | E180: 0 | F180: 0 | G180: 0 | H180: 0 | I180: 0 | J180: 0 | K180: 0 | L180: 0 | M180: 0 | N180: 0 | O180: 0 | P180: 0 | Q180: 0 | R180: 0 | S180: 0 | T180: 0 | U180: 0 | V180: 0 | W180: 0 | X180: 0 | Y180: 0 | Z180: 0 | AB180: =C180*'B Factor'!$F$6 -> 0 | AC180: =D180*'B Factor'!$F$6 -> 0 | AD180: =E180*'B Factor'!$F$6 -> 0 | AE180: =F180*'B Factor'!$F$6 -> 0 | AF180: =G180*'B Factor'!$F$6 -> 0 | AG180: =H180*'B Factor'!$F$6 -> 0 | AH180: =I180*'B Factor'!$F$6 -> 0 | AI180: =J180*'B Factor'!$F$6 -> 0 | AJ180: =K180*'B Factor'!$F$6 -> 0 | AK180: =L180*'B Factor'!$F$6 -> 0 | AL180: =M180*'B Factor'!$F$6 -> 0 | AM180: =N180*'B Factor'!$F$6 -> 0 | AN180: =O180*'B Factor'!$F$6 -> 0 | AO180: =P180*'B Factor'!$F$6 -> 0 | AP180: =Q180*'B Factor'!$F$6 -> 0 | AQ180: =R180*'B Factor'!$F$6 -> 0 | AR180: =S180*'B Factor'!$F$6 -> 0 | AS180: =T180*'B Factor'!$F$6 -> 0 | AT180: =U180*'B Factor'!$F$6 -> 0 | AU180: =V180*'B Factor'!$F$6 -> 0 | AV180: =W180*'B Factor'!$F$6 -> 0 | AW180: =X180*'B Factor'!$F$6 -> 0 | AX180: =Y180*'B Factor'!$F$6 -> 0 | AY180: =Z180*'B Factor'!$F$6 -> 0
A181: A | B181: 2006-06-29 | C181: 0 | D181: 0 | E181: 0 | F181: 0 | G181: 0 | H181: 0 | I181: 0 | J181: 0 | K181: 0 | L181: 0 | M181: 0 | N181: 0 | O181: 0 | P181: 0 | Q181: 0 | R181: 0 | S181: 0 | T181: 0 | U181: 0 | V181: 31.07 | W181: 0 | X181: 0 | Y181: 0 | Z181: 0 | AB181: =C181*'B Factor'!$F$6 -> 0 | AC181: =D181*'B Factor'!$F$6 -> 0 | AD181: =E181*'B Factor'!$F$6 -> 0 | AE181: =F181*'B Factor'!$F$6 -> 0 | AF181: =G181*'B Factor'!$F$6 -> 0 | AG181: =H181*'B Factor'!$F$6 -> 0 | AH181: =I181*'B Factor'!$F$6 -> 0 | AI181: =J181*'B Factor'!$F$6 -> 0 | AJ181: =K181*'B Factor'!$F$6 -> 0 | AK181: =L181*'B Factor'!$F$6 -> 0 | AL181: =M181*'B Factor'!$F$6 -> 0 | AM181: =N181*'B Factor'!$F$6 -> 0 | AN181: =O181*'B Factor'!$F$6 -> 0 | AO181: =P181*'B Factor'!$F$6 -> 0 | AP181: =Q181*'B Factor'!$F$6 -> 0 | AQ181: =R181*'B Factor'!$F$6 -> 0 | AR181: =S181*'B Factor'!$F$6 -> 0 | AS181: =T181*'B Factor'!$F$6 -> 0 | AT181: =U181*'B Factor'!$F$6 -> 0 | AU181: =V181*'B Factor'!$F$6 -> 3.606327346e-06 | AV181: =W181*'B Factor'!$F$6 -> 0 | AW181: =X181*'B Factor'!$F$6 -> 0 | AX181: =Y181*'B Factor'!$F$6 -> 0 | AY181: =Z181*'B Factor'!$F$6 -> 0
A182: A | B182: 2006-06-30 | C182: 0 | D182: 0 | E182: 0 | F182: 0 | G182: 0 | H182: 0 | I182: 0 | J182: 0 | K182: 0 | L182: 0 | M182: 0 | N182: 0 | O182: 0 | P182: 0 | Q182: 0 | R182: 0 | S182: 0 | T182: 0 | U182: 0 | V182: 88.67 | W182: 0 | X182: 0 | Y182: 0 | Z182: 0 | AB182: =C182*'B Factor'!$F$6 -> 0 | AC182: =D182*'B Factor'!$F$6 -> 0 | AD182: =E182*'B Factor'!$F$6 -> 0 | AE182: =F182*'B Factor'!$F$6 -> 0 | AF182: =G182*'B Factor'!$F$6 -> 0 | AG182: =H182*'B Factor'!$F$6 -> 0 | AH182: =I182*'B Factor'!$F$6 -> 0 | AI182: =J182*'B Factor'!$F$6 -> 0 | AJ182: =K182*'B Factor'!$F$6 -> 0 | AK182: =L182*'B Factor'!$F$6 -> 0 | AL182: =M182*'B Factor'!$F$6 -> 0 | AM182: =N182*'B Factor'!$F$6 -> 0 | AN182: =O182*'B Factor'!$F$6 -> 0 | AO182: =P182*'B Factor'!$F$6 -> 0 | AP182: =Q182*'B Factor'!$F$6 -> 0 | AQ182: =R182*'B Factor'!$F$6 -> 0 | AR182: =S182*'B Factor'!$F$6 -> 0 | AS182: =T182*'B Factor'!$F$6 -> 0 | AT182: =U182*'B Factor'!$F$6 -> 0 | AU182: =V182*'B Factor'!$F$6 -> 1.02920195e-05 | AV182: =W182*'B Factor'!$F$6 -> 0 | AW182: =X182*'B Factor'!$F$6 -> 0 | AX182: =Y182*'B Factor'!$F$6 -> 0 | AY182: =Z182*'B Factor'!$F$6 -> 0
A183: A | B183: 2006-07-01 | C183: 0 | D183: 0 | E183: 0 | F183: 0 | G183: 0 | H183: 0 | I183: 0 | J183: 0 | K183: 0 | L183: 0 | M183: 0 | N183: 0 | O183: 0 | P183: 0 | Q183: 0 | R183: 0 | S183: 0 | T183: 0 | U183: 0 | V183: 0 | W183: 0 | X183: 0 | Y183: 0 | Z183: 0 | AB183: =C183*'B Factor'!$F$6 -> 0 | AC183: =D183*'B Factor'!$F$6 -> 0 | AD183: =E183*'B Factor'!$F$6 -> 0 | AE183: =F183*'B Factor'!$F$6 -> 0 | AF183: =G183*'B Factor'!$F$6 -> 0 | AG183: =H183*'B Factor'!$F$6 -> 0 | AH183: =I183*'B Factor'!$F$6 -> 0 | AI183: =J183*'B Factor'!$F$6 -> 0 | AJ183: =K183*'B Factor'!$F$6 -> 0 | AK183: =L183*'B Factor'!$F$6 -> 0 | AL183: =M183*'B Factor'!$F$6 -> 0 | AM183: =N183*'B Factor'!$F$6 -> 0 | AN183: =O183*'B Factor'!$F$6 -> 0 | AO183: =P183*'B Factor'!$F$6 -> 0 | AP183: =Q183*'B Factor'!$F$6 -> 0 | AQ183: =R183*'B Factor'!$F$6 -> 0 | AR183: =S183*'B Factor'!$F$6 -> 0 | AS183: =T183*'B Factor'!$F$6 -> 0 | AT183: =U183*'B Factor'!$F$6 -> 0 | AU183: =V183*'B Factor'!$F$6 -> 0 | AV183: =W183*'B Factor'!$F$6 -> 0 | AW183: =X183*'B Factor'!$F$6 -> 0 | AX183: =Y183*'B Factor'!$F$6 -> 0 | AY183: =Z183*'B Factor'!$F$6 -> 0
A184: A | B184: 2006-07-02 | C184: 0 | D184: 0 | E184: 0 | F184: 0 | G184: 0 | H184: 0 | I184: 0 | J184: 0 | K184: 0 | L184: 0 | M184: 0 | N184: 0 | O184: 0 | P184: 0 | Q184: 0 | R184: 0 | S184: 0 | T184: 0 | U184: 0 | V184: 0 | W184: 0 | X184: 0 | Y184: 0 | Z184: 0 | AB184: =C184*'B Factor'!$F$6 -> 0 | AC184: =D184*'B Factor'!$F$6 -> 0 | AD184: =E184*'B Factor'!$F$6 -> 0 | AE184: =F184*'B Factor'!$F$6 -> 0 | AF184: =G184*'B Factor'!$F$6 -> 0 | AG184: =H184*'B Factor'!$F$6 -> 0 | AH184: =I184*'B Factor'!$F$6 -> 0 | AI184: =J184*'B Factor'!$F$6 -> 0 | AJ184: =K184*'B Factor'!$F$6 -> 0 | AK184: =L184*'B Factor'!$F$6 -> 0 | AL184: =M184*'B Factor'!$F$6 -> 0 | AM184: =N184*'B Factor'!$F$6 -> 0 | AN184: =O184*'B Factor'!$F$6 -> 0 | AO184: =P184*'B Factor'!$F$6 -> 0 | AP184: =Q184*'B Factor'!$F$6 -> 0 | AQ184: =R184*'B Factor'!$F$6 -> 0 | AR184: =S184*'B Factor'!$F$6 -> 0 | AS184: =T184*'B Factor'!$F$6 -> 0 | AT184: =U184*'B Factor'!$F$6 -> 0 | AU184: =V184*'B Factor'!$F$6 -> 0 | AV184: =W184*'B Factor'!$F$6 -> 0 | AW184: =X184*'B Factor'!$F$6 -> 0 | AX184: =Y184*'B Factor'!$F$6 -> 0 | AY184: =Z184*'B Factor'!$F$6 -> 0
A185: A | B185: 2006-07-03 | C185: 0 | D185: 0 | E185: 0 | F185: 0 | G185: 0 | H185: 0 | I185: 0 | J185: 0 | K185: 0 | L185: 0 | M185: 0 | N185: 0 | O185: 0 | P185: 0 | Q185: 0 | R185: 0 | S185: 0 | T185: 0 | U185: 0 | V185: 64.14 | W185: 0 | X185: 0 | Y185: 0 | Z185: 0 | AB185: =C185*'B Factor'!$F$6 -> 0 | AC185: =D185*'B Factor'!$F$6 -> 0 | AD185: =E185*'B Factor'!$F$6 -> 0 | AE185: =F185*'B Factor'!$F$6 -> 0 | AF185: =G185*'B Factor'!$F$6 -> 0 | AG185: =H185*'B Factor'!$F$6 -> 0 | AH185: =I185*'B Factor'!$F$6 -> 0 | AI185: =J185*'B Factor'!$F$6 -> 0 | AJ185: =K185*'B Factor'!$F$6 -> 0 | AK185: =L185*'B Factor'!$F$6 -> 0 | AL185: =M185*'B Factor'!$F$6 -> 0 | AM185: =N185*'B Factor'!$F$6 -> 0 | AN185: =O185*'B Factor'!$F$6 -> 0 | AO185: =P185*'B Factor'!$F$6 -> 0 | AP185: =Q185*'B Factor'!$F$6 -> 0 | AQ185: =R185*'B Factor'!$F$6 -> 0 | AR185: =S185*'B Factor'!$F$6 -> 0 | AS185: =T185*'B Factor'!$F$6 -> 0 | AT185: =U185*'B Factor'!$F$6 -> 0 | AU185: =V185*'B Factor'!$F$6 -> 7.44479678e-06 | AV185: =W185*'B Factor'!$F$6 -> 0 | AW185: =X185*'B Factor'!$F$6 -> 0 | AX185: =Y185*'B Factor'!$F$6 -> 0 | AY185: =Z185*'B Factor'!$F$6 -> 0
A186: A | B186: 2006-07-04 | C186: 0 | D186: 0 | E186: 0 | F186: 0 | G186: 0 | H186: 0 | I186: 0 | J186: 0 | K186: 0 | L186: 0 | M186: 0 | N186: 0 | O186: 0 | P186: 0 | Q186: 0 | R186: 0 | S186: 0 | T186: 0 | U186: 0 | V186: 507.07 | W186: 0 | X186: 0 | Y186: 0 | Z186: 0 | AB186: =C186*'B Factor'!$F$6 -> 0 | AC186: =D186*'B Factor'!$F$6 -> 0 | AD186: =E186*'B Factor'!$F$6 -> 0 | AE186: =F186*'B Factor'!$F$6 -> 0 | AF186: =G186*'B Factor'!$F$6 -> 0 | AG186: =H186*'B Factor'!$F$6 -> 0 | AH186: =I186*'B Factor'!$F$6 -> 0 | AI186: =J186*'B Factor'!$F$6 -> 0 | AJ186: =K186*'B Factor'!$F$6 -> 0 | AK186: =L186*'B Factor'!$F$6 -> 0 | AL186: =M186*'B Factor'!$F$6 -> 0 | AM186: =N186*'B Factor'!$F$6 -> 0 | AN186: =O186*'B Factor'!$F$6 -> 0 | AO186: =P186*'B Factor'!$F$6 -> 0 | AP186: =Q186*'B Factor'!$F$6 -> 0 | AQ186: =R186*'B Factor'!$F$6 -> 0 | AR186: =S186*'B Factor'!$F$6 -> 0 | AS186: =T186*'B Factor'!$F$6 -> 0 | AT186: =U186*'B Factor'!$F$6 -> 0 | AU186: =V186*'B Factor'!$F$6 -> 5.885614442e-05 | AV186: =W186*'B Factor'!$F$6 -> 0 | AW186: =X186*'B Factor'!$F$6 -> 0 | AX186: =Y186*'B Factor'!$F$6 -> 0 | AY186: =Z186*'B Factor'!$F$6 -> 0
A187: A | B187: 2006-07-05 | C187: 0 | D187: 0 | E187: 0 | F187: 0 | G187: 0 | H187: 0 | I187: 0 | J187: 0 | K187: 0 | L187: 0 | M187: 0 | N187: 0 | O187: 0 | P187: 0 | Q187: 0 | R187: 0 | S187: 0 | T187: 0 | U187: 0 | V187: 0 | W187: 0 | X187: 0 | Y187: 0 | Z187: 0 | AB187: =C187*'B Factor'!$F$6 -> 0 | AC187: =D187*'B Factor'!$F$6 -> 0 | AD187: =E187*'B Factor'!$F$6 -> 0 | AE187: =F187*'B Factor'!$F$6 -> 0 | AF187: =G187*'B Factor'!$F$6 -> 0 | AG187: =H187*'B Factor'!$F$6 -> 0 | AH187: =I187*'B Factor'!$F$6 -> 0 | AI187: =J187*'B Factor'!$F$6 -> 0 | AJ187: =K187*'B Factor'!$F$6 -> 0 | AK187: =L187*'B Factor'!$F$6 -> 0 | AL187: =M187*'B Factor'!$F$6 -> 0 | AM187: =N187*'B Factor'!$F$6 -> 0 | AN187: =O187*'B Factor'!$F$6 -> 0 | AO187: =P187*'B Factor'!$F$6 -> 0 | AP187: =Q187*'B Factor'!$F$6 -> 0 | AQ187: =R187*'B Factor'!$F$6 -> 0 | AR187: =S187*'B Factor'!$F$6 -> 0 | AS187: =T187*'B Factor'!$F$6 -> 0 | AT187: =U187*'B Factor'!$F$6 -> 0 | AU187: =V187*'B Factor'!$F$6 -> 0 | AV187: =W187*'B Factor'!$F$6 -> 0 | AW187: =X187*'B Factor'!$F$6 -> 0 | AX187: =Y187*'B Factor'!$F$6 -> 0 | AY187: =Z187*'B Factor'!$F$6 -> 0
A188: A | B188: 2006-07-06 | C188: 0 | D188: 0 | E188: 0 | F188: 0 | G188: 0 | H188: 0 | I188: 0 | J188: 0 | K188: 0 | L188: 0 | M188: 0 | N188: 0 | O188: 0 | P188: 0 | Q188: 0 | R188: 0 | S188: 0 | T188: 0 | U188: 0 | V188: 0 | W188: 0 | X188: 0 | Y188: 0 | Z188: 0 | AB188: =C188*'B Factor'!$F$6 -> 0 | AC188: =D188*'B Factor'!$F$6 -> 0 | AD188: =E188*'B Factor'!$F$6 -> 0 | AE188: =F188*'B Factor'!$F$6 -> 0 | AF188: =G188*'B Factor'!$F$6 -> 0 | AG188: =H188*'B Factor'!$F$6 -> 0 | AH188: =I188*'B Factor'!$F$6 -> 0 | AI188: =J188*'B Factor'!$F$6 -> 0 | AJ188: =K188*'B Factor'!$F$6 -> 0 | AK188: =L188*'B Factor'!$F$6 -> 0 | AL188: =M188*'B Factor'!$F$6 -> 0 | AM188: =N188*'B Factor'!$F$6 -> 0 | AN188: =O188*'B Factor'!$F$6 -> 0 | AO188: =P188*'B Factor'!$F$6 -> 0 | AP188: =Q188*'B Factor'!$F$6 -> 0 | AQ188: =R188*'B Factor'!$F$6 -> 0 | AR188: =S188*'B Factor'!$F$6 -> 0 | AS188: =T188*'B Factor'!$F$6 -> 0 | AT188: =U188*'B Factor'!$F$6 -> 0 | AU188: =V188*'B Factor'!$F$6 -> 0 | AV188: =W188*'B Factor'!$F$6 -> 0 | AW188: =X188*'B Factor'!$F$6 -> 0 | AX188: =Y188*'B Factor'!$F$6 -> 0 | AY188: =Z188*'B Factor'!$F$6 -> 0
A189: A | B189: 2006-07-07 | C189: 0 | D189: 0 | E189: 0 | F189: 0 | G189: 0 | H189: 0 | I189: 0 | J189: 0 | K189: 0 | L189: 0 | M189: 0 | N189: 0 | O189: 0 | P189: 0 | Q189: 0 | R189: 0 | S189: 0 | T189: 0 | U189: 0 | V189: 0 | W189: 0 | X189: 0 | Y189: 0 | Z189: 0 | AB189: =C189*'B Factor'!$F$6 -> 0 | AC189: =D189*'B Factor'!$F$6 -> 0 | AD189: =E189*'B Factor'!$F$6 -> 0 | AE189: =F189*'B Factor'!$F$6 -> 0 | AF189: =G189*'B Factor'!$F$6 -> 0 | AG189: =H189*'B Factor'!$F$6 -> 0 | AH189: =I189*'B Factor'!$F$6 -> 0 | AI189: =J189*'B Factor'!$F$6 -> 0 | AJ189: =K189*'B Factor'!$F$6 -> 0 | AK189: =L189*'B Factor'!$F$6 -> 0 | AL189: =M189*'B Factor'!$F$6 -> 0 | AM189: =N189*'B Factor'!$F$6 -> 0 | AN189: =O189*'B Factor'!$F$6 -> 0 | AO189: =P189*'B Factor'!$F$6 -> 0 | AP189: =Q189*'B Factor'!$F$6 -> 0 | AQ189: =R189*'B Factor'!$F$6 -> 0 | AR189: =S189*'B Factor'!$F$6 -> 0 | AS189: =T189*'B Factor'!$F$6 -> 0 | AT189: =U189*'B Factor'!$F$6 -> 0 | AU189: =V189*'B Factor'!$F$6 -> 0 | AV189: =W189*'B Factor'!$F$6 -> 0 | AW189: =X189*'B Factor'!$F$6 -> 0 | AX189: =Y189*'B Factor'!$F$6 -> 0 | AY189: =Z189*'B Factor'!$F$6 -> 0
A190: A | B190: 2006-07-08 | C190: 0 | D190: 0 | E190: 0 | F190: 0 | G190: 0 | H190: 0 | I190: 0 | J190: 0 | K190: 0 | L190: 0 | M190: 0 | N190: 0 | O190: 0 | P190: 0 | Q190: 0 | R190: 0 | S190: 0 | T190: 0 | U190: 0 | V190: 72.09 | W190: 0 | X190: 0 | Y190: 0 | Z190: 0 | AB190: =C190*'B Factor'!$F$6 -> 0 | AC190: =D190*'B Factor'!$F$6 -> 0 | AD190: =E190*'B Factor'!$F$6 -> 0 | AE190: =F190*'B Factor'!$F$6 -> 0 | AF190: =G190*'B Factor'!$F$6 -> 0 | AG190: =H190*'B Factor'!$F$6 -> 0 | AH190: =I190*'B Factor'!$F$6 -> 0 | AI190: =J190*'B Factor'!$F$6 -> 0 | AJ190: =K190*'B Factor'!$F$6 -> 0 | AK190: =L190*'B Factor'!$F$6 -> 0 | AL190: =M190*'B Factor'!$F$6 -> 0 | AM190: =N190*'B Factor'!$F$6 -> 0 | AN190: =O190*'B Factor'!$F$6 -> 0 | AO190: =P190*'B Factor'!$F$6 -> 0 | AP190: =Q190*'B Factor'!$F$6 -> 0 | AQ190: =R190*'B Factor'!$F$6 -> 0 | AR190: =S190*'B Factor'!$F$6 -> 0 | AS190: =T190*'B Factor'!$F$6 -> 0 | AT190: =U190*'B Factor'!$F$6 -> 0 | AU190: =V190*'B Factor'!$F$6 -> 8.367561582e-06 | AV190: =W190*'B Factor'!$F$6 -> 0 | AW190: =X190*'B Factor'!$F$6 -> 0 | AX190: =Y190*'B Factor'!$F$6 -> 0 | AY190: =Z190*'B Factor'!$F$6 -> 0
A191: A | B191: 2006-07-09 | C191: 0 | D191: 0 | E191: 0 | F191: 0 | G191: 0 | H191: 0 | I191: 0 | J191: 0 | K191: 0 | L191: 0 | M191: 0 | N191: 0 | O191: 0 | P191: 0 | Q191: 27.32 | R191: 212.01 | S191: 370.51 | T191: 138.27 | U191: 233.19 | V191: 1245.73 | W191: 52.65 | X191: 0 | Y191: 0 | Z191: 0 | AB191: =C191*'B Factor'!$F$6 -> 0 | AC191: =D191*'B Factor'!$F$6 -> 0 | AD191: =E191*'B Factor'!$F$6 -> 0 | AE191: =F191*'B Factor'!$F$6 -> 0 | AF191: =G191*'B Factor'!$F$6 -> 0 | AG191: =H191*'B Factor'!$F$6 -> 0 | AH191: =I191*'B Factor'!$F$6 -> 0 | AI191: =J191*'B Factor'!$F$6 -> 0 | AJ191: =K191*'B Factor'!$F$6 -> 0 | AK191: =L191*'B Factor'!$F$6 -> 0 | AL191: =M191*'B Factor'!$F$6 -> 0 | AM191: =N191*'B Factor'!$F$6 -> 0 | AN191: =O191*'B Factor'!$F$6 -> 0 | AO191: =P191*'B Factor'!$F$6 -> 0 | AP191: =Q191*'B Factor'!$F$6 -> 3.17106093e-06 | AQ191: =R191*'B Factor'!$F$6 -> 2.46082221e-05 | AR191: =S191*'B Factor'!$F$6 -> 4.300548261e-05 | AS191: =T191*'B Factor'!$F$6 -> 1.604914329e-05 | AT191: =U191*'B Factor'!$F$6 -> 2.706660681e-05 | AU191: =V191*'B Factor'!$F$6 -> 0.000144593182 | AV191: =W191*'B Factor'!$F$6 -> 6.111140481e-06 | AW191: =X191*'B Factor'!$F$6 -> 0 | AX191: =Y191*'B Factor'!$F$6 -> 0 | AY191: =Z191*'B Factor'!$F$6 -> 0
A192: A | B192: 2006-07-10 | C192: 0 | D192: 0 | E192: 0 | F192: 0 | G192: 0 | H192: 0 | I192: 0 | J192: 0 | K192: 0 | L192: 0 | M192: 0 | N192: 104.39 | O192: 323.21 | P192: 548.81 | Q192: 971.09 | R192: 1522.34 | S192: 1720.37 | T192: 1086.42 | U192: 1168.36 | V192: 2767.23 | W192: 753.24 | X192: 0 | Y192: 0 | Z192: 0 | AB192: =C192*'B Factor'!$F$6 -> 0 | AC192: =D192*'B Factor'!$F$6 -> 0 | AD192: =E192*'B Factor'!$F$6 -> 0 | AE192: =F192*'B Factor'!$F$6 -> 0 | AF192: =G192*'B Factor'!$F$6 -> 0 | AG192: =H192*'B Factor'!$F$6 -> 0 | AH192: =I192*'B Factor'!$F$6 -> 0 | AI192: =J192*'B Factor'!$F$6 -> 0 | AJ192: =K192*'B Factor'!$F$6 -> 0 | AK192: =L192*'B Factor'!$F$6 -> 0 | AL192: =M192*'B Factor'!$F$6 -> 0 | AM192: =N192*'B Factor'!$F$6 -> 1.211665631e-05 | AN192: =O192*'B Factor'!$F$6 -> 3.751532222e-05 | AO192: =P192*'B Factor'!$F$6 -> 6.370094981e-05 | AP192: =Q192*'B Factor'!$F$6 -> 0.0001127154304 | AQ192: =R192*'B Factor'!$F$6 -> 0.0001766995935 | AR192: =S192*'B Factor'!$F$6 -> 0.0001996851424 | AS192: =T192*'B Factor'!$F$6 -> 0.0001261019039 | AT192: =U192*'B Factor'!$F$6 -> 0.0001356127653 | AU192: =V192*'B Factor'!$F$6 -> 0.0003211952758 | AV192: =W192*'B Factor'!$F$6 -> 8.742935339e-05 | AW192: =X192*'B Factor'!$F$6 -> 0 | AX192: =Y192*'B Factor'!$F$6 -> 0 | AY192: =Z192*'B Factor'!$F$6 -> 0
A193: A | B193: 2006-07-11 | C193: 0 | D193: 0 | E193: 0 | F193: 0 | G193: 0 | H193: 0 | I193: 0 | J193: 0 | K193: 0 | L193: 0 | M193: 22.61 | N193: 385.8 | O193: 1493.33 | P193: 3075.28 | Q193: 5247.34 | R193: 7181.32 | S193: 7000.16 | T193: 3904.63 | U193: 3181.57 | V193: 5789.62 | W193: 1576.76 | X193: 0 | Y193: 0 | Z193: 0 | AB193: =C193*'B Factor'!$F$6 -> 0 | AC193: =D193*'B Factor'!$F$6 -> 0 | AD193: =E193*'B Factor'!$F$6 -> 0 | AE193: =F193*'B Factor'!$F$6 -> 0 | AF193: =G193*'B Factor'!$F$6 -> 0 | AG193: =H193*'B Factor'!$F$6 -> 0 | AH193: =I193*'B Factor'!$F$6 -> 0 | AI193: =J193*'B Factor'!$F$6 -> 0 | AJ193: =K193*'B Factor'!$F$6 -> 0 | AK193: =L193*'B Factor'!$F$6 -> 0 | AL193: =M193*'B Factor'!$F$6 -> 2.624366311e-06 | AM193: =N193*'B Factor'!$F$6 -> 4.478020888e-05 | AN193: =O193*'B Factor'!$F$6 -> 0.0001733323725 | AO193: =P193*'B Factor'!$F$6 -> 0.000356950961 | AP193: =Q193*'B Factor'!$F$6 -> 0.0006090642335 | AQ193: =R193*'B Factor'!$F$6 -> 0.0008335433117 | AR193: =S193*'B Factor'!$F$6 -> 0.0008125158813 | AS193: =T193*'B Factor'!$F$6 -> 0.0004532144816 | AT193: =U193*'B Factor'!$F$6 -> 0.0003692881523 | AU193: =V193*'B Factor'!$F$6 -> 0.0006720072393 | AV193: =W193*'B Factor'!$F$6 -> 0.0001830161798 | AW193: =X193*'B Factor'!$F$6 -> 0 | AX193: =Y193*'B Factor'!$F$6 -> 0 | AY193: =Z193*'B Factor'!$F$6 -> 0
A194: A | B194: 2006-07-12 | C194: 0 | D194: 0 | E194: 0 | F194: 0 | G194: 0 | H194: 0 | I194: 0 | J194: 0 | K194: 0 | L194: 0 | M194: 25.59 | N194: 338.41 | O194: 1244.82 | P194: 2701.58 | Q194: 4529.29 | R194: 6105.87 | S194: 5527.49 | T194: 2398.35 | U194: 1336.33 | V194: 2576.21 | W194: 514.75 | X194: 0 | Y194: 0 | Z194: 0 | AB194: =C194*'B Factor'!$F$6 -> 0 | AC194: =D194*'B Factor'!$F$6 -> 0 | AD194: =E194*'B Factor'!$F$6 -> 0 | AE194: =F194*'B Factor'!$F$6 -> 0 | AF194: =G194*'B Factor'!$F$6 -> 0 | AG194: =H194*'B Factor'!$F$6 -> 0 | AH194: =I194*'B Factor'!$F$6 -> 0 | AI194: =J194*'B Factor'!$F$6 -> 0 | AJ194: =K194*'B Factor'!$F$6 -> 0 | AK194: =L194*'B Factor'!$F$6 -> 0 | AL194: =M194*'B Factor'!$F$6 -> 2.970258023e-06 | AM194: =N194*'B Factor'!$F$6 -> 3.927960209e-05 | AN194: =O194*'B Factor'!$F$6 -> 0.0001444875573 | AO194: =P194*'B Factor'!$F$6 -> 0.0003135752118 | AP194: =Q194*'B Factor'!$F$6 -> 0.0005257194201 | AQ194: =R194*'B Factor'!$F$6 -> 0.0007087147071 | AR194: =S194*'B Factor'!$F$6 -> 0.0006415815365 | AS194: =T194*'B Factor'!$F$6 -> 0.000278378989 | AT194: =U194*'B Factor'!$F$6 -> 0.0001551092186 | AU194: =V194*'B Factor'!$F$6 -> 0.000299023385 | AV194: =W194*'B Factor'!$F$6 -> 5.974757004e-05 | AW194: =X194*'B Factor'!$F$6 -> 0 | AX194: =Y194*'B Factor'!$F$6 -> 0 | AY194: =Z194*'B Factor'!$F$6 -> 0
A195: A | B195: 2006-07-13 | C195: 0 | D195: 0 | E195: 0 | F195: 0 | G195: 0 | H195: 0 | I195: 0 | J195: 0 | K195: 0 | L195: 0 | M195: 0 | N195: 0 | O195: 0 | P195: 0 | Q195: 14.84 | R195: 100.74 | S195: 211.27 | T195: 159.8 | U195: 157.7 | V195: 375.01 | W195: 121.09 | X195: 0 | Y195: 0 | Z195: 0 | AB195: =C195*'B Factor'!$F$6 -> 0 | AC195: =D195*'B Factor'!$F$6 -> 0 | AD195: =E195*'B Factor'!$F$6 -> 0 | AE195: =F195*'B Factor'!$F$6 -> 0 | AF195: =G195*'B Factor'!$F$6 -> 0 | AG195: =H195*'B Factor'!$F$6 -> 0 | AH195: =I195*'B Factor'!$F$6 -> 0 | AI195: =J195*'B Factor'!$F$6 -> 0 | AJ195: =K195*'B Factor'!$F$6 -> 0 | AK195: =L195*'B Factor'!$F$6 -> 0 | AL195: =M195*'B Factor'!$F$6 -> 0 | AM195: =N195*'B Factor'!$F$6 -> 0 | AN195: =O195*'B Factor'!$F$6 -> 0 | AO195: =P195*'B Factor'!$F$6 -> 0 | AP195: =Q195*'B Factor'!$F$6 -> 1.722494297e-06 | AQ195: =R195*'B Factor'!$F$6 -> 1.1692997e-05 | AR195: =S195*'B Factor'!$F$6 -> 2.452232952e-05 | AS195: =T195*'B Factor'!$F$6 -> 1.854815287e-05 | AT195: =U195*'B Factor'!$F$6 -> 1.830440368e-05 | AU195: =V195*'B Factor'!$F$6 -> 4.352780231e-05 | AV195: =W195*'B Factor'!$F$6 -> 1.405504275e-05 | AW195: =X195*'B Factor'!$F$6 -> 0 | AX195: =Y195*'B Factor'!$F$6 -> 0 | AY195: =Z195*'B Factor'!$F$6 -> 0
A196: A | B196: 2006-07-14 | C196: 0 | D196: 0 | E196: 0 | F196: 0 | G196: 0 | H196: 0 | I196: 0 | J196: 0 | K196: 0 | L196: 0 | M196: 0 | N196: 0 | O196: 0 | P196: 0 | Q196: 0 | R196: 0 | S196: 0 | T196: 0 | U196: 0 | V196: 0 | W196: 0 | X196: 0 | Y196: 0 | Z196: 0 | AB196: =C196*'B Factor'!$F$6 -> 0 | AC196: =D196*'B Factor'!$F$6 -> 0 | AD196: =E196*'B Factor'!$F$6 -> 0 | AE196: =F196*'B Factor'!$F$6 -> 0 | AF196: =G196*'B Factor'!$F$6 -> 0 | AG196: =H196*'B Factor'!$F$6 -> 0 | AH196: =I196*'B Factor'!$F$6 -> 0 | AI196: =J196*'B Factor'!$F$6 -> 0 | AJ196: =K196*'B Factor'!$F$6 -> 0 | AK196: =L196*'B Factor'!$F$6 -> 0 | AL196: =M196*'B Factor'!$F$6 -> 0 | AM196: =N196*'B Factor'!$F$6 -> 0 | AN196: =O196*'B Factor'!$F$6 -> 0 | AO196: =P196*'B Factor'!$F$6 -> 0 | AP196: =Q196*'B Factor'!$F$6 -> 0 | AQ196: =R196*'B Factor'!$F$6 -> 0 | AR196: =S196*'B Factor'!$F$6 -> 0 | AS196: =T196*'B Factor'!$F$6 -> 0 | AT196: =U196*'B Factor'!$F$6 -> 0 | AU196: =V196*'B Factor'!$F$6 -> 0 | AV196: =W196*'B Factor'!$F$6 -> 0 | AW196: =X196*'B Factor'!$F$6 -> 0 | AX196: =Y196*'B Factor'!$F$6 -> 0 | AY196: =Z196*'B Factor'!$F$6 -> 0
A197: A | B197: 2006-07-15 | C197: 0 | D197: 0 | E197: 0 | F197: 0 | G197: 0 | H197: 0 | I197: 0 | J197: 0 | K197: 0 | L197: 0 | M197: 0 | N197: 0 | O197: 0 | P197: 19.89 | Q197: 278.97 | R197: 765.48 | S197: 1117.46 | T197: 430.65 | U197: 592.1 | V197: 2439.58 | W197: 93.86 | X197: 0 | Y197: 0 | Z197: 0 | AB197: =C197*'B Factor'!$F$6 -> 0 | AC197: =D197*'B Factor'!$F$6 -> 0 | AD197: =E197*'B Factor'!$F$6 -> 0 | AE197: =F197*'B Factor'!$F$6 -> 0 | AF197: =G197*'B Factor'!$F$6 -> 0 | AG197: =H197*'B Factor'!$F$6 -> 0 | AH197: =I197*'B Factor'!$F$6 -> 0 | AI197: =J197*'B Factor'!$F$6 -> 0 | AJ197: =K197*'B Factor'!$F$6 -> 0 | AK197: =L197*'B Factor'!$F$6 -> 0 | AL197: =M197*'B Factor'!$F$6 -> 0 | AM197: =N197*'B Factor'!$F$6 -> 0 | AN197: =O197*'B Factor'!$F$6 -> 0 | AO197: =P197*'B Factor'!$F$6 -> 2.308653071e-06 | AP197: =Q197*'B Factor'!$F$6 -> 3.238033922e-05 | AQ197: =R197*'B Factor'!$F$6 -> 8.885006297e-05 | AR197: =S197*'B Factor'!$F$6 -> 0.0001297047491 | AS197: =T197*'B Factor'!$F$6 -> 4.998599522e-05 | AT197: =U197*'B Factor'!$F$6 -> 6.872566531e-05 | AU197: =V197*'B Factor'!$F$6 -> 0.0002831645982 | AV197: =W197*'B Factor'!$F$6 -> 1.089442822e-05 | AW197: =X197*'B Factor'!$F$6 -> 0 | AX197: =Y197*'B Factor'!$F$6 -> 0 | AY197: =Z197*'B Factor'!$F$6 -> 0
A198: A | B198: 2006-07-16 | C198: 0 | D198: 0 | E198: 0 | F198: 0 | G198: 0 | H198: 0 | I198: 0 | J198: 0 | K198: 0 | L198: 0 | M198: 96.93 | N198: 587.81 | O198: 1202.38 | P198: 2058.04 | Q198: 3742.03 | R198: 5751.55 | S198: 5945.26 | T198: 3191.33 | U198: 2907.75 | V198: 5510.64 | W198: 1410.6 | X198: 54.74 | Y198: 0 | Z198: 0 | AB198: =C198*'B Factor'!$F$6 -> 0 | AC198: =D198*'B Factor'!$F$6 -> 0 | AD198: =E198*'B Factor'!$F$6 -> 0 | AE198: =F198*'B Factor'!$F$6 -> 0 | AF198: =G198*'B Factor'!$F$6 -> 0 | AG198: =H198*'B Factor'!$F$6 -> 0 | AH198: =I198*'B Factor'!$F$6 -> 0 | AI198: =J198*'B Factor'!$F$6 -> 0 | AJ198: =K198*'B Factor'!$F$6 -> 0 | AK198: =L198*'B Factor'!$F$6 -> 0 | AL198: =M198*'B Factor'!$F$6 -> 1.125076632e-05 | AM198: =N198*'B Factor'!$F$6 -> 6.822772053e-05 | AN198: =O198*'B Factor'!$F$6 -> 0.0001395615022 | AO198: =P198*'B Factor'!$F$6 -> 0.000238878852 | AP198: =Q198*'B Factor'!$F$6 -> 0.0004343413298 | AQ198: =R198*'B Factor'!$F$6 -> 0.0006675884147 | AR198: =S198*'B Factor'!$F$6 -> 0.0006900725367 | AS198: =T198*'B Factor'!$F$6 -> 0.0003704210057 | AT198: =U198*'B Factor'!$F$6 -> 0.000337505579 | AU198: =V198*'B Factor'!$F$6 -> 0.0006396257394 | AV198: =W198*'B Factor'!$F$6 -> 0.0001637298151 | AW198: =X198*'B Factor'!$F$6 -> 6.353728963e-06 | AX198: =Y198*'B Factor'!$F$6 -> 0 | AY198: =Z198*'B Factor'!$F$6 -> 0
A199: A | B199: 2006-07-17 | C199: 0 | D199: 0 | E199: 0 | F199: 0 | G199: 0 | H199: 0 | I199: 0 | J199: 0 | K199: 0 | L199: 100.89 | M199: 667.39 | N199: 2701.07 | O199: 5911.77 | P199: 10294.61 | Q199: 15431.36 | R199: 19500.85 | S199: 18611.47 | T199: 11446.24 | U199: 9619.22 | V199: 12840.4 | W199: 4299.86 | X199: 75.21 | Y199: 0 | Z199: 0 | AB199: =C199*'B Factor'!$F$6 -> 0 | AC199: =D199*'B Factor'!$F$6 -> 0 | AD199: =E199*'B Factor'!$F$6 -> 0 | AE199: =F199*'B Factor'!$F$6 -> 0 | AF199: =G199*'B Factor'!$F$6 -> 0 | AG199: =H199*'B Factor'!$F$6 -> 0 | AH199: =I199*'B Factor'!$F$6 -> 0 | AI199: =J199*'B Factor'!$F$6 -> 0 | AJ199: =K199*'B Factor'!$F$6 -> 0 | AK199: =L199*'B Factor'!$F$6 -> 1.171040766e-05 | AL199: =M199*'B Factor'!$F$6 -> 7.746465424e-05 | AM199: =N199*'B Factor'!$F$6 -> 0.0003135160156 | AN199: =O199*'B Factor'!$F$6 -> 0.0006861853174 | AO199: =P199*'B Factor'!$F$6 -> 0.001194906133 | AP199: =Q199*'B Factor'!$F$6 -> 0.00179113407 | AQ199: =R199*'B Factor'!$F$6 -> 0.002263484024 | AR199: =S199*'B Factor'!$F$6 -> 0.002160252758 | AS199: =T199*'B Factor'!$F$6 -> 0.00132857703 | AT199: =U199*'B Factor'!$F$6 -> 0.00111651291 | AU199: =V199*'B Factor'!$F$6 -> 0.001490398637 | AV199: =W199*'B Factor'!$F$6 -> 0.0004990892404 | AW199: =X199*'B Factor'!$F$6 -> 8.72970324e-06 | AX199: =Y199*'B Factor'!$F$6 -> 0 | AY199: =Z199*'B Factor'!$F$6 -> 0
A200: A | B200: 2006-07-18 | C200: 0 | D200: 0 | E200: 0 | F200: 0 | G200: 0 | H200: 0 | I200: 0 | J200: 0 | K200: 0 | L200: 251.79 | M200: 1165.89 | N200: 3752.44 | O200: 8373.39 | P200: 14942.6 | Q200: 21831.32 | R200: 26231.18 | S200: 24620.22 | T200: 15115.4 | U200: 11851.29 | V200: 15413.25 | W200: 4615.96 | X200: 108.01 | Y200: 0 | Z200: 0 | AB200: =C200*'B Factor'!$F$6 -> 0 | AC200: =D200*'B Factor'!$F$6 -> 0 | AD200: =E200*'B Factor'!$F$6 -> 0 | AE200: =F200*'B Factor'!$F$6 -> 0 | AF200: =G200*'B Factor'!$F$6 -> 0 | AG200: =H200*'B Factor'!$F$6 -> 0 | AH200: =I200*'B Factor'!$F$6 -> 0 | AI200: =J200*'B Factor'!$F$6 -> 0 | AJ200: =K200*'B Factor'!$F$6 -> 0 | AK200: =L200*'B Factor'!$F$6 -> 2.922552824e-05 | AL200: =M200*'B Factor'!$F$6 -> 0.0001353260698 | AM200: =N200*'B Factor'!$F$6 -> 0.0004355496294 | AN200: =O200*'B Factor'!$F$6 -> 0.0009719081214 | AO200: =P200*'B Factor'!$F$6 -> 0.001734403186 | AP200: =Q200*'B Factor'!$F$6 -> 0.00253398411 | AQ200: =R200*'B Factor'!$F$6 -> 0.003044680455 | AR200: =S200*'B Factor'!$F$6 -> 0.002857694646 | AS200: =T200*'B Factor'!$F$6 -> 0.001754460263 | AT200: =U200*'B Factor'!$F$6 -> 0.001375591606 | AU200: =V200*'B Factor'!$F$6 -> 0.001789032023 | AV200: =W200*'B Factor'!$F$6 -> 0.0005357792975 | AW200: =X200*'B Factor'!$F$6 -> 1.253683349e-05 | AX200: =Y200*'B Factor'!$F$6 -> 0 | AY200: =Z200*'B Factor'!$F$6 -> 0
... 166 more rows

Sheet Actual
C1: 1 | D1: 2 | E1: 3 | F1: 4 | G1: 5 | H1: 6 | I1: 7 | J1: 8 | K1: 9 | L1: 10 | M1: 11 | N1: 12 | O1: 13 | P1: 14 | Q1: 15 | R1: 16 | S1: 17 | T1: 18 | U1: 19 | V1: 20 | W1: 21 | X1: 22 | Y1: 23 | Z1: 24 | AB1: 1 | AC1: 2 | AD1: 3 | AE1: 4 | AF1: 5 | AG1: 6 | AH1: 7 | AI1: 8 | AJ1: 9 | AK1: 10 | AL1: 11 | AM1: 12 | AN1: 13 | AO1: 14 | AP1: 15 | AQ1: 16 | AR1: 17 | AS1: 18 | AT1: 19 | AU1: 20 | AV1: 21 | AW1: 22 | AX1: 23 | AY1: 24
A2: A | B2: 2006-01-01 | C2: 20838 | D2: 19718 | E2: 19301 | F2: 18879 | G2: 18875 | H2: 19227 | I2: 19577 | J2: 19778 | K2: 20692 | L2: 21879 | M2: 22669 | N2: 23152 | O2: 23184 | P2: 23197 | Q2: 23189 | R2: 23679 | S2: 26005 | T2: 27524 | U2: 27181 | V2: 26536 | W2: 25631 | X2: 24195 | Y2: 22354 | Z2: 20913 | AB2: =IF(C2>=INDEX('B Factor'!$D$10:$D$13,MATCH(YEAR($B2),'B Factor'!$B$10:$B$13,0)),1/((1+'B Factor'!$F$4)*INDEX('B Factor'!$C$10:$C$13,MATCH(YEAR($B2),'B Factor'!$B$10:$B$13,0))-C2))/INDEX('B Factor'!$E$10:$E$13,MATCH(YEAR($B2),'B Factor'!$B$10:$B$13,0)) -> 0 | AC2: =IF(D2>=INDEX('B Factor'!$D$10:$D$13,MATCH(YEAR($B2),'B Factor'!$B$10:$B$13,0)),1/((1+'B Factor'!$F$4)*INDEX('B Factor'!$C$10:$C$13,MATCH(YEAR($B2),'B Factor'!$B$10:$B$13,0))-D2))/INDEX('B Factor'!$E$10:$E$13,MATCH(YEAR($B2),'B Factor'!$B$10:$B$13,0)) -> 0 | AD2: =IF(E2>=INDEX('B Factor'!$D$10:$D$13,MATCH(YEAR($B2),'B Factor'!$B$10:$B$13,0)),1/((1+'B Factor'!$F$4)*INDEX('B Factor'!$C$10:$C$13,MATCH(YEAR($B2),'B Factor'!$B$10:$B$13,0))-E2))/INDEX('B Factor'!$E$10:$E$13,MATCH(YEAR($B2),'B Factor'!$B$10:$B$13,0)) -> 0 | AE2: =IF(F2>=INDEX('B Factor'!$D$10:$D$13,MATCH(YEAR($B2),'B Factor'!$B$10:$B$13,0)),1/((1+'B Factor'!$F$4)*INDEX('B Factor'!$C$10:$C$13,MATCH(YEAR($B2),'B Factor'!$B$10:$B$13,0))-F2))/INDEX('B Factor'!$E$10:$E$13,MATCH(YEAR($B2),'B Factor'!$B$10:$B$13,0)) -> 0 | AF2: =IF(G2>=INDEX('B Factor'!$D$10:$D$13,MATCH(YEAR($B2),'B Factor'!$B$10:$B$13,0)),1/((1+'B Factor'!$F$4)*INDEX('B Factor'!$C$10:$C$13,MATCH(YEAR($B2),'B Factor'!$B$10:$B$13,0))-G2))/INDEX('B Factor'!$E$10:$E$13,MATCH(YEAR($B2),'B Factor'!$B$10:$B$13,0)) -> 0 | AG2: =IF(H2>=INDEX('B Factor'!$D$10:$D$13,MATCH(YEAR($B2),'B Factor'!$B$10:$B$13,0)),1/((1+'B Factor'!$F$4)*INDEX('B Factor'!$C$10:$C$13,MATCH(YEAR($B2),'B Factor'!$B$10:$B$13,0))-H2))/INDEX('B Factor'!$E$10:$E$13,MATCH(YEAR($B2),'B Factor'!$B$10:$B$13,0)) -> 0 | AH2: =IF(I2>=INDEX('B Factor'!$D$10:$D$13,MATCH(YEAR($B2),'B Factor'!$B$10:$B$13,0)),1/((1+'B Factor'!$F$4)*INDEX('B Factor'!$C$10:$C$13,MATCH(YEAR($B2),'B Factor'!$B$10:$B$13,0))-I2))/INDEX('B Factor'!$E$10:$E$13,MATCH(YEAR($B2),'B Factor'!$B$10:$B$13,0)) -> 0 | AI2: =IF(J2>=INDEX('B Factor'!$D$10:$D$13,MATCH(YEAR($B2),'B Factor'!$B$10:$B$13,0)),1/((1+'B Factor'!$F$4)*INDEX('B Factor'!$C$10:$C$13,MATCH(YEAR($B2),'B Factor'!$B$10:$B$13,0))-J2))/INDEX('B Factor'!$E$10:$E$13,MATCH(YEAR($B2),'B Factor'!$B$10:$B$13,0)) -> 0 | AJ2: =IF(K2>=INDEX('B Factor'!$D$10:$D$13,MATCH(YEAR($B2),'B Factor'!$B$10:$B$13,0)),1/((1+'B Factor'!$F$4)*INDEX('B Factor'!$C$10:$C$13,MATCH(YEAR($B2),'B Factor'!$B$10:$B$13,0))-K2))/INDEX('B Factor'!$E$10:$E$13,MATCH(YEAR($B2),'B Factor'!$B$10:$B$13,0)) -> 0 | AK2: =IF(L2>=INDEX('B Factor'!$D$10:$D$13,MATCH(YEAR($B2),'B Factor'!$B$10:$B$13,0)),1/((1+'B Factor'!$F$4)*INDEX('B Factor'!$C$10:$C$13,MATCH(YEAR($B2),'B Factor'!$B$10:$B$13,0))-L2))/INDEX('B Factor'!$E$10:$E$13,MATCH(YEAR($B2),'B Factor'!$B$10:$B$13,0)) -> 0 | AL2: =IF(M2>=INDEX('B Factor'!$D$10:$D$13,MATCH(YEAR($B2),'B Factor'!$B$10:$B$13,0)),1/((1+'B Factor'!$F$4)*INDEX('B Factor'!$C$10:$C$13,MATCH(YEAR($B2),'B Factor'!$B$10:$B$13,0))-M2))/INDEX('B Factor'!$E$10:$E$13,MATCH(YEAR($B2),'B Factor'!$B$10:$B$13,0)) -> 0 | AM2: =IF(N2>=INDEX('B Factor'!$D$10:$D$13,MATCH(YEAR($B2),'B Factor'!$B$10:$B$13,0)),1/((1+'B Factor'!$F$4)*INDEX('B Factor'!$C$10:$C$13,MATCH(YEAR($B2),'B Factor'!$B$10:$B$13,0))-N2))/INDEX('B Factor'!$E$10:$E$13,MATCH(YEAR($B2),'B Factor'!$B$10:$B$13,0)) -> 0 | AN2: =IF(O2>=INDEX('B Factor'!$D$10:$D$13,MATCH(YEAR($B2),'B Factor'!$B$10:$B$13,0)),1/((1+'B Factor'!$F$4)*INDEX('B Factor'!$C$10:$C$13,MATCH(YEAR($B2),'B Factor'!$B$10:$B$13,0))-O2))/INDEX('B Factor'!$E$10:$E$13,MATCH(YEAR($B2),'B Factor'!$B$10:$B$13,0)) -> 0 | AO2: =IF(P2>=INDEX('B Factor'!$D$10:$D$13,MATCH(YEAR($B2),'B Factor'!$B$10:$B$13,0)),1/((1+'B Factor'!$F$4)*INDEX('B Factor'!$C$10:$C$13,MATCH(YEAR($B2),'B Factor'!$B$10:$B$13,0))-P2))/INDEX('B Factor'!$E$10:$E$13,MATCH(YEAR($B2),'B Factor'!$B$10:$B$13,0)) -> 0 | AP2: =IF(Q2>=INDEX('B Factor'!$D$10:$D$13,MATCH(YEAR($B2),'B Factor'!$B$10:$B$13,0)),1/((1+'B Factor'!$F$4)*INDEX('B Factor'!$C$10:$C$13,MATCH(YEAR($B2),'B Factor'!$B$10:$B$13,0))-Q2))/INDEX('B Factor'!$E$10:$E$13,MATCH(YEAR($B2),'B Factor'!$B$10:$B$13,0)) -> 0 | AQ2: =IF(R2>=INDEX('B Factor'!$D$10:$D$13,MATCH(YEAR($B2),'B Factor'!$B$10:$B$13,0)),1/((1+'B Factor'!$F$4)*INDEX('B Factor'!$C$10:$C$13,MATCH(YEAR($B2),'B Factor'!$B$10:$B$13,0))-R2))/INDEX('B Factor'!$E$10:$E$13,MATCH(YEAR($B2),'B Factor'!$B$10:$B$13,0)) -> 0 | AR2: =IF(S2>=INDEX('B Factor'!$D$10:$D$13,MATCH(YEAR($B2),'B Factor'!$B$10:$B$13,0)),1/((1+'B Factor'!$F$4)*INDEX('B Factor'!$C$10:$C$13,MATCH(YEAR($B2),'B Factor'!$B$10:$B$13,0))-S2))/INDEX('B Factor'!$E$10:$E$13,MATCH(YEAR($B2),'B Factor'!$B$10:$B$13,0)) -> 0 | AS2: =IF(T2>=INDEX('B Factor'!$D$10:$D$13,MATCH(YEAR($B2),'B Factor'!$B$10:$B$13,0)),1/((1+'B Factor'!$F$4)*INDEX('B Factor'!$C$10:$C$13,MATCH(YEAR($B2),'B Factor'!$B$10:$B$13,0))-T2))/INDEX('B Factor'!$E$10:$E$13,MATCH(YEAR($B2),'B Factor'!$B$10:$B$13,0)) -> 0 | AT2: =IF(U2>=INDEX('B Factor'!$D$10:$D$13,MATCH(YEAR($B2),'B Factor'!$B$10:$B$13,0)),1/((1+'B Factor'!$F$4)*INDEX('B Factor'!$C$10:$C$13,MATCH(YEAR($B2),'B Factor'!$B$10:$B$13,0))-U2))/INDEX('B Factor'!$E$10:$E$13,MATCH(YEAR($B2),'B Factor'!$B$10:$B$13,0)) -> 0 | AU2: =IF(V2>=INDEX('B Factor'!$D$10:$D$13,MATCH(YEAR($B2),'B Factor'!$B$10:$B$13,0)),1/((1+'B Factor'!$F$4)*INDEX('B Factor'!$C$10:$C$13,MATCH(YEAR($B2),'B Factor'!$B$10:$B$13,0))-V2))/INDEX('B Factor'!$E$10:$E$13,MATCH(YEAR($B2),'B Factor'!$B$10:$B$13,0)) -> 0 | AV2: =IF(W2>=INDEX('B Factor'!$D$10:$D$13,MATCH(YEAR($B2),'B Factor'!$B$10:$B$13,0)),1/((1+'B Factor'!$F$4)*INDEX('B Factor'!$C$10:$C$13,MATCH(YEAR($B2),'B Factor'!$B$10:$B$13,0))-W2))/INDEX('B Factor'!$E$10:$E$13,MATCH(YEAR($B2),'B Factor'!$B$10:$B$13,0)) -> 0 | AW2: =IF(X2>=INDEX('B Factor'!$D$10:$D$13,MATCH(YEAR($B2),'B Factor'!$B$10:$B$13,0)),1/((1+'B Factor'!$F$4)*INDEX('B Factor'!$C$10:$C$13,MATCH(YEAR($B2),'B Factor'!$B$10:$B$13,0))-X2))/INDEX('B Factor'!$E$10:$E$13,MATCH(YEAR($B2),'B Factor'!$B$10:$B$13,0)) -> 0 | AX2: =IF(Y2>=INDEX('B Factor'!$D$10:$D$13,MATCH(YEAR($B2),'B Factor'!$B$10:$B$13,0)),1/((1+'B Factor'!$F$4)*INDEX('B Factor'!$C$10:$C$13,MATCH(YEAR($B2),'B Factor'!$B$10:$B$13,0))-Y2))/INDEX('B Factor'!$E$10:$E$13,MATCH(YEAR($B2),'B Factor'!$B$10:$B$13,0)) -> 0 | AY2: =IF(Z2>=INDEX('B Factor'!$D$10:$D$13,MATCH(YEAR($B2),'B Factor'!$B$10:$B$13,0)),1/((1+'B Factor'!$F$4)*INDEX('B Factor'!$C$10:$C$13,MATCH(YEAR($B2),'B Factor'!$B$10:$B$13,0))-Z2))/INDEX('B Factor'!$E$10:$E$13,MATCH(YEAR($B2),'B Factor'!$B$10:$B$13,0)) -> 0
